Workbook

Sheet Monte Carlo analysis H (hidden)
A7: Mean | C7: =AVERAGE(Simulations!D:D) -> 292552.8893 | D7: =AVERAGE(Simulations!E:E) -> 477375.5324 | E7: =AVERAGE(Simulations!F:F) -> 331658.9175 | F7: =AVERAGE(Simulations!G:G) -> 1101587.339 | G7: =AVERAGE(Simulations!H:H) -> 15487.4491 | H7: =AVERAGE(Simulations!I:I) -> 55628.19132 | I7: =AVERAGE(Simulations!J:J) -> 283815.2731 | J7: =AVERAGE(Simulations!K:K) -> 37286.62192 | K7: =AVERAGE(Simulations!L:L) -> 376730.0863 | L7: =AVERAGE(Simulations!M:M) -> 392217.5354 | M7: =AVERAGE(Simulations!N:N) -> 43447.82782 | N7: =AVERAGE(Simulations!O:O) -> 154935.0068 | O7: =AVERAGE(Simulations!P:P) -> 139066.172 | P7: =AVERAGE(Simulations!Q:Q) -> 204584.1943 | Q7: =AVERAGE(Simulations!R:R) -> 498585.3731 | R7: =AVERAGE(Simulations!S:S) -> 542033.2009 | S7: =AVERAGE(Simulations!T:T) -> 11569.3297 | T7: =AVERAGE(Simulations!U:U) -> 44133.77384 | U7: =AVERAGE(Simulations!V:V) -> 244185.939 | V7: =AVERAGE(Simulations!W:W) -> 0 | W7: =AVERAGE(Simulations!X:X) -> 288319.7129 | X7: =AVERAGE(Simulations!Y:Y) -> 299889.0426 | Y7: =AVERAGE(Simulations!Z:Z) -> 55017.15752 | Z7: =AVERAGE(Simulations!AA:AA) -> 199068.7807 | AA7: =AVERAGE(Simulations!AB:AB) -> 383252.111 | AB7: =AVERAGE(Simulations!AC:AC) -> 204584.1943 | AC7: =AVERAGE(Simulations!AD:AD) -> 786905.086 | AD7: =AVERAGE(Simulations!AE:AE) -> 841922.2435 | AE7: =AVERAGE(Simulations!AF:AF) -> 10608.42444 | AF7: =AVERAGE(Simulations!AG:AG) -> 34619.43512 | AG7: =AVERAGE(Simulations!AH:AH) -> 26127.87556 | AH7: =AVERAGE(Simulations!AI:AI) -> 47030.17601 | AI7: =AVERAGE(Simulations!AJ:AJ) -> 107777.4867 | AJ7: =AVERAGE(Simulations!AK:AK) -> 118385.9111 | AK7: =AVERAGE(Simulations!AL:AL) -> 2813.775197 | AL7: =AVERAGE(Simulations!AM:AM) -> 9551.070717 | AM7: =AVERAGE(Simulations!AN:AN) -> 32417.23323 | AN7: =AVERAGE(Simulations!AO:AO) -> 25896.45558 | AO7: =AVERAGE(Simulations!AP:AP) -> 67864.75953 | AP7: =AVERAGE(Simulations!AQ:AQ) -> 70678.53473 | AQ7: =AVERAGE(Simulations!AR:AR) -> 13422.19964 | AR7: =AVERAGE(Simulations!AS:AS) -> 44170.50583 | AS7: =AVERAGE(Simulations!AT:AT) -> 58545.10879 | AT7: =AVERAGE(Simulations!AU:AU) -> 72926.63159 | AU7: =AVERAGE(Simulations!AV:AV) -> 175642.2462 | AV7: =AVERAGE(Simulations!AW:AW) -> 189064.4459 | AW7: =AVERAGE(Simulations!AX:AX) -> 68439.35716 | AX7: =AVERAGE(Simulations!AY:AY) -> 243239.2865 | AY7: =AVERAGE(Simulations!AZ:AZ) -> 441797.2198 | AZ7: =AVERAGE(Simulations!BA:BA) -> 277510.8259 | BA7: =AVERAGE(Simulations!BB:BB) -> 962547.3322 | BB7: =AVERAGE(Simulations!BC:BC) -> 1030986.689 | BC7: =AVERAGE(Simulations!BD:BD) -> 30317.98924 | BD7: =AVERAGE(Simulations!BE:BE) -> 49313.60282 | BE7: =AVERAGE(Simulations!BF:BF) -> 35578.31259 | BF7: =AVERAGE(Simulations!BG:BG) -> 54148.09164 | BG7: =AVERAGE(Simulations!BH:BH) -> 139040.0071 | BH7: =AVERAGE(Simulations!BI:BI) -> 169357.9963 | BI7: =AVERAGE(Simulations!BJ:BJ) -> 5912.366844 | BJ7: =AVERAGE(Simulations!BK:BK) -> 7539.211934 | BK7: =AVERAGE(Simulations!BL:BL) -> 9634.442066 | BL7: =AVERAGE(Simulations!BM:BM) -> 10324.71 | BM7: =AVERAGE(Simulations!BN:BN) -> 10350.95944 | BN7: =AVERAGE(Simulations!BO:BO) -> 1761.844552 | BO7: =AVERAGE(Simulations!BP:BP) -> 2743.205859 | BP7: =AVERAGE(Simulations!BQ:BQ) -> 4065.467031 | BQ7: =AVERAGE(Simulations!BR:BR) -> 5172.841085 | BR7: =AVERAGE(Simulations!BS:BS) -> 5160.331469 | BS7: =AVERAGE(Simulations!BT:BT) -> 1315.763551 | BT7: =AVERAGE(Simulations!BU:BU) -> 2689.433061 | BU7: =AVERAGE(Simulations!BV:BV) -> 3439.874102 | BV7: =AVERAGE(Simulations!BW:BW) -> 3386.073762 | BW7: =AVERAGE(Simulations!BX:BX) -> 2305.953004 | BX7: =AVERAGE(Simulations!BY:BY) -> 350.3593058 | BY7: =AVERAGE(Simulations!BZ:BZ) -> 715.5652832 | BZ7: =AVERAGE(Simulations!CA:CA) -> 2082.208823 | CA7: =AVERAGE(Simulations!CB:CB) -> 6930.503989 | CB7: =AVERAGE(Simulations!CC:CC) -> 0 | CC7: =AVERAGE(Simulations!CD:CD) -> 1666.122857 | CD7: =AVERAGE(Simulations!CE:CE) -> 3404.998344 | CE7: =AVERAGE(Simulations!CF:CF) -> 5522.082924 | CF7: =AVERAGE(Simulations!CG:CG) -> 10316.57775 | CG7: =AVERAGE(Simulations!CH:CH) -> 2305.953004 | CH7: =AVERAGE(Simulations!CI:CI) -> 1364.23443 | CI7: =AVERAGE(Simulations!CJ:CJ) -> 1364.23443 | CJ7: =AVERAGE(Simulations!CK:CK) -> 1364.23443 | CK7: =AVERAGE(Simulations!CL:CL) -> 1364.23443 | CL7: =AVERAGE(Simulations!CM:CM) -> 1364.23443 | CM7: =AVERAGE(Simulations!CN:CN) -> 653.196889 | CN7: =AVERAGE(Simulations!CO:CO) -> 653.196889 | CO7: =AVERAGE(Simulations!CP:CP) -> 653.196889 | CP7: =AVERAGE(Simulations!CQ:CQ) -> 653.196889 | CQ7: =AVERAGE(Simulations!CR:CR) -> 653.196889 | CR7: =AVERAGE(Simulations!CS:CS) -> 321.4674074 | CS7: =AVERAGE(Simulations!CT:CT) -> 653.196889 | CT7: =AVERAGE(Simulations!CU:CU) -> 653.196889 | CU7: =AVERAGE(Simulations!CV:CV) -> 653.196889 | CV7: =AVERAGE(Simulations!CW:CW) -> 653.196889 | CW7: =AVERAGE(Simulations!CX:CX) -> 85.26591507 | CX7: =AVERAGE(Simulations!CY:CY) -> 173.3794282 | CY7: =AVERAGE(Simulations!CZ:CZ) -> 318.1638379 | CZ7: =AVERAGE(Simulations!DA:DA) -> 933.4975791 | DA7: =AVERAGE(Simulations!DB:DB) -> 359.6729942 | DB7: =AVERAGE(Simulations!DC:DC) -> 406.7333224 | DC7: =AVERAGE(Simulations!DD:DD) -> 826.5763172 | DD7: =AVERAGE(Simulations!DE:DE) -> 971.3607268 | DE7: =AVERAGE(Simulations!DF:DF) -> 1586.694468 | DF7: =AVERAGE(Simulations!DG:DG) -> 1012.869883 | DG7: =AVERAGE(Simulations!DH:DH) -> 6669.876736 | DH7: =AVERAGE(Simulations!DI:DI) -> 7203.466875 | DI7: =AVERAGE(Simulations!DJ:DJ) -> 7144.430771 | DJ7: =AVERAGE(Simulations!DK:DK) -> 6898.07109 | DK7: =AVERAGE(Simulations!DL:DL) -> 8129.869499 | DL7: =AVERAGE(Simulations!DM:DM) -> 872.7695512 | DM7: =AVERAGE(Simulations!DN:DN) -> 859.1890929 | DN7: =AVERAGE(Simulations!DO:DO) -> 734.0562953 | DO7: =AVERAGE(Simulations!DP:DP) -> 617.4819204 | DP7: =AVERAGE(Simulations!DQ:DQ) -> 534.1405461 | DQ7: =AVERAGE(Simulations!DR:DR) -> 3995.355547 | DR7: =AVERAGE(Simulations!DS:DS) -> 3995.355547 | DS7: =AVERAGE(Simulations!DT:DT) -> 4094.876204 | DT7: =AVERAGE(Simulations!DU:DU) -> 3684.091281 | DU7: =AVERAGE(Simulations!DV:DV) -> 3684.091281 | DV7: =AVERAGE(Simulations!DW:DW) -> 2191673.168 | DW7: =AVERAGE(Simulations!DX:DX) -> 1419415.152 | DX7: =AVERAGE(Simulations!DY:DY) -> 3611088.32 | DY7: =AVERAGE(Simulations!DZ:DZ) -> 1716721.64 | DZ7: =AVERAGE(Simulations!EA:EA) -> 919836.288 | EA7: =AVERAGE(Simulations!EB:EB) -> 796885.3522 | EB7: =AVERAGE(Simulations!EC:EC) -> 1369734.188 | EC7: =AVERAGE(Simulations!ED:ED) -> 1728156.63 | ED7: =AVERAGE(Simulations!EE:EE) ->  | EE7: =AVERAGE(Simulations!EF:EF) ->  | EF7: =AVERAGE(Simulations!EG:EG) ->  | EG7: =AVERAGE(Simulations!EH:EH) ->  | EH7: =AVERAGE(Simulations!EI:EI) ->  | EI7: =AVERAGE(Simulations!EJ:EJ) ->  | EJ7: =AVERAGE(Simulations!EK:EK) ->  | EK7: =AVERAGE(Simulations!EL:EL) ->  | EL7: =AVERAGE(Simulations!EM:EM) ->  | EM7: =AVERAGE(Simulations!EN:EN) ->  | EN7: =AVERAGE(Simulations!EO:EO) ->  | EO7: =AVERAGE(Simulations!EP:EP) ->  | EP7: =AVERAGE(Simulations!EQ:EQ) ->  | EQ7: =AVERAGE(Simulations!ER:ER) ->  | ER7: =AVERAGE(Simulations!ES:ES) ->  | ES7: =AVERAGE(Simulations!ET:ET) ->  | ET7: =AVERAGE(Simulations!EU:EU) ->  | EU7: =AVERAGE(Simulations!EV:EV) ->  | EV7: =AVERAGE(Simulations!EW:EW) ->  | EW7: =AVERAGE(Simulations!EX:EX) ->  | EX7: =AVERAGE(Simulations!EY:EY) ->  | EY7: =AVERAGE(Simulations!EZ:EZ) ->  | EZ7: =AVERAGE(Simulations!FA:FA) ->  | FA7: =AVERAGE(Simulations!FB:FB) ->  | FB7: =AVERAGE(Simulations!FC:FC) ->  | FC7: =AVERAGE(Simulations!FD:FD) ->  | FD7: =AVERAGE(Simulations!FE:FE) ->  | FE7: =AVERAGE(Simulations!FF:FF) ->  | FF7: =AVERAGE(Simulations!FG:FG) ->  | FG7: =AVERAGE(Simulations!FH:FH) ->  | FH7: =AVERAGE(Simulations!FI:FI) ->  | FI7: =AVERAGE(Simulations!FJ:FJ) ->  | FJ7: =AVERAGE(Simulations!FK:FK) ->  | FK7: =AVERAGE(Simulations!FL:FL) ->  | FL7: =AVERAGE(Simulations!FM:FM) ->  | FM7: =AVERAGE(Simulations!FN:FN) ->  | FN7: =AVERAGE(Simulations!FO:FO) ->  | FO7: =AVERAGE(Simulations!FP:FP) ->  | FP7: =AVERAGE(Simulations!FQ:FQ) ->  | FQ7: =AVERAGE(Simulations!FR:FR) ->  | FR7: =AVERAGE(Simulations!FS:FS) ->  | FS7: =AVERAGE(Simulations!FT:FT) ->  | FT7: =AVERAGE(Simulations!FU:FU) ->  | FU7: =AVERAGE(Simulations!FV:FV) ->  | FV7: =AVERAGE(Simulations!FW:FW) ->  | FW7: =AVERAGE(Simulations!FX:FX) ->  | FX7: =AVERAGE(Simulations!FY:FY) ->  | FY7: =AVERAGE(Simulations!FZ:FZ) ->  | FZ7: =AVERAGE(Simulations!GA:GA) ->  | GA7: =AVERAGE(Simulations!GB:GB) ->  | GB7: =AVERAGE(Simulations!GC:GC) ->  | GC7: =AVERAGE(Simulations!GD:GD) ->  | GD7: =AVERAGE(Simulations!GE:GE) ->  | GE7: =AVERAGE(Simulations!GF:GF) ->  | GF7: =AVERAGE(Simulations!GG:GG) ->  | GG7: =AVERAGE(Simulations!GH:GH) ->  | GH7: =AVERAGE(Simulations!GI:GI) ->  | GI7: =AVERAGE(Simulations!GJ:GJ) ->  | GJ7: =AVERAGE(Simulations!GK:GK) ->  | GK7: =AVERAGE(Simulations!GL:GL) ->  | GL7: =AVERAGE(Simulations!GM:GM) ->  | GM7: =AVERAGE(Simulations!GN:GN) ->  | GN7: =AVERAGE(Simulations!GO:GO) ->  | GO7: =AVERAGE(Simulations!GP:GP) ->  | GP7: =AVERAGE(Simulations!GQ:GQ) ->  | GQ7: =AVERAGE(Simulations!GR:GR) ->  | GR7: =AVERAGE(Simulations!GS:GS) ->  | GS7: =AVERAGE(Simulations!GT:GT) ->  | GT7: =AVERAGE(Simulations!GU:GU) ->  | GU7: =AVERAGE(Simulations!GV:GV) ->  | GV7: =AVERAGE(Simulations!GW:GW) ->  | GW7: =AVERAGE(Simulations!GX:GX) ->  | GX7: =AVERAGE(Simulations!GY:GY) ->  | GY7: =AVERAGE(Simulations!GZ:GZ) ->  | GZ7: =AVERAGE(Simulations!HA:HA) ->  | HA7: =AVERAGE(Simulations!HB:HB) ->  | HB7: =AVERAGE(Simulations!HC:HC) ->  | HC7: =AVERAGE(Simulations!HD:HD) ->  | HD7: =AVERAGE(Simulations!HE:HE) ->  | HE7: =AVERAGE(Simulations!HF:HF) ->  | HF7: =AVERAGE(Simulations!HG:HG) ->  | HG7: =AVERAGE(Simulations!HH:HH) ->  | HH7: =AVERAGE(Simulations!HI:HI) ->  | HI7: =AVERAGE(Simulations!HJ:HJ) ->  | HJ7: =AVERAGE(Simulations!HK:HK) ->  | HK7: =AVERAGE(Simulations!HL:HL) ->  | HL7: =AVERAGE(Simulations!HM:HM) ->  | HM7: =AVERAGE(Simulations!HN:HN) ->  | HN7: =AVERAGE(Simulations!HO:HO) ->  | HO7: =AVERAGE(Simulations!HP:HP) ->  | HP7: =AVERAGE(Simulations!HQ:HQ) ->  | HQ7: =AVERAGE(Simulations!HR:HR) ->  | HR7: =AVERAGE(Simulations!HS:HS) ->  | HS7: =AVERAGE(Simulations!HT:HT) ->  | HT7: =AVERAGE(Simulations!HU:HU) ->  | HU7: =AVERAGE(Simulations!HV:HV) ->  | HV7: =AVERAGE(Simulations!HW:HW) ->  | HW7: =AVERAGE(Simulations!HX:HX) ->  | HX7: =AVERAGE(Simulations!HY:HY) ->  | HY7: =AVERAGE(Simulations!HZ:HZ) ->  | HZ7: =AVERAGE(Simulations!IA:IA) ->  | IA7: =AVERAGE(Simulations!IB:IB) ->  | IB7: =AVERAGE(Simulations!IC:IC) ->  | IC7: =AVERAGE(Simulations!ID:ID) ->  | ID7: =AVERAGE(Simulations!IE:IE) ->  | IE7: =AVERAGE(Simulations!IF:IF) ->  | IF7: =AVERAGE(Simulations!IG:IG) ->  | IG7: =AVERAGE(Simulations!IH:IH) ->  | IH7: =AVERAGE(Simulations!II:II) ->  | II7: =AVERAGE(Simulations!IJ:IJ) ->  | IJ7: =AVERAGE(Simulations!IK:IK) ->  | IK7: =AVERAGE(Simulations!IL:IL) ->  | IL7: =AVERAGE(Simulations!IM:IM) ->  | IM7: =AVERAGE(Simulations!IN:IN) ->  | IN7: =AVERAGE(Simulations!IO:IO) ->  | IO7: =AVERAGE(Simulations!IP:IP) ->  | IP7: =AVERAGE(Simulations!IQ:IQ) ->  | IQ7: =AVERAGE(Simulations!IR:IR) ->  | IR7: =AVERAGE(Simulations!IS:IS) ->  | IS7: =AVERAGE(Simulations!IT:IT) ->  | IT7: =AVERAGE(Simulations!IU:IU) ->  | IU7: =AVERAGE(Simulations!IV:IV) ->  | IV7: =AVERAGE(Simulations!IW:IW) ->  | IW7: =AVERAGE(Simulations!IX:IX) ->  | IX7: =AVERAGE(Simulations!IY:IY) ->  | IY7: =AVERAGE(Simulations!IZ:IZ) ->  | IZ7: =AVERAGE(Simulations!JA:JA) ->  | JA7: =AVERAGE(Simulations!JB:JB) ->  | JB7: =AVERAGE(Simulations!JC:JC) ->  | JC7: =AVERAGE(Simulations!JD:JD) ->  | JD7: =AVERAGE(Simulations!JE:JE) ->  | JE7: =AVERAGE(Simulations!JF:JF) ->  | JF7: =AVERAGE(Simulations!JG:JG) ->  | JG7: =AVERAGE(Simulations!JH:JH) ->  | JH7: =AVERAGE(Simulations!JI:JI) ->  | JI7: =AVERAGE(Simulations!JJ:JJ) ->  | JJ7: =AVERAGE(Simulations!JK:JK) ->  | JK7: =AVERAGE(Simulations!JL:JL) ->  | JL7: =AVERAGE(Simulations!JM:JM) ->  | JM7: =AVERAGE(Simulations!JN:JN) ->  | JN7: =AVERAGE(Simulations!JO:JO) ->  | JO7: =AVERAGE(Simulations!JP:JP) ->  | JP7: =AVERAGE(Simulations!JQ:JQ) ->  | JQ7: =AVERAGE(Simulations!JR:JR) ->  | JR7: =AVERAGE(Simulations!JS:JS) ->  | JS7: =AVERAGE(Simulations!JT:JT) ->  | JT7: =AVERAGE(Simulations!JU:JU) ->  | JU7: =AVERAGE(Simulations!JV:JV) ->  | JV7: =AVERAGE(Simulations!JW:JW) ->  | JW7: =AVERAGE(Simulations!JX:JX) ->  | JX7: =AVERAGE(Simulations!JY:JY) ->  | JY7: =AVERAGE(Simulations!JZ:JZ) ->  | JZ7: =AVERAGE(Simulations!KA:KA) ->  | KA7: =AVERAGE(Simulations!KB:KB) ->  | KB7: =AVERAGE(Simulations!KC:KC) ->  | KC7: =AVERAGE(Simulations!KD:KD) ->  | KD7: =AVERAGE(Simulations!KE:KE) ->  | KE7: =AVERAGE(Simulations!KF:KF) ->  | KF7: =AVERAGE(Simulations!KG:KG) ->  | KG7: =AVERAGE(Simulations!KH:KH) ->  | KH7: =AVERAGE(Simulations!KI:KI) ->  | KI7: =AVERAGE(Simulations!KJ:KJ) ->  | KJ7: =AVERAGE(Simulations!KK:KK) ->  | KK7: =AVERAGE(Simulations!KL:KL) ->  | KL7: =AVERAGE(Simulations!KM:KM) ->  | KM7: =AVERAGE(Simulations!KN:KN) ->  | KN7: =AVERAGE(Simulations!KO:KO) ->  | KO7: =AVERAGE(Simulations!KP:KP) ->  | KP7: =AVERAGE(Simulations!KQ:KQ) ->  | KQ7: =AVERAGE(Simulations!KR:KR) ->  | KR7: =AVERAGE(Simulations!KS:KS) ->  | KS7: =AVERAGE(Simulations!KT:KT) ->  | KT7: =AVERAGE(Simulations!KU:KU) ->  | KU7: =AVERAGE(Simulations!KV:KV) ->  | KV7: =AVERAGE(Simulations!KW:KW) ->  | KW7: =AVERAGE(Simulations!KX:KX) ->  | KX7: =AVERAGE(Simulations!KY:KY) ->  | KY7: =AVERAGE(Simulations!KZ:KZ) ->  | KZ7: =AVERAGE(Simulations!LA:LA) ->  | LA7: =AVERAGE(Simulations!LB:LB) ->  | LB7: =AVERAGE(Simulations!LC:LC) ->  | LC7: =AVERAGE(Simulations!LD:LD) ->  | LD7: =AVERAGE(Simulations!LE:LE) ->  | LE7: =AVERAGE(Simulations!LF:LF) ->  | LF7: =AVERAGE(Simulations!LG:LG) ->  | LG7: =AVERAGE(Simulations!LH:LH) ->  | LH7: =AVERAGE(Simulations!LI:LI) ->  | LI7: =AVERAGE(Simulations!LJ:LJ) ->  | LJ7: =AVERAGE(Simulations!LK:LK) ->  | LK7: =AVERAGE(Simulations!LL:LL) ->  | LL7: =AVERAGE(Simulations!LM:LM) ->  | LM7: =AVERAGE(Simulations!LN:LN) ->  | LN7: =AVERAGE(Simulations!LO:LO) ->  | LO7: =AVERAGE(Simulations!LP:LP) ->  | LP7: =AVERAGE(Simulations!LQ:LQ) ->  | LQ7: =AVERAGE(Simulations!LR:LR) ->  | LR7: =AVERAGE(Simulations!LS:LS) ->  | LS7: =AVERAGE(Simulations!LT:LT) ->  | LT7: =AVERAGE(Simulations!LU:LU) ->  | LU7: =AVERAGE(Simulations!LV:LV) ->  | LV7: =AVERAGE(Simulations!LW:LW) ->  | LW7: =AVERAGE(Simulations!LX:LX) ->  | LX7: =AVERAGE(Simulations!LY:LY) ->  | LY7: =AVERAGE(Simulations!LZ:LZ) ->  | LZ7: =AVERAGE(Simulations!MA:MA) ->  | MA7: =AVERAGE(Simulations!MB:MB) ->  | MB7: =AVERAGE(Simulations!MC:MC) ->  | MC7: =AVERAGE(Simulations!MD:MD) ->  | MD7: =AVERAGE(Simulations!ME:ME) ->  | ME7: =AVERAGE(Simulations!MF:MF) ->  | MF7: =AVERAGE(Simulations!MG:MG) ->  | MG7: =AVERAGE(Simulations!MH:MH) ->  | MH7: =AVERAGE(Simulations!MI:MI) ->  | MI7: =AVERAGE(Simulations!MJ:MJ) ->  | MJ7: =AVERAGE(Simulations!MK:MK) ->  | MK7: =AVERAGE(Simulations!ML:ML) ->  | ML7: =AVERAGE(Simulations!MM:MM) ->  | MM7: =AVERAGE(Simulations!MN:MN) ->  | MN7: =AVERAGE(Simulations!MO:MO) ->  | MO7: =AVERAGE(Simulations!MP:MP) ->  | MP7: =AVERAGE(Simulations!MQ:MQ) ->  | MQ7: =AVERAGE(Simulations!MR:MR) ->  | MR7: =AVERAGE(Simulations!MS:MS) ->  | MS7: =AVERAGE(Simulations!MT:MT) ->  | MT7: =AVERAGE(Simulations!MU:MU) ->  | MU7: =AVERAGE(Simulations!MV:MV) ->  | MV7: =AVERAGE(Simulations!MW:MW) ->  | MW7: =AVERAGE(Simulations!MX:MX) ->  | MX7: =AVERAGE(Simulations!MY:MY) ->  | MY7: =AVERAGE(Simulations!MZ:MZ) ->  | MZ7: =AVERAGE(Simulations!NA:NA) ->  | NA7: =AVERAGE(Simulations!NB:NB) ->  | NB7: =AVERAGE(Simulations!NC:NC) ->  | NC7: =AVERAGE(Simulations!ND:ND) ->  | ND7: =AVERAGE(Simulations!NE:NE) ->  | NE7: =AVERAGE(Simulations!NF:NF) ->  | NF7: =AVERAGE(Simulations!NG:NG) ->  | NG7: =AVERAGE(Simulations!NH:NH) ->  | NH7: =AVERAGE(Simulations!NI:NI) ->  | NI7: =AVERAGE(Simulations!NJ:NJ) ->  | NJ7: =AVERAGE(Simulations!NK:NK) ->  | NK7: =AVERAGE(Simulations!NL:NL) ->  | NL7: =AVERAGE(Simulations!NM:NM) ->  | NM7: =AVERAGE(Simulations!NN:NN) ->  | NN7: =AVERAGE(Simulations!NO:NO) ->  | NO7: =AVERAGE(Simulations!NP:NP) ->  | NP7: =AVERAGE(Simulations!NQ:NQ) ->  | NQ7: =AVERAGE(Simulations!NR:NR) ->  | NR7: =AVERAGE(Simulations!NS:NS) ->  | NS7: =AVERAGE(Simulations!NT:NT) ->  | NT7: =AVERAGE(Simulations!NU:NU) ->  | NU7: =AVERAGE(Simulations!NV:NV) ->  | NV7: =AVERAGE(Simulations!NW:NW) ->  | NW7: =AVERAGE(Simulations!NX:NX) ->  | NX7: =AVERAGE(Simulations!NY:NY) ->  | NY7: =AVERAGE(Simulations!NZ:NZ) ->  | NZ7: =AVERAGE(Simulations!OA:OA) ->  | OA7: =AVERAGE(Simulations!OB:OB) ->  | OB7: =AVERAGE(Simulations!OC:OC) ->  | OC7: =AVERAGE(Simulations!OD:OD) ->  | OD7: =AVERAGE(Simulations!OE:OE) ->  | OE7: =AVERAGE(Simulations!OF:OF) ->  | OF7: =AVERAGE(Simulations!OG:OG) ->  | OG7: =AVERAGE(Simulations!OH:OH) ->  | OH7: =AVERAGE(Simulations!OI:OI) ->  | OI7: =AVERAGE(Simulations!OJ:OJ) ->  | OJ7: =AVERAGE(Simulations!OK:OK) ->  | OK7: =AVERAGE(Simulations!OL:OL) ->  | OL7: =AVERAGE(Simulations!OM:OM) ->  | OM7: =AVERAGE(Simulations!ON:ON) ->  | ON7: =AVERAGE(Simulations!OO:OO) ->  | OO7: =AVERAGE(Simulations!OP:OP) ->  | OP7: =AVERAGE(Simulations!OQ:OQ) ->  | OQ7: =AVERAGE(Simulations!OR:OR) ->  | OR7: =AVERAGE(Simulations!OS:OS) ->  | OS7: =AVERAGE(Simulations!OT:OT) ->  | OT7: =AVERAGE(Simulations!OU:OU) ->  | OU7: =AVERAGE(Simulations!OV:OV) ->  | OV7: =AVERAGE(Simulations!OW:OW) ->  | OW7: =AVERAGE(Simulations!OX:OX) ->  | OX7: =AVERAGE(Simulations!OY:OY) ->  | OY7: =AVERAGE(Simulations!OZ:OZ) ->  | OZ7: =AVERAGE(Simulations!PA:PA) ->  | PA7: =AVERAGE(Simulations!PB:PB) ->  | PB7: =AVERAGE(Simulations!PC:PC) ->  | PC7: =AVERAGE(Simulations!PD:PD) ->  | PD7: =AVERAGE(Simulations!PE:PE) ->  | PE7: =AVERAGE(Simulations!PF:PF) ->  | PF7: =AVERAGE(Simulations!PG:PG) ->  | PG7: =AVERAGE(Simulations!PH:PH) ->  | PH7: =AVERAGE(Simulations!PI:PI) ->  | PI7: =AVERAGE(Simulations!PJ:PJ) ->  | PJ7: =AVERAGE(Simulations!PK:PK) ->  | PK7: =AVERAGE(Simulations!PL:PL) ->  | PL7: =AVERAGE(Simulations!PM:PM) ->  | PM7: =AVERAGE(Simulations!PN:PN) ->  | PN7: =AVERAGE(Simulations!PO:PO) ->  | PO7: =AVERAGE(Simulations!PP:PP) ->  | PP7: =AVERAGE(Simulations!PQ:PQ) ->  | PQ7: =AVERAGE(Simulations!PR:PR) ->  | PR7: =AVERAGE(Simulations!PS:PS) ->  | PS7: =AVERAGE(Simulations!PT:PT) ->  | PT7: =AVERAGE(Simulations!PU:PU) ->  | PU7: =AVERAGE(Simulations!PV:PV) ->  | PV7: =AVERAGE(Simulations!PW:PW) ->  | PW7: =AVERAGE(Simulations!PX:PX) ->  | PX7: =AVERAGE(Simulations!PY:PY) ->  | PY7: =AVERAGE(Simulations!PZ:PZ) ->  | PZ7: =AVERAGE(Simulations!QA:QA) ->  | QA7: =AVERAGE(Simulations!QB:QB) ->  | QB7: =AVERAGE(Simulations!QC:QC) ->  | QC7: =AVERAGE(Simulations!QD:QD) ->  | QD7: =AVERAGE(Simulations!QE:QE) ->  | QE7: =AVERAGE(Simulations!QF:QF) ->  | QF7: =AVERAGE(Simulations!QG:QG) ->  | QG7: =AVERAGE(Simulations!QH:QH) ->  | QH7: =AVERAGE(Simulations!QI:QI) ->  | QI7: =AVERAGE(Simulations!QJ:QJ) ->  | QJ7: =AVERAGE(Simulations!QK:QK) ->  | QK7: =AVERAGE(Simulations!QL:QL) ->  | QL7: =AVERAGE(Simulations!QM:QM) ->  | QM7: =AVERAGE(Simulations!QN:QN) ->  | QN7: =AVERAGE(Simulations!QO:QO) ->  | QO7: =AVERAGE(Simulations!QP:QP) ->  | QP7: =AVERAGE(Simulations!QQ:QQ) ->  | QQ7: =AVERAGE(Simulations!QR:QR) ->  | QR7: =AVERAGE(Simulations!QS:QS) ->  | QS7: =AVERAGE(Simulations!QT:QT) ->  | QT7: =AVERAGE(Simulations!QU:QU) ->  | QU7: =AVERAGE(Simulations!QV:QV) ->  | QV7: =AVERAGE(Simulations!QW:QW) ->  | QW7: =AVERAGE(Simulations!QX:QX) ->  | QX7: =AVERAGE(Simulations!QY:QY) ->  | QY7: =AVERAGE(Simulations!QZ:QZ) ->  | QZ7: =AVERAGE(Simulations!RA:RA) ->  | RA7: =AVERAGE(Simulations!RB:RB) ->  | RB7: =AVERAGE(Simulations!RC:RC) ->  | RC7: =AVERAGE(Simulations!RD:RD) ->  | RD7: =AVERAGE(Simulations!RE:RE) ->  | RE7: =AVERAGE(Simulations!RF:RF) ->  | RF7: =AVERAGE(Simulations!RG:RG) ->  | RG7: =AVERAGE(Simulations!RH:RH) ->  | RH7: =AVERAGE(Simulations!RI:RI) ->  | RI7: =AVERAGE(Simulations!RJ:RJ) ->  | RJ7: =AVERAGE(Simulations!RK:RK) ->  | RK7: =AVERAGE(Simulations!RL:RL) ->  | RL7: =AVERAGE(Simulations!RM:RM) ->  | RM7: =AVERAGE(Simulations!RN:RN) ->  | RN7: =AVERAGE(Simulations!RO:RO) ->  | RO7: =AVERAGE(Simulations!RP:RP) ->  | RP7: =AVERAGE(Simulations!RQ:RQ) ->  | RQ7: =AVERAGE(Simulations!RR:RR) ->  | RR7: =AVERAGE(Simulations!RS:RS) ->  | RS7: =AVERAGE(Simulations!RT:RT) ->  | RT7: =AVERAGE(Simulations!RU:RU) ->  | RU7: =AVERAGE(Simulations!RV:RV) ->  | RV7: =AVERAGE(Simulations!RW:RW) ->  | RW7: =AVERAGE(Simulations!RX:RX) ->  | RX7: =AVERAGE(Simulations!RY:RY) ->  | RY7: =AVERAGE(Simulations!RZ:RZ) ->  | RZ7: =AVERAGE(Simulations!SA:SA) ->  | SA7: =AVERAGE(Simulations!SB:SB) ->  | SB7: =AVERAGE(Simulations!SC:SC) ->  | SC7: =AVERAGE(Simulations!SD:SD) ->  | SD7: =AVERAGE(Simulations!SE:SE) ->  | SE7: =AVERAGE(Simulations!SF:SF) ->  | SF7: =AVERAGE(Simulations!SG:SG) ->  | SG7: =AVERAGE(Simulations!SH:SH) ->  | SH7: =AVERAGE(Simulations!SI:SI) -> 
A8: Min | C8: =MIN(Simulations!D:D) -> 187960.1354 | D8: =MIN(Simulations!E:E) -> 310402.0879 | E8: =MIN(Simulations!F:F) -> 182924.6492 | F8: =MIN(Simulations!G:G) -> 699500.2426 | G8: =MIN(Simulations!H:H) -> 1144.249014 | H8: =MIN(Simulations!I:I) -> 12970.99127 | I8: =MIN(Simulations!J:J) -> 173637.5786 | J8: =MIN(Simulations!K:K) -> 9859.64562 | K8: =MIN(Simulations!L:L) -> 202081.2704 | L8: =MIN(Simulations!M:M) -> 203779.2878 | M8: =MIN(Simulations!N:N) -> 8250.484153 | N8: =MIN(Simulations!O:O) -> 109627.3129 | O8: =MIN(Simulations!P:P) -> 97323.99601 | P8: =MIN(Simulations!Q:Q) -> 124858.9456 | Q8: =MIN(Simulations!R:R) -> 337564.6929 | R8: =MIN(Simulations!S:S) -> 361496.93 | S8: =MIN(Simulations!T:T) -> 908.8643645 | T8: =MIN(Simulations!U:U) -> 10695.81755 | U8: =MIN(Simulations!V:V) -> 155364.5669 | V8: =MIN(Simulations!W:W) -> 0 | W8: =MIN(Simulations!X:X) -> 167198.0941 | X8: =MIN(Simulations!Y:Y) -> 168603.9218 | Y8: =MIN(Simulations!Z:Z) -> 10002.04422 | Z8: =MIN(Simulations!AA:AA) -> 140001.1157 | AA8: =MIN(Simulations!AB:AB) -> 261600.3332 | AB8: =MIN(Simulations!AC:AC) -> 124858.9456 | AC8: =MIN(Simulations!AD:AD) -> 542836.6272 | AD8: =MIN(Simulations!AE:AE) -> 560131.548 | AE8: =MIN(Simulations!AF:AF) -> 1459.511511 | AF8: =MIN(Simulations!AG:AG) -> 16324.37243 | AG8: =MIN(Simulations!AH:AH) -> 12320.28108 | AH8: =MIN(Simulations!AI:AI) -> 22176.50594 | AI8: =MIN(Simulations!AJ:AJ) -> 50821.15945 | AJ8: =MIN(Simulations!AK:AK) -> 58037.62161 | AK8: =MIN(Simulations!AL:AL) -> 189.6660122 | AL8: =MIN(Simulations!AM:AM) -> 1520.802302 | AM8: =MIN(Simulations!AN:AN) -> 13064.83166 | AN8: =MIN(Simulations!AO:AO) -> 9859.64562 | AO8: =MIN(Simulations!AP:AP) -> 25172.11779 | AP8: =MIN(Simulations!AQ:AQ) -> 25518.12899 | AQ8: =MIN(Simulations!AR:AR) -> 1827.476018 | AR8: =MIN(Simulations!AS:AS) -> 20183.76369 | AS8: =MIN(Simulations!AT:AT) -> 26848.14374 | AT8: =MIN(Simulations!AU:AU) -> 34224.80457 | AU8: =MIN(Simulations!AV:AV) -> 82048.26413 | AV8: =MIN(Simulations!AW:AW) -> 87334.92448 | AW8: =MIN(Simulations!AX:AX) -> 12283.24662 | AX8: =MIN(Simulations!AY:AY) -> 166227.5877 | AY8: =MIN(Simulations!AZ:AZ) -> 297868.0484 | AZ8: =MIN(Simulations!BA:BA) -> 168013.477 | BA8: =MIN(Simulations!BB:BB) -> 648771.5492 | BB8: =MIN(Simulations!BC:BC) -> 685069.5461 | BC8: =MIN(Simulations!BD:BD) -> 2120.41424 | BD8: =MIN(Simulations!BE:BE) -> 3026.539151 | BE8: =MIN(Simulations!BF:BF) -> 1470.846311 | BF8: =MIN(Simulations!BG:BG) -> 1303.788637 | BG8: =MIN(Simulations!BH:BH) -> 5801.174099 | BH8: =MIN(Simulations!BI:BI) -> 7921.58834 | BI8: =MIN(Simulations!BJ:BJ) -> 4315.306545 | BJ8: =MIN(Simulations!BK:BK) -> 5653.629317 | BK8: =MIN(Simulations!BL:BL) -> 7873.030835 | BL8: =MIN(Simulations!BM:BM) -> 8623.817607 | BM8: =MIN(Simulations!BN:BN) -> 8316.860822 | BN8: =MIN(Simulations!BO:BO) -> 598.6309984 | BO8: =MIN(Simulations!BP:BP) -> 1810.585874 | BP8: =MIN(Simulations!BQ:BQ) -> 2710.689102 | BQ8: =MIN(Simulations!BR:BR) -> 4032.403638 | BR8: =MIN(Simulations!BS:BS) -> 3937.483724 | BS8: =MIN(Simulations!BT:BT) -> 250.0866799 | BT8: =MIN(Simulations!BU:BU) -> 1929.026773 | BU8: =MIN(Simulations!BV:BV) -> 2490.144428 | BV8: =MIN(Simulations!BW:BW) -> 2239.717125 | BW8: =MIN(Simulations!BX:BX) -> 1233.397315 | BX8: =MIN(Simulations!BY:BY) -> 27.50619722 | BY8: =MIN(Simulations!BZ:BZ) -> 134.806317 | BZ8: =MIN(Simulations!CA:CA) -> 1076.532211 | CA8: =MIN(Simulations!CB:CB) -> 4271.903587 | CB8: =MIN(Simulations!CC:CC) -> 0 | CC8: =MIN(Simulations!CD:CD) -> 302.5223599 | CD8: =MIN(Simulations!CE:CE) -> 2393.524955 | CE8: =MIN(Simulations!CF:CF) -> 3889.202097 | CF8: =MIN(Simulations!CG:CG) -> 6734.091322 | CG8: =MIN(Simulations!CH:CH) -> 1233.397315 | CH8: =MIN(Simulations!CI:CI) -> 675.0181079 | CI8: =MIN(Simulations!CJ:CJ) -> 675.0181079 | CJ8: =MIN(Simulations!CK:CK) -> 675.0181079 | CK8: =MIN(Simulations!CL:CL) -> 675.0181079 | CL8: =MIN(Simulations!CM:CM) -> 675.0181079 | CM8: =MIN(Simulations!CN:CN) -> 308.007027 | CN8: =MIN(Simulations!CO:CO) -> 308.007027 | CO8: =MIN(Simulations!CP:CP) -> 308.007027 | CP8: =MIN(Simulations!CQ:CQ) -> 308.007027 | CQ8: =MIN(Simulations!CR:CR) -> 308.007027 | CR8: =MIN(Simulations!CS:CS) -> 44.22762155 | CS8: =MIN(Simulations!CT:CT) -> 308.007027 | CT8: =MIN(Simulations!CU:CU) -> 308.007027 | CU8: =MIN(Simulations!CV:CV) -> 308.007027 | CV8: =MIN(Simulations!CW:CW) -> 308.007027 | CW8: =MIN(Simulations!CX:CX) -> 5.747454916 | CX8: =MIN(Simulations!CY:CY) -> 25.42139996 | CY8: =MIN(Simulations!CZ:CZ) -> 94.80864181 | CZ8: =MIN(Simulations!DA:DA) -> 383.3244012 | DA8: =MIN(Simulations!DB:DB) -> 136.9395225 | DB8: =MIN(Simulations!DC:DC) -> 55.37806115 | DC8: =MIN(Simulations!DD:DD) -> 377.6790257 | DD8: =MIN(Simulations!DE:DE) -> 444.3891547 | DE8: =MIN(Simulations!DF:DF) -> 727.9072031 | DF8: =MIN(Simulations!DG:DG) -> 475.3445079 | DG8: =MIN(Simulations!DH:DH) -> 5880.809072 | DH8: =MIN(Simulations!DI:DI) -> 6351.273797 | DI8: =MIN(Simulations!DJ:DJ) -> 6146.954798 | DJ8: =MIN(Simulations!DK:DK) -> 5934.99084 | DK8: =MIN(Simulations!DL:DL) -> 6994.810632 | DL8: =MIN(Simulations!DM:DM) -> 65.308456 | DM8: =MIN(Simulations!DN:DN) -> 59.4050322 | DN8: =MIN(Simulations!DO:DO) -> 42.11575665 | DO8: =MIN(Simulations!DP:DP) -> 28.0942879 | DP8: =MIN(Simulations!DQ:DQ) -> 0.1249390573 | DQ8: =MIN(Simulations!DR:DR) -> 3426.372506 | DR8: =MIN(Simulations!DS:DS) -> 3426.372506 | DS8: =MIN(Simulations!DT:DT) -> 3308.344327 | DT8: =MIN(Simulations!DU:DU) -> 3021.447553 | DU8: =MIN(Simulations!DV:DV) -> 3021.447553 | DV8: =MIN(Simulations!DW:DW) -> 1773972.636 | DW8: =MIN(Simulations!DX:DX) -> 994552.4 | DX8: =MIN(Simulations!DY:DY) -> 3014451.409 | DY8: =MIN(Simulations!DZ:DZ) -> 1327650.751 | DZ8: =MIN(Simulations!EA:EA) -> 647698.6563 | EA8: =MIN(Simulations!EB:EB) -> 668118.1184 | EB8: =MIN(Simulations!EC:EC) -> 1003654.882 | EC8: =MIN(Simulations!ED:ED) -> 1252120.125 | ED8: =MIN(Simulations!EE:EE) -> 0 | EE8: =MIN(Simulations!EF:EF) -> 0 | EF8: =MIN(Simulations!EG:EG) -> 0 | EG8: =MIN(Simulations!EH:EH) -> 0 | EH8: =MIN(Simulations!EI:EI) -> 0 | EI8: =MIN(Simulations!EJ:EJ) -> 0 | EJ8: =MIN(Simulations!EK:EK) -> 0 | EK8: =MIN(Simulations!EL:EL) -> 0 | EL8: =MIN(Simulations!EM:EM) -> 0 | EM8: =MIN(Simulations!EN:EN) -> 0 | EN8: =MIN(Simulations!EO:EO) -> 0 | EO8: =MIN(Simulations!EP:EP) -> 0 | EP8: =MIN(Simulations!EQ:EQ) -> 0 | EQ8: =MIN(Simulations!ER:ER) -> 0 | ER8: =MIN(Simulations!ES:ES) -> 0 | ES8: =MIN(Simulations!ET:ET) -> 0 | ET8: =MIN(Simulations!EU:EU) -> 0 | EU8: =MIN(Simulations!EV:EV) -> 0 | EV8: =MIN(Simulations!EW:EW) -> 0 | EW8: =MIN(Simulations!EX:EX) -> 0 | EX8: =MIN(Simulations!EY:EY) -> 0 | EY8: =MIN(Simulations!EZ:EZ) -> 0 | EZ8: =MIN(Simulations!FA:FA) -> 0 | FA8: =MIN(Simulations!FB:FB) -> 0 | FB8: =MIN(Simulations!FC:FC) -> 0 | FC8: =MIN(Simulations!FD:FD) -> 0 | FD8: =MIN(Simulations!FE:FE) -> 0 | FE8: =MIN(Simulations!FF:FF) -> 0 | FF8: =MIN(Simulations!FG:FG) -> 0 | FG8: =MIN(Simulations!FH:FH) -> 0 | FH8: =MIN(Simulations!FI:FI) -> 0 | FI8: =MIN(Simulations!FJ:FJ) -> 0 | FJ8: =MIN(Simulations!FK:FK) -> 0 | FK8: =MIN(Simulations!FL:FL) -> 0 | FL8: =MIN(Simulations!FM:FM) -> 0 | FM8: =MIN(Simulations!FN:FN) -> 0 | FN8: =MIN(Simulations!FO:FO) -> 0 | FO8: =MIN(Simulations!FP:FP) -> 0 | FP8: =MIN(Simulations!FQ:FQ) -> 0 | FQ8: =MIN(Simulations!FR:FR) -> 0 | FR8: =MIN(Simulations!FS:FS) -> 0 | FS8: =MIN(Simulations!FT:FT) -> 0 | FT8: =MIN(Simulations!FU:FU) -> 0 | FU8: =MIN(Simulations!FV:FV) -> 0 | FV8: =MIN(Simulations!FW:FW) -> 0 | FW8: =MIN(Simulations!FX:FX) -> 0 | FX8: =MIN(Simulations!FY:FY) -> 0 | FY8: =MIN(Simulations!FZ:FZ) -> 0 | FZ8: =MIN(Simulations!GA:GA) -> 0 | GA8: =MIN(Simulations!GB:GB) -> 0 | GB8: =MIN(Simulations!GC:GC) -> 0 | GC8: =MIN(Simulations!GD:GD) -> 0 | GD8: =MIN(Simulations!GE:GE) -> 0 | GE8: =MIN(Simulations!GF:GF) -> 0 | GF8: =MIN(Simulations!GG:GG) -> 0 | GG8: =MIN(Simulations!GH:GH) -> 0 | GH8: =MIN(Simulations!GI:GI) -> 0 | GI8: =MIN(Simulations!GJ:GJ) -> 0 | GJ8: =MIN(Simulations!GK:GK) -> 0 | GK8: =MIN(Simulations!GL:GL) -> 0 | GL8: =MIN(Simulations!GM:GM) -> 0 | GM8: =MIN(Simulations!GN:GN) -> 0 | GN8: =MIN(Simulations!GO:GO) -> 0 | GO8: =MIN(Simulations!GP:GP) -> 0 | GP8: =MIN(Simulations!GQ:GQ) -> 0 | GQ8: =MIN(Simulations!GR:GR) -> 0 | GR8: =MIN(Simulations!GS:GS) -> 0 | GS8: =MIN(Simulations!GT:GT) -> 0 | GT8: =MIN(Simulations!GU:GU) -> 0 | GU8: =MIN(Simulations!GV:GV) -> 0 | GV8: =MIN(Simulations!GW:GW) -> 0 | GW8: =MIN(Simulations!GX:GX) -> 0 | GX8: =MIN(Simulations!GY:GY) -> 0 | GY8: =MIN(Simulations!GZ:GZ) -> 0 | GZ8: =MIN(Simulations!HA:HA) -> 0 | HA8: =MIN(Simulations!HB:HB) -> 0 | HB8: =MIN(Simulations!HC:HC) -> 0 | HC8: =MIN(Simulations!HD:HD) -> 0 | HD8: =MIN(Simulations!HE:HE) -> 0 | HE8: =MIN(Simulations!HF:HF) -> 0 | HF8: =MIN(Simulations!HG:HG) -> 0 | HG8: =MIN(Simulations!HH:HH) -> 0 | HH8: =MIN(Simulations!HI:HI) -> 0 | HI8: =MIN(Simulations!HJ:HJ) -> 0 | HJ8: =MIN(Simulations!HK:HK) -> 0 | HK8: =MIN(Simulations!HL:HL) -> 0 | HL8: =MIN(Simulations!HM:HM) -> 0 | HM8: =MIN(Simulations!HN:HN) -> 0 | HN8: =MIN(Simulations!HO:HO) -> 0 | HO8: =MIN(Simulations!HP:HP) -> 0 | HP8: =MIN(Simulations!HQ:HQ) -> 0 | HQ8: =MIN(Simulations!HR:HR) -> 0 | HR8: =MIN(Simulations!HS:HS) -> 0 | HS8: =MIN(Simulations!HT:HT) -> 0 | HT8: =MIN(Simulations!HU:HU) -> 0 | HU8: =MIN(Simulations!HV:HV) -> 0 | HV8: =MIN(Simulations!HW:HW) -> 0 | HW8: =MIN(Simulations!HX:HX) -> 0 | HX8: =MIN(Simulations!HY:HY) -> 0 | HY8: =MIN(Simulations!HZ:HZ) -> 0 | HZ8: =MIN(Simulations!IA:IA) -> 0 | IA8: =MIN(Simulations!IB:IB) -> 0 | IB8: =MIN(Simulations!IC:IC) -> 0 | IC8: =MIN(Simulations!ID:ID) -> 0 | ID8: =MIN(Simulations!IE:IE) -> 0 | IE8: =MIN(Simulations!IF:IF) -> 0 | IF8: =MIN(Simulations!IG:IG) -> 0 | IG8: =MIN(Simulations!IH:IH) -> 0 | IH8: =MIN(Simulations!II:II) -> 0 | II8: =MIN(Simulations!IJ:IJ) -> 0 | IJ8: =MIN(Simulations!IK:IK) -> 0 | IK8: =MIN(Simulations!IL:IL) -> 0 | IL8: =MIN(Simulations!IM:IM) -> 0 | IM8: =MIN(Simulations!IN:IN) -> 0 | IN8: =MIN(Simulations!IO:IO) -> 0 | IO8: =MIN(Simulations!IP:IP) -> 0 | IP8: =MIN(Simulations!IQ:IQ) -> 0 | IQ8: =MIN(Simulations!IR:IR) -> 0 | IR8: =MIN(Simulations!IS:IS) -> 0 | IS8: =MIN(Simulations!IT:IT) -> 0 | IT8: =MIN(Simulations!IU:IU) -> 0 | IU8: =MIN(Simulations!IV:IV) -> 0 | IV8: =MIN(Simulations!IW:IW) -> 0 | IW8: =MIN(Simulations!IX:IX) -> 0 | IX8: =MIN(Simulations!IY:IY) -> 0 | IY8: =MIN(Simulations!IZ:IZ) -> 0 | IZ8: =MIN(Simulations!JA:JA) -> 0 | JA8: =MIN(Simulations!JB:JB) -> 0 | JB8: =MIN(Simulations!JC:JC) -> 0 | JC8: =MIN(Simulations!JD:JD) -> 0 | JD8: =MIN(Simulations!JE:JE) -> 0 | JE8: =MIN(Simulations!JF:JF) -> 0 | JF8: =MIN(Simulations!JG:JG) -> 0 | JG8: =MIN(Simulations!JH:JH) -> 0 | JH8: =MIN(Simulations!JI:JI) -> 0 | JI8: =MIN(Simulations!JJ:JJ) -> 0 | JJ8: =MIN(Simulations!JK:JK) -> 0 | JK8: =MIN(Simulations!JL:JL) -> 0 | JL8: =MIN(Simulations!JM:JM) -> 0 | JM8: =MIN(Simulations!JN:JN) -> 0 | JN8: =MIN(Simulations!JO:JO) -> 0 | JO8: =MIN(Simulations!JP:JP) -> 0 | JP8: =MIN(Simulations!JQ:JQ) -> 0 | JQ8: =MIN(Simulations!JR:JR) -> 0 | JR8: =MIN(Simulations!JS:JS) -> 0 | JS8: =MIN(Simulations!JT:JT) -> 0 | JT8: =MIN(Simulations!JU:JU) -> 0 | JU8: =MIN(Simulations!JV:JV) -> 0 | JV8: =MIN(Simulations!JW:JW) -> 0 | JW8: =MIN(Simulations!JX:JX) -> 0 | JX8: =MIN(Simulations!JY:JY) -> 0 | JY8: =MIN(Simulations!JZ:JZ) -> 0 | JZ8: =MIN(Simulations!KA:KA) -> 0 | KA8: =MIN(Simulations!KB:KB) -> 0 | KB8: =MIN(Simulations!KC:KC) -> 0 | KC8: =MIN(Simulations!KD:KD) -> 0 | KD8: =MIN(Simulations!KE:KE) -> 0 | KE8: =MIN(Simulations!KF:KF) -> 0 | KF8: =MIN(Simulations!KG:KG) -> 0 | KG8: =MIN(Simulations!KH:KH) -> 0 | KH8: =MIN(Simulations!KI:KI) -> 0 | KI8: =MIN(Simulations!KJ:KJ) -> 0 | KJ8: =MIN(Simulations!KK:KK) -> 0 | KK8: =MIN(Simulations!KL:KL) -> 0 | KL8: =MIN(Simulations!KM:KM) -> 0 | KM8: =MIN(Simulations!KN:KN) -> 0 | KN8: =MIN(Simulations!KO:KO) -> 0 | KO8: =MIN(Simulations!KP:KP) -> 0 | KP8: =MIN(Simulations!KQ:KQ) -> 0 | KQ8: =MIN(Simulations!KR:KR) -> 0 | KR8: =MIN(Simulations!KS:KS) -> 0 | KS8: =MIN(Simulations!KT:KT) -> 0 | KT8: =MIN(Simulations!KU:KU) -> 0 | KU8: =MIN(Simulations!KV:KV) -> 0 | KV8: =MIN(Simulations!KW:KW) -> 0 | KW8: =MIN(Simulations!KX:KX) -> 0 | KX8: =MIN(Simulations!KY:KY) -> 0 | KY8: =MIN(Simulations!KZ:KZ) -> 0 | KZ8: =MIN(Simulations!LA:LA) -> 0 | LA8: =MIN(Simulations!LB:LB) -> 0 | LB8: =MIN(Simulations!LC:LC) -> 0 | LC8: =MIN(Simulations!LD:LD) -> 0 | LD8: =MIN(Simulations!LE:LE) -> 0 | LE8: =MIN(Simulations!LF:LF) -> 0 | LF8: =MIN(Simulations!LG:LG) -> 0 | LG8: =MIN(Simulations!LH:LH) -> 0 | LH8: =MIN(Simulations!LI:LI) -> 0 | LI8: =MIN(Simulations!LJ:LJ) -> 0 | LJ8: =MIN(Simulations!LK:LK) -> 0 | LK8: =MIN(Simulations!LL:LL) -> 0 | LL8: =MIN(Simulations!LM:LM) -> 0 | LM8: =MIN(Simulations!LN:LN) -> 0 | LN8: =MIN(Simulations!LO:LO) -> 0 | LO8: =MIN(Simulations!LP:LP) -> 0 | LP8: =MIN(Simulations!LQ:LQ) -> 0 | LQ8: =MIN(Simulations!LR:LR) -> 0 | LR8: =MIN(Simulations!LS:LS) -> 0 | LS8: =MIN(Simulations!LT:LT) -> 0 | LT8: =MIN(Simulations!LU:LU) -> 0 | LU8: =MIN(Simulations!LV:LV) -> 0 | LV8: =MIN(Simulations!LW:LW) -> 0 | LW8: =MIN(Simulations!LX:LX) -> 0 | LX8: =MIN(Simulations!LY:LY) -> 0 | LY8: =MIN(Simulations!LZ:LZ) -> 0 | LZ8: =MIN(Simulations!MA:MA) -> 0 | MA8: =MIN(Simulations!MB:MB) -> 0 | MB8: =MIN(Simulations!MC:MC) -> 0 | MC8: =MIN(Simulations!MD:MD) -> 0 | MD8: =MIN(Simulations!ME:ME) -> 0 | ME8: =MIN(Simulations!MF:MF) -> 0 | MF8: =MIN(Simulations!MG:MG) -> 0 | MG8: =MIN(Simulations!MH:MH) -> 0 | MH8: =MIN(Simulations!MI:MI) -> 0 | MI8: =MIN(Simulations!MJ:MJ) -> 0 | MJ8: =MIN(Simulations!MK:MK) -> 0 | MK8: =MIN(Simulations!ML:ML) -> 0 | ML8: =MIN(Simulations!MM:MM) -> 0 | MM8: =MIN(Simulations!MN:MN) -> 0 | MN8: =MIN(Simulations!MO:MO) -> 0 | MO8: =MIN(Simulations!MP:MP) -> 0 | MP8: =MIN(Simulations!MQ:MQ) -> 0 | MQ8: =MIN(Simulations!MR:MR) -> 0 | MR8: =MIN(Simulations!MS:MS) -> 0 | MS8: =MIN(Simulations!MT:MT) -> 0 | MT8: =MIN(Simulations!MU:MU) -> 0 | MU8: =MIN(Simulations!MV:MV) -> 0 | MV8: =MIN(Simulations!MW:MW) -> 0 | MW8: =MIN(Simulations!MX:MX) -> 0 | MX8: =MIN(Simulations!MY:MY) -> 0 | MY8: =MIN(Simulations!MZ:MZ) -> 0 | MZ8: =MIN(Simulations!NA:NA) -> 0 | NA8: =MIN(Simulations!NB:NB) -> 0 | NB8: =MIN(Simulations!NC:NC) -> 0 | NC8: =MIN(Simulations!ND:ND) -> 0 | ND8: =MIN(Simulations!NE:NE) -> 0 | NE8: =MIN(Simulations!NF:NF) -> 0 | NF8: =MIN(Simulations!NG:NG) -> 0 | NG8: =MIN(Simulations!NH:NH) -> 0 | NH8: =MIN(Simulations!NI:NI) -> 0 | NI8: =MIN(Simulations!NJ:NJ) -> 0 | NJ8: =MIN(Simulations!NK:NK) -> 0 | NK8: =MIN(Simulations!NL:NL) -> 0 | NL8: =MIN(Simulations!NM:NM) -> 0 | NM8: =MIN(Simulations!NN:NN) -> 0 | NN8: =MIN(Simulations!NO:NO) -> 0 | NO8: =MIN(Simulations!NP:NP) -> 0 | NP8: =MIN(Simulations!NQ:NQ) -> 0 | NQ8: =MIN(Simulations!NR:NR) -> 0 | NR8: =MIN(Simulations!NS:NS) -> 0 | NS8: =MIN(Simulations!NT:NT) -> 0 | NT8: =MIN(Simulations!NU:NU) -> 0 | NU8: =MIN(Simulations!NV:NV) -> 0 | NV8: =MIN(Simulations!NW:NW) -> 0 | NW8: =MIN(Simulations!NX:NX) -> 0 | NX8: =MIN(Simulations!NY:NY) -> 0 | NY8: =MIN(Simulations!NZ:NZ) -> 0 | NZ8: =MIN(Simulations!OA:OA) -> 0 | OA8: =MIN(Simulations!OB:OB) -> 0 | OB8: =MIN(Simulations!OC:OC) -> 0 | OC8: =MIN(Simulations!OD:OD) -> 0 | OD8: =MIN(Simulations!OE:OE) -> 0 | OE8: =MIN(Simulations!OF:OF) -> 0 | OF8: =MIN(Simulations!OG:OG) -> 0 | OG8: =MIN(Simulations!OH:OH) -> 0 | OH8: =MIN(Simulations!OI:OI) -> 0 | OI8: =MIN(Simulations!OJ:OJ) -> 0 | OJ8: =MIN(Simulations!OK:OK) -> 0 | OK8: =MIN(Simulations!OL:OL) -> 0 | OL8: =MIN(Simulations!OM:OM) -> 0 | OM8: =MIN(Simulations!ON:ON) -> 0 | ON8: =MIN(Simulations!OO:OO) -> 0 | OO8: =MIN(Simulations!OP:OP) -> 0 | OP8: =MIN(Simulations!OQ:OQ) -> 0 | OQ8: =MIN(Simulations!OR:OR) -> 0 | OR8: =MIN(Simulations!OS:OS) -> 0 | OS8: =MIN(Simulations!OT:OT) -> 0 | OT8: =MIN(Simulations!OU:OU) -> 0 | OU8: =MIN(Simulations!OV:OV) -> 0 | OV8: =MIN(Simulations!OW:OW) -> 0 | OW8: =MIN(Simulations!OX:OX) -> 0 | OX8: =MIN(Simulations!OY:OY) -> 0 | OY8: =MIN(Simulations!OZ:OZ) -> 0 | OZ8: =MIN(Simulations!PA:PA) -> 0 | PA8: =MIN(Simulations!PB:PB) -> 0 | PB8: =MIN(Simulations!PC:PC) -> 0 | PC8: =MIN(Simulations!PD:PD) -> 0 | PD8: =MIN(Simulations!PE:PE) -> 0 | PE8: =MIN(Simulations!PF:PF) -> 0 | PF8: =MIN(Simulations!PG:PG) -> 0 | PG8: =MIN(Simulations!PH:PH) -> 0 | PH8: =MIN(Simulations!PI:PI) -> 0 | PI8: =MIN(Simulations!PJ:PJ) -> 0 | PJ8: =MIN(Simulations!PK:PK) -> 0 | PK8: =MIN(Simulations!PL:PL) -> 0 | PL8: =MIN(Simulations!PM:PM) -> 0 | PM8: =MIN(Simulations!PN:PN) -> 0 | PN8: =MIN(Simulations!PO:PO) -> 0 | PO8: =MIN(Simulations!PP:PP) -> 0 | PP8: =MIN(Simulations!PQ:PQ) -> 0 | PQ8: =MIN(Simulations!PR:PR) -> 0 | PR8: =MIN(Simulations!PS:PS) -> 0 | PS8: =MIN(Simulations!PT:PT) -> 0 | PT8: =MIN(Simulations!PU:PU) -> 0 | PU8: =MIN(Simulations!PV:PV) -> 0 | PV8: =MIN(Simulations!PW:PW) -> 0 | PW8: =MIN(Simulations!PX:PX) -> 0 | PX8: =MIN(Simulations!PY:PY) -> 0 | PY8: =MIN(Simulations!PZ:PZ) -> 0 | PZ8: =MIN(Simulations!QA:QA) -> 0 | QA8: =MIN(Simulations!QB:QB) -> 0 | QB8: =MIN(Simulations!QC:QC) -> 0 | QC8: =MIN(Simulations!QD:QD) -> 0 | QD8: =MIN(Simulations!QE:QE) -> 0 | QE8: =MIN(Simulations!QF:QF) -> 0 | QF8: =MIN(Simulations!QG:QG) -> 0 | QG8: =MIN(Simulations!QH:QH) -> 0 | QH8: =MIN(Simulations!QI:QI) -> 0 | QI8: =MIN(Simulations!QJ:QJ) -> 0 | QJ8: =MIN(Simulations!QK:QK) -> 0 | QK8: =MIN(Simulations!QL:QL) -> 0 | QL8: =MIN(Simulations!QM:QM) -> 0 | QM8: =MIN(Simulations!QN:QN) -> 0 | QN8: =MIN(Simulations!QO:QO) -> 0 | QO8: =MIN(Simulations!QP:QP) -> 0 | QP8: =MIN(Simulations!QQ:QQ) -> 0 | QQ8: =MIN(Simulations!QR:QR) -> 0 | QR8: =MIN(Simulations!QS:QS) -> 0 | QS8: =MIN(Simulations!QT:QT) -> 0 | QT8: =MIN(Simulations!QU:QU) -> 0 | QU8: =MIN(Simulations!QV:QV) -> 0 | QV8: =MIN(Simulations!QW:QW) -> 0 | QW8: =MIN(Simulations!QX:QX) -> 0 | QX8: =MIN(Simulations!QY:QY) -> 0 | QY8: =MIN(Simulations!QZ:QZ) -> 0 | QZ8: =MIN(Simulations!RA:RA) -> 0 | RA8: =MIN(Simulations!RB:RB) -> 0 | RB8: =MIN(Simulations!RC:RC) -> 0 | RC8: =MIN(Simulations!RD:RD) -> 0 | RD8: =MIN(Simulations!RE:RE) -> 0 | RE8: =MIN(Simulations!RF:RF) -> 0 | RF8: =MIN(Simulations!RG:RG) -> 0 | RG8: =MIN(Simulations!RH:RH) -> 0 | RH8: =MIN(Simulations!RI:RI) -> 0 | RI8: =MIN(Simulations!RJ:RJ) -> 0 | RJ8: =MIN(Simulations!RK:RK) -> 0 | RK8: =MIN(Simulations!RL:RL) -> 0 | RL8: =MIN(Simulations!RM:RM) -> 0 | RM8: =MIN(Simulations!RN:RN) -> 0 | RN8: =MIN(Simulations!RO:RO) -> 0 | RO8: =MIN(Simulations!RP:RP) -> 0 | RP8: =MIN(Simulations!RQ:RQ) -> 0 | RQ8: =MIN(Simulations!RR:RR) -> 0 | RR8: =MIN(Simulations!RS:RS) -> 0 | RS8: =MIN(Simulations!RT:RT) -> 0 | RT8: =MIN(Simulations!RU:RU) -> 0 | RU8: =MIN(Simulations!RV:RV) -> 0 | RV8: =MIN(Simulations!RW:RW) -> 0 | RW8: =MIN(Simulations!RX:RX) -> 0 | RX8: =MIN(Simulations!RY:RY) -> 0 | RY8: =MIN(Simulations!RZ:RZ) -> 0 | RZ8: =MIN(Simulations!SA:SA) -> 0 | SA8: =MIN(Simulations!SB:SB) -> 0 | SB8: =MIN(Simulations!SC:SC) -> 0 | SC8: =MIN(Simulations!SD:SD) -> 0 | SD8: =MIN(Simulations!SE:SE) -> 0 | SE8: =MIN(Simulations!SF:SF) -> 0 | SF8: =MIN(Simulations!SG:SG) -> 0 | SG8: =MIN(Simulations!SH:SH) -> 0 | SH8: =MIN(Simulations!SI:SI) -> 0
B9: 0.01 | C9: =_xlfn.PERCENTILE.INC(Simulations!D:D,$B9) -> 203279.6123 | D9: =_xlfn.PERCENTILE.INC(Simulations!E:E,$B9) -> 346400.0175 | E9: =_xlfn.PERCENTILE.INC(Simulations!F:F,$B9) -> 208849.1426 | F9: =_xlfn.PERCENTILE.INC(Simulations!G:G,$B9) -> 756249.4257 | G9: =_xlfn.PERCENTILE.INC(Simulations!H:H,$B9) -> 1975.77621 | H9: =_xlfn.PERCENTILE.INC(Simulations!I:I,$B9) -> 16173.95507 | I9: =_xlfn.PERCENTILE.INC(Simulations!J:J,$B9) -> 193691.657 | J9: =_xlfn.PERCENTILE.INC(Simulations!K:K,$B9) -> 11994.5746 | K9: =_xlfn.PERCENTILE.INC(Simulations!L:L,$B9) -> 232654.0578 | L9: =_xlfn.PERCENTILE.INC(Simulations!M:M,$B9) -> 236197.6934 | M9: =_xlfn.PERCENTILE.INC(Simulations!N:N,$B9) -> 9169.014639 | N9: =_xlfn.PERCENTILE.INC(Simulations!O:O,$B9) -> 123192.9601 | O9: =_xlfn.PERCENTILE.INC(Simulations!P:P,$B9) -> 104114.0558 | P9: =_xlfn.PERCENTILE.INC(Simulations!Q:Q,$B9) -> 136106.5311 | Q9: =_xlfn.PERCENTILE.INC(Simulations!R:R,$B9) -> 365423.419 | R9: =_xlfn.PERCENTILE.INC(Simulations!S:S,$B9) -> 391884.1755 | S9: =_xlfn.PERCENTILE.INC(Simulations!T:T,$B9) -> 1447.370365 | T9: =_xlfn.PERCENTILE.INC(Simulations!U:U,$B9) -> 13388.09432 | U9: =_xlfn.PERCENTILE.INC(Simulations!V:V,$B9) -> 167778.8083 | V9: =_xlfn.PERCENTILE.INC(Simulations!W:W,$B9) -> 0 | W9: =_xlfn.PERCENTILE.INC(Simulations!X:X,$B9) -> 185992.6488 | X9: =_xlfn.PERCENTILE.INC(Simulations!Y:Y,$B9) -> 191195.5199 | Y9: =_xlfn.PERCENTILE.INC(Simulations!Z:Z,$B9) -> 11579.93469 | Z9: =_xlfn.PERCENTILE.INC(Simulations!AA:AA,$B9) -> 147394.0897 | AA9: =_xlfn.PERCENTILE.INC(Simulations!AB:AB,$B9) -> 277384.5706 | AB9: =_xlfn.PERCENTILE.INC(Simulations!AC:AC,$B9) -> 136106.5311 | AC9: =_xlfn.PERCENTILE.INC(Simulations!AD:AD,$B9) -> 571685.0716 | AD9: =_xlfn.PERCENTILE.INC(Simulations!AE:AE,$B9) -> 605664.8288 | AE9: =_xlfn.PERCENTILE.INC(Simulations!AF:AF,$B9) -> 1814.336189 | AF9: =_xlfn.PERCENTILE.INC(Simulations!AG:AG,$B9) -> 19033.32923 | AG9: =_xlfn.PERCENTILE.INC(Simulations!AH:AH,$B9) -> 14364.77678 | AH9: =_xlfn.PERCENTILE.INC(Simulations!AI:AI,$B9) -> 25856.5982 | AI9: =_xlfn.PERCENTILE.INC(Simulations!AJ:AJ,$B9) -> 59254.70421 | AJ9: =_xlfn.PERCENTILE.INC(Simulations!AK:AK,$B9) -> 64531.89933 | AK9: =_xlfn.PERCENTILE.INC(Simulations!AL:AL,$B9) -> 323.4461935 | AL9: =_xlfn.PERCENTILE.INC(Simulations!AM:AM,$B9) -> 2456.547033 | AM9: =_xlfn.PERCENTILE.INC(Simulations!AN:AN,$B9) -> 16657.93218 | AN9: =_xlfn.PERCENTILE.INC(Simulations!AO:AO,$B9) -> 11311.76773 | AO9: =_xlfn.PERCENTILE.INC(Simulations!AP:AP,$B9) -> 31241.69579 | AP9: =_xlfn.PERCENTILE.INC(Simulations!AQ:AQ,$B9) -> 32300.23168 | AQ9: =_xlfn.PERCENTILE.INC(Simulations!AR:AR,$B9) -> 2276.565297 | AR9: =_xlfn.PERCENTILE.INC(Simulations!AS:AS,$B9) -> 23449.88404 | AS9: =_xlfn.PERCENTILE.INC(Simulations!AT:AT,$B9) -> 31046.60861 | AT9: =_xlfn.PERCENTILE.INC(Simulations!AU:AU,$B9) -> 38025.80042 | AU9: =_xlfn.PERCENTILE.INC(Simulations!AV:AV,$B9) -> 92521.46697 | AV9: =_xlfn.PERCENTILE.INC(Simulations!AW:AW,$B9) -> 101094.1151 | AW9: =_xlfn.PERCENTILE.INC(Simulations!AX:AX,$B9) -> 14087.59382 | AX9: =_xlfn.PERCENTILE.INC(Simulations!AY:AY,$B9) -> 178680.7324 | AY9: =_xlfn.PERCENTILE.INC(Simulations!AZ:AZ,$B9) -> 324762.6496 | AZ9: =_xlfn.PERCENTILE.INC(Simulations!BA:BA,$B9) -> 190676.0072 | BA9: =_xlfn.PERCENTILE.INC(Simulations!BB:BB,$B9) -> 705212.5273 | BB9: =_xlfn.PERCENTILE.INC(Simulations!BC:BC,$B9) -> 745605.0202 | BC9: =_xlfn.PERCENTILE.INC(Simulations!BD:BD,$B9) -> 2863.278179 | BD9: =_xlfn.PERCENTILE.INC(Simulations!BE:BE,$B9) -> 4537.036958 | BE9: =_xlfn.PERCENTILE.INC(Simulations!BF:BF,$B9) -> 2725.101349 | BF9: =_xlfn.PERCENTILE.INC(Simulations!BG:BG,$B9) -> 3022.681341 | BG9: =_xlfn.PERCENTILE.INC(Simulations!BH:BH,$B9) -> 11449.72827 | BH9: =_xlfn.PERCENTILE.INC(Simulations!BI:BI,$B9) -> 14491.8243 | BI9: =_xlfn.PERCENTILE.INC(Simulations!BJ:BJ,$B9) -> 4678.086486 | BJ9: =_xlfn.PERCENTILE.INC(Simulations!BK:BK,$B9) -> 6161.422563 | BK9: =_xlfn.PERCENTILE.INC(Simulations!BL:BL,$B9) -> 8273.925909 | BL9: =_xlfn.PERCENTILE.INC(Simulations!BM:BM,$B9) -> 8988.880908 | BM9: =_xlfn.PERCENTILE.INC(Simulations!BN:BN,$B9) -> 8707.215619 | BN9: =_xlfn.PERCENTILE.INC(Simulations!BO:BO,$B9) -> 818.0611018 | BO9: =_xlfn.PERCENTILE.INC(Simulations!BP:BP,$B9) -> 2026.28934 | BP9: =_xlfn.PERCENTILE.INC(Simulations!BQ:BQ,$B9) -> 3007.953208 | BQ9: =_xlfn.PERCENTILE.INC(Simulations!BR:BR,$B9) -> 4339.084615 | BR9: =_xlfn.PERCENTILE.INC(Simulations!BS:BS,$B9) -> 4256.572632 | BS9: =_xlfn.PERCENTILE.INC(Simulations!BT:BT,$B9) -> 277.4820547 | BT9: =_xlfn.PERCENTILE.INC(Simulations!BU:BU,$B9) -> 2159.688075 | BU9: =_xlfn.PERCENTILE.INC(Simulations!BV:BV,$B9) -> 2677.511841 | BV9: =_xlfn.PERCENTILE.INC(Simulations!BW:BW,$B9) -> 2404.632146 | BW9: =_xlfn.PERCENTILE.INC(Simulations!BX:BX,$B9) -> 1361.553639 | BX9: =_xlfn.PERCENTILE.INC(Simulations!BY:BY,$B9) -> 43.77718149 | BY9: =_xlfn.PERCENTILE.INC(Simulations!BZ:BZ,$B9) -> 192.8834405 | BZ9: =_xlfn.PERCENTILE.INC(Simulations!CA:CA,$B9) -> 1218.869232 | CA9: =_xlfn.PERCENTILE.INC(Simulations!CB:CB,$B9) -> 4547.692166 | CB9: =_xlfn.PERCENTILE.INC(Simulations!CC:CC,$B9) -> 0 | CC9: =_xlfn.PERCENTILE.INC(Simulations!CD:CD,$B9) -> 350.5513263 | CD9: =_xlfn.PERCENTILE.INC(Simulations!CE:CE,$B9) -> 2585.641476 | CE9: =_xlfn.PERCENTILE.INC(Simulations!CF:CF,$B9) -> 4078.567581 | CF9: =_xlfn.PERCENTILE.INC(Simulations!CG:CG,$B9) -> 7132.369594 | CG9: =_xlfn.PERCENTILE.INC(Simulations!CH:CH,$B9) -> 1361.553639 | CH9: =_xlfn.PERCENTILE.INC(Simulations!CI:CI,$B9) -> 765.6573242 | CI9: =_xlfn.PERCENTILE.INC(Simulations!CJ:CJ,$B9) -> 765.6573242 | CJ9: =_xlfn.PERCENTILE.INC(Simulations!CK:CK,$B9) -> 765.6573242 | CK9: =_xlfn.PERCENTILE.INC(Simulations!CL:CL,$B9) -> 765.6573242 | CL9: =_xlfn.PERCENTILE.INC(Simulations!CM:CM,$B9) -> 765.6573242 | CM9: =_xlfn.PERCENTILE.INC(Simulations!CN:CN,$B9) -> 359.1194195 | CN9: =_xlfn.PERCENTILE.INC(Simulations!CO:CO,$B9) -> 359.1194195 | CO9: =_xlfn.PERCENTILE.INC(Simulations!CP:CP,$B9) -> 359.1194195 | CP9: =_xlfn.PERCENTILE.INC(Simulations!CQ:CQ,$B9) -> 359.1194195 | CQ9: =_xlfn.PERCENTILE.INC(Simulations!CR:CR,$B9) -> 359.1194195 | CR9: =_xlfn.PERCENTILE.INC(Simulations!CS:CS,$B9) -> 54.9798845 | CS9: =_xlfn.PERCENTILE.INC(Simulations!CT:CT,$B9) -> 359.1194195 | CT9: =_xlfn.PERCENTILE.INC(Simulations!CU:CU,$B9) -> 359.1194195 | CU9: =_xlfn.PERCENTILE.INC(Simulations!CV:CV,$B9) -> 359.1194195 | CV9: =_xlfn.PERCENTILE.INC(Simulations!CW:CW,$B9) -> 359.1194195 | CW9: =_xlfn.PERCENTILE.INC(Simulations!CX:CX,$B9) -> 9.801399803 | CX9: =_xlfn.PERCENTILE.INC(Simulations!CY:CY,$B9) -> 41.40028088 | CY9: =_xlfn.PERCENTILE.INC(Simulations!CZ:CZ,$B9) -> 139.4571544 | CZ9: =_xlfn.PERCENTILE.INC(Simulations!DA:DA,$B9) -> 481.6413312 | DA9: =_xlfn.PERCENTILE.INC(Simulations!DB:DB,$B9) -> 157.1078851 | DB9: =_xlfn.PERCENTILE.INC(Simulations!DC:DC,$B9) -> 68.98682719 | DC9: =_xlfn.PERCENTILE.INC(Simulations!DD:DD,$B9) -> 438.8343162 | DD9: =_xlfn.PERCENTILE.INC(Simulations!DE:DE,$B9) -> 515.5004296 | DE9: =_xlfn.PERCENTILE.INC(Simulations!DF:DF,$B9) -> 841.3314116 | DF9: =_xlfn.PERCENTILE.INC(Simulations!DG:DG,$B9) -> 528.1361169 | DG9: =_xlfn.PERCENTILE.INC(Simulations!DH:DH,$B9) -> 6100.358146 | DH9: =_xlfn.PERCENTILE.INC(Simulations!DI:DI,$B9) -> 6588.386797 | DI9: =_xlfn.PERCENTILE.INC(Simulations!DJ:DJ,$B9) -> 6449.448707 | DJ9: =_xlfn.PERCENTILE.INC(Simulations!DK:DK,$B9) -> 6227.053924 | DK9: =_xlfn.PERCENTILE.INC(Simulations!DL:DL,$B9) -> 7339.027839 | DL9: =_xlfn.PERCENTILE.INC(Simulations!DM:DM,$B9) -> 82.61934385 | DM9: =_xlfn.PERCENTILE.INC(Simulations!DN:DN,$B9) -> 80.86668682 | DN9: =_xlfn.PERCENTILE.INC(Simulations!DO:DO,$B9) -> 66.11557626 | DO9: =_xlfn.PERCENTILE.INC(Simulations!DP:DP,$B9) -> 52.74669673 | DP9: =_xlfn.PERCENTILE.INC(Simulations!DQ:DQ,$B9) -> 6.434510815 | DQ9: =_xlfn.PERCENTILE.INC(Simulations!DR:DR,$B9) -> 3528.732424 | DR9: =_xlfn.PERCENTILE.INC(Simulations!DS:DS,$B9) -> 3528.732424 | DS9: =_xlfn.PERCENTILE.INC(Simulations!DT:DT,$B9) -> 3400.941972 | DT9: =_xlfn.PERCENTILE.INC(Simulations!DU:DU,$B9) -> 3107.551198 | DU9: =_xlfn.PERCENTILE.INC(Simulations!DV:DV,$B9) -> 3107.551198 | DV9: =_xlfn.PERCENTILE.INC(Simulations!DW:DW,$B9) -> 1842974.224 | DW9: =_xlfn.PERCENTILE.INC(Simulations!DX:DX,$B9) -> 1066681.944 | DX9: =_xlfn.PERCENTILE.INC(Simulations!DY:DY,$B9) -> 3184522.887 | DY9: =_xlfn.PERCENTILE.INC(Simulations!DZ:DZ,$B9) -> 1435894.595 | DZ9: =_xlfn.PERCENTILE.INC(Simulations!EA:EA,$B9) -> 732613.9938 | EA9: =_xlfn.PERCENTILE.INC(Simulations!EB:EB,$B9) -> 686341.6578 | EB9: =_xlfn.PERCENTILE.INC(Simulations!EC:EC,$B9) -> 1078435.352 | EC9: =_xlfn.PERCENTILE.INC(Simulations!ED:ED,$B9) -> 1327704.19 | ED9: =_xlfn.PERCENTILE.INC(Simulations!EE:EE,$B9) ->  | EE9: =_xlfn.PERCENTILE.INC(Simulations!EF:EF,$B9) ->  | EF9: =_xlfn.PERCENTILE.INC(Simulations!EG:EG,$B9) ->  | EG9: =_xlfn.PERCENTILE.INC(Simulations!EH:EH,$B9) ->  | EH9: =_xlfn.PERCENTILE.INC(Simulations!EI:EI,$B9) ->  | EI9: =_xlfn.PERCENTILE.INC(Simulations!EJ:EJ,$B9) ->  | EJ9: =_xlfn.PERCENTILE.INC(Simulations!EK:EK,$B9) ->  | EK9: =_xlfn.PERCENTILE.INC(Simulations!EL:EL,$B9) ->  | EL9: =_xlfn.PERCENTILE.INC(Simulations!EM:EM,$B9) ->  | EM9: =_xlfn.PERCENTILE.INC(Simulations!EN:EN,$B9) ->  | EN9: =_xlfn.PERCENTILE.INC(Simulations!EO:EO,$B9) ->  | EO9: =_xlfn.PERCENTILE.INC(Simulations!EP:EP,$B9) ->  | EP9: =_xlfn.PERCENTILE.INC(Simulations!EQ:EQ,$B9) ->  | EQ9: =_xlfn.PERCENTILE.INC(Simulations!ER:ER,$B9) ->  | ER9: =_xlfn.PERCENTILE.INC(Simulations!ES:ES,$B9) ->  | ES9: =_xlfn.PERCENTILE.INC(Simulations!ET:ET,$B9) ->  | ET9: =_xlfn.PERCENTILE.INC(Simulations!EU:EU,$B9) ->  | EU9: =_xlfn.PERCENTILE.INC(Simulations!EV:EV,$B9) ->  | EV9: =_xlfn.PERCENTILE.INC(Simulations!EW:EW,$B9) ->  | EW9: =_xlfn.PERCENTILE.INC(Simulations!EX:EX,$B9) ->  | EX9: =_xlfn.PERCENTILE.INC(Simulations!EY:EY,$B9) ->  | EY9: =_xlfn.PERCENTILE.INC(Simulations!EZ:EZ,$B9) ->  | EZ9: =_xlfn.PERCENTILE.INC(Simulations!FA:FA,$B9) ->  | FA9: =_xlfn.PERCENTILE.INC(Simulations!FB:FB,$B9) ->  | FB9: =_xlfn.PERCENTILE.INC(Simulations!FC:FC,$B9) ->  | FC9: =_xlfn.PERCENTILE.INC(Simulations!FD:FD,$B9) ->  | FD9: =_xlfn.PERCENTILE.INC(Simulations!FE:FE,$B9) ->  | FE9: =_xlfn.PERCENTILE.INC(Simulations!FF:FF,$B9) ->  | FF9: =_xlfn.PERCENTILE.INC(Simulations!FG:FG,$B9) ->  | FG9: =_xlfn.PERCENTILE.INC(Simulations!FH:FH,$B9) ->  | FH9: =_xlfn.PERCENTILE.INC(Simulations!FI:FI,$B9) ->  | FI9: =_xlfn.PERCENTILE.INC(Simulations!FJ:FJ,$B9) ->  | FJ9: =_xlfn.PERCENTILE.INC(Simulations!FK:FK,$B9) ->  | FK9: =_xlfn.PERCENTILE.INC(Simulations!FL:FL,$B9) ->  | FL9: =_xlfn.PERCENTILE.INC(Simulations!FM:FM,$B9) ->  | FM9: =_xlfn.PERCENTILE.INC(Simulations!FN:FN,$B9) ->  | FN9: =_xlfn.PERCENTILE.INC(Simulations!FO:FO,$B9) ->  | FO9: =_xlfn.PERCENTILE.INC(Simulations!FP:FP,$B9) ->  | FP9: =_xlfn.PERCENTILE.INC(Simulations!FQ:FQ,$B9) ->  | FQ9: =_xlfn.PERCENTILE.INC(Simulations!FR:FR,$B9) ->  | FR9: =_xlfn.PERCENTILE.INC(Simulations!FS:FS,$B9) ->  | FS9: =_xlfn.PERCENTILE.INC(Simulations!FT:FT,$B9) ->  | FT9: =_xlfn.PERCENTILE.INC(Simulations!FU:FU,$B9) ->  | FU9: =_xlfn.PERCENTILE.INC(Simulations!FV:FV,$B9) ->  | FV9: =_xlfn.PERCENTILE.INC(Simulations!FW:FW,$B9) ->  | FW9: =_xlfn.PERCENTILE.INC(Simulations!FX:FX,$B9) ->  | FX9: =_xlfn.PERCENTILE.INC(Simulations!FY:FY,$B9) ->  | FY9: =_xlfn.PERCENTILE.INC(Simulations!FZ:FZ,$B9) ->  | FZ9: =_xlfn.PERCENTILE.INC(Simulations!GA:GA,$B9) ->  | GA9: =_xlfn.PERCENTILE.INC(Simulations!GB:GB,$B9) ->  | GB9: =_xlfn.PERCENTILE.INC(Simulations!GC:GC,$B9) ->  | GC9: =_xlfn.PERCENTILE.INC(Simulations!GD:GD,$B9) ->  | GD9: =_xlfn.PERCENTILE.INC(Simulations!GE:GE,$B9) ->  | GE9: =_xlfn.PERCENTILE.INC(Simulations!GF:GF,$B9) ->  | GF9: =_xlfn.PERCENTILE.INC(Simulations!GG:GG,$B9) ->  | GG9: =_xlfn.PERCENTILE.INC(Simulations!GH:GH,$B9) ->  | GH9: =_xlfn.PERCENTILE.INC(Simulations!GI:GI,$B9) ->  | GI9: =_xlfn.PERCENTILE.INC(Simulations!GJ:GJ,$B9) ->  | GJ9: =_xlfn.PERCENTILE.INC(Simulations!GK:GK,$B9) ->  | GK9: =_xlfn.PERCENTILE.INC(Simulations!GL:GL,$B9) ->  | GL9: =_xlfn.PERCENTILE.INC(Simulations!GM:GM,$B9) ->  | GM9: =_xlfn.PERCENTILE.INC(Simulations!GN:GN,$B9) ->  | GN9: =_xlfn.PERCENTILE.INC(Simulations!GO:GO,$B9) ->  | GO9: =_xlfn.PERCENTILE.INC(Simulations!GP:GP,$B9) ->  | GP9: =_xlfn.PERCENTILE.INC(Simulations!GQ:GQ,$B9) ->  | GQ9: =_xlfn.PERCENTILE.INC(Simulations!GR:GR,$B9) ->  | GR9: =_xlfn.PERCENTILE.INC(Simulations!GS:GS,$B9) ->  | GS9: =_xlfn.PERCENTILE.INC(Simulations!GT:GT,$B9) ->  | GT9: =_xlfn.PERCENTILE.INC(Simulations!GU:GU,$B9) ->  | GU9: =_xlfn.PERCENTILE.INC(Simulations!GV:GV,$B9) ->  | GV9: =_xlfn.PERCENTILE.INC(Simulations!GW:GW,$B9) ->  | GW9: =_xlfn.PERCENTILE.INC(Simulations!GX:GX,$B9) ->  | GX9: =_xlfn.PERCENTILE.INC(Simulations!GY:GY,$B9) ->  | GY9: =_xlfn.PERCENTILE.INC(Simulations!GZ:GZ,$B9) ->  | GZ9: =_xlfn.PERCENTILE.INC(Simulations!HA:HA,$B9) ->  | HA9: =_xlfn.PERCENTILE.INC(Simulations!HB:HB,$B9) ->  | HB9: =_xlfn.PERCENTILE.INC(Simulations!HC:HC,$B9) ->  | HC9: =_xlfn.PERCENTILE.INC(Simulations!HD:HD,$B9) ->  | HD9: =_xlfn.PERCENTILE.INC(Simulations!HE:HE,$B9) ->  | HE9: =_xlfn.PERCENTILE.INC(Simulations!HF:HF,$B9) ->  | HF9: =_xlfn.PERCENTILE.INC(Simulations!HG:HG,$B9) ->  | HG9: =_xlfn.PERCENTILE.INC(Simulations!HH:HH,$B9) ->  | HH9: =_xlfn.PERCENTILE.INC(Simulations!HI:HI,$B9) ->  | HI9: =_xlfn.PERCENTILE.INC(Simulations!HJ:HJ,$B9) ->  | HJ9: =_xlfn.PERCENTILE.INC(Simulations!HK:HK,$B9) ->  | HK9: =_xlfn.PERCENTILE.INC(Simulations!HL:HL,$B9) ->  | HL9: =_xlfn.PERCENTILE.INC(Simulations!HM:HM,$B9) ->  | HM9: =_xlfn.PERCENTILE.INC(Simulations!HN:HN,$B9) ->  | HN9: =_xlfn.PERCENTILE.INC(Simulations!HO:HO,$B9) ->  | HO9: =_xlfn.PERCENTILE.INC(Simulations!HP:HP,$B9) ->  | HP9: =_xlfn.PERCENTILE.INC(Simulations!HQ:HQ,$B9) ->  | HQ9: =_xlfn.PERCENTILE.INC(Simulations!HR:HR,$B9) ->  | HR9: =_xlfn.PERCENTILE.INC(Simulations!HS:HS,$B9) ->  | HS9: =_xlfn.PERCENTILE.INC(Simulations!HT:HT,$B9) ->  | HT9: =_xlfn.PERCENTILE.INC(Simulations!HU:HU,$B9) ->  | HU9: =_xlfn.PERCENTILE.INC(Simulations!HV:HV,$B9) ->  | HV9: =_xlfn.PERCENTILE.INC(Simulations!HW:HW,$B9) ->  | HW9: =_xlfn.PERCENTILE.INC(Simulations!HX:HX,$B9) ->  | HX9: =_xlfn.PERCENTILE.INC(Simulations!HY:HY,$B9) ->  | HY9: =_xlfn.PERCENTILE.INC(Simulations!HZ:HZ,$B9) ->  | HZ9: =_xlfn.PERCENTILE.INC(Simulations!IA:IA,$B9) ->  | IA9: =_xlfn.PERCENTILE.INC(Simulations!IB:IB,$B9) ->  | IB9: =_xlfn.PERCENTILE.INC(Simulations!IC:IC,$B9) ->  | IC9: =_xlfn.PERCENTILE.INC(Simulations!ID:ID,$B9) ->  | ID9: =_xlfn.PERCENTILE.INC(Simulations!IE:IE,$B9) ->  | IE9: =_xlfn.PERCENTILE.INC(Simulations!IF:IF,$B9) ->  | IF9: =_xlfn.PERCENTILE.INC(Simulations!IG:IG,$B9) ->  | IG9: =_xlfn.PERCENTILE.INC(Simulations!IH:IH,$B9) ->  | IH9: =_xlfn.PERCENTILE.INC(Simulations!II:II,$B9) ->  | II9: =_xlfn.PERCENTILE.INC(Simulations!IJ:IJ,$B9) ->  | IJ9: =_xlfn.PERCENTILE.INC(Simulations!IK:IK,$B9) ->  | IK9: =_xlfn.PERCENTILE.INC(Simulations!IL:IL,$B9) ->  | IL9: =_xlfn.PERCENTILE.INC(Simulations!IM:IM,$B9) ->  | IM9: =_xlfn.PERCENTILE.INC(Simulations!IN:IN,$B9) ->  | IN9: =_xlfn.PERCENTILE.INC(Simulations!IO:IO,$B9) ->  | IO9: =_xlfn.PERCENTILE.INC(Simulations!IP:IP,$B9) ->  | IP9: =_xlfn.PERCENTILE.INC(Simulations!IQ:IQ,$B9) ->  | IQ9: =_xlfn.PERCENTILE.INC(Simulations!IR:IR,$B9) ->  | IR9: =_xlfn.PERCENTILE.INC(Simulations!IS:IS,$B9) ->  | IS9: =_xlfn.PERCENTILE.INC(Simulations!IT:IT,$B9) ->  | IT9: =_xlfn.PERCENTILE.INC(Simulations!IU:IU,$B9) ->  | IU9: =_xlfn.PERCENTILE.INC(Simulations!IV:IV,$B9) ->  | IV9: =_xlfn.PERCENTILE.INC(Simulations!IW:IW,$B9) ->  | IW9: =_xlfn.PERCENTILE.INC(Simulations!IX:IX,$B9) ->  | IX9: =_xlfn.PERCENTILE.INC(Simulations!IY:IY,$B9) ->  | IY9: =_xlfn.PERCENTILE.INC(Simulations!IZ:IZ,$B9) ->  | IZ9: =_xlfn.PERCENTILE.INC(Simulations!JA:JA,$B9) ->  | JA9: =_xlfn.PERCENTILE.INC(Simulations!JB:JB,$B9) ->  | JB9: =_xlfn.PERCENTILE.INC(Simulations!JC:JC,$B9) ->  | JC9: =_xlfn.PERCENTILE.INC(Simulations!JD:JD,$B9) ->  | JD9: =_xlfn.PERCENTILE.INC(Simulations!JE:JE,$B9) ->  | JE9: =_xlfn.PERCENTILE.INC(Simulations!JF:JF,$B9) ->  | JF9: =_xlfn.PERCENTILE.INC(Simulations!JG:JG,$B9) ->  | JG9: =_xlfn.PERCENTILE.INC(Simulations!JH:JH,$B9) ->  | JH9: =_xlfn.PERCENTILE.INC(Simulations!JI:JI,$B9) ->  | JI9: =_xlfn.PERCENTILE.INC(Simulations!JJ:JJ,$B9) ->  | JJ9: =_xlfn.PERCENTILE.INC(Simulations!JK:JK,$B9) ->  | JK9: =_xlfn.PERCENTILE.INC(Simulations!JL:JL,$B9) ->  | JL9: =_xlfn.PERCENTILE.INC(Simulations!JM:JM,$B9) ->  | JM9: =_xlfn.PERCENTILE.INC(Simulations!JN:JN,$B9) ->  | JN9: =_xlfn.PERCENTILE.INC(Simulations!JO:JO,$B9) ->  | JO9: =_xlfn.PERCENTILE.INC(Simulations!JP:JP,$B9) ->  | JP9: =_xlfn.PERCENTILE.INC(Simulations!JQ:JQ,$B9) ->  | JQ9: =_xlfn.PERCENTILE.INC(Simulations!JR:JR,$B9) ->  | JR9: =_xlfn.PERCENTILE.INC(Simulations!JS:JS,$B9) ->  | JS9: =_xlfn.PERCENTILE.INC(Simulations!JT:JT,$B9) ->  | JT9: =_xlfn.PERCENTILE.INC(Simulations!JU:JU,$B9) ->  | JU9: =_xlfn.PERCENTILE.INC(Simulations!JV:JV,$B9) ->  | JV9: =_xlfn.PERCENTILE.INC(Simulations!JW:JW,$B9) ->  | JW9: =_xlfn.PERCENTILE.INC(Simulations!JX:JX,$B9) ->  | JX9: =_xlfn.PERCENTILE.INC(Simulations!JY:JY,$B9) ->  | JY9: =_xlfn.PERCENTILE.INC(Simulations!JZ:JZ,$B9) ->  | JZ9: =_xlfn.PERCENTILE.INC(Simulations!KA:KA,$B9) ->  | KA9: =_xlfn.PERCENTILE.INC(Simulations!KB:KB,$B9) ->  | KB9: =_xlfn.PERCENTILE.INC(Simulations!KC:KC,$B9) ->  | KC9: =_xlfn.PERCENTILE.INC(Simulations!KD:KD,$B9) ->  | KD9: =_xlfn.PERCENTILE.INC(Simulations!KE:KE,$B9) ->  | KE9: =_xlfn.PERCENTILE.INC(Simulations!KF:KF,$B9) ->  | KF9: =_xlfn.PERCENTILE.INC(Simulations!KG:KG,$B9) ->  | KG9: =_xlfn.PERCENTILE.INC(Simulations!KH:KH,$B9) ->  | KH9: =_xlfn.PERCENTILE.INC(Simulations!KI:KI,$B9) ->  | KI9: =_xlfn.PERCENTILE.INC(Simulations!KJ:KJ,$B9) ->  | KJ9: =_xlfn.PERCENTILE.INC(Simulations!KK:KK,$B9) ->  | KK9: =_xlfn.PERCENTILE.INC(Simulations!KL:KL,$B9) ->  | KL9: =_xlfn.PERCENTILE.INC(Simulations!KM:KM,$B9) ->  | KM9: =_xlfn.PERCENTILE.INC(Simulations!KN:KN,$B9) ->  | KN9: =_xlfn.PERCENTILE.INC(Simulations!KO:KO,$B9) ->  | KO9: =_xlfn.PERCENTILE.INC(Simulations!KP:KP,$B9) ->  | KP9: =_xlfn.PERCENTILE.INC(Simulations!KQ:KQ,$B9) ->  | KQ9: =_xlfn.PERCENTILE.INC(Simulations!KR:KR,$B9) ->  | KR9: =_xlfn.PERCENTILE.INC(Simulations!KS:KS,$B9) ->  | KS9: =_xlfn.PERCENTILE.INC(Simulations!KT:KT,$B9) ->  | KT9: =_xlfn.PERCENTILE.INC(Simulations!KU:KU,$B9) ->  | KU9: =_xlfn.PERCENTILE.INC(Simulations!KV:KV,$B9) ->  | KV9: =_xlfn.PERCENTILE.INC(Simulations!KW:KW,$B9) ->  | KW9: =_xlfn.PERCENTILE.INC(Simulations!KX:KX,$B9) ->  | KX9: =_xlfn.PERCENTILE.INC(Simulations!KY:KY,$B9) ->  | KY9: =_xlfn.PERCENTILE.INC(Simulations!KZ:KZ,$B9) ->  | KZ9: =_xlfn.PERCENTILE.INC(Simulations!LA:LA,$B9) ->  | LA9: =_xlfn.PERCENTILE.INC(Simulations!LB:LB,$B9) ->  | LB9: =_xlfn.PERCENTILE.INC(Simulations!LC:LC,$B9) ->  | LC9: =_xlfn.PERCENTILE.INC(Simulations!LD:LD,$B9) ->  | LD9: =_xlfn.PERCENTILE.INC(Simulations!LE:LE,$B9) ->  | LE9: =_xlfn.PERCENTILE.INC(Simulations!LF:LF,$B9) ->  | LF9: =_xlfn.PERCENTILE.INC(Simulations!LG:LG,$B9) ->  | LG9: =_xlfn.PERCENTILE.INC(Simulations!LH:LH,$B9) ->  | LH9: =_xlfn.PERCENTILE.INC(Simulations!LI:LI,$B9) ->  | LI9: =_xlfn.PERCENTILE.INC(Simulations!LJ:LJ,$B9) ->  | LJ9: =_xlfn.PERCENTILE.INC(Simulations!LK:LK,$B9) ->  | LK9: =_xlfn.PERCENTILE.INC(Simulations!LL:LL,$B9) ->  | LL9: =_xlfn.PERCENTILE.INC(Simulations!LM:LM,$B9) ->  | LM9: =_xlfn.PERCENTILE.INC(Simulations!LN:LN,$B9) ->  | LN9: =_xlfn.PERCENTILE.INC(Simulations!LO:LO,$B9) ->  | LO9: =_xlfn.PERCENTILE.INC(Simulations!LP:LP,$B9) ->  | LP9: =_xlfn.PERCENTILE.INC(Simulations!LQ:LQ,$B9) ->  | LQ9: =_xlfn.PERCENTILE.INC(Simulations!LR:LR,$B9) ->  | LR9: =_xlfn.PERCENTILE.INC(Simulations!LS:LS,$B9) ->  | LS9: =_xlfn.PERCENTILE.INC(Simulations!LT:LT,$B9) ->  | LT9: =_xlfn.PERCENTILE.INC(Simulations!LU:LU,$B9) ->  | LU9: =_xlfn.PERCENTILE.INC(Simulations!LV:LV,$B9) ->  | LV9: =_xlfn.PERCENTILE.INC(Simulations!LW:LW,$B9) ->  | LW9: =_xlfn.PERCENTILE.INC(Simulations!LX:LX,$B9) ->  | LX9: =_xlfn.PERCENTILE.INC(Simulations!LY:LY,$B9) ->  | LY9: =_xlfn.PERCENTILE.INC(Simulations!LZ:LZ,$B9) ->  | LZ9: =_xlfn.PERCENTILE.INC(Simulations!MA:MA,$B9) ->  | MA9: =_xlfn.PERCENTILE.INC(Simulations!MB:MB,$B9) ->  | MB9: =_xlfn.PERCENTILE.INC(Simulations!MC:MC,$B9) ->  | MC9: =_xlfn.PERCENTILE.INC(Simulations!MD:MD,$B9) ->  | MD9: =_xlfn.PERCENTILE.INC(Simulations!ME:ME,$B9) ->  | ME9: =_xlfn.PERCENTILE.INC(Simulations!MF:MF,$B9) ->  | MF9: =_xlfn.PERCENTILE.INC(Simulations!MG:MG,$B9) ->  | MG9: =_xlfn.PERCENTILE.INC(Simulations!MH:MH,$B9) ->  | MH9: =_xlfn.PERCENTILE.INC(Simulations!MI:MI,$B9) ->  | MI9: =_xlfn.PERCENTILE.INC(Simulations!MJ:MJ,$B9) ->  | MJ9: =_xlfn.PERCENTILE.INC(Simulations!MK:MK,$B9) ->  | MK9: =_xlfn.PERCENTILE.INC(Simulations!ML:ML,$B9) ->  | ML9: =_xlfn.PERCENTILE.INC(Simulations!MM:MM,$B9) ->  | MM9: =_xlfn.PERCENTILE.INC(Simulations!MN:MN,$B9) ->  | MN9: =_xlfn.PERCENTILE.INC(Simulations!MO:MO,$B9) ->  | MO9: =_xlfn.PERCENTILE.INC(Simulations!MP:MP,$B9) ->  | MP9: =_xlfn.PERCENTILE.INC(Simulations!MQ:MQ,$B9) ->  | MQ9: =_xlfn.PERCENTILE.INC(Simulations!MR:MR,$B9) ->  | MR9: =_xlfn.PERCENTILE.INC(Simulations!MS:MS,$B9) ->  | MS9: =_xlfn.PERCENTILE.INC(Simulations!MT:MT,$B9) ->  | MT9: =_xlfn.PERCENTILE.INC(Simulations!MU:MU,$B9) ->  | MU9: =_xlfn.PERCENTILE.INC(Simulations!MV:MV,$B9) ->  | MV9: =_xlfn.PERCENTILE.INC(Simulations!MW:MW,$B9) ->  | MW9: =_xlfn.PERCENTILE.INC(Simulations!MX:MX,$B9) ->  | MX9: =_xlfn.PERCENTILE.INC(Simulations!MY:MY,$B9) ->  | MY9: =_xlfn.PERCENTILE.INC(Simulations!MZ:MZ,$B9) ->  | MZ9: =_xlfn.PERCENTILE.INC(Simulations!NA:NA,$B9) ->  | NA9: =_xlfn.PERCENTILE.INC(Simulations!NB:NB,$B9) ->  | NB9: =_xlfn.PERCENTILE.INC(Simulations!NC:NC,$B9) ->  | NC9: =_xlfn.PERCENTILE.INC(Simulations!ND:ND,$B9) ->  | ND9: =_xlfn.PERCENTILE.INC(Simulations!NE:NE,$B9) ->  | NE9: =_xlfn.PERCENTILE.INC(Simulations!NF:NF,$B9) ->  | NF9: =_xlfn.PERCENTILE.INC(Simulations!NG:NG,$B9) ->  | NG9: =_xlfn.PERCENTILE.INC(Simulations!NH:NH,$B9) ->  | NH9: =_xlfn.PERCENTILE.INC(Simulations!NI:NI,$B9) ->  | NI9: =_xlfn.PERCENTILE.INC(Simulations!NJ:NJ,$B9) ->  | NJ9: =_xlfn.PERCENTILE.INC(Simulations!NK:NK,$B9) ->  | NK9: =_xlfn.PERCENTILE.INC(Simulations!NL:NL,$B9) ->  | NL9: =_xlfn.PERCENTILE.INC(Simulations!NM:NM,$B9) ->  | NM9: =_xlfn.PERCENTILE.INC(Simulations!NN:NN,$B9) ->  | NN9: =_xlfn.PERCENTILE.INC(Simulations!NO:NO,$B9) ->  | NO9: =_xlfn.PERCENTILE.INC(Simulations!NP:NP,$B9) ->  | NP9: =_xlfn.PERCENTILE.INC(Simulations!NQ:NQ,$B9) ->  | NQ9: =_xlfn.PERCENTILE.INC(Simulations!NR:NR,$B9) ->  | NR9: =_xlfn.PERCENTILE.INC(Simulations!NS:NS,$B9) ->  | NS9: =_xlfn.PERCENTILE.INC(Simulations!NT:NT,$B9) ->  | NT9: =_xlfn.PERCENTILE.INC(Simulations!NU:NU,$B9) ->  | NU9: =_xlfn.PERCENTILE.INC(Simulations!NV:NV,$B9) ->  | NV9: =_xlfn.PERCENTILE.INC(Simulations!NW:NW,$B9) ->  | NW9: =_xlfn.PERCENTILE.INC(Simulations!NX:NX,$B9) ->  | NX9: =_xlfn.PERCENTILE.INC(Simulations!NY:NY,$B9) ->  | NY9: =_xlfn.PERCENTILE.INC(Simulations!NZ:NZ,$B9) ->  | NZ9: =_xlfn.PERCENTILE.INC(Simulations!OA:OA,$B9) ->  | OA9: =_xlfn.PERCENTILE.INC(Simulations!OB:OB,$B9) ->  | OB9: =_xlfn.PERCENTILE.INC(Simulations!OC:OC,$B9) ->  | OC9: =_xlfn.PERCENTILE.INC(Simulations!OD:OD,$B9) ->  | OD9: =_xlfn.PERCENTILE.INC(Simulations!OE:OE,$B9) ->  | OE9: =_xlfn.PERCENTILE.INC(Simulations!OF:OF,$B9) ->  | OF9: =_xlfn.PERCENTILE.INC(Simulations!OG:OG,$B9) ->  | OG9: =_xlfn.PERCENTILE.INC(Simulations!OH:OH,$B9) ->  | OH9: =_xlfn.PERCENTILE.INC(Simulations!OI:OI,$B9) ->  | OI9: =_xlfn.PERCENTILE.INC(Simulations!OJ:OJ,$B9) ->  | OJ9: =_xlfn.PERCENTILE.INC(Simulations!OK:OK,$B9) ->  | OK9: =_xlfn.PERCENTILE.INC(Simulations!OL:OL,$B9) ->  | OL9: =_xlfn.PERCENTILE.INC(Simulations!OM:OM,$B9) ->  | OM9: =_xlfn.PERCENTILE.INC(Simulations!ON:ON,$B9) ->  | ON9: =_xlfn.PERCENTILE.INC(Simulations!OO:OO,$B9) ->  | OO9: =_xlfn.PERCENTILE.INC(Simulations!OP:OP,$B9) ->  | OP9: =_xlfn.PERCENTILE.INC(Simulations!OQ:OQ,$B9) ->  | OQ9: =_xlfn.PERCENTILE.INC(Simulations!OR:OR,$B9) ->  | OR9: =_xlfn.PERCENTILE.INC(Simulations!OS:OS,$B9) ->  | OS9: =_xlfn.PERCENTILE.INC(Simulations!OT:OT,$B9) ->  | OT9: =_xlfn.PERCENTILE.INC(Simulations!OU:OU,$B9) ->  | OU9: =_xlfn.PERCENTILE.INC(Simulations!OV:OV,$B9) ->  | OV9: =_xlfn.PERCENTILE.INC(Simulations!OW:OW,$B9) ->  | OW9: =_xlfn.PERCENTILE.INC(Simulations!OX:OX,$B9) ->  | OX9: =_xlfn.PERCENTILE.INC(Simulations!OY:OY,$B9) ->  | OY9: =_xlfn.PERCENTILE.INC(Simulations!OZ:OZ,$B9) ->  | OZ9: =_xlfn.PERCENTILE.INC(Simulations!PA:PA,$B9) ->  | PA9: =_xlfn.PERCENTILE.INC(Simulations!PB:PB,$B9) ->  | PB9: =_xlfn.PERCENTILE.INC(Simulations!PC:PC,$B9) ->  | PC9: =_xlfn.PERCENTILE.INC(Simulations!PD:PD,$B9) ->  | PD9: =_xlfn.PERCENTILE.INC(Simulations!PE:PE,$B9) ->  | PE9: =_xlfn.PERCENTILE.INC(Simulations!PF:PF,$B9) ->  | PF9: =_xlfn.PERCENTILE.INC(Simulations!PG:PG,$B9) ->  | PG9: =_xlfn.PERCENTILE.INC(Simulations!PH:PH,$B9) ->  | PH9: =_xlfn.PERCENTILE.INC(Simulations!PI:PI,$B9) ->  | PI9: =_xlfn.PERCENTILE.INC(Simulations!PJ:PJ,$B9) ->  | PJ9: =_xlfn.PERCENTILE.INC(Simulations!PK:PK,$B9) ->  | PK9: =_xlfn.PERCENTILE.INC(Simulations!PL:PL,$B9) ->  | PL9: =_xlfn.PERCENTILE.INC(Simulations!PM:PM,$B9) ->  | PM9: =_xlfn.PERCENTILE.INC(Simulations!PN:PN,$B9) ->  | PN9: =_xlfn.PERCENTILE.INC(Simulations!PO:PO,$B9) ->  | PO9: =_xlfn.PERCENTILE.INC(Simulations!PP:PP,$B9) ->  | PP9: =_xlfn.PERCENTILE.INC(Simulations!PQ:PQ,$B9) ->  | PQ9: =_xlfn.PERCENTILE.INC(Simulations!PR:PR,$B9) ->  | PR9: =_xlfn.PERCENTILE.INC(Simulations!PS:PS,$B9) ->  | PS9: =_xlfn.PERCENTILE.INC(Simulations!PT:PT,$B9) ->  | PT9: =_xlfn.PERCENTILE.INC(Simulations!PU:PU,$B9) ->  | PU9: =_xlfn.PERCENTILE.INC(Simulations!PV:PV,$B9) ->  | PV9: =_xlfn.PERCENTILE.INC(Simulations!PW:PW,$B9) ->  | PW9: =_xlfn.PERCENTILE.INC(Simulations!PX:PX,$B9) ->  | PX9: =_xlfn.PERCENTILE.INC(Simulations!PY:PY,$B9) ->  | PY9: =_xlfn.PERCENTILE.INC(Simulations!PZ:PZ,$B9) ->  | PZ9: =_xlfn.PERCENTILE.INC(Simulations!QA:QA,$B9) ->  | QA9: =_xlfn.PERCENTILE.INC(Simulations!QB:QB,$B9) ->  | QB9: =_xlfn.PERCENTILE.INC(Simulations!QC:QC,$B9) ->  | QC9: =_xlfn.PERCENTILE.INC(Simulations!QD:QD,$B9) ->  | QD9: =_xlfn.PERCENTILE.INC(Simulations!QE:QE,$B9) ->  | QE9: =_xlfn.PERCENTILE.INC(Simulations!QF:QF,$B9) ->  | QF9: =_xlfn.PERCENTILE.INC(Simulations!QG:QG,$B9) ->  | QG9: =_xlfn.PERCENTILE.INC(Simulations!QH:QH,$B9) ->  | QH9: =_xlfn.PERCENTILE.INC(Simulations!QI:QI,$B9) ->  | QI9: =_xlfn.PERCENTILE.INC(Simulations!QJ:QJ,$B9) ->  | QJ9: =_xlfn.PERCENTILE.INC(Simulations!QK:QK,$B9) ->  | QK9: =_xlfn.PERCENTILE.INC(Simulations!QL:QL,$B9) ->  | QL9: =_xlfn.PERCENTILE.INC(Simulations!QM:QM,$B9) ->  | QM9: =_xlfn.PERCENTILE.INC(Simulations!QN:QN,$B9) ->  | QN9: =_xlfn.PERCENTILE.INC(Simulations!QO:QO,$B9) ->  | QO9: =_xlfn.PERCENTILE.INC(Simulations!QP:QP,$B9) ->  | QP9: =_xlfn.PERCENTILE.INC(Simulations!QQ:QQ,$B9) ->  | QQ9: =_xlfn.PERCENTILE.INC(Simulations!QR:QR,$B9) ->  | QR9: =_xlfn.PERCENTILE.INC(Simulations!QS:QS,$B9) ->  | QS9: =_xlfn.PERCENTILE.INC(Simulations!QT:QT,$B9) ->  | QT9: =_xlfn.PERCENTILE.INC(Simulations!QU:QU,$B9) ->  | QU9: =_xlfn.PERCENTILE.INC(Simulations!QV:QV,$B9) ->  | QV9: =_xlfn.PERCENTILE.INC(Simulations!QW:QW,$B9) ->  | QW9: =_xlfn.PERCENTILE.INC(Simulations!QX:QX,$B9) ->  | QX9: =_xlfn.PERCENTILE.INC(Simulations!QY:QY,$B9) ->  | QY9: =_xlfn.PERCENTILE.INC(Simulations!QZ:QZ,$B9) ->  | QZ9: =_xlfn.PERCENTILE.INC(Simulations!RA:RA,$B9) ->  | RA9: =_xlfn.PERCENTILE.INC(Simulations!RB:RB,$B9) ->  | RB9: =_xlfn.PERCENTILE.INC(Simulations!RC:RC,$B9) ->  | RC9: =_xlfn.PERCENTILE.INC(Simulations!RD:RD,$B9) ->  | RD9: =_xlfn.PERCENTILE.INC(Simulations!RE:RE,$B9) ->  | RE9: =_xlfn.PERCENTILE.INC(Simulations!RF:RF,$B9) ->  | RF9: =_xlfn.PERCENTILE.INC(Simulations!RG:RG,$B9) ->  | RG9: =_xlfn.PERCENTILE.INC(Simulations!RH:RH,$B9) ->  | RH9: =_xlfn.PERCENTILE.INC(Simulations!RI:RI,$B9) ->  | RI9: =_xlfn.PERCENTILE.INC(Simulations!RJ:RJ,$B9) ->  | RJ9: =_xlfn.PERCENTILE.INC(Simulations!RK:RK,$B9) ->  | RK9: =_xlfn.PERCENTILE.INC(Simulations!RL:RL,$B9) ->  | RL9: =_xlfn.PERCENTILE.INC(Simulations!RM:RM,$B9) ->  | RM9: =_xlfn.PERCENTILE.INC(Simulations!RN:RN,$B9) ->  | RN9: =_xlfn.PERCENTILE.INC(Simulations!RO:RO,$B9) ->  | RO9: =_xlfn.PERCENTILE.INC(Simulations!RP:RP,$B9) ->  | RP9: =_xlfn.PERCENTILE.INC(Simulations!RQ:RQ,$B9) ->  | RQ9: =_xlfn.PERCENTILE.INC(Simulations!RR:RR,$B9) ->  | RR9: =_xlfn.PERCENTILE.INC(Simulations!RS:RS,$B9) ->  | RS9: =_xlfn.PERCENTILE.INC(Simulations!RT:RT,$B9) ->  | RT9: =_xlfn.PERCENTILE.INC(Simulations!RU:RU,$B9) ->  | RU9: =_xlfn.PERCENTILE.INC(Simulations!RV:RV,$B9) ->  | RV9: =_xlfn.PERCENTILE.INC(Simulations!RW:RW,$B9) ->  | RW9: =_xlfn.PERCENTILE.INC(Simulations!RX:RX,$B9) ->  | RX9: =_xlfn.PERCENTILE.INC(Simulations!RY:RY,$B9) ->  | RY9: =_xlfn.PERCENTILE.INC(Simulations!RZ:RZ,$B9) ->  | RZ9: =_xlfn.PERCENTILE.INC(Simulations!SA:SA,$B9) ->  | SA9: =_xlfn.PERCENTILE.INC(Simulations!SB:SB,$B9) ->  | SB9: =_xlfn.PERCENTILE.INC(Simulations!SC:SC,$B9) ->  | SC9: =_xlfn.PERCENTILE.INC(Simulations!SD:SD,$B9) ->  | SD9: =_xlfn.PERCENTILE.INC(Simulations!SE:SE,$B9) ->  | SE9: =_xlfn.PERCENTILE.INC(Simulations!SF:SF,$B9) ->  | SF9: =_xlfn.PERCENTILE.INC(Simulations!SG:SG,$B9) ->  | SG9: =_xlfn.PERCENTILE.INC(Simulations!SH:SH,$B9) ->  | SH9: =_xlfn.PERCENTILE.INC(Simulations!SI:SI,$B9) -> 
B10: 0.025 | C10: =_xlfn.PERCENTILE.INC(Simulations!D:D,$B10) -> 217138.0877 | D10: =_xlfn.PERCENTILE.INC(Simulations!E:E,$B10) -> 357945.2156 | E10: =_xlfn.PERCENTILE.INC(Simulations!F:F,$B10) -> 218255.6783 | F10: =_xlfn.PERCENTILE.INC(Simulations!G:G,$B10) -> 813665.1741 | G10: =_xlfn.PERCENTILE.INC(Simulations!H:H,$B10) -> 2676.276506 | H10: =_xlfn.PERCENTILE.INC(Simulations!I:I,$B10) -> 19729.58205 | I10: =_xlfn.PERCENTILE.INC(Simulations!J:J,$B10) -> 200677.6539 | J10: =_xlfn.PERCENTILE.INC(Simulations!K:K,$B10) -> 13830.12334 | K10: =_xlfn.PERCENTILE.INC(Simulations!L:L,$B10) -> 245140.4417 | L10: =_xlfn.PERCENTILE.INC(Simulations!M:M,$B10) -> 250429.8493 | M10: =_xlfn.PERCENTILE.INC(Simulations!N:N,$B10) -> 9869.025291 | N10: =_xlfn.PERCENTILE.INC(Simulations!O:O,$B10) -> 126909.3736 | O10: =_xlfn.PERCENTILE.INC(Simulations!P:P,$B10) -> 108885.7103 | P10: =_xlfn.PERCENTILE.INC(Simulations!Q:Q,$B10) -> 141714.3985 | Q10: =_xlfn.PERCENTILE.INC(Simulations!R:R,$B10) -> 382423.7693 | R10: =_xlfn.PERCENTILE.INC(Simulations!S:S,$B10) -> 413936.2585 | S10: =_xlfn.PERCENTILE.INC(Simulations!T:T,$B10) -> 1935.85739 | T10: =_xlfn.PERCENTILE.INC(Simulations!U:U,$B10) -> 15885.28644 | U10: =_xlfn.PERCENTILE.INC(Simulations!V:V,$B10) -> 174218.7742 | V10: =_xlfn.PERCENTILE.INC(Simulations!W:W,$B10) -> 0 | W10: =_xlfn.PERCENTILE.INC(Simulations!X:X,$B10) -> 198489.9663 | X10: =_xlfn.PERCENTILE.INC(Simulations!Y:Y,$B10) -> 202161.3279 | Y10: =_xlfn.PERCENTILE.INC(Simulations!Z:Z,$B10) -> 12438.38972 | Z10: =_xlfn.PERCENTILE.INC(Simulations!AA:AA,$B10) -> 154014.517 | AA10: =_xlfn.PERCENTILE.INC(Simulations!AB:AB,$B10) -> 287325.2169 | AB10: =_xlfn.PERCENTILE.INC(Simulations!AC:AC,$B10) -> 141714.3985 | AC10: =_xlfn.PERCENTILE.INC(Simulations!AD:AD,$B10) -> 592675.441 | AD10: =_xlfn.PERCENTILE.INC(Simulations!AE:AE,$B10) -> 636687.9884 | AE10: =_xlfn.PERCENTILE.INC(Simulations!AF:AF,$B10) -> 2221.06386 | AF10: =_xlfn.PERCENTILE.INC(Simulations!AG:AG,$B10) -> 20015.42435 | AG10: =_xlfn.PERCENTILE.INC(Simulations!AH:AH,$B10) -> 15105.98064 | AH10: =_xlfn.PERCENTILE.INC(Simulations!AI:AI,$B10) -> 27190.76515 | AI10: =_xlfn.PERCENTILE.INC(Simulations!AJ:AJ,$B10) -> 62312.17013 | AJ10: =_xlfn.PERCENTILE.INC(Simulations!AK:AK,$B10) -> 69067.91257 | AK10: =_xlfn.PERCENTILE.INC(Simulations!AL:AL,$B10) -> 443.5642124 | AL10: =_xlfn.PERCENTILE.INC(Simulations!AM:AM,$B10) -> 3115.711748 | AM10: =_xlfn.PERCENTILE.INC(Simulations!AN:AN,$B10) -> 18024.14534 | AN10: =_xlfn.PERCENTILE.INC(Simulations!AO:AO,$B10) -> 12873.44348 | AO10: =_xlfn.PERCENTILE.INC(Simulations!AP:AP,$B10) -> 35652.39586 | AP10: =_xlfn.PERCENTILE.INC(Simulations!AQ:AQ,$B10) -> 36514.01344 | AQ10: =_xlfn.PERCENTILE.INC(Simulations!AR:AR,$B10) -> 2809.117254 | AR10: =_xlfn.PERCENTILE.INC(Simulations!AS:AS,$B10) -> 25636.07668 | AS10: =_xlfn.PERCENTILE.INC(Simulations!AT:AT,$B10) -> 33958.30392 | AT10: =_xlfn.PERCENTILE.INC(Simulations!AU:AU,$B10) -> 42345.58741 | AU10: =_xlfn.PERCENTILE.INC(Simulations!AV:AV,$B10) -> 102395.6256 | AV10: =_xlfn.PERCENTILE.INC(Simulations!AW:AW,$B10) -> 110108.1888 | AW10: =_xlfn.PERCENTILE.INC(Simulations!AX:AX,$B10) -> 15594.57586 | AX10: =_xlfn.PERCENTILE.INC(Simulations!AY:AY,$B10) -> 189204.1424 | AY10: =_xlfn.PERCENTILE.INC(Simulations!AZ:AZ,$B10) -> 333299.6444 | AZ10: =_xlfn.PERCENTILE.INC(Simulations!BA:BA,$B10) -> 198643.2694 | BA10: =_xlfn.PERCENTILE.INC(Simulations!BB:BB,$B10) -> 730470.4617 | BB10: =_xlfn.PERCENTILE.INC(Simulations!BC:BC,$B10) -> 786737.5071 | BC10: =_xlfn.PERCENTILE.INC(Simulations!BD:BD,$B10) -> 3957.22393 | BD10: =_xlfn.PERCENTILE.INC(Simulations!BE:BE,$B10) -> 6587.339461 | BE10: =_xlfn.PERCENTILE.INC(Simulations!BF:BF,$B10) -> 4076.881045 | BF10: =_xlfn.PERCENTILE.INC(Simulations!BG:BG,$B10) -> 4884.023471 | BG10: =_xlfn.PERCENTILE.INC(Simulations!BH:BH,$B10) -> 16779.92963 | BH10: =_xlfn.PERCENTILE.INC(Simulations!BI:BI,$B10) -> 20936.80797 | BI10: =_xlfn.PERCENTILE.INC(Simulations!BJ:BJ,$B10) -> 4809.020417 | BJ10: =_xlfn.PERCENTILE.INC(Simulations!BK:BK,$B10) -> 6273.74194 | BK10: =_xlfn.PERCENTILE.INC(Simulations!BL:BL,$B10) -> 8447.100153 | BL10: =_xlfn.PERCENTILE.INC(Simulations!BM:BM,$B10) -> 9194.441403 | BM10: =_xlfn.PERCENTILE.INC(Simulations!BN:BN,$B10) -> 8914.599178 | BN10: =_xlfn.PERCENTILE.INC(Simulations!BO:BO,$B10) -> 926.8642072 | BO10: =_xlfn.PERCENTILE.INC(Simulations!BP:BP,$B10) -> 2119.522032 | BP10: =_xlfn.PERCENTILE.INC(Simulations!BQ:BQ,$B10) -> 3170.34432 | BQ10: =_xlfn.PERCENTILE.INC(Simulations!BR:BR,$B10) -> 4407.961025 | BR10: =_xlfn.PERCENTILE.INC(Simulations!BS:BS,$B10) -> 4356.230975 | BS10: =_xlfn.PERCENTILE.INC(Simulations!BT:BT,$B10) -> 298.925549 | BT10: =_xlfn.PERCENTILE.INC(Simulations!BU:BU,$B10) -> 2227.854074 | BU10: =_xlfn.PERCENTILE.INC(Simulations!BV:BV,$B10) -> 2761.277591 | BV10: =_xlfn.PERCENTILE.INC(Simulations!BW:BW,$B10) -> 2531.26006 | BW10: =_xlfn.PERCENTILE.INC(Simulations!BX:BX,$B10) -> 1425.140677 | BX10: =_xlfn.PERCENTILE.INC(Simulations!BY:BY,$B10) -> 58.57937521 | BY10: =_xlfn.PERCENTILE.INC(Simulations!BZ:BZ,$B10) -> 227.6217609 | BZ10: =_xlfn.PERCENTILE.INC(Simulations!CA:CA,$B10) -> 1283.0539 | CA10: =_xlfn.PERCENTILE.INC(Simulations!CB:CB,$B10) -> 4807.732813 | CB10: =_xlfn.PERCENTILE.INC(Simulations!CC:CC,$B10) -> 0 | CC10: =_xlfn.PERCENTILE.INC(Simulations!CD:CD,$B10) -> 376.7584449 | CD10: =_xlfn.PERCENTILE.INC(Simulations!CE:CE,$B10) -> 2675.719495 | CE10: =_xlfn.PERCENTILE.INC(Simulations!CF:CF,$B10) -> 4237.042332 | CF10: =_xlfn.PERCENTILE.INC(Simulations!CG:CG,$B10) -> 7442.187721 | CG10: =_xlfn.PERCENTILE.INC(Simulations!CH:CH,$B10) -> 1425.140677 | CH10: =_xlfn.PERCENTILE.INC(Simulations!CI:CI,$B10) -> 805.0088377 | CI10: =_xlfn.PERCENTILE.INC(Simulations!CJ:CJ,$B10) -> 805.0088377 | CJ10: =_xlfn.PERCENTILE.INC(Simulations!CK:CK,$B10) -> 805.0088377 | CK10: =_xlfn.PERCENTILE.INC(Simulations!CL:CL,$B10) -> 805.0088377 | CL10: =_xlfn.PERCENTILE.INC(Simulations!CM:CM,$B10) -> 805.0088377 | CM10: =_xlfn.PERCENTILE.INC(Simulations!CN:CN,$B10) -> 377.649516 | CN10: =_xlfn.PERCENTILE.INC(Simulations!CO:CO,$B10) -> 377.649516 | CO10: =_xlfn.PERCENTILE.INC(Simulations!CP:CP,$B10) -> 377.649516 | CP10: =_xlfn.PERCENTILE.INC(Simulations!CQ:CQ,$B10) -> 377.649516 | CQ10: =_xlfn.PERCENTILE.INC(Simulations!CR:CR,$B10) -> 377.649516 | CR10: =_xlfn.PERCENTILE.INC(Simulations!CS:CS,$B10) -> 67.30496545 | CS10: =_xlfn.PERCENTILE.INC(Simulations!CT:CT,$B10) -> 377.649516 | CT10: =_xlfn.PERCENTILE.INC(Simulations!CU:CU,$B10) -> 377.649516 | CU10: =_xlfn.PERCENTILE.INC(Simulations!CV:CV,$B10) -> 377.649516 | CV10: =_xlfn.PERCENTILE.INC(Simulations!CW:CW,$B10) -> 377.649516 | CW10: =_xlfn.PERCENTILE.INC(Simulations!CX:CX,$B10) -> 13.44133977 | CX10: =_xlfn.PERCENTILE.INC(Simulations!CY:CY,$B10) -> 54.25654902 | CY10: =_xlfn.PERCENTILE.INC(Simulations!CZ:CZ,$B10) -> 150.9153755 | CZ10: =_xlfn.PERCENTILE.INC(Simulations!DA:DA,$B10) -> 527.1280696 | DA10: =_xlfn.PERCENTILE.INC(Simulations!DB:DB,$B10) -> 178.7978261 | DB10: =_xlfn.PERCENTILE.INC(Simulations!DC:DC,$B10) -> 85.12476529 | DC10: =_xlfn.PERCENTILE.INC(Simulations!DD:DD,$B10) -> 479.7449002 | DD10: =_xlfn.PERCENTILE.INC(Simulations!DE:DE,$B10) -> 563.5836872 | DE10: =_xlfn.PERCENTILE.INC(Simulations!DF:DF,$B10) -> 920.3395645 | DF10: =_xlfn.PERCENTILE.INC(Simulations!DG:DG,$B10) -> 588.1331585 | DG10: =_xlfn.PERCENTILE.INC(Simulations!DH:DH,$B10) -> 6179.351569 | DH10: =_xlfn.PERCENTILE.INC(Simulations!DI:DI,$B10) -> 6673.699695 | DI10: =_xlfn.PERCENTILE.INC(Simulations!DJ:DJ,$B10) -> 6529.348021 | DJ10: =_xlfn.PERCENTILE.INC(Simulations!DK:DK,$B10) -> 6304.19809 | DK10: =_xlfn.PERCENTILE.INC(Simulations!DL:DL,$B10) -> 7429.947748 | DL10: =_xlfn.PERCENTILE.INC(Simulations!DM:DM,$B10) -> 116.4415922 | DM10: =_xlfn.PERCENTILE.INC(Simulations!DN:DN,$B10) -> 115.3209944 | DN10: =_xlfn.PERCENTILE.INC(Simulations!DO:DO,$B10) -> 95.00729768 | DO10: =_xlfn.PERCENTILE.INC(Simulations!DP:DP,$B10) -> 78.44150427 | DP10: =_xlfn.PERCENTILE.INC(Simulations!DQ:DQ,$B10) -> 17.68421147 | DQ10: =_xlfn.PERCENTILE.INC(Simulations!DR:DR,$B10) -> 3604.734754 | DR10: =_xlfn.PERCENTILE.INC(Simulations!DS:DS,$B10) -> 3604.734754 | DS10: =_xlfn.PERCENTILE.INC(Simulations!DT:DT,$B10) -> 3521.725168 | DT10: =_xlfn.PERCENTILE.INC(Simulations!DU:DU,$B10) -> 3200.431816 | DU10: =_xlfn.PERCENTILE.INC(Simulations!DV:DV,$B10) -> 3200.431816 | DV10: =_xlfn.PERCENTILE.INC(Simulations!DW:DW,$B10) -> 1885320.416 | DW10: =_xlfn.PERCENTILE.INC(Simulations!DX:DX,$B10) -> 1105449.475 | DX10: =_xlfn.PERCENTILE.INC(Simulations!DY:DY,$B10) -> 3234549.758 | DY10: =_xlfn.PERCENTILE.INC(Simulations!DZ:DZ,$B10) -> 1469700.644 | DZ10: =_xlfn.PERCENTILE.INC(Simulations!EA:EA,$B10) -> 757843.3221 | EA10: =_xlfn.PERCENTILE.INC(Simulations!EB:EB,$B10) -> 705246.2121 | EB10: =_xlfn.PERCENTILE.INC(Simulations!EC:EC,$B10) -> 1124302.801 | EC10: =_xlfn.PERCENTILE.INC(Simulations!ED:ED,$B10) -> 1387702.749 | ED10: =_xlfn.PERCENTILE.INC(Simulations!EE:EE,$B10) ->  | EE10: =_xlfn.PERCENTILE.INC(Simulations!EF:EF,$B10) ->  | EF10: =_xlfn.PERCENTILE.INC(Simulations!EG:EG,$B10) ->  | EG10: =_xlfn.PERCENTILE.INC(Simulations!EH:EH,$B10) ->  | EH10: =_xlfn.PERCENTILE.INC(Simulations!EI:EI,$B10) ->  | EI10: =_xlfn.PERCENTILE.INC(Simulations!EJ:EJ,$B10) ->  | EJ10: =_xlfn.PERCENTILE.INC(Simulations!EK:EK,$B10) ->  | EK10: =_xlfn.PERCENTILE.INC(Simulations!EL:EL,$B10) ->  | EL10: =_xlfn.PERCENTILE.INC(Simulations!EM:EM,$B10) ->  | EM10: =_xlfn.PERCENTILE.INC(Simulations!EN:EN,$B10) ->  | EN10: =_xlfn.PERCENTILE.INC(Simulations!EO:EO,$B10) ->  | EO10: =_xlfn.PERCENTILE.INC(Simulations!EP:EP,$B10) ->  | EP10: =_xlfn.PERCENTILE.INC(Simulations!EQ:EQ,$B10) ->  | EQ10: =_xlfn.PERCENTILE.INC(Simulations!ER:ER,$B10) ->  | ER10: =_xlfn.PERCENTILE.INC(Simulations!ES:ES,$B10) ->  | ES10: =_xlfn.PERCENTILE.INC(Simulations!ET:ET,$B10) ->  | ET10: =_xlfn.PERCENTILE.INC(Simulations!EU:EU,$B10) ->  | EU10: =_xlfn.PERCENTILE.INC(Simulations!EV:EV,$B10) ->  | EV10: =_xlfn.PERCENTILE.INC(Simulations!EW:EW,$B10) ->  | EW10: =_xlfn.PERCENTILE.INC(Simulations!EX:EX,$B10) ->  | EX10: =_xlfn.PERCENTILE.INC(Simulations!EY:EY,$B10) ->  | EY10: =_xlfn.PERCENTILE.INC(Simulations!EZ:EZ,$B10) ->  | EZ10: =_xlfn.PERCENTILE.INC(Simulations!FA:FA,$B10) ->  | FA10: =_xlfn.PERCENTILE.INC(Simulations!FB:FB,$B10) ->  | FB10: =_xlfn.PERCENTILE.INC(Simulations!FC:FC,$B10) ->  | FC10: =_xlfn.PERCENTILE.INC(Simulations!FD:FD,$B10) ->  | FD10: =_xlfn.PERCENTILE.INC(Simulations!FE:FE,$B10) ->  | FE10: =_xlfn.PERCENTILE.INC(Simulations!FF:FF,$B10) ->  | FF10: =_xlfn.PERCENTILE.INC(Simulations!FG:FG,$B10) ->  | FG10: =_xlfn.PERCENTILE.INC(Simulations!FH:FH,$B10) ->  | FH10: =_xlfn.PERCENTILE.INC(Simulations!FI:FI,$B10) ->  | FI10: =_xlfn.PERCENTILE.INC(Simulations!FJ:FJ,$B10) ->  | FJ10: =_xlfn.PERCENTILE.INC(Simulations!FK:FK,$B10) ->  | FK10: =_xlfn.PERCENTILE.INC(Simulations!FL:FL,$B10) ->  | FL10: =_xlfn.PERCENTILE.INC(Simulations!FM:FM,$B10) ->  | FM10: =_xlfn.PERCENTILE.INC(Simulations!FN:FN,$B10) ->  | FN10: =_xlfn.PERCENTILE.INC(Simulations!FO:FO,$B10) ->  | FO10: =_xlfn.PERCENTILE.INC(Simulations!FP:FP,$B10) ->  | FP10: =_xlfn.PERCENTILE.INC(Simulations!FQ:FQ,$B10) ->  | FQ10: =_xlfn.PERCENTILE.INC(Simulations!FR:FR,$B10) ->  | FR10: =_xlfn.PERCENTILE.INC(Simulations!FS:FS,$B10) ->  | FS10: =_xlfn.PERCENTILE.INC(Simulations!FT:FT,$B10) ->  | FT10: =_xlfn.PERCENTILE.INC(Simulations!FU:FU,$B10) ->  | FU10: =_xlfn.PERCENTILE.INC(Simulations!FV:FV,$B10) ->  | FV10: =_xlfn.PERCENTILE.INC(Simulations!FW:FW,$B10) ->  | FW10: =_xlfn.PERCENTILE.INC(Simulations!FX:FX,$B10) ->  | FX10: =_xlfn.PERCENTILE.INC(Simulations!FY:FY,$B10) ->  | FY10: =_xlfn.PERCENTILE.INC(Simulations!FZ:FZ,$B10) ->  | FZ10: =_xlfn.PERCENTILE.INC(Simulations!GA:GA,$B10) ->  | GA10: =_xlfn.PERCENTILE.INC(Simulations!GB:GB,$B10) ->  | GB10: =_xlfn.PERCENTILE.INC(Simulations!GC:GC,$B10) ->  | GC10: =_xlfn.PERCENTILE.INC(Simulations!GD:GD,$B10) ->  | GD10: =_xlfn.PERCENTILE.INC(Simulations!GE:GE,$B10) ->  | GE10: =_xlfn.PERCENTILE.INC(Simulations!GF:GF,$B10) ->  | GF10: =_xlfn.PERCENTILE.INC(Simulations!GG:GG,$B10) ->  | GG10: =_xlfn.PERCENTILE.INC(Simulations!GH:GH,$B10) ->  | GH10: =_xlfn.PERCENTILE.INC(Simulations!GI:GI,$B10) ->  | GI10: =_xlfn.PERCENTILE.INC(Simulations!GJ:GJ,$B10) ->  | GJ10: =_xlfn.PERCENTILE.INC(Simulations!GK:GK,$B10) ->  | GK10: =_xlfn.PERCENTILE.INC(Simulations!GL:GL,$B10) ->  | GL10: =_xlfn.PERCENTILE.INC(Simulations!GM:GM,$B10) ->  | GM10: =_xlfn.PERCENTILE.INC(Simulations!GN:GN,$B10) ->  | GN10: =_xlfn.PERCENTILE.INC(Simulations!GO:GO,$B10) ->  | GO10: =_xlfn.PERCENTILE.INC(Simulations!GP:GP,$B10) ->  | GP10: =_xlfn.PERCENTILE.INC(Simulations!GQ:GQ,$B10) ->  | GQ10: =_xlfn.PERCENTILE.INC(Simulations!GR:GR,$B10) ->  | GR10: =_xlfn.PERCENTILE.INC(Simulations!GS:GS,$B10) ->  | GS10: =_xlfn.PERCENTILE.INC(Simulations!GT:GT,$B10) ->  | GT10: =_xlfn.PERCENTILE.INC(Simulations!GU:GU,$B10) ->  | GU10: =_xlfn.PERCENTILE.INC(Simulations!GV:GV,$B10) ->  | GV10: =_xlfn.PERCENTILE.INC(Simulations!GW:GW,$B10) ->  | GW10: =_xlfn.PERCENTILE.INC(Simulations!GX:GX,$B10) ->  | GX10: =_xlfn.PERCENTILE.INC(Simulations!GY:GY,$B10) ->  | GY10: =_xlfn.PERCENTILE.INC(Simulations!GZ:GZ,$B10) ->  | GZ10: =_xlfn.PERCENTILE.INC(Simulations!HA:HA,$B10) ->  | HA10: =_xlfn.PERCENTILE.INC(Simulations!HB:HB,$B10) ->  | HB10: =_xlfn.PERCENTILE.INC(Simulations!HC:HC,$B10) ->  | HC10: =_xlfn.PERCENTILE.INC(Simulations!HD:HD,$B10) ->  | HD10: =_xlfn.PERCENTILE.INC(Simulations!HE:HE,$B10) ->  | HE10: =_xlfn.PERCENTILE.INC(Simulations!HF:HF,$B10) ->  | HF10: =_xlfn.PERCENTILE.INC(Simulations!HG:HG,$B10) ->  | HG10: =_xlfn.PERCENTILE.INC(Simulations!HH:HH,$B10) ->  | HH10: =_xlfn.PERCENTILE.INC(Simulations!HI:HI,$B10) ->  | HI10: =_xlfn.PERCENTILE.INC(Simulations!HJ:HJ,$B10) ->  | HJ10: =_xlfn.PERCENTILE.INC(Simulations!HK:HK,$B10) ->  | HK10: =_xlfn.PERCENTILE.INC(Simulations!HL:HL,$B10) ->  | HL10: =_xlfn.PERCENTILE.INC(Simulations!HM:HM,$B10) ->  | HM10: =_xlfn.PERCENTILE.INC(Simulations!HN:HN,$B10) ->  | HN10: =_xlfn.PERCENTILE.INC(Simulations!HO:HO,$B10) ->  | HO10: =_xlfn.PERCENTILE.INC(Simulations!HP:HP,$B10) ->  | HP10: =_xlfn.PERCENTILE.INC(Simulations!HQ:HQ,$B10) ->  | HQ10: =_xlfn.PERCENTILE.INC(Simulations!HR:HR,$B10) ->  | HR10: =_xlfn.PERCENTILE.INC(Simulations!HS:HS,$B10) ->  | HS10: =_xlfn.PERCENTILE.INC(Simulations!HT:HT,$B10) ->  | HT10: =_xlfn.PERCENTILE.INC(Simulations!HU:HU,$B10) ->  | HU10: =_xlfn.PERCENTILE.INC(Simulations!HV:HV,$B10) ->  | HV10: =_xlfn.PERCENTILE.INC(Simulations!HW:HW,$B10) ->  | HW10: =_xlfn.PERCENTILE.INC(Simulations!HX:HX,$B10) ->  | HX10: =_xlfn.PERCENTILE.INC(Simulations!HY:HY,$B10) ->  | HY10: =_xlfn.PERCENTILE.INC(Simulations!HZ:HZ,$B10) ->  | HZ10: =_xlfn.PERCENTILE.INC(Simulations!IA:IA,$B10) ->  | IA10: =_xlfn.PERCENTILE.INC(Simulations!IB:IB,$B10) ->  | IB10: =_xlfn.PERCENTILE.INC(Simulations!IC:IC,$B10) ->  | IC10: =_xlfn.PERCENTILE.INC(Simulations!ID:ID,$B10) ->  | ID10: =_xlfn.PERCENTILE.INC(Simulations!IE:IE,$B10) ->  | IE10: =_xlfn.PERCENTILE.INC(Simulations!IF:IF,$B10) ->  | IF10: =_xlfn.PERCENTILE.INC(Simulations!IG:IG,$B10) ->  | IG10: =_xlfn.PERCENTILE.INC(Simulations!IH:IH,$B10) ->  | IH10: =_xlfn.PERCENTILE.INC(Simulations!II:II,$B10) ->  | II10: =_xlfn.PERCENTILE.INC(Simulations!IJ:IJ,$B10) ->  | IJ10: =_xlfn.PERCENTILE.INC(Simulations!IK:IK,$B10) ->  | IK10: =_xlfn.PERCENTILE.INC(Simulations!IL:IL,$B10) ->  | IL10: =_xlfn.PERCENTILE.INC(Simulations!IM:IM,$B10) ->  | IM10: =_xlfn.PERCENTILE.INC(Simulations!IN:IN,$B10) ->  | IN10: =_xlfn.PERCENTILE.INC(Simulations!IO:IO,$B10) ->  | IO10: =_xlfn.PERCENTILE.INC(Simulations!IP:IP,$B10) ->  | IP10: =_xlfn.PERCENTILE.INC(Simulations!IQ:IQ,$B10) ->  | IQ10: =_xlfn.PERCENTILE.INC(Simulations!IR:IR,$B10) ->  | IR10: =_xlfn.PERCENTILE.INC(Simulations!IS:IS,$B10) ->  | IS10: =_xlfn.PERCENTILE.INC(Simulations!IT:IT,$B10) ->  | IT10: =_xlfn.PERCENTILE.INC(Simulations!IU:IU,$B10) ->  | IU10: =_xlfn.PERCENTILE.INC(Simulations!IV:IV,$B10) ->  | IV10: =_xlfn.PERCENTILE.INC(Simulations!IW:IW,$B10) ->  | IW10: =_xlfn.PERCENTILE.INC(Simulations!IX:IX,$B10) ->  | IX10: =_xlfn.PERCENTILE.INC(Simulations!IY:IY,$B10) ->  | IY10: =_xlfn.PERCENTILE.INC(Simulations!IZ:IZ,$B10) ->  | IZ10: =_xlfn.PERCENTILE.INC(Simulations!JA:JA,$B10) ->  | JA10: =_xlfn.PERCENTILE.INC(Simulations!JB:JB,$B10) ->  | JB10: =_xlfn.PERCENTILE.INC(Simulations!JC:JC,$B10) ->  | JC10: =_xlfn.PERCENTILE.INC(Simulations!JD:JD,$B10) ->  | JD10: =_xlfn.PERCENTILE.INC(Simulations!JE:JE,$B10) ->  | JE10: =_xlfn.PERCENTILE.INC(Simulations!JF:JF,$B10) ->  | JF10: =_xlfn.PERCENTILE.INC(Simulations!JG:JG,$B10) ->  | JG10: =_xlfn.PERCENTILE.INC(Simulations!JH:JH,$B10) ->  | JH10: =_xlfn.PERCENTILE.INC(Simulations!JI:JI,$B10) ->  | JI10: =_xlfn.PERCENTILE.INC(Simulations!JJ:JJ,$B10) ->  | JJ10: =_xlfn.PERCENTILE.INC(Simulations!JK:JK,$B10) ->  | JK10: =_xlfn.PERCENTILE.INC(Simulations!JL:JL,$B10) ->  | JL10: =_xlfn.PERCENTILE.INC(Simulations!JM:JM,$B10) ->  | JM10: =_xlfn.PERCENTILE.INC(Simulations!JN:JN,$B10) ->  | JN10: =_xlfn.PERCENTILE.INC(Simulations!JO:JO,$B10) ->  | JO10: =_xlfn.PERCENTILE.INC(Simulations!JP:JP,$B10) ->  | JP10: =_xlfn.PERCENTILE.INC(Simulations!JQ:JQ,$B10) ->  | JQ10: =_xlfn.PERCENTILE.INC(Simulations!JR:JR,$B10) ->  | JR10: =_xlfn.PERCENTILE.INC(Simulations!JS:JS,$B10) ->  | JS10: =_xlfn.PERCENTILE.INC(Simulations!JT:JT,$B10) ->  | JT10: =_xlfn.PERCENTILE.INC(Simulations!JU:JU,$B10) ->  | JU10: =_xlfn.PERCENTILE.INC(Simulations!JV:JV,$B10) ->  | JV10: =_xlfn.PERCENTILE.INC(Simulations!JW:JW,$B10) ->  | JW10: =_xlfn.PERCENTILE.INC(Simulations!JX:JX,$B10) ->  | JX10: =_xlfn.PERCENTILE.INC(Simulations!JY:JY,$B10) ->  | JY10: =_xlfn.PERCENTILE.INC(Simulations!JZ:JZ,$B10) ->  | JZ10: =_xlfn.PERCENTILE.INC(Simulations!KA:KA,$B10) ->  | KA10: =_xlfn.PERCENTILE.INC(Simulations!KB:KB,$B10) ->  | KB10: =_xlfn.PERCENTILE.INC(Simulations!KC:KC,$B10) ->  | KC10: =_xlfn.PERCENTILE.INC(Simulations!KD:KD,$B10) ->  | KD10: =_xlfn.PERCENTILE.INC(Simulations!KE:KE,$B10) ->  | KE10: =_xlfn.PERCENTILE.INC(Simulations!KF:KF,$B10) ->  | KF10: =_xlfn.PERCENTILE.INC(Simulations!KG:KG,$B10) ->  | KG10: =_xlfn.PERCENTILE.INC(Simulations!KH:KH,$B10) ->  | KH10: =_xlfn.PERCENTILE.INC(Simulations!KI:KI,$B10) ->  | KI10: =_xlfn.PERCENTILE.INC(Simulations!KJ:KJ,$B10) ->  | KJ10: =_xlfn.PERCENTILE.INC(Simulations!KK:KK,$B10) ->  | KK10: =_xlfn.PERCENTILE.INC(Simulations!KL:KL,$B10) ->  | KL10: =_xlfn.PERCENTILE.INC(Simulations!KM:KM,$B10) ->  | KM10: =_xlfn.PERCENTILE.INC(Simulations!KN:KN,$B10) ->  | KN10: =_xlfn.PERCENTILE.INC(Simulations!KO:KO,$B10) ->  | KO10: =_xlfn.PERCENTILE.INC(Simulations!KP:KP,$B10) ->  | KP10: =_xlfn.PERCENTILE.INC(Simulations!KQ:KQ,$B10) ->  | KQ10: =_xlfn.PERCENTILE.INC(Simulations!KR:KR,$B10) ->  | KR10: =_xlfn.PERCENTILE.INC(Simulations!KS:KS,$B10) ->  | KS10: =_xlfn.PERCENTILE.INC(Simulations!KT:KT,$B10) ->  | KT10: =_xlfn.PERCENTILE.INC(Simulations!KU:KU,$B10) ->  | KU10: =_xlfn.PERCENTILE.INC(Simulations!KV:KV,$B10) ->  | KV10: =_xlfn.PERCENTILE.INC(Simulations!KW:KW,$B10) ->  | KW10: =_xlfn.PERCENTILE.INC(Simulations!KX:KX,$B10) ->  | KX10: =_xlfn.PERCENTILE.INC(Simulations!KY:KY,$B10) ->  | KY10: =_xlfn.PERCENTILE.INC(Simulations!KZ:KZ,$B10) ->  | KZ10: =_xlfn.PERCENTILE.INC(Simulations!LA:LA,$B10) ->  | LA10: =_xlfn.PERCENTILE.INC(Simulations!LB:LB,$B10) ->  | LB10: =_xlfn.PERCENTILE.INC(Simulations!LC:LC,$B10) ->  | LC10: =_xlfn.PERCENTILE.INC(Simulations!LD:LD,$B10) ->  | LD10: =_xlfn.PERCENTILE.INC(Simulations!LE:LE,$B10) ->  | LE10: =_xlfn.PERCENTILE.INC(Simulations!LF:LF,$B10) ->  | LF10: =_xlfn.PERCENTILE.INC(Simulations!LG:LG,$B10) ->  | LG10: =_xlfn.PERCENTILE.INC(Simulations!LH:LH,$B10) ->  | LH10: =_xlfn.PERCENTILE.INC(Simulations!LI:LI,$B10) ->  | LI10: =_xlfn.PERCENTILE.INC(Simulations!LJ:LJ,$B10) ->  | LJ10: =_xlfn.PERCENTILE.INC(Simulations!LK:LK,$B10) ->  | LK10: =_xlfn.PERCENTILE.INC(Simulations!LL:LL,$B10) ->  | LL10: =_xlfn.PERCENTILE.INC(Simulations!LM:LM,$B10) ->  | LM10: =_xlfn.PERCENTILE.INC(Simulations!LN:LN,$B10) ->  | LN10: =_xlfn.PERCENTILE.INC(Simulations!LO:LO,$B10) ->  | LO10: =_xlfn.PERCENTILE.INC(Simulations!LP:LP,$B10) ->  | LP10: =_xlfn.PERCENTILE.INC(Simulations!LQ:LQ,$B10) ->  | LQ10: =_xlfn.PERCENTILE.INC(Simulations!LR:LR,$B10) ->  | LR10: =_xlfn.PERCENTILE.INC(Simulations!LS:LS,$B10) ->  | LS10: =_xlfn.PERCENTILE.INC(Simulations!LT:LT,$B10) ->  | LT10: =_xlfn.PERCENTILE.INC(Simulations!LU:LU,$B10) ->  | LU10: =_xlfn.PERCENTILE.INC(Simulations!LV:LV,$B10) ->  | LV10: =_xlfn.PERCENTILE.INC(Simulations!LW:LW,$B10) ->  | LW10: =_xlfn.PERCENTILE.INC(Simulations!LX:LX,$B10) ->  | LX10: =_xlfn.PERCENTILE.INC(Simulations!LY:LY,$B10) ->  | LY10: =_xlfn.PERCENTILE.INC(Simulations!LZ:LZ,$B10) ->  | LZ10: =_xlfn.PERCENTILE.INC(Simulations!MA:MA,$B10) ->  | MA10: =_xlfn.PERCENTILE.INC(Simulations!MB:MB,$B10) ->  | MB10: =_xlfn.PERCENTILE.INC(Simulations!MC:MC,$B10) ->  | MC10: =_xlfn.PERCENTILE.INC(Simulations!MD:MD,$B10) ->  | MD10: =_xlfn.PERCENTILE.INC(Simulations!ME:ME,$B10) ->  | ME10: =_xlfn.PERCENTILE.INC(Simulations!MF:MF,$B10) ->  | MF10: =_xlfn.PERCENTILE.INC(Simulations!MG:MG,$B10) ->  | MG10: =_xlfn.PERCENTILE.INC(Simulations!MH:MH,$B10) ->  | MH10: =_xlfn.PERCENTILE.INC(Simulations!MI:MI,$B10) ->  | MI10: =_xlfn.PERCENTILE.INC(Simulations!MJ:MJ,$B10) ->  | MJ10: =_xlfn.PERCENTILE.INC(Simulations!MK:MK,$B10) ->  | MK10: =_xlfn.PERCENTILE.INC(Simulations!ML:ML,$B10) ->  | ML10: =_xlfn.PERCENTILE.INC(Simulations!MM:MM,$B10) ->  | MM10: =_xlfn.PERCENTILE.INC(Simulations!MN:MN,$B10) ->  | MN10: =_xlfn.PERCENTILE.INC(Simulations!MO:MO,$B10) ->  | MO10: =_xlfn.PERCENTILE.INC(Simulations!MP:MP,$B10) ->  | MP10: =_xlfn.PERCENTILE.INC(Simulations!MQ:MQ,$B10) ->  | MQ10: =_xlfn.PERCENTILE.INC(Simulations!MR:MR,$B10) ->  | MR10: =_xlfn.PERCENTILE.INC(Simulations!MS:MS,$B10) ->  | MS10: =_xlfn.PERCENTILE.INC(Simulations!MT:MT,$B10) ->  | MT10: =_xlfn.PERCENTILE.INC(Simulations!MU:MU,$B10) ->  | MU10: =_xlfn.PERCENTILE.INC(Simulations!MV:MV,$B10) ->  | MV10: =_xlfn.PERCENTILE.INC(Simulations!MW:MW,$B10) ->  | MW10: =_xlfn.PERCENTILE.INC(Simulations!MX:MX,$B10) ->  | MX10: =_xlfn.PERCENTILE.INC(Simulations!MY:MY,$B10) ->  | MY10: =_xlfn.PERCENTILE.INC(Simulations!MZ:MZ,$B10) ->  | MZ10: =_xlfn.PERCENTILE.INC(Simulations!NA:NA,$B10) ->  | NA10: =_xlfn.PERCENTILE.INC(Simulations!NB:NB,$B10) ->  | NB10: =_xlfn.PERCENTILE.INC(Simulations!NC:NC,$B10) ->  | NC10: =_xlfn.PERCENTILE.INC(Simulations!ND:ND,$B10) ->  | ND10: =_xlfn.PERCENTILE.INC(Simulations!NE:NE,$B10) ->  | NE10: =_xlfn.PERCENTILE.INC(Simulations!NF:NF,$B10) ->  | NF10: =_xlfn.PERCENTILE.INC(Simulations!NG:NG,$B10) ->  | NG10: =_xlfn.PERCENTILE.INC(Simulations!NH:NH,$B10) ->  | NH10: =_xlfn.PERCENTILE.INC(Simulations!NI:NI,$B10) ->  | NI10: =_xlfn.PERCENTILE.INC(Simulations!NJ:NJ,$B10) ->  | NJ10: =_xlfn.PERCENTILE.INC(Simulations!NK:NK,$B10) ->  | NK10: =_xlfn.PERCENTILE.INC(Simulations!NL:NL,$B10) ->  | NL10: =_xlfn.PERCENTILE.INC(Simulations!NM:NM,$B10) ->  | NM10: =_xlfn.PERCENTILE.INC(Simulations!NN:NN,$B10) ->  | NN10: =_xlfn.PERCENTILE.INC(Simulations!NO:NO,$B10) ->  | NO10: =_xlfn.PERCENTILE.INC(Simulations!NP:NP,$B10) ->  | NP10: =_xlfn.PERCENTILE.INC(Simulations!NQ:NQ,$B10) ->  | NQ10: =_xlfn.PERCENTILE.INC(Simulations!NR:NR,$B10) ->  | NR10: =_xlfn.PERCENTILE.INC(Simulations!NS:NS,$B10) ->  | NS10: =_xlfn.PERCENTILE.INC(Simulations!NT:NT,$B10) ->  | NT10: =_xlfn.PERCENTILE.INC(Simulations!NU:NU,$B10) ->  | NU10: =_xlfn.PERCENTILE.INC(Simulations!NV:NV,$B10) ->  | NV10: =_xlfn.PERCENTILE.INC(Simulations!NW:NW,$B10) ->  | NW10: =_xlfn.PERCENTILE.INC(Simulations!NX:NX,$B10) ->  | NX10: =_xlfn.PERCENTILE.INC(Simulations!NY:NY,$B10) ->  | NY10: =_xlfn.PERCENTILE.INC(Simulations!NZ:NZ,$B10) ->  | NZ10: =_xlfn.PERCENTILE.INC(Simulations!OA:OA,$B10) ->  | OA10: =_xlfn.PERCENTILE.INC(Simulations!OB:OB,$B10) ->  | OB10: =_xlfn.PERCENTILE.INC(Simulations!OC:OC,$B10) ->  | OC10: =_xlfn.PERCENTILE.INC(Simulations!OD:OD,$B10) ->  | OD10: =_xlfn.PERCENTILE.INC(Simulations!OE:OE,$B10) ->  | OE10: =_xlfn.PERCENTILE.INC(Simulations!OF:OF,$B10) ->  | OF10: =_xlfn.PERCENTILE.INC(Simulations!OG:OG,$B10) ->  | OG10: =_xlfn.PERCENTILE.INC(Simulations!OH:OH,$B10) ->  | OH10: =_xlfn.PERCENTILE.INC(Simulations!OI:OI,$B10) ->  | OI10: =_xlfn.PERCENTILE.INC(Simulations!OJ:OJ,$B10) ->  | OJ10: =_xlfn.PERCENTILE.INC(Simulations!OK:OK,$B10) ->  | OK10: =_xlfn.PERCENTILE.INC(Simulations!OL:OL,$B10) ->  | OL10: =_xlfn.PERCENTILE.INC(Simulations!OM:OM,$B10) ->  | OM10: =_xlfn.PERCENTILE.INC(Simulations!ON:ON,$B10) ->  | ON10: =_xlfn.PERCENTILE.INC(Simulations!OO:OO,$B10) ->  | OO10: =_xlfn.PERCENTILE.INC(Simulations!OP:OP,$B10) ->  | OP10: =_xlfn.PERCENTILE.INC(Simulations!OQ:OQ,$B10) ->  | OQ10: =_xlfn.PERCENTILE.INC(Simulations!OR:OR,$B10) ->  | OR10: =_xlfn.PERCENTILE.INC(Simulations!OS:OS,$B10) ->  | OS10: =_xlfn.PERCENTILE.INC(Simulations!OT:OT,$B10) ->  | OT10: =_xlfn.PERCENTILE.INC(Simulations!OU:OU,$B10) ->  | OU10: =_xlfn.PERCENTILE.INC(Simulations!OV:OV,$B10) ->  | OV10: =_xlfn.PERCENTILE.INC(Simulations!OW:OW,$B10) ->  | OW10: =_xlfn.PERCENTILE.INC(Simulations!OX:OX,$B10) ->  | OX10: =_xlfn.PERCENTILE.INC(Simulations!OY:OY,$B10) ->  | OY10: =_xlfn.PERCENTILE.INC(Simulations!OZ:OZ,$B10) ->  | OZ10: =_xlfn.PERCENTILE.INC(Simulations!PA:PA,$B10) ->  | PA10: =_xlfn.PERCENTILE.INC(Simulations!PB:PB,$B10) ->  | PB10: =_xlfn.PERCENTILE.INC(Simulations!PC:PC,$B10) ->  | PC10: =_xlfn.PERCENTILE.INC(Simulations!PD:PD,$B10) ->  | PD10: =_xlfn.PERCENTILE.INC(Simulations!PE:PE,$B10) ->  | PE10: =_xlfn.PERCENTILE.INC(Simulations!PF:PF,$B10) ->  | PF10: =_xlfn.PERCENTILE.INC(Simulations!PG:PG,$B10) ->  | PG10: =_xlfn.PERCENTILE.INC(Simulations!PH:PH,$B10) ->  | PH10: =_xlfn.PERCENTILE.INC(Simulations!PI:PI,$B10) ->  | PI10: =_xlfn.PERCENTILE.INC(Simulations!PJ:PJ,$B10) ->  | PJ10: =_xlfn.PERCENTILE.INC(Simulations!PK:PK,$B10) ->  | PK10: =_xlfn.PERCENTILE.INC(Simulations!PL:PL,$B10) ->  | PL10: =_xlfn.PERCENTILE.INC(Simulations!PM:PM,$B10) ->  | PM10: =_xlfn.PERCENTILE.INC(Simulations!PN:PN,$B10) ->  | PN10: =_xlfn.PERCENTILE.INC(Simulations!PO:PO,$B10) ->  | PO10: =_xlfn.PERCENTILE.INC(Simulations!PP:PP,$B10) ->  | PP10: =_xlfn.PERCENTILE.INC(Simulations!PQ:PQ,$B10) ->  | PQ10: =_xlfn.PERCENTILE.INC(Simulations!PR:PR,$B10) ->  | PR10: =_xlfn.PERCENTILE.INC(Simulations!PS:PS,$B10) ->  | PS10: =_xlfn.PERCENTILE.INC(Simulations!PT:PT,$B10) ->  | PT10: =_xlfn.PERCENTILE.INC(Simulations!PU:PU,$B10) ->  | PU10: =_xlfn.PERCENTILE.INC(Simulations!PV:PV,$B10) ->  | PV10: =_xlfn.PERCENTILE.INC(Simulations!PW:PW,$B10) ->  | PW10: =_xlfn.PERCENTILE.INC(Simulations!PX:PX,$B10) ->  | PX10: =_xlfn.PERCENTILE.INC(Simulations!PY:PY,$B10) ->  | PY10: =_xlfn.PERCENTILE.INC(Simulations!PZ:PZ,$B10) ->  | PZ10: =_xlfn.PERCENTILE.INC(Simulations!QA:QA,$B10) ->  | QA10: =_xlfn.PERCENTILE.INC(Simulations!QB:QB,$B10) ->  | QB10: =_xlfn.PERCENTILE.INC(Simulations!QC:QC,$B10) ->  | QC10: =_xlfn.PERCENTILE.INC(Simulations!QD:QD,$B10) ->  | QD10: =_xlfn.PERCENTILE.INC(Simulations!QE:QE,$B10) ->  | QE10: =_xlfn.PERCENTILE.INC(Simulations!QF:QF,$B10) ->  | QF10: =_xlfn.PERCENTILE.INC(Simulations!QG:QG,$B10) ->  | QG10: =_xlfn.PERCENTILE.INC(Simulations!QH:QH,$B10) ->  | QH10: =_xlfn.PERCENTILE.INC(Simulations!QI:QI,$B10) ->  | QI10: =_xlfn.PERCENTILE.INC(Simulations!QJ:QJ,$B10) ->  | QJ10: =_xlfn.PERCENTILE.INC(Simulations!QK:QK,$B10) ->  | QK10: =_xlfn.PERCENTILE.INC(Simulations!QL:QL,$B10) ->  | QL10: =_xlfn.PERCENTILE.INC(Simulations!QM:QM,$B10) ->  | QM10: =_xlfn.PERCENTILE.INC(Simulations!QN:QN,$B10) ->  | QN10: =_xlfn.PERCENTILE.INC(Simulations!QO:QO,$B10) ->  | QO10: =_xlfn.PERCENTILE.INC(Simulations!QP:QP,$B10) ->  | QP10: =_xlfn.PERCENTILE.INC(Simulations!QQ:QQ,$B10) ->  | QQ10: =_xlfn.PERCENTILE.INC(Simulations!QR:QR,$B10) ->  | QR10: =_xlfn.PERCENTILE.INC(Simulations!QS:QS,$B10) ->  | QS10: =_xlfn.PERCENTILE.INC(Simulations!QT:QT,$B10) ->  | QT10: =_xlfn.PERCENTILE.INC(Simulations!QU:QU,$B10) ->  | QU10: =_xlfn.PERCENTILE.INC(Simulations!QV:QV,$B10) ->  | QV10: =_xlfn.PERCENTILE.INC(Simulations!QW:QW,$B10) ->  | QW10: =_xlfn.PERCENTILE.INC(Simulations!QX:QX,$B10) ->  | QX10: =_xlfn.PERCENTILE.INC(Simulations!QY:QY,$B10) ->  | QY10: =_xlfn.PERCENTILE.INC(Simulations!QZ:QZ,$B10) ->  | QZ10: =_xlfn.PERCENTILE.INC(Simulations!RA:RA,$B10) ->  | RA10: =_xlfn.PERCENTILE.INC(Simulations!RB:RB,$B10) ->  | RB10: =_xlfn.PERCENTILE.INC(Simulations!RC:RC,$B10) ->  | RC10: =_xlfn.PERCENTILE.INC(Simulations!RD:RD,$B10) ->  | RD10: =_xlfn.PERCENTILE.INC(Simulations!RE:RE,$B10) ->  | RE10: =_xlfn.PERCENTILE.INC(Simulations!RF:RF,$B10) ->  | RF10: =_xlfn.PERCENTILE.INC(Simulations!RG:RG,$B10) ->  | RG10: =_xlfn.PERCENTILE.INC(Simulations!RH:RH,$B10) ->  | RH10: =_xlfn.PERCENTILE.INC(Simulations!RI:RI,$B10) ->  | RI10: =_xlfn.PERCENTILE.INC(Simulations!RJ:RJ,$B10) ->  | RJ10: =_xlfn.PERCENTILE.INC(Simulations!RK:RK,$B10) ->  | RK10: =_xlfn.PERCENTILE.INC(Simulations!RL:RL,$B10) ->  | RL10: =_xlfn.PERCENTILE.INC(Simulations!RM:RM,$B10) ->  | RM10: =_xlfn.PERCENTILE.INC(Simulations!RN:RN,$B10) ->  | RN10: =_xlfn.PERCENTILE.INC(Simulations!RO:RO,$B10) ->  | RO10: =_xlfn.PERCENTILE.INC(Simulations!RP:RP,$B10) ->  | RP10: =_xlfn.PERCENTILE.INC(Simulations!RQ:RQ,$B10) ->  | RQ10: =_xlfn.PERCENTILE.INC(Simulations!RR:RR,$B10) ->  | RR10: =_xlfn.PERCENTILE.INC(Simulations!RS:RS,$B10) ->  | RS10: =_xlfn.PERCENTILE.INC(Simulations!RT:RT,$B10) ->  | RT10: =_xlfn.PERCENTILE.INC(Simulations!RU:RU,$B10) ->  | RU10: =_xlfn.PERCENTILE.INC(Simulations!RV:RV,$B10) ->  | RV10: =_xlfn.PERCENTILE.INC(Simulations!RW:RW,$B10) ->  | RW10: =_xlfn.PERCENTILE.INC(Simulations!RX:RX,$B10) ->  | RX10: =_xlfn.PERCENTILE.INC(Simulations!RY:RY,$B10) ->  | RY10: =_xlfn.PERCENTILE.INC(Simulations!RZ:RZ,$B10) ->  | RZ10: =_xlfn.PERCENTILE.INC(Simulations!SA:SA,$B10) ->  | SA10: =_xlfn.PERCENTILE.INC(Simulations!SB:SB,$B10) ->  | SB10: =_xlfn.PERCENTILE.INC(Simulations!SC:SC,$B10) ->  | SC10: =_xlfn.PERCENTILE.INC(Simulations!SD:SD,$B10) ->  | SD10: =_xlfn.PERCENTILE.INC(Simulations!SE:SE,$B10) ->  | SE10: =_xlfn.PERCENTILE.INC(Simulations!SF:SF,$B10) ->  | SF10: =_xlfn.PERCENTILE.INC(Simulations!SG:SG,$B10) ->  | SG10: =_xlfn.PERCENTILE.INC(Simulations!SH:SH,$B10) ->  | SH10: =_xlfn.PERCENTILE.INC(Simulations!SI:SI,$B10) -> 
B11: 0.1 | C11: =_xlfn.PERCENTILE.INC(Simulations!D:D,$B11) -> 237592.5467 | D11: =_xlfn.PERCENTILE.INC(Simulations!E:E,$B11) -> 390158.6157 | E11: =_xlfn.PERCENTILE.INC(Simulations!F:F,$B11) -> 243757.5155 | F11: =_xlfn.PERCENTILE.INC(Simulations!G:G,$B11) -> 880605.5422 | G11: =_xlfn.PERCENTILE.INC(Simulations!H:H,$B11) -> 4421.428953 | H11: =_xlfn.PERCENTILE.INC(Simulations!I:I,$B11) -> 29628.14389 | I11: =_xlfn.PERCENTILE.INC(Simulations!J:J,$B11) -> 224845.4333 | J11: =_xlfn.PERCENTILE.INC(Simulations!K:K,$B11) -> 17354.29548 | K11: =_xlfn.PERCENTILE.INC(Simulations!L:L,$B11) -> 281245.8068 | L11: =_xlfn.PERCENTILE.INC(Simulations!M:M,$B11) -> 289659.3683 | M11: =_xlfn.PERCENTILE.INC(Simulations!N:N,$B11) -> 14884.0274 | N11: =_xlfn.PERCENTILE.INC(Simulations!O:O,$B11) -> 134323.7771 | O11: =_xlfn.PERCENTILE.INC(Simulations!P:P,$B11) -> 115959.2635 | P11: =_xlfn.PERCENTILE.INC(Simulations!Q:Q,$B11) -> 153656.9905 | Q11: =_xlfn.PERCENTILE.INC(Simulations!R:R,$B11) -> 407096.6074 | R11: =_xlfn.PERCENTILE.INC(Simulations!S:S,$B11) -> 446705.4893 | S11: =_xlfn.PERCENTILE.INC(Simulations!T:T,$B11) -> 3268.609973 | T11: =_xlfn.PERCENTILE.INC(Simulations!U:U,$B11) -> 23319.62784 | U11: =_xlfn.PERCENTILE.INC(Simulations!V:V,$B11) -> 195069.4284 | V11: =_xlfn.PERCENTILE.INC(Simulations!W:W,$B11) -> 0 | W11: =_xlfn.PERCENTILE.INC(Simulations!X:X,$B11) -> 222285.531 | X11: =_xlfn.PERCENTILE.INC(Simulations!Y:Y,$B11) -> 228785.1871 | Y11: =_xlfn.PERCENTILE.INC(Simulations!Z:Z,$B11) -> 18210.1307 | Z11: =_xlfn.PERCENTILE.INC(Simulations!AA:AA,$B11) -> 167596.4927 | AA11: =_xlfn.PERCENTILE.INC(Simulations!AB:AB,$B11) -> 312430.0207 | AB11: =_xlfn.PERCENTILE.INC(Simulations!AC:AC,$B11) -> 153656.9905 | AC11: =_xlfn.PERCENTILE.INC(Simulations!AD:AD,$B11) -> 639734.7218 | AD11: =_xlfn.PERCENTILE.INC(Simulations!AE:AE,$B11) -> 692251.7296 | AE11: =_xlfn.PERCENTILE.INC(Simulations!AF:AF,$B11) -> 3458.572493 | AF11: =_xlfn.PERCENTILE.INC(Simulations!AG:AG,$B11) -> 23695.00472 | AG11: =_xlfn.PERCENTILE.INC(Simulations!AH:AH,$B11) -> 17883.02243 | AH11: =_xlfn.PERCENTILE.INC(Simulations!AI:AI,$B11) -> 32189.44038 | AI11: =_xlfn.PERCENTILE.INC(Simulations!AJ:AJ,$B11) -> 73767.46754 | AJ11: =_xlfn.PERCENTILE.INC(Simulations!AK:AK,$B11) -> 81317.36988 | AK11: =_xlfn.PERCENTILE.INC(Simulations!AL:AL,$B11) -> 749.3413866 | AL11: =_xlfn.PERCENTILE.INC(Simulations!AM:AM,$B11) -> 4601.693822 | AM11: =_xlfn.PERCENTILE.INC(Simulations!AN:AN,$B11) -> 21415.16384 | AN11: =_xlfn.PERCENTILE.INC(Simulations!AO:AO,$B11) -> 16110.58696 | AO11: =_xlfn.PERCENTILE.INC(Simulations!AP:AP,$B11) -> 42716.02665 | AP11: =_xlfn.PERCENTILE.INC(Simulations!AQ:AQ,$B11) -> 43988.33476 | AQ11: =_xlfn.PERCENTILE.INC(Simulations!AR:AR,$B11) -> 4301.287918 | AR11: =_xlfn.PERCENTILE.INC(Simulations!AS:AS,$B11) -> 30046.70469 | AS11: =_xlfn.PERCENTILE.INC(Simulations!AT:AT,$B11) -> 39867.11637 | AT11: =_xlfn.PERCENTILE.INC(Simulations!AU:AU,$B11) -> 49361.16478 | AU11: =_xlfn.PERCENTILE.INC(Simulations!AV:AV,$B11) -> 119009.2425 | AV11: =_xlfn.PERCENTILE.INC(Simulations!AW:AW,$B11) -> 128558.1996 | AW11: =_xlfn.PERCENTILE.INC(Simulations!AX:AX,$B11) -> 22706.67181 | AX11: =_xlfn.PERCENTILE.INC(Simulations!AY:AY,$B11) -> 205577.7537 | AY11: =_xlfn.PERCENTILE.INC(Simulations!AZ:AZ,$B11) -> 366068.1598 | AZ11: =_xlfn.PERCENTILE.INC(Simulations!BA:BA,$B11) -> 220400.6907 | BA11: =_xlfn.PERCENTILE.INC(Simulations!BB:BB,$B11) -> 798988.7249 | BB11: =_xlfn.PERCENTILE.INC(Simulations!BC:BC,$B11) -> 853176.6676 | BC11: =_xlfn.PERCENTILE.INC(Simulations!BD:BD,$B11) -> 8218.558382 | BD11: =_xlfn.PERCENTILE.INC(Simulations!BE:BE,$B11) -> 12905.86799 | BE11: =_xlfn.PERCENTILE.INC(Simulations!BF:BF,$B11) -> 8384.832986 | BF11: =_xlfn.PERCENTILE.INC(Simulations!BG:BG,$B11) -> 11282.26929 | BG11: =_xlfn.PERCENTILE.INC(Simulations!BH:BH,$B11) -> 33239.47576 | BH11: =_xlfn.PERCENTILE.INC(Simulations!BI:BI,$B11) -> 42756.10589 | BI11: =_xlfn.PERCENTILE.INC(Simulations!BJ:BJ,$B11) -> 5177.138133 | BJ11: =_xlfn.PERCENTILE.INC(Simulations!BK:BK,$B11) -> 6715.689823 | BK11: =_xlfn.PERCENTILE.INC(Simulations!BL:BL,$B11) -> 8876.392248 | BL11: =_xlfn.PERCENTILE.INC(Simulations!BM:BM,$B11) -> 9536.067296 | BM11: =_xlfn.PERCENTILE.INC(Simulations!BN:BN,$B11) -> 9324.989901 | BN11: =_xlfn.PERCENTILE.INC(Simulations!BO:BO,$B11) -> 1209.560559 | BO11: =_xlfn.PERCENTILE.INC(Simulations!BP:BP,$B11) -> 2306.98036 | BP11: =_xlfn.PERCENTILE.INC(Simulations!BQ:BQ,$B11) -> 3454.232638 | BQ11: =_xlfn.PERCENTILE.INC(Simulations!BR:BR,$B11) -> 4681.538149 | BR11: =_xlfn.PERCENTILE.INC(Simulations!BS:BS,$B11) -> 4622.701976 | BS11: =_xlfn.PERCENTILE.INC(Simulations!BT:BT,$B11) -> 450.7463416 | BT11: =_xlfn.PERCENTILE.INC(Simulations!BU:BU,$B11) -> 2355.607215 | BU11: =_xlfn.PERCENTILE.INC(Simulations!BV:BV,$B11) -> 2956.752884 | BV11: =_xlfn.PERCENTILE.INC(Simulations!BW:BW,$B11) -> 2699.14913 | BW11: =_xlfn.PERCENTILE.INC(Simulations!BX:BX,$B11) -> 1584.661755 | BX11: =_xlfn.PERCENTILE.INC(Simulations!BY:BY,$B11) -> 98.86467817 | BY11: =_xlfn.PERCENTILE.INC(Simulations!BZ:BZ,$B11) -> 357.7731189 | BZ11: =_xlfn.PERCENTILE.INC(Simulations!CA:CA,$B11) -> 1514.46738 | CA11: =_xlfn.PERCENTILE.INC(Simulations!CB:CB,$B11) -> 5406.480004 | CB11: =_xlfn.PERCENTILE.INC(Simulations!CC:CC,$B11) -> 0 | CC11: =_xlfn.PERCENTILE.INC(Simulations!CD:CD,$B11) -> 551.4898425 | CD11: =_xlfn.PERCENTILE.INC(Simulations!CE:CE,$B11) -> 2885.959629 | CE11: =_xlfn.PERCENTILE.INC(Simulations!CF:CF,$B11) -> 4614.123503 | CF11: =_xlfn.PERCENTILE.INC(Simulations!CG:CG,$B11) -> 8129.611504 | CG11: =_xlfn.PERCENTILE.INC(Simulations!CH:CH,$B11) -> 1584.661755 | CH11: =_xlfn.PERCENTILE.INC(Simulations!CI:CI,$B11) -> 963.0458792 | CI11: =_xlfn.PERCENTILE.INC(Simulations!CJ:CJ,$B11) -> 963.0458792 | CJ11: =_xlfn.PERCENTILE.INC(Simulations!CK:CK,$B11) -> 963.0458792 | CK11: =_xlfn.PERCENTILE.INC(Simulations!CL:CL,$B11) -> 963.0458792 | CL11: =_xlfn.PERCENTILE.INC(Simulations!CM:CM,$B11) -> 963.0458792 | CM11: =_xlfn.PERCENTILE.INC(Simulations!CN:CN,$B11) -> 447.0755608 | CN11: =_xlfn.PERCENTILE.INC(Simulations!CO:CO,$B11) -> 447.0755608 | CO11: =_xlfn.PERCENTILE.INC(Simulations!CP:CP,$B11) -> 447.0755608 | CP11: =_xlfn.PERCENTILE.INC(Simulations!CQ:CQ,$B11) -> 447.0755608 | CQ11: =_xlfn.PERCENTILE.INC(Simulations!CR:CR,$B11) -> 447.0755608 | CR11: =_xlfn.PERCENTILE.INC(Simulations!CS:CS,$B11) -> 104.8052271 | CS11: =_xlfn.PERCENTILE.INC(Simulations!CT:CT,$B11) -> 447.0755608 | CT11: =_xlfn.PERCENTILE.INC(Simulations!CU:CU,$B11) -> 447.0755608 | CU11: =_xlfn.PERCENTILE.INC(Simulations!CV:CV,$B11) -> 447.0755608 | CV11: =_xlfn.PERCENTILE.INC(Simulations!CW:CW,$B11) -> 447.0755608 | CW11: =_xlfn.PERCENTILE.INC(Simulations!CX:CX,$B11) -> 22.70731475 | CX11: =_xlfn.PERCENTILE.INC(Simulations!CY:CY,$B11) -> 81.09588922 | CY11: =_xlfn.PERCENTILE.INC(Simulations!CZ:CZ,$B11) -> 189.6365448 | CZ11: =_xlfn.PERCENTILE.INC(Simulations!DA:DA,$B11) -> 623.0233634 | DA11: =_xlfn.PERCENTILE.INC(Simulations!DB:DB,$B11) -> 223.7581523 | DB11: =_xlfn.PERCENTILE.INC(Simulations!DC:DC,$B11) -> 130.3420581 | DC11: =_xlfn.PERCENTILE.INC(Simulations!DD:DD,$B11) -> 562.2881732 | DD11: =_xlfn.PERCENTILE.INC(Simulations!DE:DE,$B11) -> 660.7399709 | DE11: =_xlfn.PERCENTILE.INC(Simulations!DF:DF,$B11) -> 1080.424554 | DF11: =_xlfn.PERCENTILE.INC(Simulations!DG:DG,$B11) -> 685.5717331 | DG11: =_xlfn.PERCENTILE.INC(Simulations!DH:DH,$B11) -> 6296.513355 | DH11: =_xlfn.PERCENTILE.INC(Simulations!DI:DI,$B11) -> 6800.234423 | DI11: =_xlfn.PERCENTILE.INC(Simulations!DJ:DJ,$B11) -> 6699.828549 | DJ11: =_xlfn.PERCENTILE.INC(Simulations!DK:DK,$B11) -> 6468.799978 | DK11: =_xlfn.PERCENTILE.INC(Simulations!DL:DL,$B11) -> 7623.942831 | DL11: =_xlfn.PERCENTILE.INC(Simulations!DM:DM,$B11) -> 234.4552205 | DM11: =_xlfn.PERCENTILE.INC(Simulations!DN:DN,$B11) -> 222.3458887 | DN11: =_xlfn.PERCENTILE.INC(Simulations!DO:DO,$B11) -> 186.4957804 | DO11: =_xlfn.PERCENTILE.INC(Simulations!DP:DP,$B11) -> 150.5089574 | DP11: =_xlfn.PERCENTILE.INC(Simulations!DQ:DQ,$B11) -> 67.23084795 | DQ11: =_xlfn.PERCENTILE.INC(Simulations!DR:DR,$B11) -> 3722.872579 | DR11: =_xlfn.PERCENTILE.INC(Simulations!DS:DS,$B11) -> 3722.872579 | DS11: =_xlfn.PERCENTILE.INC(Simulations!DT:DT,$B11) -> 3701.67488 | DT11: =_xlfn.PERCENTILE.INC(Simulations!DU:DU,$B11) -> 3350.295399 | DU11: =_xlfn.PERCENTILE.INC(Simulations!DV:DV,$B11) -> 3350.295399 | DV11: =_xlfn.PERCENTILE.INC(Simulations!DW:DW,$B11) -> 1971122.652 | DW11: =_xlfn.PERCENTILE.INC(Simulations!DX:DX,$B11) -> 1195554.507 | DX11: =_xlfn.PERCENTILE.INC(Simulations!DY:DY,$B11) -> 3366315.606 | DY11: =_xlfn.PERCENTILE.INC(Simulations!DZ:DZ,$B11) -> 1552208.763 | DZ11: =_xlfn.PERCENTILE.INC(Simulations!EA:EA,$B11) -> 804137.6025 | EA11: =_xlfn.PERCENTILE.INC(Simulations!EB:EB,$B11) -> 731343.3253 | EB11: =_xlfn.PERCENTILE.INC(Simulations!EC:EC,$B11) -> 1199675.367 | EC11: =_xlfn.PERCENTILE.INC(Simulations!ED:ED,$B11) -> 1491526.926 | ED11: =_xlfn.PERCENTILE.INC(Simulations!EE:EE,$B11) ->  | EE11: =_xlfn.PERCENTILE.INC(Simulations!EF:EF,$B11) ->  | EF11: =_xlfn.PERCENTILE.INC(Simulations!EG:EG,$B11) ->  | EG11: =_xlfn.PERCENTILE.INC(Simulations!EH:EH,$B11) ->  | EH11: =_xlfn.PERCENTILE.INC(Simulations!EI:EI,$B11) ->  | EI11: =_xlfn.PERCENTILE.INC(Simulations!EJ:EJ,$B11) ->  | EJ11: =_xlfn.PERCENTILE.INC(Simulations!EK:EK,$B11) ->  | EK11: =_xlfn.PERCENTILE.INC(Simulations!EL:EL,$B11) ->  | EL11: =_xlfn.PERCENTILE.INC(Simulations!EM:EM,$B11) ->  | EM11: =_xlfn.PERCENTILE.INC(Simulations!EN:EN,$B11) ->  | EN11: =_xlfn.PERCENTILE.INC(Simulations!EO:EO,$B11) ->  | EO11: =_xlfn.PERCENTILE.INC(Simulations!EP:EP,$B11) ->  | EP11: =_xlfn.PERCENTILE.INC(Simulations!EQ:EQ,$B11) ->  | EQ11: =_xlfn.PERCENTILE.INC(Simulations!ER:ER,$B11) ->  | ER11: =_xlfn.PERCENTILE.INC(Simulations!ES:ES,$B11) ->  | ES11: =_xlfn.PERCENTILE.INC(Simulations!ET:ET,$B11) ->  | ET11: =_xlfn.PERCENTILE.INC(Simulations!EU:EU,$B11) ->  | EU11: =_xlfn.PERCENTILE.INC(Simulations!EV:EV,$B11) ->  | EV11: =_xlfn.PERCENTILE.INC(Simulations!EW:EW,$B11) ->  | EW11: =_xlfn.PERCENTILE.INC(Simulations!EX:EX,$B11) ->  | EX11: =_xlfn.PERCENTILE.INC(Simulations!EY:EY,$B11) ->  | EY11: =_xlfn.PERCENTILE.INC(Simulations!EZ:EZ,$B11) ->  | EZ11: =_xlfn.PERCENTILE.INC(Simulations!FA:FA,$B11) ->  | FA11: =_xlfn.PERCENTILE.INC(Simulations!FB:FB,$B11) ->  | FB11: =_xlfn.PERCENTILE.INC(Simulations!FC:FC,$B11) ->  | FC11: =_xlfn.PERCENTILE.INC(Simulations!FD:FD,$B11) ->  | FD11: =_xlfn.PERCENTILE.INC(Simulations!FE:FE,$B11) ->  | FE11: =_xlfn.PERCENTILE.INC(Simulations!FF:FF,$B11) ->  | FF11: =_xlfn.PERCENTILE.INC(Simulations!FG:FG,$B11) ->  | FG11: =_xlfn.PERCENTILE.INC(Simulations!FH:FH,$B11) ->  | FH11: =_xlfn.PERCENTILE.INC(Simulations!FI:FI,$B11) ->  | FI11: =_xlfn.PERCENTILE.INC(Simulations!FJ:FJ,$B11) ->  | FJ11: =_xlfn.PERCENTILE.INC(Simulations!FK:FK,$B11) ->  | FK11: =_xlfn.PERCENTILE.INC(Simulations!FL:FL,$B11) ->  | FL11: =_xlfn.PERCENTILE.INC(Simulations!FM:FM,$B11) ->  | FM11: =_xlfn.PERCENTILE.INC(Simulations!FN:FN,$B11) ->  | FN11: =_xlfn.PERCENTILE.INC(Simulations!FO:FO,$B11) ->  | FO11: =_xlfn.PERCENTILE.INC(Simulations!FP:FP,$B11) ->  | FP11: =_xlfn.PERCENTILE.INC(Simulations!FQ:FQ,$B11) ->  | FQ11: =_xlfn.PERCENTILE.INC(Simulations!FR:FR,$B11) ->  | FR11: =_xlfn.PERCENTILE.INC(Simulations!FS:FS,$B11) ->  | FS11: =_xlfn.PERCENTILE.INC(Simulations!FT:FT,$B11) ->  | FT11: =_xlfn.PERCENTILE.INC(Simulations!FU:FU,$B11) ->  | FU11: =_xlfn.PERCENTILE.INC(Simulations!FV:FV,$B11) ->  | FV11: =_xlfn.PERCENTILE.INC(Simulations!FW:FW,$B11) ->  | FW11: =_xlfn.PERCENTILE.INC(Simulations!FX:FX,$B11) ->  | FX11: =_xlfn.PERCENTILE.INC(Simulations!FY:FY,$B11) ->  | FY11: =_xlfn.PERCENTILE.INC(Simulations!FZ:FZ,$B11) ->  | FZ11: =_xlfn.PERCENTILE.INC(Simulations!GA:GA,$B11) ->  | GA11: =_xlfn.PERCENTILE.INC(Simulations!GB:GB,$B11) ->  | GB11: =_xlfn.PERCENTILE.INC(Simulations!GC:GC,$B11) ->  | GC11: =_xlfn.PERCENTILE.INC(Simulations!GD:GD,$B11) ->  | GD11: =_xlfn.PERCENTILE.INC(Simulations!GE:GE,$B11) ->  | GE11: =_xlfn.PERCENTILE.INC(Simulations!GF:GF,$B11) ->  | GF11: =_xlfn.PERCENTILE.INC(Simulations!GG:GG,$B11) ->  | GG11: =_xlfn.PERCENTILE.INC(Simulations!GH:GH,$B11) ->  | GH11: =_xlfn.PERCENTILE.INC(Simulations!GI:GI,$B11) ->  | GI11: =_xlfn.PERCENTILE.INC(Simulations!GJ:GJ,$B11) ->  | GJ11: =_xlfn.PERCENTILE.INC(Simulations!GK:GK,$B11) ->  | GK11: =_xlfn.PERCENTILE.INC(Simulations!GL:GL,$B11) ->  | GL11: =_xlfn.PERCENTILE.INC(Simulations!GM:GM,$B11) ->  | GM11: =_xlfn.PERCENTILE.INC(Simulations!GN:GN,$B11) ->  | GN11: =_xlfn.PERCENTILE.INC(Simulations!GO:GO,$B11) ->  | GO11: =_xlfn.PERCENTILE.INC(Simulations!GP:GP,$B11) ->  | GP11: =_xlfn.PERCENTILE.INC(Simulations!GQ:GQ,$B11) ->  | GQ11: =_xlfn.PERCENTILE.INC(Simulations!GR:GR,$B11) ->  | GR11: =_xlfn.PERCENTILE.INC(Simulations!GS:GS,$B11) ->  | GS11: =_xlfn.PERCENTILE.INC(Simulations!GT:GT,$B11) ->  | GT11: =_xlfn.PERCENTILE.INC(Simulations!GU:GU,$B11) ->  | GU11: =_xlfn.PERCENTILE.INC(Simulations!GV:GV,$B11) ->  | GV11: =_xlfn.PERCENTILE.INC(Simulations!GW:GW,$B11) ->  | GW11: =_xlfn.PERCENTILE.INC(Simulations!GX:GX,$B11) ->  | GX11: =_xlfn.PERCENTILE.INC(Simulations!GY:GY,$B11) ->  | GY11: =_xlfn.PERCENTILE.INC(Simulations!GZ:GZ,$B11) ->  | GZ11: =_xlfn.PERCENTILE.INC(Simulations!HA:HA,$B11) ->  | HA11: =_xlfn.PERCENTILE.INC(Simulations!HB:HB,$B11) ->  | HB11: =_xlfn.PERCENTILE.INC(Simulations!HC:HC,$B11) ->  | HC11: =_xlfn.PERCENTILE.INC(Simulations!HD:HD,$B11) ->  | HD11: =_xlfn.PERCENTILE.INC(Simulations!HE:HE,$B11) ->  | HE11: =_xlfn.PERCENTILE.INC(Simulations!HF:HF,$B11) ->  | HF11: =_xlfn.PERCENTILE.INC(Simulations!HG:HG,$B11) ->  | HG11: =_xlfn.PERCENTILE.INC(Simulations!HH:HH,$B11) ->  | HH11: =_xlfn.PERCENTILE.INC(Simulations!HI:HI,$B11) ->  | HI11: =_xlfn.PERCENTILE.INC(Simulations!HJ:HJ,$B11) ->  | HJ11: =_xlfn.PERCENTILE.INC(Simulations!HK:HK,$B11) ->  | HK11: =_xlfn.PERCENTILE.INC(Simulations!HL:HL,$B11) ->  | HL11: =_xlfn.PERCENTILE.INC(Simulations!HM:HM,$B11) ->  | HM11: =_xlfn.PERCENTILE.INC(Simulations!HN:HN,$B11) ->  | HN11: =_xlfn.PERCENTILE.INC(Simulations!HO:HO,$B11) ->  | HO11: =_xlfn.PERCENTILE.INC(Simulations!HP:HP,$B11) ->  | HP11: =_xlfn.PERCENTILE.INC(Simulations!HQ:HQ,$B11) ->  | HQ11: =_xlfn.PERCENTILE.INC(Simulations!HR:HR,$B11) ->  | HR11: =_xlfn.PERCENTILE.INC(Simulations!HS:HS,$B11) ->  | HS11: =_xlfn.PERCENTILE.INC(Simulations!HT:HT,$B11) ->  | HT11: =_xlfn.PERCENTILE.INC(Simulations!HU:HU,$B11) ->  | HU11: =_xlfn.PERCENTILE.INC(Simulations!HV:HV,$B11) ->  | HV11: =_xlfn.PERCENTILE.INC(Simulations!HW:HW,$B11) ->  | HW11: =_xlfn.PERCENTILE.INC(Simulations!HX:HX,$B11) ->  | HX11: =_xlfn.PERCENTILE.INC(Simulations!HY:HY,$B11) ->  | HY11: =_xlfn.PERCENTILE.INC(Simulations!HZ:HZ,$B11) ->  | HZ11: =_xlfn.PERCENTILE.INC(Simulations!IA:IA,$B11) ->  | IA11: =_xlfn.PERCENTILE.INC(Simulations!IB:IB,$B11) ->  | IB11: =_xlfn.PERCENTILE.INC(Simulations!IC:IC,$B11) ->  | IC11: =_xlfn.PERCENTILE.INC(Simulations!ID:ID,$B11) ->  | ID11: =_xlfn.PERCENTILE.INC(Simulations!IE:IE,$B11) ->  | IE11: =_xlfn.PERCENTILE.INC(Simulations!IF:IF,$B11) ->  | IF11: =_xlfn.PERCENTILE.INC(Simulations!IG:IG,$B11) ->  | IG11: =_xlfn.PERCENTILE.INC(Simulations!IH:IH,$B11) ->  | IH11: =_xlfn.PERCENTILE.INC(Simulations!II:II,$B11) ->  | II11: =_xlfn.PERCENTILE.INC(Simulations!IJ:IJ,$B11) ->  | IJ11: =_xlfn.PERCENTILE.INC(Simulations!IK:IK,$B11) ->  | IK11: =_xlfn.PERCENTILE.INC(Simulations!IL:IL,$B11) ->  | IL11: =_xlfn.PERCENTILE.INC(Simulations!IM:IM,$B11) ->  | IM11: =_xlfn.PERCENTILE.INC(Simulations!IN:IN,$B11) ->  | IN11: =_xlfn.PERCENTILE.INC(Simulations!IO:IO,$B11) ->  | IO11: =_xlfn.PERCENTILE.INC(Simulations!IP:IP,$B11) ->  | IP11: =_xlfn.PERCENTILE.INC(Simulations!IQ:IQ,$B11) ->  | IQ11: =_xlfn.PERCENTILE.INC(Simulations!IR:IR,$B11) ->  | IR11: =_xlfn.PERCENTILE.INC(Simulations!IS:IS,$B11) ->  | IS11: =_xlfn.PERCENTILE.INC(Simulations!IT:IT,$B11) ->  | IT11: =_xlfn.PERCENTILE.INC(Simulations!IU:IU,$B11) ->  | IU11: =_xlfn.PERCENTILE.INC(Simulations!IV:IV,$B11) ->  | IV11: =_xlfn.PERCENTILE.INC(Simulations!IW:IW,$B11) ->  | IW11: =_xlfn.PERCENTILE.INC(Simulations!IX:IX,$B11) ->  | IX11: =_xlfn.PERCENTILE.INC(Simulations!IY:IY,$B11) ->  | IY11: =_xlfn.PERCENTILE.INC(Simulations!IZ:IZ,$B11) ->  | IZ11: =_xlfn.PERCENTILE.INC(Simulations!JA:JA,$B11) ->  | JA11: =_xlfn.PERCENTILE.INC(Simulations!JB:JB,$B11) ->  | JB11: =_xlfn.PERCENTILE.INC(Simulations!JC:JC,$B11) ->  | JC11: =_xlfn.PERCENTILE.INC(Simulations!JD:JD,$B11) ->  | JD11: =_xlfn.PERCENTILE.INC(Simulations!JE:JE,$B11) ->  | JE11: =_xlfn.PERCENTILE.INC(Simulations!JF:JF,$B11) ->  | JF11: =_xlfn.PERCENTILE.INC(Simulations!JG:JG,$B11) ->  | JG11: =_xlfn.PERCENTILE.INC(Simulations!JH:JH,$B11) ->  | JH11: =_xlfn.PERCENTILE.INC(Simulations!JI:JI,$B11) ->  | JI11: =_xlfn.PERCENTILE.INC(Simulations!JJ:JJ,$B11) ->  | JJ11: =_xlfn.PERCENTILE.INC(Simulations!JK:JK,$B11) ->  | JK11: =_xlfn.PERCENTILE.INC(Simulations!JL:JL,$B11) ->  | JL11: =_xlfn.PERCENTILE.INC(Simulations!JM:JM,$B11) ->  | JM11: =_xlfn.PERCENTILE.INC(Simulations!JN:JN,$B11) ->  | JN11: =_xlfn.PERCENTILE.INC(Simulations!JO:JO,$B11) ->  | JO11: =_xlfn.PERCENTILE.INC(Simulations!JP:JP,$B11) ->  | JP11: =_xlfn.PERCENTILE.INC(Simulations!JQ:JQ,$B11) ->  | JQ11: =_xlfn.PERCENTILE.INC(Simulations!JR:JR,$B11) ->  | JR11: =_xlfn.PERCENTILE.INC(Simulations!JS:JS,$B11) ->  | JS11: =_xlfn.PERCENTILE.INC(Simulations!JT:JT,$B11) ->  | JT11: =_xlfn.PERCENTILE.INC(Simulations!JU:JU,$B11) ->  | JU11: =_xlfn.PERCENTILE.INC(Simulations!JV:JV,$B11) ->  | JV11: =_xlfn.PERCENTILE.INC(Simulations!JW:JW,$B11) ->  | JW11: =_xlfn.PERCENTILE.INC(Simulations!JX:JX,$B11) ->  | JX11: =_xlfn.PERCENTILE.INC(Simulations!JY:JY,$B11) ->  | JY11: =_xlfn.PERCENTILE.INC(Simulations!JZ:JZ,$B11) ->  | JZ11: =_xlfn.PERCENTILE.INC(Simulations!KA:KA,$B11) ->  | KA11: =_xlfn.PERCENTILE.INC(Simulations!KB:KB,$B11) ->  | KB11: =_xlfn.PERCENTILE.INC(Simulations!KC:KC,$B11) ->  | KC11: =_xlfn.PERCENTILE.INC(Simulations!KD:KD,$B11) ->  | KD11: =_xlfn.PERCENTILE.INC(Simulations!KE:KE,$B11) ->  | KE11: =_xlfn.PERCENTILE.INC(Simulations!KF:KF,$B11) ->  | KF11: =_xlfn.PERCENTILE.INC(Simulations!KG:KG,$B11) ->  | KG11: =_xlfn.PERCENTILE.INC(Simulations!KH:KH,$B11) ->  | KH11: =_xlfn.PERCENTILE.INC(Simulations!KI:KI,$B11) ->  | KI11: =_xlfn.PERCENTILE.INC(Simulations!KJ:KJ,$B11) ->  | KJ11: =_xlfn.PERCENTILE.INC(Simulations!KK:KK,$B11) ->  | KK11: =_xlfn.PERCENTILE.INC(Simulations!KL:KL,$B11) ->  | KL11: =_xlfn.PERCENTILE.INC(Simulations!KM:KM,$B11) ->  | KM11: =_xlfn.PERCENTILE.INC(Simulations!KN:KN,$B11) ->  | KN11: =_xlfn.PERCENTILE.INC(Simulations!KO:KO,$B11) ->  | KO11: =_xlfn.PERCENTILE.INC(Simulations!KP:KP,$B11) ->  | KP11: =_xlfn.PERCENTILE.INC(Simulations!KQ:KQ,$B11) ->  | KQ11: =_xlfn.PERCENTILE.INC(Simulations!KR:KR,$B11) ->  | KR11: =_xlfn.PERCENTILE.INC(Simulations!KS:KS,$B11) ->  | KS11: =_xlfn.PERCENTILE.INC(Simulations!KT:KT,$B11) ->  | KT11: =_xlfn.PERCENTILE.INC(Simulations!KU:KU,$B11) ->  | KU11: =_xlfn.PERCENTILE.INC(Simulations!KV:KV,$B11) ->  | KV11: =_xlfn.PERCENTILE.INC(Simulations!KW:KW,$B11) ->  | KW11: =_xlfn.PERCENTILE.INC(Simulations!KX:KX,$B11) ->  | KX11: =_xlfn.PERCENTILE.INC(Simulations!KY:KY,$B11) ->  | KY11: =_xlfn.PERCENTILE.INC(Simulations!KZ:KZ,$B11) ->  | KZ11: =_xlfn.PERCENTILE.INC(Simulations!LA:LA,$B11) ->  | LA11: =_xlfn.PERCENTILE.INC(Simulations!LB:LB,$B11) ->  | LB11: =_xlfn.PERCENTILE.INC(Simulations!LC:LC,$B11) ->  | LC11: =_xlfn.PERCENTILE.INC(Simulations!LD:LD,$B11) ->  | LD11: =_xlfn.PERCENTILE.INC(Simulations!LE:LE,$B11) ->  | LE11: =_xlfn.PERCENTILE.INC(Simulations!LF:LF,$B11) ->  | LF11: =_xlfn.PERCENTILE.INC(Simulations!LG:LG,$B11) ->  | LG11: =_xlfn.PERCENTILE.INC(Simulations!LH:LH,$B11) ->  | LH11: =_xlfn.PERCENTILE.INC(Simulations!LI:LI,$B11) ->  | LI11: =_xlfn.PERCENTILE.INC(Simulations!LJ:LJ,$B11) ->  | LJ11: =_xlfn.PERCENTILE.INC(Simulations!LK:LK,$B11) ->  | LK11: =_xlfn.PERCENTILE.INC(Simulations!LL:LL,$B11) ->  | LL11: =_xlfn.PERCENTILE.INC(Simulations!LM:LM,$B11) ->  | LM11: =_xlfn.PERCENTILE.INC(Simulations!LN:LN,$B11) ->  | LN11: =_xlfn.PERCENTILE.INC(Simulations!LO:LO,$B11) ->  | LO11: =_xlfn.PERCENTILE.INC(Simulations!LP:LP,$B11) ->  | LP11: =_xlfn.PERCENTILE.INC(Simulations!LQ:LQ,$B11) ->  | LQ11: =_xlfn.PERCENTILE.INC(Simulations!LR:LR,$B11) ->  | LR11: =_xlfn.PERCENTILE.INC(Simulations!LS:LS,$B11) ->  | LS11: =_xlfn.PERCENTILE.INC(Simulations!LT:LT,$B11) ->  | LT11: =_xlfn.PERCENTILE.INC(Simulations!LU:LU,$B11) ->  | LU11: =_xlfn.PERCENTILE.INC(Simulations!LV:LV,$B11) ->  | LV11: =_xlfn.PERCENTILE.INC(Simulations!LW:LW,$B11) ->  | LW11: =_xlfn.PERCENTILE.INC(Simulations!LX:LX,$B11) ->  | LX11: =_xlfn.PERCENTILE.INC(Simulations!LY:LY,$B11) ->  | LY11: =_xlfn.PERCENTILE.INC(Simulations!LZ:LZ,$B11) ->  | LZ11: =_xlfn.PERCENTILE.INC(Simulations!MA:MA,$B11) ->  | MA11: =_xlfn.PERCENTILE.INC(Simulations!MB:MB,$B11) ->  | MB11: =_xlfn.PERCENTILE.INC(Simulations!MC:MC,$B11) ->  | MC11: =_xlfn.PERCENTILE.INC(Simulations!MD:MD,$B11) ->  | MD11: =_xlfn.PERCENTILE.INC(Simulations!ME:ME,$B11) ->  | ME11: =_xlfn.PERCENTILE.INC(Simulations!MF:MF,$B11) ->  | MF11: =_xlfn.PERCENTILE.INC(Simulations!MG:MG,$B11) ->  | MG11: =_xlfn.PERCENTILE.INC(Simulations!MH:MH,$B11) ->  | MH11: =_xlfn.PERCENTILE.INC(Simulations!MI:MI,$B11) ->  | MI11: =_xlfn.PERCENTILE.INC(Simulations!MJ:MJ,$B11) ->  | MJ11: =_xlfn.PERCENTILE.INC(Simulations!MK:MK,$B11) ->  | MK11: =_xlfn.PERCENTILE.INC(Simulations!ML:ML,$B11) ->  | ML11: =_xlfn.PERCENTILE.INC(Simulations!MM:MM,$B11) ->  | MM11: =_xlfn.PERCENTILE.INC(Simulations!MN:MN,$B11) ->  | MN11: =_xlfn.PERCENTILE.INC(Simulations!MO:MO,$B11) ->  | MO11: =_xlfn.PERCENTILE.INC(Simulations!MP:MP,$B11) ->  | MP11: =_xlfn.PERCENTILE.INC(Simulations!MQ:MQ,$B11) ->  | MQ11: =_xlfn.PERCENTILE.INC(Simulations!MR:MR,$B11) ->  | MR11: =_xlfn.PERCENTILE.INC(Simulations!MS:MS,$B11) ->  | MS11: =_xlfn.PERCENTILE.INC(Simulations!MT:MT,$B11) ->  | MT11: =_xlfn.PERCENTILE.INC(Simulations!MU:MU,$B11) ->  | MU11: =_xlfn.PERCENTILE.INC(Simulations!MV:MV,$B11) ->  | MV11: =_xlfn.PERCENTILE.INC(Simulations!MW:MW,$B11) ->  | MW11: =_xlfn.PERCENTILE.INC(Simulations!MX:MX,$B11) ->  | MX11: =_xlfn.PERCENTILE.INC(Simulations!MY:MY,$B11) ->  | MY11: =_xlfn.PERCENTILE.INC(Simulations!MZ:MZ,$B11) ->  | MZ11: =_xlfn.PERCENTILE.INC(Simulations!NA:NA,$B11) ->  | NA11: =_xlfn.PERCENTILE.INC(Simulations!NB:NB,$B11) ->  | NB11: =_xlfn.PERCENTILE.INC(Simulations!NC:NC,$B11) ->  | NC11: =_xlfn.PERCENTILE.INC(Simulations!ND:ND,$B11) ->  | ND11: =_xlfn.PERCENTILE.INC(Simulations!NE:NE,$B11) ->  | NE11: =_xlfn.PERCENTILE.INC(Simulations!NF:NF,$B11) ->  | NF11: =_xlfn.PERCENTILE.INC(Simulations!NG:NG,$B11) ->  | NG11: =_xlfn.PERCENTILE.INC(Simulations!NH:NH,$B11) ->  | NH11: =_xlfn.PERCENTILE.INC(Simulations!NI:NI,$B11) ->  | NI11: =_xlfn.PERCENTILE.INC(Simulations!NJ:NJ,$B11) ->  | NJ11: =_xlfn.PERCENTILE.INC(Simulations!NK:NK,$B11) ->  | NK11: =_xlfn.PERCENTILE.INC(Simulations!NL:NL,$B11) ->  | NL11: =_xlfn.PERCENTILE.INC(Simulations!NM:NM,$B11) ->  | NM11: =_xlfn.PERCENTILE.INC(Simulations!NN:NN,$B11) ->  | NN11: =_xlfn.PERCENTILE.INC(Simulations!NO:NO,$B11) ->  | NO11: =_xlfn.PERCENTILE.INC(Simulations!NP:NP,$B11) ->  | NP11: =_xlfn.PERCENTILE.INC(Simulations!NQ:NQ,$B11) ->  | NQ11: =_xlfn.PERCENTILE.INC(Simulations!NR:NR,$B11) ->  | NR11: =_xlfn.PERCENTILE.INC(Simulations!NS:NS,$B11) ->  | NS11: =_xlfn.PERCENTILE.INC(Simulations!NT:NT,$B11) ->  | NT11: =_xlfn.PERCENTILE.INC(Simulations!NU:NU,$B11) ->  | NU11: =_xlfn.PERCENTILE.INC(Simulations!NV:NV,$B11) ->  | NV11: =_xlfn.PERCENTILE.INC(Simulations!NW:NW,$B11) ->  | NW11: =_xlfn.PERCENTILE.INC(Simulations!NX:NX,$B11) ->  | NX11: =_xlfn.PERCENTILE.INC(Simulations!NY:NY,$B11) ->  | NY11: =_xlfn.PERCENTILE.INC(Simulations!NZ:NZ,$B11) ->  | NZ11: =_xlfn.PERCENTILE.INC(Simulations!OA:OA,$B11) ->  | OA11: =_xlfn.PERCENTILE.INC(Simulations!OB:OB,$B11) ->  | OB11: =_xlfn.PERCENTILE.INC(Simulations!OC:OC,$B11) ->  | OC11: =_xlfn.PERCENTILE.INC(Simulations!OD:OD,$B11) ->  | OD11: =_xlfn.PERCENTILE.INC(Simulations!OE:OE,$B11) ->  | OE11: =_xlfn.PERCENTILE.INC(Simulations!OF:OF,$B11) ->  | OF11: =_xlfn.PERCENTILE.INC(Simulations!OG:OG,$B11) ->  | OG11: =_xlfn.PERCENTILE.INC(Simulations!OH:OH,$B11) ->  | OH11: =_xlfn.PERCENTILE.INC(Simulations!OI:OI,$B11) ->  | OI11: =_xlfn.PERCENTILE.INC(Simulations!OJ:OJ,$B11) ->  | OJ11: =_xlfn.PERCENTILE.INC(Simulations!OK:OK,$B11) ->  | OK11: =_xlfn.PERCENTILE.INC(Simulations!OL:OL,$B11) ->  | OL11: =_xlfn.PERCENTILE.INC(Simulations!OM:OM,$B11) ->  | OM11: =_xlfn.PERCENTILE.INC(Simulations!ON:ON,$B11) ->  | ON11: =_xlfn.PERCENTILE.INC(Simulations!OO:OO,$B11) ->  | OO11: =_xlfn.PERCENTILE.INC(Simulations!OP:OP,$B11) ->  | OP11: =_xlfn.PERCENTILE.INC(Simulations!OQ:OQ,$B11) ->  | OQ11: =_xlfn.PERCENTILE.INC(Simulations!OR:OR,$B11) ->  | OR11: =_xlfn.PERCENTILE.INC(Simulations!OS:OS,$B11) ->  | OS11: =_xlfn.PERCENTILE.INC(Simulations!OT:OT,$B11) ->  | OT11: =_xlfn.PERCENTILE.INC(Simulations!OU:OU,$B11) ->  | OU11: =_xlfn.PERCENTILE.INC(Simulations!OV:OV,$B11) ->  | OV11: =_xlfn.PERCENTILE.INC(Simulations!OW:OW,$B11) ->  | OW11: =_xlfn.PERCENTILE.INC(Simulations!OX:OX,$B11) ->  | OX11: =_xlfn.PERCENTILE.INC(Simulations!OY:OY,$B11) ->  | OY11: =_xlfn.PERCENTILE.INC(Simulations!OZ:OZ,$B11) ->  | OZ11: =_xlfn.PERCENTILE.INC(Simulations!PA:PA,$B11) ->  | PA11: =_xlfn.PERCENTILE.INC(Simulations!PB:PB,$B11) ->  | PB11: =_xlfn.PERCENTILE.INC(Simulations!PC:PC,$B11) ->  | PC11: =_xlfn.PERCENTILE.INC(Simulations!PD:PD,$B11) ->  | PD11: =_xlfn.PERCENTILE.INC(Simulations!PE:PE,$B11) ->  | PE11: =_xlfn.PERCENTILE.INC(Simulations!PF:PF,$B11) ->  | PF11: =_xlfn.PERCENTILE.INC(Simulations!PG:PG,$B11) ->  | PG11: =_xlfn.PERCENTILE.INC(Simulations!PH:PH,$B11) ->  | PH11: =_xlfn.PERCENTILE.INC(Simulations!PI:PI,$B11) ->  | PI11: =_xlfn.PERCENTILE.INC(Simulations!PJ:PJ,$B11) ->  | PJ11: =_xlfn.PERCENTILE.INC(Simulations!PK:PK,$B11) ->  | PK11: =_xlfn.PERCENTILE.INC(Simulations!PL:PL,$B11) ->  | PL11: =_xlfn.PERCENTILE.INC(Simulations!PM:PM,$B11) ->  | PM11: =_xlfn.PERCENTILE.INC(Simulations!PN:PN,$B11) ->  | PN11: =_xlfn.PERCENTILE.INC(Simulations!PO:PO,$B11) ->  | PO11: =_xlfn.PERCENTILE.INC(Simulations!PP:PP,$B11) ->  | PP11: =_xlfn.PERCENTILE.INC(Simulations!PQ:PQ,$B11) ->  | PQ11: =_xlfn.PERCENTILE.INC(Simulations!PR:PR,$B11) ->  | PR11: =_xlfn.PERCENTILE.INC(Simulations!PS:PS,$B11) ->  | PS11: =_xlfn.PERCENTILE.INC(Simulations!PT:PT,$B11) ->  | PT11: =_xlfn.PERCENTILE.INC(Simulations!PU:PU,$B11) ->  | PU11: =_xlfn.PERCENTILE.INC(Simulations!PV:PV,$B11) ->  | PV11: =_xlfn.PERCENTILE.INC(Simulations!PW:PW,$B11) ->  | PW11: =_xlfn.PERCENTILE.INC(Simulations!PX:PX,$B11) ->  | PX11: =_xlfn.PERCENTILE.INC(Simulations!PY:PY,$B11) ->  | PY11: =_xlfn.PERCENTILE.INC(Simulations!PZ:PZ,$B11) ->  | PZ11: =_xlfn.PERCENTILE.INC(Simulations!QA:QA,$B11) ->  | QA11: =_xlfn.PERCENTILE.INC(Simulations!QB:QB,$B11) ->  | QB11: =_xlfn.PERCENTILE.INC(Simulations!QC:QC,$B11) ->  | QC11: =_xlfn.PERCENTILE.INC(Simulations!QD:QD,$B11) ->  | QD11: =_xlfn.PERCENTILE.INC(Simulations!QE:QE,$B11) ->  | QE11: =_xlfn.PERCENTILE.INC(Simulations!QF:QF,$B11) ->  | QF11: =_xlfn.PERCENTILE.INC(Simulations!QG:QG,$B11) ->  | QG11: =_xlfn.PERCENTILE.INC(Simulations!QH:QH,$B11) ->  | QH11: =_xlfn.PERCENTILE.INC(Simulations!QI:QI,$B11) ->  | QI11: =_xlfn.PERCENTILE.INC(Simulations!QJ:QJ,$B11) ->  | QJ11: =_xlfn.PERCENTILE.INC(Simulations!QK:QK,$B11) ->  | QK11: =_xlfn.PERCENTILE.INC(Simulations!QL:QL,$B11) ->  | QL11: =_xlfn.PERCENTILE.INC(Simulations!QM:QM,$B11) ->  | QM11: =_xlfn.PERCENTILE.INC(Simulations!QN:QN,$B11) ->  | QN11: =_xlfn.PERCENTILE.INC(Simulations!QO:QO,$B11) ->  | QO11: =_xlfn.PERCENTILE.INC(Simulations!QP:QP,$B11) ->  | QP11: =_xlfn.PERCENTILE.INC(Simulations!QQ:QQ,$B11) ->  | QQ11: =_xlfn.PERCENTILE.INC(Simulations!QR:QR,$B11) ->  | QR11: =_xlfn.PERCENTILE.INC(Simulations!QS:QS,$B11) ->  | QS11: =_xlfn.PERCENTILE.INC(Simulations!QT:QT,$B11) ->  | QT11: =_xlfn.PERCENTILE.INC(Simulations!QU:QU,$B11) ->  | QU11: =_xlfn.PERCENTILE.INC(Simulations!QV:QV,$B11) ->  | QV11: =_xlfn.PERCENTILE.INC(Simulations!QW:QW,$B11) ->  | QW11: =_xlfn.PERCENTILE.INC(Simulations!QX:QX,$B11) ->  | QX11: =_xlfn.PERCENTILE.INC(Simulations!QY:QY,$B11) ->  | QY11: =_xlfn.PERCENTILE.INC(Simulations!QZ:QZ,$B11) ->  | QZ11: =_xlfn.PERCENTILE.INC(Simulations!RA:RA,$B11) ->  | RA11: =_xlfn.PERCENTILE.INC(Simulations!RB:RB,$B11) ->  | RB11: =_xlfn.PERCENTILE.INC(Simulations!RC:RC,$B11) ->  | RC11: =_xlfn.PERCENTILE.INC(Simulations!RD:RD,$B11) ->  | RD11: =_xlfn.PERCENTILE.INC(Simulations!RE:RE,$B11) ->  | RE11: =_xlfn.PERCENTILE.INC(Simulations!RF:RF,$B11) ->  | RF11: =_xlfn.PERCENTILE.INC(Simulations!RG:RG,$B11) ->  | RG11: =_xlfn.PERCENTILE.INC(Simulations!RH:RH,$B11) ->  | RH11: =_xlfn.PERCENTILE.INC(Simulations!RI:RI,$B11) ->  | RI11: =_xlfn.PERCENTILE.INC(Simulations!RJ:RJ,$B11) ->  | RJ11: =_xlfn.PERCENTILE.INC(Simulations!RK:RK,$B11) ->  | RK11: =_xlfn.PERCENTILE.INC(Simulations!RL:RL,$B11) ->  | RL11: =_xlfn.PERCENTILE.INC(Simulations!RM:RM,$B11) ->  | RM11: =_xlfn.PERCENTILE.INC(Simulations!RN:RN,$B11) ->  | RN11: =_xlfn.PERCENTILE.INC(Simulations!RO:RO,$B11) ->  | RO11: =_xlfn.PERCENTILE.INC(Simulations!RP:RP,$B11) ->  | RP11: =_xlfn.PERCENTILE.INC(Simulations!RQ:RQ,$B11) ->  | RQ11: =_xlfn.PERCENTILE.INC(Simulations!RR:RR,$B11) ->  | RR11: =_xlfn.PERCENTILE.INC(Simulations!RS:RS,$B11) ->  | RS11: =_xlfn.PERCENTILE.INC(Simulations!RT:RT,$B11) ->  | RT11: =_xlfn.PERCENTILE.INC(Simulations!RU:RU,$B11) ->  | RU11: =_xlfn.PERCENTILE.INC(Simulations!RV:RV,$B11) ->  | RV11: =_xlfn.PERCENTILE.INC(Simulations!RW:RW,$B11) ->  | RW11: =_xlfn.PERCENTILE.INC(Simulations!RX:RX,$B11) ->  | RX11: =_xlfn.PERCENTILE.INC(Simulations!RY:RY,$B11) ->  | RY11: =_xlfn.PERCENTILE.INC(Simulations!RZ:RZ,$B11) ->  | RZ11: =_xlfn.PERCENTILE.INC(Simulations!SA:SA,$B11) ->  | SA11: =_xlfn.PERCENTILE.INC(Simulations!SB:SB,$B11) ->  | SB11: =_xlfn.PERCENTILE.INC(Simulations!SC:SC,$B11) ->  | SC11: =_xlfn.PERCENTILE.INC(Simulations!SD:SD,$B11) ->  | SD11: =_xlfn.PERCENTILE.INC(Simulations!SE:SE,$B11) ->  | SE11: =_xlfn.PERCENTILE.INC(Simulations!SF:SF,$B11) ->  | SF11: =_xlfn.PERCENTILE.INC(Simulations!SG:SG,$B11) ->  | SG11: =_xlfn.PERCENTILE.INC(Simulations!SH:SH,$B11) ->  | SH11: =_xlfn.PERCENTILE.INC(Simulations!SI:SI,$B11) -> 
A12: PERCENTILES | B12: 0.5 | C12: =_xlfn.PERCENTILE.INC(Simulations!D:D,$B12) -> 290319.7366 | D12: =_xlfn.PERCENTILE.INC(Simulations!E:E,$B12) -> 472123.0835 | E12: =_xlfn.PERCENTILE.INC(Simulations!F:F,$B12) -> 321379.0967 | F12: =_xlfn.PERCENTILE.INC(Simulations!G:G,$B12) -> 1089152.341 | G12: =_xlfn.PERCENTILE.INC(Simulations!H:H,$B12) -> 13581.99584 | H12: =_xlfn.PERCENTILE.INC(Simulations!I:I,$B12) -> 53668.26233 | I12: =_xlfn.PERCENTILE.INC(Simulations!J:J,$B12) -> 279221.5087 | J12: =_xlfn.PERCENTILE.INC(Simulations!K:K,$B12) -> 27909.14492 | K12: =_xlfn.PERCENTILE.INC(Simulations!L:L,$B12) -> 364331.2945 | L12: =_xlfn.PERCENTILE.INC(Simulations!M:M,$B12) -> 379715.8436 | M12: =_xlfn.PERCENTILE.INC(Simulations!N:N,$B12) -> 42486.64255 | N12: =_xlfn.PERCENTILE.INC(Simulations!O:O,$B12) -> 155502.7357 | O12: =_xlfn.PERCENTILE.INC(Simulations!P:P,$B12) -> 138811.289 | P12: =_xlfn.PERCENTILE.INC(Simulations!Q:Q,$B12) -> 203477.6594 | Q12: =_xlfn.PERCENTILE.INC(Simulations!R:R,$B12) -> 496725.6939 | R12: =_xlfn.PERCENTILE.INC(Simulations!S:S,$B12) -> 538582.4105 | S12: =_xlfn.PERCENTILE.INC(Simulations!T:T,$B12) -> 10236.74856 | T12: =_xlfn.PERCENTILE.INC(Simulations!U:U,$B12) -> 42956.3862 | U12: =_xlfn.PERCENTILE.INC(Simulations!V:V,$B12) -> 240426.0682 | V12: =_xlfn.PERCENTILE.INC(Simulations!W:W,$B12) -> 0 | W12: =_xlfn.PERCENTILE.INC(Simulations!X:X,$B12) -> 282959.3886 | X12: =_xlfn.PERCENTILE.INC(Simulations!Y:Y,$B12) -> 294904.5992 | Y12: =_xlfn.PERCENTILE.INC(Simulations!Z:Z,$B12) -> 53569.69952 | Z12: =_xlfn.PERCENTILE.INC(Simulations!AA:AA,$B12) -> 197545.8849 | AA12: =_xlfn.PERCENTILE.INC(Simulations!AB:AB,$B12) -> 380495.28 | AB12: =_xlfn.PERCENTILE.INC(Simulations!AC:AC,$B12) -> 203477.6594 | AC12: =_xlfn.PERCENTILE.INC(Simulations!AD:AD,$B12) -> 780912.9218 | AD12: =_xlfn.PERCENTILE.INC(Simulations!AE:AE,$B12) -> 833716.186 | AE12: =_xlfn.PERCENTILE.INC(Simulations!AF:AF,$B12) -> 9726.221877 | AF12: =_xlfn.PERCENTILE.INC(Simulations!AG:AG,$B12) -> 33705.8029 | AG12: =_xlfn.PERCENTILE.INC(Simulations!AH:AH,$B12) -> 25438.34181 | AH12: =_xlfn.PERCENTILE.INC(Simulations!AI:AI,$B12) -> 45789.01526 | AI12: =_xlfn.PERCENTILE.INC(Simulations!AJ:AJ,$B12) -> 104933.16 | AJ12: =_xlfn.PERCENTILE.INC(Simulations!AK:AK,$B12) -> 114696.8617 | AK12: =_xlfn.PERCENTILE.INC(Simulations!AL:AL,$B12) -> 2410.629861 | AL12: =_xlfn.PERCENTILE.INC(Simulations!AM:AM,$B12) -> 9039.398994 | AM12: =_xlfn.PERCENTILE.INC(Simulations!AN:AN,$B12) -> 31126.51864 | AN12: =_xlfn.PERCENTILE.INC(Simulations!AO:AO,$B12) -> 24402.22084 | AO12: =_xlfn.PERCENTILE.INC(Simulations!AP:AP,$B12) -> 64624.65063 | AP12: =_xlfn.PERCENTILE.INC(Simulations!AQ:AQ,$B12) -> 67038.27642 | AQ12: =_xlfn.PERCENTILE.INC(Simulations!AR:AR,$B12) -> 12429.08121 | AR12: =_xlfn.PERCENTILE.INC(Simulations!AS:AS,$B12) -> 42491.36274 | AS12: =_xlfn.PERCENTILE.INC(Simulations!AT:AT,$B12) -> 56236.48524 | AT12: =_xlfn.PERCENTILE.INC(Simulations!AU:AU,$B12) -> 70104.39224 | AU12: =_xlfn.PERCENTILE.INC(Simulations!AV:AV,$B12) -> 168382.1947 | AV12: =_xlfn.PERCENTILE.INC(Simulations!AW:AW,$B12) -> 181962.8373 | AW12: =_xlfn.PERCENTILE.INC(Simulations!AX:AX,$B12) -> 67319.97037 | AX12: =_xlfn.PERCENTILE.INC(Simulations!AY:AY,$B12) -> 241586.2604 | AY12: =_xlfn.PERCENTILE.INC(Simulations!AZ:AZ,$B12) -> 438509.204 | AZ12: =_xlfn.PERCENTILE.INC(Simulations!BA:BA,$B12) -> 275919.1391 | BA12: =_xlfn.PERCENTILE.INC(Simulations!BB:BB,$B12) -> 958524.3078 | BB12: =_xlfn.PERCENTILE.INC(Simulations!BC:BC,$B12) -> 1019361.755 | BC12: =_xlfn.PERCENTILE.INC(Simulations!BD:BD,$B12) -> 30413.02802 | BD12: =_xlfn.PERCENTILE.INC(Simulations!BE:BE,$B12) -> 48124.10193 | BE12: =_xlfn.PERCENTILE.INC(Simulations!BF:BF,$B12) -> 30631.47336 | BF12: =_xlfn.PERCENTILE.INC(Simulations!BG:BG,$B12) -> 41083.24723 | BG12: =_xlfn.PERCENTILE.INC(Simulations!BH:BH,$B12) -> 123414.3732 | BH12: =_xlfn.PERCENTILE.INC(Simulations!BI:BI,$B12) -> 154895.2926 | BI12: =_xlfn.PERCENTILE.INC(Simulations!BJ:BJ,$B12) -> 5939.947472 | BJ12: =_xlfn.PERCENTILE.INC(Simulations!BK:BK,$B12) -> 7577.263074 | BK12: =_xlfn.PERCENTILE.INC(Simulations!BL:BL,$B12) -> 9627.734453 | BL12: =_xlfn.PERCENTILE.INC(Simulations!BM:BM,$B12) -> 10312.8487 | BM12: =_xlfn.PERCENTILE.INC(Simulations!BN:BN,$B12) -> 10347.40572 | BN12: =_xlfn.PERCENTILE.INC(Simulations!BO:BO,$B12) -> 1741.612242 | BO12: =_xlfn.PERCENTILE.INC(Simulations!BP:BP,$B12) -> 2714.693231 | BP12: =_xlfn.PERCENTILE.INC(Simulations!BQ:BQ,$B12) -> 4058.827175 | BQ12: =_xlfn.PERCENTILE.INC(Simulations!BR:BR,$B12) -> 5172.520493 | BR12: =_xlfn.PERCENTILE.INC(Simulations!BS:BS,$B12) -> 5155.198007 | BS12: =_xlfn.PERCENTILE.INC(Simulations!BT:BT,$B12) -> 1286.398723 | BT12: =_xlfn.PERCENTILE.INC(Simulations!BU:BU,$B12) -> 2693.809743 | BU12: =_xlfn.PERCENTILE.INC(Simulations!BV:BV,$B12) -> 3435.852811 | BV12: =_xlfn.PERCENTILE.INC(Simulations!BW:BW,$B12) -> 3366.439237 | BW12: =_xlfn.PERCENTILE.INC(Simulations!BX:BX,$B12) -> 2293.911556 | BX12: =_xlfn.PERCENTILE.INC(Simulations!BY:BY,$B12) -> 310.1159126 | BY12: =_xlfn.PERCENTILE.INC(Simulations!BZ:BZ,$B12) -> 696.4442942 | BZ12: =_xlfn.PERCENTILE.INC(Simulations!CA:CA,$B12) -> 2039.020809 | CA12: =_xlfn.PERCENTILE.INC(Simulations!CB:CB,$B12) -> 6790.629958 | CB12: =_xlfn.PERCENTILE.INC(Simulations!CC:CC,$B12) -> 0 | CC12: =_xlfn.PERCENTILE.INC(Simulations!CD:CD,$B12) -> 1622.428377 | CD12: =_xlfn.PERCENTILE.INC(Simulations!CE:CE,$B12) -> 3389.151932 | CE12: =_xlfn.PERCENTILE.INC(Simulations!CF:CF,$B12) -> 5469.437176 | CF12: =_xlfn.PERCENTILE.INC(Simulations!CG:CG,$B12) -> 10163.65529 | CG12: =_xlfn.PERCENTILE.INC(Simulations!CH:CH,$B12) -> 2293.911556 | CH12: =_xlfn.PERCENTILE.INC(Simulations!CI:CI,$B12) -> 1338.585761 | CI12: =_xlfn.PERCENTILE.INC(Simulations!CJ:CJ,$B12) -> 1338.585761 | CJ12: =_xlfn.PERCENTILE.INC(Simulations!CK:CK,$B12) -> 1338.585761 | CK12: =_xlfn.PERCENTILE.INC(Simulations!CL:CL,$B12) -> 1338.585761 | CL12: =_xlfn.PERCENTILE.INC(Simulations!CM:CM,$B12) -> 1338.585761 | CM12: =_xlfn.PERCENTILE.INC(Simulations!CN:CN,$B12) -> 635.9585453 | CN12: =_xlfn.PERCENTILE.INC(Simulations!CO:CO,$B12) -> 635.9585453 | CO12: =_xlfn.PERCENTILE.INC(Simulations!CP:CP,$B12) -> 635.9585453 | CP12: =_xlfn.PERCENTILE.INC(Simulations!CQ:CQ,$B12) -> 635.9585453 | CQ12: =_xlfn.PERCENTILE.INC(Simulations!CR:CR,$B12) -> 635.9585453 | CR12: =_xlfn.PERCENTILE.INC(Simulations!CS:CS,$B12) -> 294.7339963 | CS12: =_xlfn.PERCENTILE.INC(Simulations!CT:CT,$B12) -> 635.9585453 | CT12: =_xlfn.PERCENTILE.INC(Simulations!CU:CU,$B12) -> 635.9585453 | CU12: =_xlfn.PERCENTILE.INC(Simulations!CV:CV,$B12) -> 635.9585453 | CV12: =_xlfn.PERCENTILE.INC(Simulations!CW:CW,$B12) -> 635.9585453 | CW12: =_xlfn.PERCENTILE.INC(Simulations!CX:CX,$B12) -> 73.04938972 | CX12: =_xlfn.PERCENTILE.INC(Simulations!CY:CY,$B12) -> 163.4096997 | CY12: =_xlfn.PERCENTILE.INC(Simulations!CZ:CZ,$B12) -> 303.3620148 | CZ12: =_xlfn.PERCENTILE.INC(Simulations!DA:DA,$B12) -> 896.2167683 | DA12: =_xlfn.PERCENTILE.INC(Simulations!DB:DB,$B12) -> 338.9197339 | DB12: =_xlfn.PERCENTILE.INC(Simulations!DC:DC,$B12) -> 376.6388245 | DC12: =_xlfn.PERCENTILE.INC(Simulations!DD:DD,$B12) -> 795.1850176 | DD12: =_xlfn.PERCENTILE.INC(Simulations!DE:DE,$B12) -> 933.8077406 | DE12: =_xlfn.PERCENTILE.INC(Simulations!DF:DF,$B12) -> 1524.08233 | DF12: =_xlfn.PERCENTILE.INC(Simulations!DG:DG,$B12) -> 973.6721145 | DG12: =_xlfn.PERCENTILE.INC(Simulations!DH:DH,$B12) -> 6678.319661 | DH12: =_xlfn.PERCENTILE.INC(Simulations!DI:DI,$B12) -> 7212.585234 | DI12: =_xlfn.PERCENTILE.INC(Simulations!DJ:DJ,$B12) -> 7153.753227 | DJ12: =_xlfn.PERCENTILE.INC(Simulations!DK:DK,$B12) -> 6907.072082 | DK12: =_xlfn.PERCENTILE.INC(Simulations!DL:DL,$B12) -> 8140.47781 | DL12: =_xlfn.PERCENTILE.INC(Simulations!DM:DM,$B12) -> 889.5793381 | DM12: =_xlfn.PERCENTILE.INC(Simulations!DN:DN,$B12) -> 871.502048 | DN12: =_xlfn.PERCENTILE.INC(Simulations!DO:DO,$B12) -> 703.2045708 | DO12: =_xlfn.PERCENTILE.INC(Simulations!DP:DP,$B12) -> 551.9534947 | DP12: =_xlfn.PERCENTILE.INC(Simulations!DQ:DQ,$B12) -> 378.2410016 | DQ12: =_xlfn.PERCENTILE.INC(Simulations!DR:DR,$B12) -> 4007.551829 | DR12: =_xlfn.PERCENTILE.INC(Simulations!DS:DS,$B12) -> 4007.551829 | DS12: =_xlfn.PERCENTILE.INC(Simulations!DT:DT,$B12) -> 4106.373042 | DT12: =_xlfn.PERCENTILE.INC(Simulations!DU:DU,$B12) -> 3696.353299 | DU12: =_xlfn.PERCENTILE.INC(Simulations!DV:DV,$B12) -> 3696.353299 | DV12: =_xlfn.PERCENTILE.INC(Simulations!DW:DW,$B12) -> 2188057.135 | DW12: =_xlfn.PERCENTILE.INC(Simulations!DX:DX,$B12) -> 1411967.534 | DX12: =_xlfn.PERCENTILE.INC(Simulations!DY:DY,$B12) -> 3612121.187 | DY12: =_xlfn.PERCENTILE.INC(Simulations!DZ:DZ,$B12) -> 1713551.507 | DZ12: =_xlfn.PERCENTILE.INC(Simulations!EA:EA,$B12) -> 918365.8362 | EA12: =_xlfn.PERCENTILE.INC(Simulations!EB:EB,$B12) -> 798247.98 | EB12: =_xlfn.PERCENTILE.INC(Simulations!EC:EC,$B12) -> 1365155.317 | EC12: =_xlfn.PERCENTILE.INC(Simulations!ED:ED,$B12) -> 1717581.745 | ED12: =_xlfn.PERCENTILE.INC(Simulations!EE:EE,$B12) ->  | EE12: =_xlfn.PERCENTILE.INC(Simulations!EF:EF,$B12) ->  | EF12: =_xlfn.PERCENTILE.INC(Simulations!EG:EG,$B12) ->  | EG12: =_xlfn.PERCENTILE.INC(Simulations!EH:EH,$B12) ->  | EH12: =_xlfn.PERCENTILE.INC(Simulations!EI:EI,$B12) ->  | EI12: =_xlfn.PERCENTILE.INC(Simulations!EJ:EJ,$B12) ->  | EJ12: =_xlfn.PERCENTILE.INC(Simulations!EK:EK,$B12) ->  | EK12: =_xlfn.PERCENTILE.INC(Simulations!EL:EL,$B12) ->  | EL12: =_xlfn.PERCENTILE.INC(Simulations!EM:EM,$B12) ->  | EM12: =_xlfn.PERCENTILE.INC(Simulations!EN:EN,$B12) ->  | EN12: =_xlfn.PERCENTILE.INC(Simulations!EO:EO,$B12) ->  | EO12: =_xlfn.PERCENTILE.INC(Simulations!EP:EP,$B12) ->  | EP12: =_xlfn.PERCENTILE.INC(Simulations!EQ:EQ,$B12) ->  | EQ12: =_xlfn.PERCENTILE.INC(Simulations!ER:ER,$B12) ->  | ER12: =_xlfn.PERCENTILE.INC(Simulations!ES:ES,$B12) ->  | ES12: =_xlfn.PERCENTILE.INC(Simulations!ET:ET,$B12) ->  | ET12: =_xlfn.PERCENTILE.INC(Simulations!EU:EU,$B12) ->  | EU12: =_xlfn.PERCENTILE.INC(Simulations!EV:EV,$B12) ->  | EV12: =_xlfn.PERCENTILE.INC(Simulations!EW:EW,$B12) ->  | EW12: =_xlfn.PERCENTILE.INC(Simulations!EX:EX,$B12) ->  | EX12: =_xlfn.PERCENTILE.INC(Simulations!EY:EY,$B12) ->  | EY12: =_xlfn.PERCENTILE.INC(Simulations!EZ:EZ,$B12) ->  | EZ12: =_xlfn.PERCENTILE.INC(Simulations!FA:FA,$B12) ->  | FA12: =_xlfn.PERCENTILE.INC(Simulations!FB:FB,$B12) ->  | FB12: =_xlfn.PERCENTILE.INC(Simulations!FC:FC,$B12) ->  | FC12: =_xlfn.PERCENTILE.INC(Simulations!FD:FD,$B12) ->  | FD12: =_xlfn.PERCENTILE.INC(Simulations!FE:FE,$B12) ->  | FE12: =_xlfn.PERCENTILE.INC(Simulations!FF:FF,$B12) ->  | FF12: =_xlfn.PERCENTILE.INC(Simulations!FG:FG,$B12) ->  | FG12: =_xlfn.PERCENTILE.INC(Simulations!FH:FH,$B12) ->  | FH12: =_xlfn.PERCENTILE.INC(Simulations!FI:FI,$B12) ->  | FI12: =_xlfn.PERCENTILE.INC(Simulations!FJ:FJ,$B12) ->  | FJ12: =_xlfn.PERCENTILE.INC(Simulations!FK:FK,$B12) ->  | FK12: =_xlfn.PERCENTILE.INC(Simulations!FL:FL,$B12) ->  | FL12: =_xlfn.PERCENTILE.INC(Simulations!FM:FM,$B12) ->  | FM12: =_xlfn.PERCENTILE.INC(Simulations!FN:FN,$B12) ->  | FN12: =_xlfn.PERCENTILE.INC(Simulations!FO:FO,$B12) ->  | FO12: =_xlfn.PERCENTILE.INC(Simulations!FP:FP,$B12) ->  | FP12: =_xlfn.PERCENTILE.INC(Simulations!FQ:FQ,$B12) ->  | FQ12: =_xlfn.PERCENTILE.INC(Simulations!FR:FR,$B12) ->  | FR12: =_xlfn.PERCENTILE.INC(Simulations!FS:FS,$B12) ->  | FS12: =_xlfn.PERCENTILE.INC(Simulations!FT:FT,$B12) ->  | FT12: =_xlfn.PERCENTILE.INC(Simulations!FU:FU,$B12) ->  | FU12: =_xlfn.PERCENTILE.INC(Simulations!FV:FV,$B12) ->  | FV12: =_xlfn.PERCENTILE.INC(Simulations!FW:FW,$B12) ->  | FW12: =_xlfn.PERCENTILE.INC(Simulations!FX:FX,$B12) ->  | FX12: =_xlfn.PERCENTILE.INC(Simulations!FY:FY,$B12) ->  | FY12: =_xlfn.PERCENTILE.INC(Simulations!FZ:FZ,$B12) ->  | FZ12: =_xlfn.PERCENTILE.INC(Simulations!GA:GA,$B12) ->  | GA12: =_xlfn.PERCENTILE.INC(Simulations!GB:GB,$B12) ->  | GB12: =_xlfn.PERCENTILE.INC(Simulations!GC:GC,$B12) ->  | GC12: =_xlfn.PERCENTILE.INC(Simulations!GD:GD,$B12) ->  | GD12: =_xlfn.PERCENTILE.INC(Simulations!GE:GE,$B12) ->  | GE12: =_xlfn.PERCENTILE.INC(Simulations!GF:GF,$B12) ->  | GF12: =_xlfn.PERCENTILE.INC(Simulations!GG:GG,$B12) ->  | GG12: =_xlfn.PERCENTILE.INC(Simulations!GH:GH,$B12) ->  | GH12: =_xlfn.PERCENTILE.INC(Simulations!GI:GI,$B12) ->  | GI12: =_xlfn.PERCENTILE.INC(Simulations!GJ:GJ,$B12) ->  | GJ12: =_xlfn.PERCENTILE.INC(Simulations!GK:GK,$B12) ->  | GK12: =_xlfn.PERCENTILE.INC(Simulations!GL:GL,$B12) ->  | GL12: =_xlfn.PERCENTILE.INC(Simulations!GM:GM,$B12) ->  | GM12: =_xlfn.PERCENTILE.INC(Simulations!GN:GN,$B12) ->  | GN12: =_xlfn.PERCENTILE.INC(Simulations!GO:GO,$B12) ->  | GO12: =_xlfn.PERCENTILE.INC(Simulations!GP:GP,$B12) ->  | GP12: =_xlfn.PERCENTILE.INC(Simulations!GQ:GQ,$B12) ->  | GQ12: =_xlfn.PERCENTILE.INC(Simulations!GR:GR,$B12) ->  | GR12: =_xlfn.PERCENTILE.INC(Simulations!GS:GS,$B12) ->  | GS12: =_xlfn.PERCENTILE.INC(Simulations!GT:GT,$B12) ->  | GT12: =_xlfn.PERCENTILE.INC(Simulations!GU:GU,$B12) ->  | GU12: =_xlfn.PERCENTILE.INC(Simulations!GV:GV,$B12) ->  | GV12: =_xlfn.PERCENTILE.INC(Simulations!GW:GW,$B12) ->  | GW12: =_xlfn.PERCENTILE.INC(Simulations!GX:GX,$B12) ->  | GX12: =_xlfn.PERCENTILE.INC(Simulations!GY:GY,$B12) ->  | GY12: =_xlfn.PERCENTILE.INC(Simulations!GZ:GZ,$B12) ->  | GZ12: =_xlfn.PERCENTILE.INC(Simulations!HA:HA,$B12) ->  | HA12: =_xlfn.PERCENTILE.INC(Simulations!HB:HB,$B12) ->  | HB12: =_xlfn.PERCENTILE.INC(Simulations!HC:HC,$B12) ->  | HC12: =_xlfn.PERCENTILE.INC(Simulations!HD:HD,$B12) ->  | HD12: =_xlfn.PERCENTILE.INC(Simulations!HE:HE,$B12) ->  | HE12: =_xlfn.PERCENTILE.INC(Simulations!HF:HF,$B12) ->  | HF12: =_xlfn.PERCENTILE.INC(Simulations!HG:HG,$B12) ->  | HG12: =_xlfn.PERCENTILE.INC(Simulations!HH:HH,$B12) ->  | HH12: =_xlfn.PERCENTILE.INC(Simulations!HI:HI,$B12) ->  | HI12: =_xlfn.PERCENTILE.INC(Simulations!HJ:HJ,$B12) ->  | HJ12: =_xlfn.PERCENTILE.INC(Simulations!HK:HK,$B12) ->  | HK12: =_xlfn.PERCENTILE.INC(Simulations!HL:HL,$B12) ->  | HL12: =_xlfn.PERCENTILE.INC(Simulations!HM:HM,$B12) ->  | HM12: =_xlfn.PERCENTILE.INC(Simulations!HN:HN,$B12) ->  | HN12: =_xlfn.PERCENTILE.INC(Simulations!HO:HO,$B12) ->  | HO12: =_xlfn.PERCENTILE.INC(Simulations!HP:HP,$B12) ->  | HP12: =_xlfn.PERCENTILE.INC(Simulations!HQ:HQ,$B12) ->  | HQ12: =_xlfn.PERCENTILE.INC(Simulations!HR:HR,$B12) ->  | HR12: =_xlfn.PERCENTILE.INC(Simulations!HS:HS,$B12) ->  | HS12: =_xlfn.PERCENTILE.INC(Simulations!HT:HT,$B12) ->  | HT12: =_xlfn.PERCENTILE.INC(Simulations!HU:HU,$B12) ->  | HU12: =_xlfn.PERCENTILE.INC(Simulations!HV:HV,$B12) ->  | HV12: =_xlfn.PERCENTILE.INC(Simulations!HW:HW,$B12) ->  | HW12: =_xlfn.PERCENTILE.INC(Simulations!HX:HX,$B12) ->  | HX12: =_xlfn.PERCENTILE.INC(Simulations!HY:HY,$B12) ->  | HY12: =_xlfn.PERCENTILE.INC(Simulations!HZ:HZ,$B12) ->  | HZ12: =_xlfn.PERCENTILE.INC(Simulations!IA:IA,$B12) ->  | IA12: =_xlfn.PERCENTILE.INC(Simulations!IB:IB,$B12) ->  | IB12: =_xlfn.PERCENTILE.INC(Simulations!IC:IC,$B12) ->  | IC12: =_xlfn.PERCENTILE.INC(Simulations!ID:ID,$B12) ->  | ID12: =_xlfn.PERCENTILE.INC(Simulations!IE:IE,$B12) ->  | IE12: =_xlfn.PERCENTILE.INC(Simulations!IF:IF,$B12) ->  | IF12: =_xlfn.PERCENTILE.INC(Simulations!IG:IG,$B12) ->  | IG12: =_xlfn.PERCENTILE.INC(Simulations!IH:IH,$B12) ->  | IH12: =_xlfn.PERCENTILE.INC(Simulations!II:II,$B12) ->  | II12: =_xlfn.PERCENTILE.INC(Simulations!IJ:IJ,$B12) ->  | IJ12: =_xlfn.PERCENTILE.INC(Simulations!IK:IK,$B12) ->  | IK12: =_xlfn.PERCENTILE.INC(Simulations!IL:IL,$B12) ->  | IL12: =_xlfn.PERCENTILE.INC(Simulations!IM:IM,$B12) ->  | IM12: =_xlfn.PERCENTILE.INC(Simulations!IN:IN,$B12) ->  | IN12: =_xlfn.PERCENTILE.INC(Simulations!IO:IO,$B12) ->  | IO12: =_xlfn.PERCENTILE.INC(Simulations!IP:IP,$B12) ->  | IP12: =_xlfn.PERCENTILE.INC(Simulations!IQ:IQ,$B12) ->  | IQ12: =_xlfn.PERCENTILE.INC(Simulations!IR:IR,$B12) ->  | IR12: =_xlfn.PERCENTILE.INC(Simulations!IS:IS,$B12) ->  | IS12: =_xlfn.PERCENTILE.INC(Simulations!IT:IT,$B12) ->  | IT12: =_xlfn.PERCENTILE.INC(Simulations!IU:IU,$B12) ->  | IU12: =_xlfn.PERCENTILE.INC(Simulations!IV:IV,$B12) ->  | IV12: =_xlfn.PERCENTILE.INC(Simulations!IW:IW,$B12) ->  | IW12: =_xlfn.PERCENTILE.INC(Simulations!IX:IX,$B12) ->  | IX12: =_xlfn.PERCENTILE.INC(Simulations!IY:IY,$B12) ->  | IY12: =_xlfn.PERCENTILE.INC(Simulations!IZ:IZ,$B12) ->  | IZ12: =_xlfn.PERCENTILE.INC(Simulations!JA:JA,$B12) ->  | JA12: =_xlfn.PERCENTILE.INC(Simulations!JB:JB,$B12) ->  | JB12: =_xlfn.PERCENTILE.INC(Simulations!JC:JC,$B12) ->  | JC12: =_xlfn.PERCENTILE.INC(Simulations!JD:JD,$B12) ->  | JD12: =_xlfn.PERCENTILE.INC(Simulations!JE:JE,$B12) ->  | JE12: =_xlfn.PERCENTILE.INC(Simulations!JF:JF,$B12) ->  | JF12: =_xlfn.PERCENTILE.INC(Simulations!JG:JG,$B12) ->  | JG12: =_xlfn.PERCENTILE.INC(Simulations!JH:JH,$B12) ->  | JH12: =_xlfn.PERCENTILE.INC(Simulations!JI:JI,$B12) ->  | JI12: =_xlfn.PERCENTILE.INC(Simulations!JJ:JJ,$B12) ->  | JJ12: =_xlfn.PERCENTILE.INC(Simulations!JK:JK,$B12) ->  | JK12: =_xlfn.PERCENTILE.INC(Simulations!JL:JL,$B12) ->  | JL12: =_xlfn.PERCENTILE.INC(Simulations!JM:JM,$B12) ->  | JM12: =_xlfn.PERCENTILE.INC(Simulations!JN:JN,$B12) ->  | JN12: =_xlfn.PERCENTILE.INC(Simulations!JO:JO,$B12) ->  | JO12: =_xlfn.PERCENTILE.INC(Simulations!JP:JP,$B12) ->  | JP12: =_xlfn.PERCENTILE.INC(Simulations!JQ:JQ,$B12) ->  | JQ12: =_xlfn.PERCENTILE.INC(Simulations!JR:JR,$B12) ->  | JR12: =_xlfn.PERCENTILE.INC(Simulations!JS:JS,$B12) ->  | JS12: =_xlfn.PERCENTILE.INC(Simulations!JT:JT,$B12) ->  | JT12: =_xlfn.PERCENTILE.INC(Simulations!JU:JU,$B12) ->  | JU12: =_xlfn.PERCENTILE.INC(Simulations!JV:JV,$B12) ->  | JV12: =_xlfn.PERCENTILE.INC(Simulations!JW:JW,$B12) ->  | JW12: =_xlfn.PERCENTILE.INC(Simulations!JX:JX,$B12) ->  | JX12: =_xlfn.PERCENTILE.INC(Simulations!JY:JY,$B12) ->  | JY12: =_xlfn.PERCENTILE.INC(Simulations!JZ:JZ,$B12) ->  | JZ12: =_xlfn.PERCENTILE.INC(Simulations!KA:KA,$B12) ->  | KA12: =_xlfn.PERCENTILE.INC(Simulations!KB:KB,$B12) ->  | KB12: =_xlfn.PERCENTILE.INC(Simulations!KC:KC,$B12) ->  | KC12: =_xlfn.PERCENTILE.INC(Simulations!KD:KD,$B12) ->  | KD12: =_xlfn.PERCENTILE.INC(Simulations!KE:KE,$B12) ->  | KE12: =_xlfn.PERCENTILE.INC(Simulations!KF:KF,$B12) ->  | KF12: =_xlfn.PERCENTILE.INC(Simulations!KG:KG,$B12) ->  | KG12: =_xlfn.PERCENTILE.INC(Simulations!KH:KH,$B12) ->  | KH12: =_xlfn.PERCENTILE.INC(Simulations!KI:KI,$B12) ->  | KI12: =_xlfn.PERCENTILE.INC(Simulations!KJ:KJ,$B12) ->  | KJ12: =_xlfn.PERCENTILE.INC(Simulations!KK:KK,$B12) ->  | KK12: =_xlfn.PERCENTILE.INC(Simulations!KL:KL,$B12) ->  | KL12: =_xlfn.PERCENTILE.INC(Simulations!KM:KM,$B12) ->  | KM12: =_xlfn.PERCENTILE.INC(Simulations!KN:KN,$B12) ->  | KN12: =_xlfn.PERCENTILE.INC(Simulations!KO:KO,$B12) ->  | KO12: =_xlfn.PERCENTILE.INC(Simulations!KP:KP,$B12) ->  | KP12: =_xlfn.PERCENTILE.INC(Simulations!KQ:KQ,$B12) ->  | KQ12: =_xlfn.PERCENTILE.INC(Simulations!KR:KR,$B12) ->  | KR12: =_xlfn.PERCENTILE.INC(Simulations!KS:KS,$B12) ->  | KS12: =_xlfn.PERCENTILE.INC(Simulations!KT:KT,$B12) ->  | KT12: =_xlfn.PERCENTILE.INC(Simulations!KU:KU,$B12) ->  | KU12: =_xlfn.PERCENTILE.INC(Simulations!KV:KV,$B12) ->  | KV12: =_xlfn.PERCENTILE.INC(Simulations!KW:KW,$B12) ->  | KW12: =_xlfn.PERCENTILE.INC(Simulations!KX:KX,$B12) ->  | KX12: =_xlfn.PERCENTILE.INC(Simulations!KY:KY,$B12) ->  | KY12: =_xlfn.PERCENTILE.INC(Simulations!KZ:KZ,$B12) ->  | KZ12: =_xlfn.PERCENTILE.INC(Simulations!LA:LA,$B12) ->  | LA12: =_xlfn.PERCENTILE.INC(Simulations!LB:LB,$B12) ->  | LB12: =_xlfn.PERCENTILE.INC(Simulations!LC:LC,$B12) ->  | LC12: =_xlfn.PERCENTILE.INC(Simulations!LD:LD,$B12) ->  | LD12: =_xlfn.PERCENTILE.INC(Simulations!LE:LE,$B12) ->  | LE12: =_xlfn.PERCENTILE.INC(Simulations!LF:LF,$B12) ->  | LF12: =_xlfn.PERCENTILE.INC(Simulations!LG:LG,$B12) ->  | LG12: =_xlfn.PERCENTILE.INC(Simulations!LH:LH,$B12) ->  | LH12: =_xlfn.PERCENTILE.INC(Simulations!LI:LI,$B12) ->  | LI12: =_xlfn.PERCENTILE.INC(Simulations!LJ:LJ,$B12) ->  | LJ12: =_xlfn.PERCENTILE.INC(Simulations!LK:LK,$B12) ->  | LK12: =_xlfn.PERCENTILE.INC(Simulations!LL:LL,$B12) ->  | LL12: =_xlfn.PERCENTILE.INC(Simulations!LM:LM,$B12) ->  | LM12: =_xlfn.PERCENTILE.INC(Simulations!LN:LN,$B12) ->  | LN12: =_xlfn.PERCENTILE.INC(Simulations!LO:LO,$B12) ->  | LO12: =_xlfn.PERCENTILE.INC(Simulations!LP:LP,$B12) ->  | LP12: =_xlfn.PERCENTILE.INC(Simulations!LQ:LQ,$B12) ->  | LQ12: =_xlfn.PERCENTILE.INC(Simulations!LR:LR,$B12) ->  | LR12: =_xlfn.PERCENTILE.INC(Simulations!LS:LS,$B12) ->  | LS12: =_xlfn.PERCENTILE.INC(Simulations!LT:LT,$B12) ->  | LT12: =_xlfn.PERCENTILE.INC(Simulations!LU:LU,$B12) ->  | LU12: =_xlfn.PERCENTILE.INC(Simulations!LV:LV,$B12) ->  | LV12: =_xlfn.PERCENTILE.INC(Simulations!LW:LW,$B12) ->  | LW12: =_xlfn.PERCENTILE.INC(Simulations!LX:LX,$B12) ->  | LX12: =_xlfn.PERCENTILE.INC(Simulations!LY:LY,$B12) ->  | LY12: =_xlfn.PERCENTILE.INC(Simulations!LZ:LZ,$B12) ->  | LZ12: =_xlfn.PERCENTILE.INC(Simulations!MA:MA,$B12) ->  | MA12: =_xlfn.PERCENTILE.INC(Simulations!MB:MB,$B12) ->  | MB12: =_xlfn.PERCENTILE.INC(Simulations!MC:MC,$B12) ->  | MC12: =_xlfn.PERCENTILE.INC(Simulations!MD:MD,$B12) ->  | MD12: =_xlfn.PERCENTILE.INC(Simulations!ME:ME,$B12) ->  | ME12: =_xlfn.PERCENTILE.INC(Simulations!MF:MF,$B12) ->  | MF12: =_xlfn.PERCENTILE.INC(Simulations!MG:MG,$B12) ->  | MG12: =_xlfn.PERCENTILE.INC(Simulations!MH:MH,$B12) ->  | MH12: =_xlfn.PERCENTILE.INC(Simulations!MI:MI,$B12) ->  | MI12: =_xlfn.PERCENTILE.INC(Simulations!MJ:MJ,$B12) ->  | MJ12: =_xlfn.PERCENTILE.INC(Simulations!MK:MK,$B12) ->  | MK12: =_xlfn.PERCENTILE.INC(Simulations!ML:ML,$B12) ->  | ML12: =_xlfn.PERCENTILE.INC(Simulations!MM:MM,$B12) ->  | MM12: =_xlfn.PERCENTILE.INC(Simulations!MN:MN,$B12) ->  | MN12: =_xlfn.PERCENTILE.INC(Simulations!MO:MO,$B12) ->  | MO12: =_xlfn.PERCENTILE.INC(Simulations!MP:MP,$B12) ->  | MP12: =_xlfn.PERCENTILE.INC(Simulations!MQ:MQ,$B12) ->  | MQ12: =_xlfn.PERCENTILE.INC(Simulations!MR:MR,$B12) ->  | MR12: =_xlfn.PERCENTILE.INC(Simulations!MS:MS,$B12) ->  | MS12: =_xlfn.PERCENTILE.INC(Simulations!MT:MT,$B12) ->  | MT12: =_xlfn.PERCENTILE.INC(Simulations!MU:MU,$B12) ->  | MU12: =_xlfn.PERCENTILE.INC(Simulations!MV:MV,$B12) ->  | MV12: =_xlfn.PERCENTILE.INC(Simulations!MW:MW,$B12) ->  | MW12: =_xlfn.PERCENTILE.INC(Simulations!MX:MX,$B12) ->  | MX12: =_xlfn.PERCENTILE.INC(Simulations!MY:MY,$B12) ->  | MY12: =_xlfn.PERCENTILE.INC(Simulations!MZ:MZ,$B12) ->  | MZ12: =_xlfn.PERCENTILE.INC(Simulations!NA:NA,$B12) ->  | NA12: =_xlfn.PERCENTILE.INC(Simulations!NB:NB,$B12) ->  | NB12: =_xlfn.PERCENTILE.INC(Simulations!NC:NC,$B12) ->  | NC12: =_xlfn.PERCENTILE.INC(Simulations!ND:ND,$B12) ->  | ND12: =_xlfn.PERCENTILE.INC(Simulations!NE:NE,$B12) ->  | NE12: =_xlfn.PERCENTILE.INC(Simulations!NF:NF,$B12) ->  | NF12: =_xlfn.PERCENTILE.INC(Simulations!NG:NG,$B12) ->  | NG12: =_xlfn.PERCENTILE.INC(Simulations!NH:NH,$B12) ->  | NH12: =_xlfn.PERCENTILE.INC(Simulations!NI:NI,$B12) ->  | NI12: =_xlfn.PERCENTILE.INC(Simulations!NJ:NJ,$B12) ->  | NJ12: =_xlfn.PERCENTILE.INC(Simulations!NK:NK,$B12) ->  | NK12: =_xlfn.PERCENTILE.INC(Simulations!NL:NL,$B12) ->  | NL12: =_xlfn.PERCENTILE.INC(Simulations!NM:NM,$B12) ->  | NM12: =_xlfn.PERCENTILE.INC(Simulations!NN:NN,$B12) ->  | NN12: =_xlfn.PERCENTILE.INC(Simulations!NO:NO,$B12) ->  | NO12: =_xlfn.PERCENTILE.INC(Simulations!NP:NP,$B12) ->  | NP12: =_xlfn.PERCENTILE.INC(Simulations!NQ:NQ,$B12) ->  | NQ12: =_xlfn.PERCENTILE.INC(Simulations!NR:NR,$B12) ->  | NR12: =_xlfn.PERCENTILE.INC(Simulations!NS:NS,$B12) ->  | NS12: =_xlfn.PERCENTILE.INC(Simulations!NT:NT,$B12) ->  | NT12: =_xlfn.PERCENTILE.INC(Simulations!NU:NU,$B12) ->  | NU12: =_xlfn.PERCENTILE.INC(Simulations!NV:NV,$B12) ->  | NV12: =_xlfn.PERCENTILE.INC(Simulations!NW:NW,$B12) ->  | NW12: =_xlfn.PERCENTILE.INC(Simulations!NX:NX,$B12) ->  | NX12: =_xlfn.PERCENTILE.INC(Simulations!NY:NY,$B12) ->  | NY12: =_xlfn.PERCENTILE.INC(Simulations!NZ:NZ,$B12) ->  | NZ12: =_xlfn.PERCENTILE.INC(Simulations!OA:OA,$B12) ->  | OA12: =_xlfn.PERCENTILE.INC(Simulations!OB:OB,$B12) ->  | OB12: =_xlfn.PERCENTILE.INC(Simulations!OC:OC,$B12) ->  | OC12: =_xlfn.PERCENTILE.INC(Simulations!OD:OD,$B12) ->  | OD12: =_xlfn.PERCENTILE.INC(Simulations!OE:OE,$B12) ->  | OE12: =_xlfn.PERCENTILE.INC(Simulations!OF:OF,$B12) ->  | OF12: =_xlfn.PERCENTILE.INC(Simulations!OG:OG,$B12) ->  | OG12: =_xlfn.PERCENTILE.INC(Simulations!OH:OH,$B12) ->  | OH12: =_xlfn.PERCENTILE.INC(Simulations!OI:OI,$B12) ->  | OI12: =_xlfn.PERCENTILE.INC(Simulations!OJ:OJ,$B12) ->  | OJ12: =_xlfn.PERCENTILE.INC(Simulations!OK:OK,$B12) ->  | OK12: =_xlfn.PERCENTILE.INC(Simulations!OL:OL,$B12) ->  | OL12: =_xlfn.PERCENTILE.INC(Simulations!OM:OM,$B12) ->  | OM12: =_xlfn.PERCENTILE.INC(Simulations!ON:ON,$B12) ->  | ON12: =_xlfn.PERCENTILE.INC(Simulations!OO:OO,$B12) ->  | OO12: =_xlfn.PERCENTILE.INC(Simulations!OP:OP,$B12) ->  | OP12: =_xlfn.PERCENTILE.INC(Simulations!OQ:OQ,$B12) ->  | OQ12: =_xlfn.PERCENTILE.INC(Simulations!OR:OR,$B12) ->  | OR12: =_xlfn.PERCENTILE.INC(Simulations!OS:OS,$B12) ->  | OS12: =_xlfn.PERCENTILE.INC(Simulations!OT:OT,$B12) ->  | OT12: =_xlfn.PERCENTILE.INC(Simulations!OU:OU,$B12) ->  | OU12: =_xlfn.PERCENTILE.INC(Simulations!OV:OV,$B12) ->  | OV12: =_xlfn.PERCENTILE.INC(Simulations!OW:OW,$B12) ->  | OW12: =_xlfn.PERCENTILE.INC(Simulations!OX:OX,$B12) ->  | OX12: =_xlfn.PERCENTILE.INC(Simulations!OY:OY,$B12) ->  | OY12: =_xlfn.PERCENTILE.INC(Simulations!OZ:OZ,$B12) ->  | OZ12: =_xlfn.PERCENTILE.INC(Simulations!PA:PA,$B12) ->  | PA12: =_xlfn.PERCENTILE.INC(Simulations!PB:PB,$B12) ->  | PB12: =_xlfn.PERCENTILE.INC(Simulations!PC:PC,$B12) ->  | PC12: =_xlfn.PERCENTILE.INC(Simulations!PD:PD,$B12) ->  | PD12: =_xlfn.PERCENTILE.INC(Simulations!PE:PE,$B12) ->  | PE12: =_xlfn.PERCENTILE.INC(Simulations!PF:PF,$B12) ->  | PF12: =_xlfn.PERCENTILE.INC(Simulations!PG:PG,$B12) ->  | PG12: =_xlfn.PERCENTILE.INC(Simulations!PH:PH,$B12) ->  | PH12: =_xlfn.PERCENTILE.INC(Simulations!PI:PI,$B12) ->  | PI12: =_xlfn.PERCENTILE.INC(Simulations!PJ:PJ,$B12) ->  | PJ12: =_xlfn.PERCENTILE.INC(Simulations!PK:PK,$B12) ->  | PK12: =_xlfn.PERCENTILE.INC(Simulations!PL:PL,$B12) ->  | PL12: =_xlfn.PERCENTILE.INC(Simulations!PM:PM,$B12) ->  | PM12: =_xlfn.PERCENTILE.INC(Simulations!PN:PN,$B12) ->  | PN12: =_xlfn.PERCENTILE.INC(Simulations!PO:PO,$B12) ->  | PO12: =_xlfn.PERCENTILE.INC(Simulations!PP:PP,$B12) ->  | PP12: =_xlfn.PERCENTILE.INC(Simulations!PQ:PQ,$B12) ->  | PQ12: =_xlfn.PERCENTILE.INC(Simulations!PR:PR,$B12) ->  | PR12: =_xlfn.PERCENTILE.INC(Simulations!PS:PS,$B12) ->  | PS12: =_xlfn.PERCENTILE.INC(Simulations!PT:PT,$B12) ->  | PT12: =_xlfn.PERCENTILE.INC(Simulations!PU:PU,$B12) ->  | PU12: =_xlfn.PERCENTILE.INC(Simulations!PV:PV,$B12) ->  | PV12: =_xlfn.PERCENTILE.INC(Simulations!PW:PW,$B12) ->  | PW12: =_xlfn.PERCENTILE.INC(Simulations!PX:PX,$B12) ->  | PX12: =_xlfn.PERCENTILE.INC(Simulations!PY:PY,$B12) ->  | PY12: =_xlfn.PERCENTILE.INC(Simulations!PZ:PZ,$B12) ->  | PZ12: =_xlfn.PERCENTILE.INC(Simulations!QA:QA,$B12) ->  | QA12: =_xlfn.PERCENTILE.INC(Simulations!QB:QB,$B12) ->  | QB12: =_xlfn.PERCENTILE.INC(Simulations!QC:QC,$B12) ->  | QC12: =_xlfn.PERCENTILE.INC(Simulations!QD:QD,$B12) ->  | QD12: =_xlfn.PERCENTILE.INC(Simulations!QE:QE,$B12) ->  | QE12: =_xlfn.PERCENTILE.INC(Simulations!QF:QF,$B12) ->  | QF12: =_xlfn.PERCENTILE.INC(Simulations!QG:QG,$B12) ->  | QG12: =_xlfn.PERCENTILE.INC(Simulations!QH:QH,$B12) ->  | QH12: =_xlfn.PERCENTILE.INC(Simulations!QI:QI,$B12) ->  | QI12: =_xlfn.PERCENTILE.INC(Simulations!QJ:QJ,$B12) ->  | QJ12: =_xlfn.PERCENTILE.INC(Simulations!QK:QK,$B12) ->  | QK12: =_xlfn.PERCENTILE.INC(Simulations!QL:QL,$B12) ->  | QL12: =_xlfn.PERCENTILE.INC(Simulations!QM:QM,$B12) ->  | QM12: =_xlfn.PERCENTILE.INC(Simulations!QN:QN,$B12) ->  | QN12: =_xlfn.PERCENTILE.INC(Simulations!QO:QO,$B12) ->  | QO12: =_xlfn.PERCENTILE.INC(Simulations!QP:QP,$B12) ->  | QP12: =_xlfn.PERCENTILE.INC(Simulations!QQ:QQ,$B12) ->  | QQ12: =_xlfn.PERCENTILE.INC(Simulations!QR:QR,$B12) ->  | QR12: =_xlfn.PERCENTILE.INC(Simulations!QS:QS,$B12) ->  | QS12: =_xlfn.PERCENTILE.INC(Simulations!QT:QT,$B12) ->  | QT12: =_xlfn.PERCENTILE.INC(Simulations!QU:QU,$B12) ->  | QU12: =_xlfn.PERCENTILE.INC(Simulations!QV:QV,$B12) ->  | QV12: =_xlfn.PERCENTILE.INC(Simulations!QW:QW,$B12) ->  | QW12: =_xlfn.PERCENTILE.INC(Simulations!QX:QX,$B12) ->  | QX12: =_xlfn.PERCENTILE.INC(Simulations!QY:QY,$B12) ->  | QY12: =_xlfn.PERCENTILE.INC(Simulations!QZ:QZ,$B12) ->  | QZ12: =_xlfn.PERCENTILE.INC(Simulations!RA:RA,$B12) ->  | RA12: =_xlfn.PERCENTILE.INC(Simulations!RB:RB,$B12) ->  | RB12: =_xlfn.PERCENTILE.INC(Simulations!RC:RC,$B12) ->  | RC12: =_xlfn.PERCENTILE.INC(Simulations!RD:RD,$B12) ->  | RD12: =_xlfn.PERCENTILE.INC(Simulations!RE:RE,$B12) ->  | RE12: =_xlfn.PERCENTILE.INC(Simulations!RF:RF,$B12) ->  | RF12: =_xlfn.PERCENTILE.INC(Simulations!RG:RG,$B12) ->  | RG12: =_xlfn.PERCENTILE.INC(Simulations!RH:RH,$B12) ->  | RH12: =_xlfn.PERCENTILE.INC(Simulations!RI:RI,$B12) ->  | RI12: =_xlfn.PERCENTILE.INC(Simulations!RJ:RJ,$B12) ->  | RJ12: =_xlfn.PERCENTILE.INC(Simulations!RK:RK,$B12) ->  | RK12: =_xlfn.PERCENTILE.INC(Simulations!RL:RL,$B12) ->  | RL12: =_xlfn.PERCENTILE.INC(Simulations!RM:RM,$B12) ->  | RM12: =_xlfn.PERCENTILE.INC(Simulations!RN:RN,$B12) ->  | RN12: =_xlfn.PERCENTILE.INC(Simulations!RO:RO,$B12) ->  | RO12: =_xlfn.PERCENTILE.INC(Simulations!RP:RP,$B12) ->  | RP12: =_xlfn.PERCENTILE.INC(Simulations!RQ:RQ,$B12) ->  | RQ12: =_xlfn.PERCENTILE.INC(Simulations!RR:RR,$B12) ->  | RR12: =_xlfn.PERCENTILE.INC(Simulations!RS:RS,$B12) ->  | RS12: =_xlfn.PERCENTILE.INC(Simulations!RT:RT,$B12) ->  | RT12: =_xlfn.PERCENTILE.INC(Simulations!RU:RU,$B12) ->  | RU12: =_xlfn.PERCENTILE.INC(Simulations!RV:RV,$B12) ->  | RV12: =_xlfn.PERCENTILE.INC(Simulations!RW:RW,$B12) ->  | RW12: =_xlfn.PERCENTILE.INC(Simulations!RX:RX,$B12) ->  | RX12: =_xlfn.PERCENTILE.INC(Simulations!RY:RY,$B12) ->  | RY12: =_xlfn.PERCENTILE.INC(Simulations!RZ:RZ,$B12) ->  | RZ12: =_xlfn.PERCENTILE.INC(Simulations!SA:SA,$B12) ->  | SA12: =_xlfn.PERCENTILE.INC(Simulations!SB:SB,$B12) ->  | SB12: =_xlfn.PERCENTILE.INC(Simulations!SC:SC,$B12) ->  | SC12: =_xlfn.PERCENTILE.INC(Simulations!SD:SD,$B12) ->  | SD12: =_xlfn.PERCENTILE.INC(Simulations!SE:SE,$B12) ->  | SE12: =_xlfn.PERCENTILE.INC(Simulations!SF:SF,$B12) ->  | SF12: =_xlfn.PERCENTILE.INC(Simulations!SG:SG,$B12) ->  | SG12: =_xlfn.PERCENTILE.INC(Simulations!SH:SH,$B12) ->  | SH12: =_xlfn.PERCENTILE.INC(Simulations!SI:SI,$B12) -> 
B13: 0.95 | C13: =_xlfn.PERCENTILE.INC(Simulations!D:D,$B13) -> 369128.3093 | D13: =_xlfn.PERCENTILE.INC(Simulations!E:E,$B13) -> 607694.9811 | E13: =_xlfn.PERCENTILE.INC(Simulations!F:F,$B13) -> 466511.7855 | F13: =_xlfn.PERCENTILE.INC(Simulations!G:G,$B13) -> 1430708.871 | G13: =_xlfn.PERCENTILE.INC(Simulations!H:H,$B13) -> 34142.42408 | H13: =_xlfn.PERCENTILE.INC(Simulations!I:I,$B13) -> 91657.71471 | I13: =_xlfn.PERCENTILE.INC(Simulations!J:J,$B13) -> 372078.4769 | J13: =_xlfn.PERCENTILE.INC(Simulations!K:K,$B13) -> 98613.091 | K13: =_xlfn.PERCENTILE.INC(Simulations!L:L,$B13) -> 528563.1848 | L13: =_xlfn.PERCENTILE.INC(Simulations!M:M,$B13) -> 555782.2748 | M13: =_xlfn.PERCENTILE.INC(Simulations!N:N,$B13) -> 78021.86841 | N13: =_xlfn.PERCENTILE.INC(Simulations!O:O,$B13) -> 181223.9405 | O13: =_xlfn.PERCENTILE.INC(Simulations!P:P,$B13) -> 167816.5214 | P13: =_xlfn.PERCENTILE.INC(Simulations!Q:Q,$B13) -> 266492.0743 | Q13: =_xlfn.PERCENTILE.INC(Simulations!R:R,$B13) -> 609444.1643 | R13: =_xlfn.PERCENTILE.INC(Simulations!S:S,$B13) -> 667995.0462 | S13: =_xlfn.PERCENTILE.INC(Simulations!T:T,$B13) -> 26062.10661 | T13: =_xlfn.PERCENTILE.INC(Simulations!U:U,$B13) -> 70433.57863 | U13: =_xlfn.PERCENTILE.INC(Simulations!V:V,$B13) -> 316685.1214 | V13: =_xlfn.PERCENTILE.INC(Simulations!W:W,$B13) -> 0 | W13: =_xlfn.PERCENTILE.INC(Simulations!X:X,$B13) -> 384248.0621 | X13: =_xlfn.PERCENTILE.INC(Simulations!Y:Y,$B13) -> 404676.4046 | Y13: =_xlfn.PERCENTILE.INC(Simulations!Z:Z,$B13) -> 100727.5469 | Z13: =_xlfn.PERCENTILE.INC(Simulations!AA:AA,$B13) -> 241076.2965 | AA13: =_xlfn.PERCENTILE.INC(Simulations!AB:AB,$B13) -> 480739.8602 | AB13: =_xlfn.PERCENTILE.INC(Simulations!AC:AC,$B13) -> 266492.0743 | AC13: =_xlfn.PERCENTILE.INC(Simulations!AD:AD,$B13) -> 981392.0518 | AD13: =_xlfn.PERCENTILE.INC(Simulations!AE:AE,$B13) -> 1051663.003 | AE13: =_xlfn.PERCENTILE.INC(Simulations!AF:AF,$B13) -> 21528.09539 | AF13: =_xlfn.PERCENTILE.INC(Simulations!AG:AG,$B13) -> 51104.77916 | AG13: =_xlfn.PERCENTILE.INC(Simulations!AH:AH,$B13) -> 38569.64465 | AH13: =_xlfn.PERCENTILE.INC(Simulations!AI:AI,$B13) -> 69425.36037 | AI13: =_xlfn.PERCENTILE.INC(Simulations!AJ:AJ,$B13) -> 159099.7842 | AJ13: =_xlfn.PERCENTILE.INC(Simulations!AK:AK,$B13) -> 174203.4046 | AK13: =_xlfn.PERCENTILE.INC(Simulations!AL:AL,$B13) -> 6539.874178 | AL13: =_xlfn.PERCENTILE.INC(Simulations!AM:AM,$B13) -> 17411.6999 | AM13: =_xlfn.PERCENTILE.INC(Simulations!AN:AN,$B13) -> 49699.48053 | AN13: =_xlfn.PERCENTILE.INC(Simulations!AO:AO,$B13) -> 41357.89428 | AO13: =_xlfn.PERCENTILE.INC(Simulations!AP:AP,$B13) -> 107206.3661 | AP13: =_xlfn.PERCENTILE.INC(Simulations!AQ:AQ,$B13) -> 111778.3309 | AQ13: =_xlfn.PERCENTILE.INC(Simulations!AR:AR,$B13) -> 27491.98024 | AR13: =_xlfn.PERCENTILE.INC(Simulations!AS:AS,$B13) -> 65194.10537 | AS13: =_xlfn.PERCENTILE.INC(Simulations!AT:AT,$B13) -> 86247.18147 | AT13: =_xlfn.PERCENTILE.INC(Simulations!AU:AU,$B13) -> 107833.9779 | AU13: =_xlfn.PERCENTILE.INC(Simulations!AV:AV,$B13) -> 258908.453 | AV13: =_xlfn.PERCENTILE.INC(Simulations!AW:AW,$B13) -> 279657.86 | AW13: =_xlfn.PERCENTILE.INC(Simulations!AX:AX,$B13) -> 125973.584 | AX13: =_xlfn.PERCENTILE.INC(Simulations!AY:AY,$B13) -> 294936.8725 | AY13: =_xlfn.PERCENTILE.INC(Simulations!AZ:AZ,$B13) -> 549854.5927 | AZ13: =_xlfn.PERCENTILE.INC(Simulations!BA:BA,$B13) -> 355299.0133 | BA13: =_xlfn.PERCENTILE.INC(Simulations!BB:BB,$B13) -> 1186937.553 | BB13: =_xlfn.PERCENTILE.INC(Simulations!BC:BC,$B13) -> 1272256.926 | BC13: =_xlfn.PERCENTILE.INC(Simulations!BD:BD,$B13) -> 55524.24698 | BD13: =_xlfn.PERCENTILE.INC(Simulations!BE:BE,$B13) -> 93915.1404 | BE13: =_xlfn.PERCENTILE.INC(Simulations!BF:BF,$B13) -> 88806.63704 | BF13: =_xlfn.PERCENTILE.INC(Simulations!BG:BG,$B13) -> 145679.0978 | BG13: =_xlfn.PERCENTILE.INC(Simulations!BH:BH,$B13) -> 316975.1833 | BH13: =_xlfn.PERCENTILE.INC(Simulations!BI:BI,$B13) -> 362724.9381 | BI13: =_xlfn.PERCENTILE.INC(Simulations!BJ:BJ,$B13) -> 6771.712562 | BJ13: =_xlfn.PERCENTILE.INC(Simulations!BK:BK,$B13) -> 8471.698253 | BK13: =_xlfn.PERCENTILE.INC(Simulations!BL:BL,$B13) -> 10616.33062 | BL13: =_xlfn.PERCENTILE.INC(Simulations!BM:BM,$B13) -> 11254.83593 | BM13: =_xlfn.PERCENTILE.INC(Simulations!BN:BN,$B13) -> 11551.08622 | BN13: =_xlfn.PERCENTILE.INC(Simulations!BO:BO,$B13) -> 2479.220969 | BO13: =_xlfn.PERCENTILE.INC(Simulations!BP:BP,$B13) -> 3318.560574 | BP13: =_xlfn.PERCENTILE.INC(Simulations!BQ:BQ,$B13) -> 4866.112126 | BQ13: =_xlfn.PERCENTILE.INC(Simulations!BR:BR,$B13) -> 5859.072239 | BR13: =_xlfn.PERCENTILE.INC(Simulations!BS:BS,$B13) -> 5910.79993 | BS13: =_xlfn.PERCENTILE.INC(Simulations!BT:BT,$B13) -> 2364.627281 | BT13: =_xlfn.PERCENTILE.INC(Simulations!BU:BU,$B13) -> 3104.256631 | BU13: =_xlfn.PERCENTILE.INC(Simulations!BV:BV,$B13) -> 4064.429996 | BV13: =_xlfn.PERCENTILE.INC(Simulations!BW:BW,$B13) -> 4237.846957 | BW13: =_xlfn.PERCENTILE.INC(Simulations!BX:BX,$B13) -> 3173.576025 | BX13: =_xlfn.PERCENTILE.INC(Simulations!BY:BY,$B13) -> 789.635036 | BY13: =_xlfn.PERCENTILE.INC(Simulations!BZ:BZ,$B13) -> 1170.026059 | BZ13: =_xlfn.PERCENTILE.INC(Simulations!CA:CA,$B13) -> 2881.849789 | CA13: =_xlfn.PERCENTILE.INC(Simulations!CB:CB,$B13) -> 9179.042043 | CB13: =_xlfn.PERCENTILE.INC(Simulations!CC:CC,$B13) -> 0 | CC13: =_xlfn.PERCENTILE.INC(Simulations!CD:CD,$B13) -> 3049.338192 | CD13: =_xlfn.PERCENTILE.INC(Simulations!CE:CE,$B13) -> 4066.822097 | CE13: =_xlfn.PERCENTILE.INC(Simulations!CF:CF,$B13) -> 6795.732051 | CF13: =_xlfn.PERCENTILE.INC(Simulations!CG:CG,$B13) -> 13399.00074 | CG13: =_xlfn.PERCENTILE.INC(Simulations!CH:CH,$B13) -> 3173.576025 | CH13: =_xlfn.PERCENTILE.INC(Simulations!CI:CI,$B13) -> 1947.030857 | CI13: =_xlfn.PERCENTILE.INC(Simulations!CJ:CJ,$B13) -> 1947.030857 | CJ13: =_xlfn.PERCENTILE.INC(Simulations!CK:CK,$B13) -> 1947.030857 | CK13: =_xlfn.PERCENTILE.INC(Simulations!CL:CL,$B13) -> 1947.030857 | CL13: =_xlfn.PERCENTILE.INC(Simulations!CM:CM,$B13) -> 1947.030857 | CM13: =_xlfn.PERCENTILE.INC(Simulations!CN:CN,$B13) -> 964.2411163 | CN13: =_xlfn.PERCENTILE.INC(Simulations!CO:CO,$B13) -> 964.2411163 | CO13: =_xlfn.PERCENTILE.INC(Simulations!CP:CP,$B13) -> 964.2411163 | CP13: =_xlfn.PERCENTILE.INC(Simulations!CQ:CQ,$B13) -> 964.2411163 | CQ13: =_xlfn.PERCENTILE.INC(Simulations!CR:CR,$B13) -> 964.2411163 | CR13: =_xlfn.PERCENTILE.INC(Simulations!CS:CS,$B13) -> 652.3665271 | CS13: =_xlfn.PERCENTILE.INC(Simulations!CT:CT,$B13) -> 964.2411163 | CT13: =_xlfn.PERCENTILE.INC(Simulations!CU:CU,$B13) -> 964.2411163 | CU13: =_xlfn.PERCENTILE.INC(Simulations!CV:CV,$B13) -> 964.2411163 | CV13: =_xlfn.PERCENTILE.INC(Simulations!CW:CW,$B13) -> 964.2411163 | CW13: =_xlfn.PERCENTILE.INC(Simulations!CX:CX,$B13) -> 198.1780054 | CX13: =_xlfn.PERCENTILE.INC(Simulations!CY:CY,$B13) -> 318.3098787 | CY13: =_xlfn.PERCENTILE.INC(Simulations!CZ:CZ,$B13) -> 519.5039026 | CZ13: =_xlfn.PERCENTILE.INC(Simulations!DA:DA,$B13) -> 1424.179738 | DA13: =_xlfn.PERCENTILE.INC(Simulations!DB:DB,$B13) -> 574.4151984 | DB13: =_xlfn.PERCENTILE.INC(Simulations!DC:DC,$B13) -> 833.0903103 | DC13: =_xlfn.PERCENTILE.INC(Simulations!DD:DD,$B13) -> 1220.008359 | DD13: =_xlfn.PERCENTILE.INC(Simulations!DE:DE,$B13) -> 1433.077911 | DE13: =_xlfn.PERCENTILE.INC(Simulations!DF:DF,$B13) -> 2336.954943 | DF13: =_xlfn.PERCENTILE.INC(Simulations!DG:DG,$B13) -> 1497.694137 | DG13: =_xlfn.PERCENTILE.INC(Simulations!DH:DH,$B13) -> 7130.84099 | DH13: =_xlfn.PERCENTILE.INC(Simulations!DI:DI,$B13) -> 7701.30827 | DI13: =_xlfn.PERCENTILE.INC(Simulations!DJ:DJ,$B13) -> 7707.851854 | DJ13: =_xlfn.PERCENTILE.INC(Simulations!DK:DK,$B13) -> 7442.063859 | DK13: =_xlfn.PERCENTILE.INC(Simulations!DL:DL,$B13) -> 8771.003834 | DL13: =_xlfn.PERCENTILE.INC(Simulations!DM:DM,$B13) -> 1579.78584 | DM13: =_xlfn.PERCENTILE.INC(Simulations!DN:DN,$B13) -> 1583.628944 | DN13: =_xlfn.PERCENTILE.INC(Simulations!DO:DO,$B13) -> 1476.432933 | DO13: =_xlfn.PERCENTILE.INC(Simulations!DP:DP,$B13) -> 1363.231277 | DP13: =_xlfn.PERCENTILE.INC(Simulations!DQ:DQ,$B13) -> 1493.081144 | DQ13: =_xlfn.PERCENTILE.INC(Simulations!DR:DR,$B13) -> 4329.303602 | DR13: =_xlfn.PERCENTILE.INC(Simulations!DS:DS,$B13) -> 4329.303602 | DS13: =_xlfn.PERCENTILE.INC(Simulations!DT:DT,$B13) -> 4584.658433 | DT13: =_xlfn.PERCENTILE.INC(Simulations!DU:DU,$B13) -> 4094.067012 | DU13: =_xlfn.PERCENTILE.INC(Simulations!DV:DV,$B13) -> 4094.067012 | DV13: =_xlfn.PERCENTILE.INC(Simulations!DW:DW,$B13) -> 2482474.739 | DW13: =_xlfn.PERCENTILE.INC(Simulations!DX:DX,$B13) -> 1716756.571 | DX13: =_xlfn.PERCENTILE.INC(Simulations!DY:DY,$B13) -> 3924496.301 | DY13: =_xlfn.PERCENTILE.INC(Simulations!DZ:DZ,$B13) -> 1927934.862 | DZ13: =_xlfn.PERCENTILE.INC(Simulations!EA:EA,$B13) -> 1063885.001 | EA13: =_xlfn.PERCENTILE.INC(Simulations!EB:EB,$B13) -> 875471.8576 | EB13: =_xlfn.PERCENTILE.INC(Simulations!EC:EC,$B13) -> 1603776.308 | EC13: =_xlfn.PERCENTILE.INC(Simulations!ED:ED,$B13) -> 2040730.782 | ED13: =_xlfn.PERCENTILE.INC(Simulations!EE:EE,$B13) ->  | EE13: =_xlfn.PERCENTILE.INC(Simulations!EF:EF,$B13) ->  | EF13: =_xlfn.PERCENTILE.INC(Simulations!EG:EG,$B13) ->  | EG13: =_xlfn.PERCENTILE.INC(Simulations!EH:EH,$B13) ->  | EH13: =_xlfn.PERCENTILE.INC(Simulations!EI:EI,$B13) ->  | EI13: =_xlfn.PERCENTILE.INC(Simulations!EJ:EJ,$B13) ->  | EJ13: =_xlfn.PERCENTILE.INC(Simulations!EK:EK,$B13) ->  | EK13: =_xlfn.PERCENTILE.INC(Simulations!EL:EL,$B13) ->  | EL13: =_xlfn.PERCENTILE.INC(Simulations!EM:EM,$B13) ->  | EM13: =_xlfn.PERCENTILE.INC(Simulations!EN:EN,$B13) ->  | EN13: =_xlfn.PERCENTILE.INC(Simulations!EO:EO,$B13) ->  | EO13: =_xlfn.PERCENTILE.INC(Simulations!EP:EP,$B13) ->  | EP13: =_xlfn.PERCENTILE.INC(Simulations!EQ:EQ,$B13) ->  | EQ13: =_xlfn.PERCENTILE.INC(Simulations!ER:ER,$B13) ->  | ER13: =_xlfn.PERCENTILE.INC(Simulations!ES:ES,$B13) ->  | ES13: =_xlfn.PERCENTILE.INC(Simulations!ET:ET,$B13) ->  | ET13: =_xlfn.PERCENTILE.INC(Simulations!EU:EU,$B13) ->  | EU13: =_xlfn.PERCENTILE.INC(Simulations!EV:EV,$B13) ->  | EV13: =_xlfn.PERCENTILE.INC(Simulations!EW:EW,$B13) ->  | EW13: =_xlfn.PERCENTILE.INC(Simulations!EX:EX,$B13) ->  | EX13: =_xlfn.PERCENTILE.INC(Simulations!EY:EY,$B13) ->  | EY13: =_xlfn.PERCENTILE.INC(Simulations!EZ:EZ,$B13) ->  | EZ13: =_xlfn.PERCENTILE.INC(Simulations!FA:FA,$B13) ->  | FA13: =_xlfn.PERCENTILE.INC(Simulations!FB:FB,$B13) ->  | FB13: =_xlfn.PERCENTILE.INC(Simulations!FC:FC,$B13) ->  | FC13: =_xlfn.PERCENTILE.INC(Simulations!FD:FD,$B13) ->  | FD13: =_xlfn.PERCENTILE.INC(Simulations!FE:FE,$B13) ->  | FE13: =_xlfn.PERCENTILE.INC(Simulations!FF:FF,$B13) ->  | FF13: =_xlfn.PERCENTILE.INC(Simulations!FG:FG,$B13) ->  | FG13: =_xlfn.PERCENTILE.INC(Simulations!FH:FH,$B13) ->  | FH13: =_xlfn.PERCENTILE.INC(Simulations!FI:FI,$B13) ->  | FI13: =_xlfn.PERCENTILE.INC(Simulations!FJ:FJ,$B13) ->  | FJ13: =_xlfn.PERCENTILE.INC(Simulations!FK:FK,$B13) ->  | FK13: =_xlfn.PERCENTILE.INC(Simulations!FL:FL,$B13) ->  | FL13: =_xlfn.PERCENTILE.INC(Simulations!FM:FM,$B13) ->  | FM13: =_xlfn.PERCENTILE.INC(Simulations!FN:FN,$B13) ->  | FN13: =_xlfn.PERCENTILE.INC(Simulations!FO:FO,$B13) ->  | FO13: =_xlfn.PERCENTILE.INC(Simulations!FP:FP,$B13) ->  | FP13: =_xlfn.PERCENTILE.INC(Simulations!FQ:FQ,$B13) ->  | FQ13: =_xlfn.PERCENTILE.INC(Simulations!FR:FR,$B13) ->  | FR13: =_xlfn.PERCENTILE.INC(Simulations!FS:FS,$B13) ->  | FS13: =_xlfn.PERCENTILE.INC(Simulations!FT:FT,$B13) ->  | FT13: =_xlfn.PERCENTILE.INC(Simulations!FU:FU,$B13) ->  | FU13: =_xlfn.PERCENTILE.INC(Simulations!FV:FV,$B13) ->  | FV13: =_xlfn.PERCENTILE.INC(Simulations!FW:FW,$B13) ->  | FW13: =_xlfn.PERCENTILE.INC(Simulations!FX:FX,$B13) ->  | FX13: =_xlfn.PERCENTILE.INC(Simulations!FY:FY,$B13) ->  | FY13: =_xlfn.PERCENTILE.INC(Simulations!FZ:FZ,$B13) ->  | FZ13: =_xlfn.PERCENTILE.INC(Simulations!GA:GA,$B13) ->  | GA13: =_xlfn.PERCENTILE.INC(Simulations!GB:GB,$B13) ->  | GB13: =_xlfn.PERCENTILE.INC(Simulations!GC:GC,$B13) ->  | GC13: =_xlfn.PERCENTILE.INC(Simulations!GD:GD,$B13) ->  | GD13: =_xlfn.PERCENTILE.INC(Simulations!GE:GE,$B13) ->  | GE13: =_xlfn.PERCENTILE.INC(Simulations!GF:GF,$B13) ->  | GF13: =_xlfn.PERCENTILE.INC(Simulations!GG:GG,$B13) ->  | GG13: =_xlfn.PERCENTILE.INC(Simulations!GH:GH,$B13) ->  | GH13: =_xlfn.PERCENTILE.INC(Simulations!GI:GI,$B13) ->  | GI13: =_xlfn.PERCENTILE.INC(Simulations!GJ:GJ,$B13) ->  | GJ13: =_xlfn.PERCENTILE.INC(Simulations!GK:GK,$B13) ->  | GK13: =_xlfn.PERCENTILE.INC(Simulations!GL:GL,$B13) ->  | GL13: =_xlfn.PERCENTILE.INC(Simulations!GM:GM,$B13) ->  | GM13: =_xlfn.PERCENTILE.INC(Simulations!GN:GN,$B13) ->  | GN13: =_xlfn.PERCENTILE.INC(Simulations!GO:GO,$B13) ->  | GO13: =_xlfn.PERCENTILE.INC(Simulations!GP:GP,$B13) ->  | GP13: =_xlfn.PERCENTILE.INC(Simulations!GQ:GQ,$B13) ->  | GQ13: =_xlfn.PERCENTILE.INC(Simulations!GR:GR,$B13) ->  | GR13: =_xlfn.PERCENTILE.INC(Simulations!GS:GS,$B13) ->  | GS13: =_xlfn.PERCENTILE.INC(Simulations!GT:GT,$B13) ->  | GT13: =_xlfn.PERCENTILE.INC(Simulations!GU:GU,$B13) ->  | GU13: =_xlfn.PERCENTILE.INC(Simulations!GV:GV,$B13) ->  | GV13: =_xlfn.PERCENTILE.INC(Simulations!GW:GW,$B13) ->  | GW13: =_xlfn.PERCENTILE.INC(Simulations!GX:GX,$B13) ->  | GX13: =_xlfn.PERCENTILE.INC(Simulations!GY:GY,$B13) ->  | GY13: =_xlfn.PERCENTILE.INC(Simulations!GZ:GZ,$B13) ->  | GZ13: =_xlfn.PERCENTILE.INC(Simulations!HA:HA,$B13) ->  | HA13: =_xlfn.PERCENTILE.INC(Simulations!HB:HB,$B13) ->  | HB13: =_xlfn.PERCENTILE.INC(Simulations!HC:HC,$B13) ->  | HC13: =_xlfn.PERCENTILE.INC(Simulations!HD:HD,$B13) ->  | HD13: =_xlfn.PERCENTILE.INC(Simulations!HE:HE,$B13) ->  | HE13: =_xlfn.PERCENTILE.INC(Simulations!HF:HF,$B13) ->  | HF13: =_xlfn.PERCENTILE.INC(Simulations!HG:HG,$B13) ->  | HG13: =_xlfn.PERCENTILE.INC(Simulations!HH:HH,$B13) ->  | HH13: =_xlfn.PERCENTILE.INC(Simulations!HI:HI,$B13) ->  | HI13: =_xlfn.PERCENTILE.INC(Simulations!HJ:HJ,$B13) ->  | HJ13: =_xlfn.PERCENTILE.INC(Simulations!HK:HK,$B13) ->  | HK13: =_xlfn.PERCENTILE.INC(Simulations!HL:HL,$B13) ->  | HL13: =_xlfn.PERCENTILE.INC(Simulations!HM:HM,$B13) ->  | HM13: =_xlfn.PERCENTILE.INC(Simulations!HN:HN,$B13) ->  | HN13: =_xlfn.PERCENTILE.INC(Simulations!HO:HO,$B13) ->  | HO13: =_xlfn.PERCENTILE.INC(Simulations!HP:HP,$B13) ->  | HP13: =_xlfn.PERCENTILE.INC(Simulations!HQ:HQ,$B13) ->  | HQ13: =_xlfn.PERCENTILE.INC(Simulations!HR:HR,$B13) ->  | HR13: =_xlfn.PERCENTILE.INC(Simulations!HS:HS,$B13) ->  | HS13: =_xlfn.PERCENTILE.INC(Simulations!HT:HT,$B13) ->  | HT13: =_xlfn.PERCENTILE.INC(Simulations!HU:HU,$B13) ->  | HU13: =_xlfn.PERCENTILE.INC(Simulations!HV:HV,$B13) ->  | HV13: =_xlfn.PERCENTILE.INC(Simulations!HW:HW,$B13) ->  | HW13: =_xlfn.PERCENTILE.INC(Simulations!HX:HX,$B13) ->  | HX13: =_xlfn.PERCENTILE.INC(Simulations!HY:HY,$B13) ->  | HY13: =_xlfn.PERCENTILE.INC(Simulations!HZ:HZ,$B13) ->  | HZ13: =_xlfn.PERCENTILE.INC(Simulations!IA:IA,$B13) ->  | IA13: =_xlfn.PERCENTILE.INC(Simulations!IB:IB,$B13) ->  | IB13: =_xlfn.PERCENTILE.INC(Simulations!IC:IC,$B13) ->  | IC13: =_xlfn.PERCENTILE.INC(Simulations!ID:ID,$B13) ->  | ID13: =_xlfn.PERCENTILE.INC(Simulations!IE:IE,$B13) ->  | IE13: =_xlfn.PERCENTILE.INC(Simulations!IF:IF,$B13) ->  | IF13: =_xlfn.PERCENTILE.INC(Simulations!IG:IG,$B13) ->  | IG13: =_xlfn.PERCENTILE.INC(Simulations!IH:IH,$B13) ->  | IH13: =_xlfn.PERCENTILE.INC(Simulations!II:II,$B13) ->  | II13: =_xlfn.PERCENTILE.INC(Simulations!IJ:IJ,$B13) ->  | IJ13: =_xlfn.PERCENTILE.INC(Simulations!IK:IK,$B13) ->  | IK13: =_xlfn.PERCENTILE.INC(Simulations!IL:IL,$B13) ->  | IL13: =_xlfn.PERCENTILE.INC(Simulations!IM:IM,$B13) ->  | IM13: =_xlfn.PERCENTILE.INC(Simulations!IN:IN,$B13) ->  | IN13: =_xlfn.PERCENTILE.INC(Simulations!IO:IO,$B13) ->  | IO13: =_xlfn.PERCENTILE.INC(Simulations!IP:IP,$B13) ->  | IP13: =_xlfn.PERCENTILE.INC(Simulations!IQ:IQ,$B13) ->  | IQ13: =_xlfn.PERCENTILE.INC(Simulations!IR:IR,$B13) ->  | IR13: =_xlfn.PERCENTILE.INC(Simulations!IS:IS,$B13) ->  | IS13: =_xlfn.PERCENTILE.INC(Simulations!IT:IT,$B13) ->  | IT13: =_xlfn.PERCENTILE.INC(Simulations!IU:IU,$B13) ->  | IU13: =_xlfn.PERCENTILE.INC(Simulations!IV:IV,$B13) ->  | IV13: =_xlfn.PERCENTILE.INC(Simulations!IW:IW,$B13) ->  | IW13: =_xlfn.PERCENTILE.INC(Simulations!IX:IX,$B13) ->  | IX13: =_xlfn.PERCENTILE.INC(Simulations!IY:IY,$B13) ->  | IY13: =_xlfn.PERCENTILE.INC(Simulations!IZ:IZ,$B13) ->  | IZ13: =_xlfn.PERCENTILE.INC(Simulations!JA:JA,$B13) ->  | JA13: =_xlfn.PERCENTILE.INC(Simulations!JB:JB,$B13) ->  | JB13: =_xlfn.PERCENTILE.INC(Simulations!JC:JC,$B13) ->  | JC13: =_xlfn.PERCENTILE.INC(Simulations!JD:JD,$B13) ->  | JD13: =_xlfn.PERCENTILE.INC(Simulations!JE:JE,$B13) ->  | JE13: =_xlfn.PERCENTILE.INC(Simulations!JF:JF,$B13) ->  | JF13: =_xlfn.PERCENTILE.INC(Simulations!JG:JG,$B13) ->  | JG13: =_xlfn.PERCENTILE.INC(Simulations!JH:JH,$B13) ->  | JH13: =_xlfn.PERCENTILE.INC(Simulations!JI:JI,$B13) ->  | JI13: =_xlfn.PERCENTILE.INC(Simulations!JJ:JJ,$B13) ->  | JJ13: =_xlfn.PERCENTILE.INC(Simulations!JK:JK,$B13) ->  | JK13: =_xlfn.PERCENTILE.INC(Simulations!JL:JL,$B13) ->  | JL13: =_xlfn.PERCENTILE.INC(Simulations!JM:JM,$B13) ->  | JM13: =_xlfn.PERCENTILE.INC(Simulations!JN:JN,$B13) ->  | JN13: =_xlfn.PERCENTILE.INC(Simulations!JO:JO,$B13) ->  | JO13: =_xlfn.PERCENTILE.INC(Simulations!JP:JP,$B13) ->  | JP13: =_xlfn.PERCENTILE.INC(Simulations!JQ:JQ,$B13) ->  | JQ13: =_xlfn.PERCENTILE.INC(Simulations!JR:JR,$B13) ->  | JR13: =_xlfn.PERCENTILE.INC(Simulations!JS:JS,$B13) ->  | JS13: =_xlfn.PERCENTILE.INC(Simulations!JT:JT,$B13) ->  | JT13: =_xlfn.PERCENTILE.INC(Simulations!JU:JU,$B13) ->  | JU13: =_xlfn.PERCENTILE.INC(Simulations!JV:JV,$B13) ->  | JV13: =_xlfn.PERCENTILE.INC(Simulations!JW:JW,$B13) ->  | JW13: =_xlfn.PERCENTILE.INC(Simulations!JX:JX,$B13) ->  | JX13: =_xlfn.PERCENTILE.INC(Simulations!JY:JY,$B13) ->  | JY13: =_xlfn.PERCENTILE.INC(Simulations!JZ:JZ,$B13) ->  | JZ13: =_xlfn.PERCENTILE.INC(Simulations!KA:KA,$B13) ->  | KA13: =_xlfn.PERCENTILE.INC(Simulations!KB:KB,$B13) ->  | KB13: =_xlfn.PERCENTILE.INC(Simulations!KC:KC,$B13) ->  | KC13: =_xlfn.PERCENTILE.INC(Simulations!KD:KD,$B13) ->  | KD13: =_xlfn.PERCENTILE.INC(Simulations!KE:KE,$B13) ->  | KE13: =_xlfn.PERCENTILE.INC(Simulations!KF:KF,$B13) ->  | KF13: =_xlfn.PERCENTILE.INC(Simulations!KG:KG,$B13) ->  | KG13: =_xlfn.PERCENTILE.INC(Simulations!KH:KH,$B13) ->  | KH13: =_xlfn.PERCENTILE.INC(Simulations!KI:KI,$B13) ->  | KI13: =_xlfn.PERCENTILE.INC(Simulations!KJ:KJ,$B13) ->  | KJ13: =_xlfn.PERCENTILE.INC(Simulations!KK:KK,$B13) ->  | KK13: =_xlfn.PERCENTILE.INC(Simulations!KL:KL,$B13) ->  | KL13: =_xlfn.PERCENTILE.INC(Simulations!KM:KM,$B13) ->  | KM13: =_xlfn.PERCENTILE.INC(Simulations!KN:KN,$B13) ->  | KN13: =_xlfn.PERCENTILE.INC(Simulations!KO:KO,$B13) ->  | KO13: =_xlfn.PERCENTILE.INC(Simulations!KP:KP,$B13) ->  | KP13: =_xlfn.PERCENTILE.INC(Simulations!KQ:KQ,$B13) ->  | KQ13: =_xlfn.PERCENTILE.INC(Simulations!KR:KR,$B13) ->  | KR13: =_xlfn.PERCENTILE.INC(Simulations!KS:KS,$B13) ->  | KS13: =_xlfn.PERCENTILE.INC(Simulations!KT:KT,$B13) ->  | KT13: =_xlfn.PERCENTILE.INC(Simulations!KU:KU,$B13) ->  | KU13: =_xlfn.PERCENTILE.INC(Simulations!KV:KV,$B13) ->  | KV13: =_xlfn.PERCENTILE.INC(Simulations!KW:KW,$B13) ->  | KW13: =_xlfn.PERCENTILE.INC(Simulations!KX:KX,$B13) ->  | KX13: =_xlfn.PERCENTILE.INC(Simulations!KY:KY,$B13) ->  | KY13: =_xlfn.PERCENTILE.INC(Simulations!KZ:KZ,$B13) ->  | KZ13: =_xlfn.PERCENTILE.INC(Simulations!LA:LA,$B13) ->  | LA13: =_xlfn.PERCENTILE.INC(Simulations!LB:LB,$B13) ->  | LB13: =_xlfn.PERCENTILE.INC(Simulations!LC:LC,$B13) ->  | LC13: =_xlfn.PERCENTILE.INC(Simulations!LD:LD,$B13) ->  | LD13: =_xlfn.PERCENTILE.INC(Simulations!LE:LE,$B13) ->  | LE13: =_xlfn.PERCENTILE.INC(Simulations!LF:LF,$B13) ->  | LF13: =_xlfn.PERCENTILE.INC(Simulations!LG:LG,$B13) ->  | LG13: =_xlfn.PERCENTILE.INC(Simulations!LH:LH,$B13) ->  | LH13: =_xlfn.PERCENTILE.INC(Simulations!LI:LI,$B13) ->  | LI13: =_xlfn.PERCENTILE.INC(Simulations!LJ:LJ,$B13) ->  | LJ13: =_xlfn.PERCENTILE.INC(Simulations!LK:LK,$B13) ->  | LK13: =_xlfn.PERCENTILE.INC(Simulations!LL:LL,$B13) ->  | LL13: =_xlfn.PERCENTILE.INC(Simulations!LM:LM,$B13) ->  | LM13: =_xlfn.PERCENTILE.INC(Simulations!LN:LN,$B13) ->  | LN13: =_xlfn.PERCENTILE.INC(Simulations!LO:LO,$B13) ->  | LO13: =_xlfn.PERCENTILE.INC(Simulations!LP:LP,$B13) ->  | LP13: =_xlfn.PERCENTILE.INC(Simulations!LQ:LQ,$B13) ->  | LQ13: =_xlfn.PERCENTILE.INC(Simulations!LR:LR,$B13) ->  | LR13: =_xlfn.PERCENTILE.INC(Simulations!LS:LS,$B13) ->  | LS13: =_xlfn.PERCENTILE.INC(Simulations!LT:LT,$B13) ->  | LT13: =_xlfn.PERCENTILE.INC(Simulations!LU:LU,$B13) ->  | LU13: =_xlfn.PERCENTILE.INC(Simulations!LV:LV,$B13) ->  | LV13: =_xlfn.PERCENTILE.INC(Simulations!LW:LW,$B13) ->  | LW13: =_xlfn.PERCENTILE.INC(Simulations!LX:LX,$B13) ->  | LX13: =_xlfn.PERCENTILE.INC(Simulations!LY:LY,$B13) ->  | LY13: =_xlfn.PERCENTILE.INC(Simulations!LZ:LZ,$B13) ->  | LZ13: =_xlfn.PERCENTILE.INC(Simulations!MA:MA,$B13) ->  | MA13: =_xlfn.PERCENTILE.INC(Simulations!MB:MB,$B13) ->  | MB13: =_xlfn.PERCENTILE.INC(Simulations!MC:MC,$B13) ->  | MC13: =_xlfn.PERCENTILE.INC(Simulations!MD:MD,$B13) ->  | MD13: =_xlfn.PERCENTILE.INC(Simulations!ME:ME,$B13) ->  | ME13: =_xlfn.PERCENTILE.INC(Simulations!MF:MF,$B13) ->  | MF13: =_xlfn.PERCENTILE.INC(Simulations!MG:MG,$B13) ->  | MG13: =_xlfn.PERCENTILE.INC(Simulations!MH:MH,$B13) ->  | MH13: =_xlfn.PERCENTILE.INC(Simulations!MI:MI,$B13) ->  | MI13: =_xlfn.PERCENTILE.INC(Simulations!MJ:MJ,$B13) ->  | MJ13: =_xlfn.PERCENTILE.INC(Simulations!MK:MK,$B13) ->  | MK13: =_xlfn.PERCENTILE.INC(Simulations!ML:ML,$B13) ->  | ML13: =_xlfn.PERCENTILE.INC(Simulations!MM:MM,$B13) ->  | MM13: =_xlfn.PERCENTILE.INC(Simulations!MN:MN,$B13) ->  | MN13: =_xlfn.PERCENTILE.INC(Simulations!MO:MO,$B13) ->  | MO13: =_xlfn.PERCENTILE.INC(Simulations!MP:MP,$B13) ->  | MP13: =_xlfn.PERCENTILE.INC(Simulations!MQ:MQ,$B13) ->  | MQ13: =_xlfn.PERCENTILE.INC(Simulations!MR:MR,$B13) ->  | MR13: =_xlfn.PERCENTILE.INC(Simulations!MS:MS,$B13) ->  | MS13: =_xlfn.PERCENTILE.INC(Simulations!MT:MT,$B13) ->  | MT13: =_xlfn.PERCENTILE.INC(Simulations!MU:MU,$B13) ->  | MU13: =_xlfn.PERCENTILE.INC(Simulations!MV:MV,$B13) ->  | MV13: =_xlfn.PERCENTILE.INC(Simulations!MW:MW,$B13) ->  | MW13: =_xlfn.PERCENTILE.INC(Simulations!MX:MX,$B13) ->  | MX13: =_xlfn.PERCENTILE.INC(Simulations!MY:MY,$B13) ->  | MY13: =_xlfn.PERCENTILE.INC(Simulations!MZ:MZ,$B13) ->  | MZ13: =_xlfn.PERCENTILE.INC(Simulations!NA:NA,$B13) ->  | NA13: =_xlfn.PERCENTILE.INC(Simulations!NB:NB,$B13) ->  | NB13: =_xlfn.PERCENTILE.INC(Simulations!NC:NC,$B13) ->  | NC13: =_xlfn.PERCENTILE.INC(Simulations!ND:ND,$B13) ->  | ND13: =_xlfn.PERCENTILE.INC(Simulations!NE:NE,$B13) ->  | NE13: =_xlfn.PERCENTILE.INC(Simulations!NF:NF,$B13) ->  | NF13: =_xlfn.PERCENTILE.INC(Simulations!NG:NG,$B13) ->  | NG13: =_xlfn.PERCENTILE.INC(Simulations!NH:NH,$B13) ->  | NH13: =_xlfn.PERCENTILE.INC(Simulations!NI:NI,$B13) ->  | NI13: =_xlfn.PERCENTILE.INC(Simulations!NJ:NJ,$B13) ->  | NJ13: =_xlfn.PERCENTILE.INC(Simulations!NK:NK,$B13) ->  | NK13: =_xlfn.PERCENTILE.INC(Simulations!NL:NL,$B13) ->  | NL13: =_xlfn.PERCENTILE.INC(Simulations!NM:NM,$B13) ->  | NM13: =_xlfn.PERCENTILE.INC(Simulations!NN:NN,$B13) ->  | NN13: =_xlfn.PERCENTILE.INC(Simulations!NO:NO,$B13) ->  | NO13: =_xlfn.PERCENTILE.INC(Simulations!NP:NP,$B13) ->  | NP13: =_xlfn.PERCENTILE.INC(Simulations!NQ:NQ,$B13) ->  | NQ13: =_xlfn.PERCENTILE.INC(Simulations!NR:NR,$B13) ->  | NR13: =_xlfn.PERCENTILE.INC(Simulations!NS:NS,$B13) ->  | NS13: =_xlfn.PERCENTILE.INC(Simulations!NT:NT,$B13) ->  | NT13: =_xlfn.PERCENTILE.INC(Simulations!NU:NU,$B13) ->  | NU13: =_xlfn.PERCENTILE.INC(Simulations!NV:NV,$B13) ->  | NV13: =_xlfn.PERCENTILE.INC(Simulations!NW:NW,$B13) ->  | NW13: =_xlfn.PERCENTILE.INC(Simulations!NX:NX,$B13) ->  | NX13: =_xlfn.PERCENTILE.INC(Simulations!NY:NY,$B13) ->  | NY13: =_xlfn.PERCENTILE.INC(Simulations!NZ:NZ,$B13) ->  | NZ13: =_xlfn.PERCENTILE.INC(Simulations!OA:OA,$B13) ->  | OA13: =_xlfn.PERCENTILE.INC(Simulations!OB:OB,$B13) ->  | OB13: =_xlfn.PERCENTILE.INC(Simulations!OC:OC,$B13) ->  | OC13: =_xlfn.PERCENTILE.INC(Simulations!OD:OD,$B13) ->  | OD13: =_xlfn.PERCENTILE.INC(Simulations!OE:OE,$B13) ->  | OE13: =_xlfn.PERCENTILE.INC(Simulations!OF:OF,$B13) ->  | OF13: =_xlfn.PERCENTILE.INC(Simulations!OG:OG,$B13) ->  | OG13: =_xlfn.PERCENTILE.INC(Simulations!OH:OH,$B13) ->  | OH13: =_xlfn.PERCENTILE.INC(Simulations!OI:OI,$B13) ->  | OI13: =_xlfn.PERCENTILE.INC(Simulations!OJ:OJ,$B13) ->  | OJ13: =_xlfn.PERCENTILE.INC(Simulations!OK:OK,$B13) ->  | OK13: =_xlfn.PERCENTILE.INC(Simulations!OL:OL,$B13) ->  | OL13: =_xlfn.PERCENTILE.INC(Simulations!OM:OM,$B13) ->  | OM13: =_xlfn.PERCENTILE.INC(Simulations!ON:ON,$B13) ->  | ON13: =_xlfn.PERCENTILE.INC(Simulations!OO:OO,$B13) ->  | OO13: =_xlfn.PERCENTILE.INC(Simulations!OP:OP,$B13) ->  | OP13: =_xlfn.PERCENTILE.INC(Simulations!OQ:OQ,$B13) ->  | OQ13: =_xlfn.PERCENTILE.INC(Simulations!OR:OR,$B13) ->  | OR13: =_xlfn.PERCENTILE.INC(Simulations!OS:OS,$B13) ->  | OS13: =_xlfn.PERCENTILE.INC(Simulations!OT:OT,$B13) ->  | OT13: =_xlfn.PERCENTILE.INC(Simulations!OU:OU,$B13) ->  | OU13: =_xlfn.PERCENTILE.INC(Simulations!OV:OV,$B13) ->  | OV13: =_xlfn.PERCENTILE.INC(Simulations!OW:OW,$B13) ->  | OW13: =_xlfn.PERCENTILE.INC(Simulations!OX:OX,$B13) ->  | OX13: =_xlfn.PERCENTILE.INC(Simulations!OY:OY,$B13) ->  | OY13: =_xlfn.PERCENTILE.INC(Simulations!OZ:OZ,$B13) ->  | OZ13: =_xlfn.PERCENTILE.INC(Simulations!PA:PA,$B13) ->  | PA13: =_xlfn.PERCENTILE.INC(Simulations!PB:PB,$B13) ->  | PB13: =_xlfn.PERCENTILE.INC(Simulations!PC:PC,$B13) ->  | PC13: =_xlfn.PERCENTILE.INC(Simulations!PD:PD,$B13) ->  | PD13: =_xlfn.PERCENTILE.INC(Simulations!PE:PE,$B13) ->  | PE13: =_xlfn.PERCENTILE.INC(Simulations!PF:PF,$B13) ->  | PF13: =_xlfn.PERCENTILE.INC(Simulations!PG:PG,$B13) ->  | PG13: =_xlfn.PERCENTILE.INC(Simulations!PH:PH,$B13) ->  | PH13: =_xlfn.PERCENTILE.INC(Simulations!PI:PI,$B13) ->  | PI13: =_xlfn.PERCENTILE.INC(Simulations!PJ:PJ,$B13) ->  | PJ13: =_xlfn.PERCENTILE.INC(Simulations!PK:PK,$B13) ->  | PK13: =_xlfn.PERCENTILE.INC(Simulations!PL:PL,$B13) ->  | PL13: =_xlfn.PERCENTILE.INC(Simulations!PM:PM,$B13) ->  | PM13: =_xlfn.PERCENTILE.INC(Simulations!PN:PN,$B13) ->  | PN13: =_xlfn.PERCENTILE.INC(Simulations!PO:PO,$B13) ->  | PO13: =_xlfn.PERCENTILE.INC(Simulations!PP:PP,$B13) ->  | PP13: =_xlfn.PERCENTILE.INC(Simulations!PQ:PQ,$B13) ->  | PQ13: =_xlfn.PERCENTILE.INC(Simulations!PR:PR,$B13) ->  | PR13: =_xlfn.PERCENTILE.INC(Simulations!PS:PS,$B13) ->  | PS13: =_xlfn.PERCENTILE.INC(Simulations!PT:PT,$B13) ->  | PT13: =_xlfn.PERCENTILE.INC(Simulations!PU:PU,$B13) ->  | PU13: =_xlfn.PERCENTILE.INC(Simulations!PV:PV,$B13) ->  | PV13: =_xlfn.PERCENTILE.INC(Simulations!PW:PW,$B13) ->  | PW13: =_xlfn.PERCENTILE.INC(Simulations!PX:PX,$B13) ->  | PX13: =_xlfn.PERCENTILE.INC(Simulations!PY:PY,$B13) ->  | PY13: =_xlfn.PERCENTILE.INC(Simulations!PZ:PZ,$B13) ->  | PZ13: =_xlfn.PERCENTILE.INC(Simulations!QA:QA,$B13) ->  | QA13: =_xlfn.PERCENTILE.INC(Simulations!QB:QB,$B13) ->  | QB13: =_xlfn.PERCENTILE.INC(Simulations!QC:QC,$B13) ->  | QC13: =_xlfn.PERCENTILE.INC(Simulations!QD:QD,$B13) ->  | QD13: =_xlfn.PERCENTILE.INC(Simulations!QE:QE,$B13) ->  | QE13: =_xlfn.PERCENTILE.INC(Simulations!QF:QF,$B13) ->  | QF13: =_xlfn.PERCENTILE.INC(Simulations!QG:QG,$B13) ->  | QG13: =_xlfn.PERCENTILE.INC(Simulations!QH:QH,$B13) ->  | QH13: =_xlfn.PERCENTILE.INC(Simulations!QI:QI,$B13) ->  | QI13: =_xlfn.PERCENTILE.INC(Simulations!QJ:QJ,$B13) ->  | QJ13: =_xlfn.PERCENTILE.INC(Simulations!QK:QK,$B13) ->  | QK13: =_xlfn.PERCENTILE.INC(Simulations!QL:QL,$B13) ->  | QL13: =_xlfn.PERCENTILE.INC(Simulations!QM:QM,$B13) ->  | QM13: =_xlfn.PERCENTILE.INC(Simulations!QN:QN,$B13) ->  | QN13: =_xlfn.PERCENTILE.INC(Simulations!QO:QO,$B13) ->  | QO13: =_xlfn.PERCENTILE.INC(Simulations!QP:QP,$B13) ->  | QP13: =_xlfn.PERCENTILE.INC(Simulations!QQ:QQ,$B13) ->  | QQ13: =_xlfn.PERCENTILE.INC(Simulations!QR:QR,$B13) ->  | QR13: =_xlfn.PERCENTILE.INC(Simulations!QS:QS,$B13) ->  | QS13: =_xlfn.PERCENTILE.INC(Simulations!QT:QT,$B13) ->  | QT13: =_xlfn.PERCENTILE.INC(Simulations!QU:QU,$B13) ->  | QU13: =_xlfn.PERCENTILE.INC(Simulations!QV:QV,$B13) ->  | QV13: =_xlfn.PERCENTILE.INC(Simulations!QW:QW,$B13) ->  | QW13: =_xlfn.PERCENTILE.INC(Simulations!QX:QX,$B13) ->  | QX13: =_xlfn.PERCENTILE.INC(Simulations!QY:QY,$B13) ->  | QY13: =_xlfn.PERCENTILE.INC(Simulations!QZ:QZ,$B13) ->  | QZ13: =_xlfn.PERCENTILE.INC(Simulations!RA:RA,$B13) ->  | RA13: =_xlfn.PERCENTILE.INC(Simulations!RB:RB,$B13) ->  | RB13: =_xlfn.PERCENTILE.INC(Simulations!RC:RC,$B13) ->  | RC13: =_xlfn.PERCENTILE.INC(Simulations!RD:RD,$B13) ->  | RD13: =_xlfn.PERCENTILE.INC(Simulations!RE:RE,$B13) ->  | RE13: =_xlfn.PERCENTILE.INC(Simulations!RF:RF,$B13) ->  | RF13: =_xlfn.PERCENTILE.INC(Simulations!RG:RG,$B13) ->  | RG13: =_xlfn.PERCENTILE.INC(Simulations!RH:RH,$B13) ->  | RH13: =_xlfn.PERCENTILE.INC(Simulations!RI:RI,$B13) ->  | RI13: =_xlfn.PERCENTILE.INC(Simulations!RJ:RJ,$B13) ->  | RJ13: =_xlfn.PERCENTILE.INC(Simulations!RK:RK,$B13) ->  | RK13: =_xlfn.PERCENTILE.INC(Simulations!RL:RL,$B13) ->  | RL13: =_xlfn.PERCENTILE.INC(Simulations!RM:RM,$B13) ->  | RM13: =_xlfn.PERCENTILE.INC(Simulations!RN:RN,$B13) ->  | RN13: =_xlfn.PERCENTILE.INC(Simulations!RO:RO,$B13) ->  | RO13: =_xlfn.PERCENTILE.INC(Simulations!RP:RP,$B13) ->  | RP13: =_xlfn.PERCENTILE.INC(Simulations!RQ:RQ,$B13) ->  | RQ13: =_xlfn.PERCENTILE.INC(Simulations!RR:RR,$B13) ->  | RR13: =_xlfn.PERCENTILE.INC(Simulations!RS:RS,$B13) ->  | RS13: =_xlfn.PERCENTILE.INC(Simulations!RT:RT,$B13) ->  | RT13: =_xlfn.PERCENTILE.INC(Simulations!RU:RU,$B13) ->  | RU13: =_xlfn.PERCENTILE.INC(Simulations!RV:RV,$B13) ->  | RV13: =_xlfn.PERCENTILE.INC(Simulations!RW:RW,$B13) ->  | RW13: =_xlfn.PERCENTILE.INC(Simulations!RX:RX,$B13) ->  | RX13: =_xlfn.PERCENTILE.INC(Simulations!RY:RY,$B13) ->  | RY13: =_xlfn.PERCENTILE.INC(Simulations!RZ:RZ,$B13) ->  | RZ13: =_xlfn.PERCENTILE.INC(Simulations!SA:SA,$B13) ->  | SA13: =_xlfn.PERCENTILE.INC(Simulations!SB:SB,$B13) ->  | SB13: =_xlfn.PERCENTILE.INC(Simulations!SC:SC,$B13) ->  | SC13: =_xlfn.PERCENTILE.INC(Simulations!SD:SD,$B13) ->  | SD13: =_xlfn.PERCENTILE.INC(Simulations!SE:SE,$B13) ->  | SE13: =_xlfn.PERCENTILE.INC(Simulations!SF:SF,$B13) ->  | SF13: =_xlfn.PERCENTILE.INC(Simulations!SG:SG,$B13) ->  | SG13: =_xlfn.PERCENTILE.INC(Simulations!SH:SH,$B13) ->  | SH13: =_xlfn.PERCENTILE.INC(Simulations!SI:SI,$B13) -> 
B14: 0.96 | C14: =_xlfn.PERCENTILE.INC(Simulations!D:D,$B14) -> 373567.3541 | D14: =_xlfn.PERCENTILE.INC(Simulations!E:E,$B14) -> 614820.0217 | E14: =_xlfn.PERCENTILE.INC(Simulations!F:F,$B14) -> 481136.6397 | F14: =_xlfn.PERCENTILE.INC(Simulations!G:G,$B14) -> 1446071.052 | G14: =_xlfn.PERCENTILE.INC(Simulations!H:H,$B14) -> 35720.99478 | H14: =_xlfn.PERCENTILE.INC(Simulations!I:I,$B14) -> 92954.64735 | I14: =_xlfn.PERCENTILE.INC(Simulations!J:J,$B14) -> 377204.5404 | J14: =_xlfn.PERCENTILE.INC(Simulations!K:K,$B14) -> 106187.5647 | K14: =_xlfn.PERCENTILE.INC(Simulations!L:L,$B14) -> 550249.3367 | L14: =_xlfn.PERCENTILE.INC(Simulations!M:M,$B14) -> 572036.9656 | M14: =_xlfn.PERCENTILE.INC(Simulations!N:N,$B14) -> 79459.2125 | N14: =_xlfn.PERCENTILE.INC(Simulations!O:O,$B14) -> 182684.9825 | O14: =_xlfn.PERCENTILE.INC(Simulations!P:P,$B14) -> 169183.307 | P14: =_xlfn.PERCENTILE.INC(Simulations!Q:Q,$B14) -> 268620.1406 | Q14: =_xlfn.PERCENTILE.INC(Simulations!R:R,$B14) -> 615111.7216 | R14: =_xlfn.PERCENTILE.INC(Simulations!S:S,$B14) -> 673806.3678 | S14: =_xlfn.PERCENTILE.INC(Simulations!T:T,$B14) -> 27398.88455 | T14: =_xlfn.PERCENTILE.INC(Simulations!U:U,$B14) -> 71247.47896 | U14: =_xlfn.PERCENTILE.INC(Simulations!V:V,$B14) -> 320218.8749 | V14: =_xlfn.PERCENTILE.INC(Simulations!W:W,$B14) -> 0 | W14: =_xlfn.PERCENTILE.INC(Simulations!X:X,$B14) -> 388876.3695 | X14: =_xlfn.PERCENTILE.INC(Simulations!Y:Y,$B14) -> 410018.0088 | Y14: =_xlfn.PERCENTILE.INC(Simulations!Z:Z,$B14) -> 103206.955 | Z14: =_xlfn.PERCENTILE.INC(Simulations!AA:AA,$B14) -> 243740.3285 | AA14: =_xlfn.PERCENTILE.INC(Simulations!AB:AB,$B14) -> 483745.7223 | AB14: =_xlfn.PERCENTILE.INC(Simulations!AC:AC,$B14) -> 268620.1406 | AC14: =_xlfn.PERCENTILE.INC(Simulations!AD:AD,$B14) -> 987337.3755 | AD14: =_xlfn.PERCENTILE.INC(Simulations!AE:AE,$B14) -> 1059964.724 | AE14: =_xlfn.PERCENTILE.INC(Simulations!AF:AF,$B14) -> 22424.64534 | AF14: =_xlfn.PERCENTILE.INC(Simulations!AG:AG,$B14) -> 51793.60003 | AG14: =_xlfn.PERCENTILE.INC(Simulations!AH:AH,$B14) -> 39089.50945 | AH14: =_xlfn.PERCENTILE.INC(Simulations!AI:AI,$B14) -> 70361.11702 | AI14: =_xlfn.PERCENTILE.INC(Simulations!AJ:AJ,$B14) -> 161244.2265 | AJ14: =_xlfn.PERCENTILE.INC(Simulations!AK:AK,$B14) -> 178423.5701 | AK14: =_xlfn.PERCENTILE.INC(Simulations!AL:AL,$B14) -> 6956.941875 | AL14: =_xlfn.PERCENTILE.INC(Simulations!AM:AM,$B14) -> 17841.49829 | AM14: =_xlfn.PERCENTILE.INC(Simulations!AN:AN,$B14) -> 51104.55106 | AN14: =_xlfn.PERCENTILE.INC(Simulations!AO:AO,$B14) -> 42678.95019 | AO14: =_xlfn.PERCENTILE.INC(Simulations!AP:AP,$B14) -> 109424.4204 | AP14: =_xlfn.PERCENTILE.INC(Simulations!AQ:AQ,$B14) -> 114910.4629 | AQ14: =_xlfn.PERCENTILE.INC(Simulations!AR:AR,$B14) -> 28207.17351 | AR14: =_xlfn.PERCENTILE.INC(Simulations!AS:AS,$B14) -> 66675.23443 | AS14: =_xlfn.PERCENTILE.INC(Simulations!AT:AT,$B14) -> 88388.79284 | AT14: =_xlfn.PERCENTILE.INC(Simulations!AU:AU,$B14) -> 109196.9363 | AU14: =_xlfn.PERCENTILE.INC(Simulations!AV:AV,$B14) -> 264103.1505 | AV14: =_xlfn.PERCENTILE.INC(Simulations!AW:AW,$B14) -> 284889.3547 | AW14: =_xlfn.PERCENTILE.INC(Simulations!AX:AX,$B14) -> 128107.4163 | AX14: =_xlfn.PERCENTILE.INC(Simulations!AY:AY,$B14) -> 297451.8642 | AY14: =_xlfn.PERCENTILE.INC(Simulations!AZ:AZ,$B14) -> 554073.1602 | AZ14: =_xlfn.PERCENTILE.INC(Simulations!BA:BA,$B14) -> 358073.0522 | BA14: =_xlfn.PERCENTILE.INC(Simulations!BB:BB,$B14) -> 1201801.493 | BB14: =_xlfn.PERCENTILE.INC(Simulations!BC:BC,$B14) -> 1285805.06 | BC14: =_xlfn.PERCENTILE.INC(Simulations!BD:BD,$B14) -> 56759.12748 | BD14: =_xlfn.PERCENTILE.INC(Simulations!BE:BE,$B14) -> 95857.65085 | BE14: =_xlfn.PERCENTILE.INC(Simulations!BF:BF,$B14) -> 91239.21829 | BF14: =_xlfn.PERCENTILE.INC(Simulations!BG:BG,$B14) -> 158163.4965 | BG14: =_xlfn.PERCENTILE.INC(Simulations!BH:BH,$B14) -> 333201.4035 | BH14: =_xlfn.PERCENTILE.INC(Simulations!BI:BI,$B14) -> 382928.5892 | BI14: =_xlfn.PERCENTILE.INC(Simulations!BJ:BJ,$B14) -> 6795.680046 | BJ14: =_xlfn.PERCENTILE.INC(Simulations!BK:BK,$B14) -> 8505.630955 | BK14: =_xlfn.PERCENTILE.INC(Simulations!BL:BL,$B14) -> 10643.75911 | BL14: =_xlfn.PERCENTILE.INC(Simulations!BM:BM,$B14) -> 11301.83209 | BM14: =_xlfn.PERCENTILE.INC(Simulations!BN:BN,$B14) -> 11665.31562 | BN14: =_xlfn.PERCENTILE.INC(Simulations!BO:BO,$B14) -> 2526.446134 | BO14: =_xlfn.PERCENTILE.INC(Simulations!BP:BP,$B14) -> 3358.597609 | BP14: =_xlfn.PERCENTILE.INC(Simulations!BQ:BQ,$B14) -> 4907.915281 | BQ14: =_xlfn.PERCENTILE.INC(Simulations!BR:BR,$B14) -> 5889.346924 | BR14: =_xlfn.PERCENTILE.INC(Simulations!BS:BS,$B14) -> 5963.154987 | BS14: =_xlfn.PERCENTILE.INC(Simulations!BT:BT,$B14) -> 2405.42344 | BT14: =_xlfn.PERCENTILE.INC(Simulations!BU:BU,$B14) -> 3122.73825 | BU14: =_xlfn.PERCENTILE.INC(Simulations!BV:BV,$B14) -> 4087.767059 | BV14: =_xlfn.PERCENTILE.INC(Simulations!BW:BW,$B14) -> 4268.782643 | BW14: =_xlfn.PERCENTILE.INC(Simulations!BX:BX,$B14) -> 3213.86511 | BX14: =_xlfn.PERCENTILE.INC(Simulations!BY:BY,$B14) -> 829.0073697 | BY14: =_xlfn.PERCENTILE.INC(Simulations!BZ:BZ,$B14) -> 1187.800776 | BZ14: =_xlfn.PERCENTILE.INC(Simulations!CA:CA,$B14) -> 2950.461341 | CA14: =_xlfn.PERCENTILE.INC(Simulations!CB:CB,$B14) -> 9342.602106 | CB14: =_xlfn.PERCENTILE.INC(Simulations!CC:CC,$B14) -> 0 | CC14: =_xlfn.PERCENTILE.INC(Simulations!CD:CD,$B14) -> 3124.734036 | CD14: =_xlfn.PERCENTILE.INC(Simulations!CE:CE,$B14) -> 4114.365055 | CE14: =_xlfn.PERCENTILE.INC(Simulations!CF:CF,$B14) -> 6838.825049 | CF14: =_xlfn.PERCENTILE.INC(Simulations!CG:CG,$B14) -> 13470.95635 | CG14: =_xlfn.PERCENTILE.INC(Simulations!CH:CH,$B14) -> 3213.86511 | CH14: =_xlfn.PERCENTILE.INC(Simulations!CI:CI,$B14) -> 1976.57759 | CI14: =_xlfn.PERCENTILE.INC(Simulations!CJ:CJ,$B14) -> 1976.57759 | CJ14: =_xlfn.PERCENTILE.INC(Simulations!CK:CK,$B14) -> 1976.57759 | CK14: =_xlfn.PERCENTILE.INC(Simulations!CL:CL,$B14) -> 1976.57759 | CL14: =_xlfn.PERCENTILE.INC(Simulations!CM:CM,$B14) -> 1976.57759 | CM14: =_xlfn.PERCENTILE.INC(Simulations!CN:CN,$B14) -> 977.2377364 | CN14: =_xlfn.PERCENTILE.INC(Simulations!CO:CO,$B14) -> 977.2377364 | CO14: =_xlfn.PERCENTILE.INC(Simulations!CP:CP,$B14) -> 977.2377364 | CP14: =_xlfn.PERCENTILE.INC(Simulations!CQ:CQ,$B14) -> 977.2377364 | CQ14: =_xlfn.PERCENTILE.INC(Simulations!CR:CR,$B14) -> 977.2377364 | CR14: =_xlfn.PERCENTILE.INC(Simulations!CS:CS,$B14) -> 679.5347074 | CS14: =_xlfn.PERCENTILE.INC(Simulations!CT:CT,$B14) -> 977.2377364 | CT14: =_xlfn.PERCENTILE.INC(Simulations!CU:CU,$B14) -> 977.2377364 | CU14: =_xlfn.PERCENTILE.INC(Simulations!CV:CV,$B14) -> 977.2377364 | CV14: =_xlfn.PERCENTILE.INC(Simulations!CW:CW,$B14) -> 977.2377364 | CW14: =_xlfn.PERCENTILE.INC(Simulations!CX:CX,$B14) -> 210.8164204 | CX14: =_xlfn.PERCENTILE.INC(Simulations!CY:CY,$B14) -> 327.1109255 | CY14: =_xlfn.PERCENTILE.INC(Simulations!CZ:CZ,$B14) -> 543.1841426 | CZ14: =_xlfn.PERCENTILE.INC(Simulations!DA:DA,$B14) -> 1458.989918 | DA14: =_xlfn.PERCENTILE.INC(Simulations!DB:DB,$B14) -> 592.7631971 | DB14: =_xlfn.PERCENTILE.INC(Simulations!DC:DC,$B14) -> 854.7628335 | DC14: =_xlfn.PERCENTILE.INC(Simulations!DD:DD,$B14) -> 1247.753659 | DD14: =_xlfn.PERCENTILE.INC(Simulations!DE:DE,$B14) -> 1466.294501 | DE14: =_xlfn.PERCENTILE.INC(Simulations!DF:DF,$B14) -> 2395.576151 | DF14: =_xlfn.PERCENTILE.INC(Simulations!DG:DG,$B14) -> 1516.624115 | DG14: =_xlfn.PERCENTILE.INC(Simulations!DH:DH,$B14) -> 7152.452222 | DH14: =_xlfn.PERCENTILE.INC(Simulations!DI:DI,$B14) -> 7724.648399 | DI14: =_xlfn.PERCENTILE.INC(Simulations!DJ:DJ,$B14) -> 7737.786961 | DJ14: =_xlfn.PERCENTILE.INC(Simulations!DK:DK,$B14) -> 7470.966721 | DK14: =_xlfn.PERCENTILE.INC(Simulations!DL:DL,$B14) -> 8805.067922 | DL14: =_xlfn.PERCENTILE.INC(Simulations!DM:DM,$B14) -> 1589.239862 | DM14: =_xlfn.PERCENTILE.INC(Simulations!DN:DN,$B14) -> 1603.326993 | DN14: =_xlfn.PERCENTILE.INC(Simulations!DO:DO,$B14) -> 1496.834692 | DO14: =_xlfn.PERCENTILE.INC(Simulations!DP:DP,$B14) -> 1396.186474 | DP14: =_xlfn.PERCENTILE.INC(Simulations!DQ:DQ,$B14) -> 1538.504548 | DQ14: =_xlfn.PERCENTILE.INC(Simulations!DR:DR,$B14) -> 4343.124171 | DR14: =_xlfn.PERCENTILE.INC(Simulations!DS:DS,$B14) -> 4343.124171 | DS14: =_xlfn.PERCENTILE.INC(Simulations!DT:DT,$B14) -> 4608.304497 | DT14: =_xlfn.PERCENTILE.INC(Simulations!DU:DU,$B14) -> 4111.758314 | DU14: =_xlfn.PERCENTILE.INC(Simulations!DV:DV,$B14) -> 4111.758314 | DV14: =_xlfn.PERCENTILE.INC(Simulations!DW:DW,$B14) -> 2496845.916 | DW14: =_xlfn.PERCENTILE.INC(Simulations!DX:DX,$B14) -> 1733807.223 | DX14: =_xlfn.PERCENTILE.INC(Simulations!DY:DY,$B14) -> 3938665.269 | DY14: =_xlfn.PERCENTILE.INC(Simulations!DZ:DZ,$B14) -> 1945044.602 | DZ14: =_xlfn.PERCENTILE.INC(Simulations!EA:EA,$B14) -> 1074246.979 | EA14: =_xlfn.PERCENTILE.INC(Simulations!EB:EB,$B14) -> 880102.6478 | EB14: =_xlfn.PERCENTILE.INC(Simulations!EC:EC,$B14) -> 1619580.903 | EC14: =_xlfn.PERCENTILE.INC(Simulations!ED:ED,$B14) -> 2072631.342 | ED14: =_xlfn.PERCENTILE.INC(Simulations!EE:EE,$B14) ->  | EE14: =_xlfn.PERCENTILE.INC(Simulations!EF:EF,$B14) ->  | EF14: =_xlfn.PERCENTILE.INC(Simulations!EG:EG,$B14) ->  | EG14: =_xlfn.PERCENTILE.INC(Simulations!EH:EH,$B14) ->  | EH14: =_xlfn.PERCENTILE.INC(Simulations!EI:EI,$B14) ->  | EI14: =_xlfn.PERCENTILE.INC(Simulations!EJ:EJ,$B14) ->  | EJ14: =_xlfn.PERCENTILE.INC(Simulations!EK:EK,$B14) ->  | EK14: =_xlfn.PERCENTILE.INC(Simulations!EL:EL,$B14) ->  | EL14: =_xlfn.PERCENTILE.INC(Simulations!EM:EM,$B14) ->  | EM14: =_xlfn.PERCENTILE.INC(Simulations!EN:EN,$B14) ->  | EN14: =_xlfn.PERCENTILE.INC(Simulations!EO:EO,$B14) ->  | EO14: =_xlfn.PERCENTILE.INC(Simulations!EP:EP,$B14) ->  | EP14: =_xlfn.PERCENTILE.INC(Simulations!EQ:EQ,$B14) ->  | EQ14: =_xlfn.PERCENTILE.INC(Simulations!ER:ER,$B14) ->  | ER14: =_xlfn.PERCENTILE.INC(Simulations!ES:ES,$B14) ->  | ES14: =_xlfn.PERCENTILE.INC(Simulations!ET:ET,$B14) ->  | ET14: =_xlfn.PERCENTILE.INC(Simulations!EU:EU,$B14) ->  | EU14: =_xlfn.PERCENTILE.INC(Simulations!EV:EV,$B14) ->  | EV14: =_xlfn.PERCENTILE.INC(Simulations!EW:EW,$B14) ->  | EW14: =_xlfn.PERCENTILE.INC(Simulations!EX:EX,$B14) ->  | EX14: =_xlfn.PERCENTILE.INC(Simulations!EY:EY,$B14) ->  | EY14: =_xlfn.PERCENTILE.INC(Simulations!EZ:EZ,$B14) ->  | EZ14: =_xlfn.PERCENTILE.INC(Simulations!FA:FA,$B14) ->  | FA14: =_xlfn.PERCENTILE.INC(Simulations!FB:FB,$B14) ->  | FB14: =_xlfn.PERCENTILE.INC(Simulations!FC:FC,$B14) ->  | FC14: =_xlfn.PERCENTILE.INC(Simulations!FD:FD,$B14) ->  | FD14: =_xlfn.PERCENTILE.INC(Simulations!FE:FE,$B14) ->  | FE14: =_xlfn.PERCENTILE.INC(Simulations!FF:FF,$B14) ->  | FF14: =_xlfn.PERCENTILE.INC(Simulations!FG:FG,$B14) ->  | FG14: =_xlfn.PERCENTILE.INC(Simulations!FH:FH,$B14) ->  | FH14: =_xlfn.PERCENTILE.INC(Simulations!FI:FI,$B14) ->  | FI14: =_xlfn.PERCENTILE.INC(Simulations!FJ:FJ,$B14) ->  | FJ14: =_xlfn.PERCENTILE.INC(Simulations!FK:FK,$B14) ->  | FK14: =_xlfn.PERCENTILE.INC(Simulations!FL:FL,$B14) ->  | FL14: =_xlfn.PERCENTILE.INC(Simulations!FM:FM,$B14) ->  | FM14: =_xlfn.PERCENTILE.INC(Simulations!FN:FN,$B14) ->  | FN14: =_xlfn.PERCENTILE.INC(Simulations!FO:FO,$B14) ->  | FO14: =_xlfn.PERCENTILE.INC(Simulations!FP:FP,$B14) ->  | FP14: =_xlfn.PERCENTILE.INC(Simulations!FQ:FQ,$B14) ->  | FQ14: =_xlfn.PERCENTILE.INC(Simulations!FR:FR,$B14) ->  | FR14: =_xlfn.PERCENTILE.INC(Simulations!FS:FS,$B14) ->  | FS14: =_xlfn.PERCENTILE.INC(Simulations!FT:FT,$B14) ->  | FT14: =_xlfn.PERCENTILE.INC(Simulations!FU:FU,$B14) ->  | FU14: =_xlfn.PERCENTILE.INC(Simulations!FV:FV,$B14) ->  | FV14: =_xlfn.PERCENTILE.INC(Simulations!FW:FW,$B14) ->  | FW14: =_xlfn.PERCENTILE.INC(Simulations!FX:FX,$B14) ->  | FX14: =_xlfn.PERCENTILE.INC(Simulations!FY:FY,$B14) ->  | FY14: =_xlfn.PERCENTILE.INC(Simulations!FZ:FZ,$B14) ->  | FZ14: =_xlfn.PERCENTILE.INC(Simulations!GA:GA,$B14) ->  | GA14: =_xlfn.PERCENTILE.INC(Simulations!GB:GB,$B14) ->  | GB14: =_xlfn.PERCENTILE.INC(Simulations!GC:GC,$B14) ->  | GC14: =_xlfn.PERCENTILE.INC(Simulations!GD:GD,$B14) ->  | GD14: =_xlfn.PERCENTILE.INC(Simulations!GE:GE,$B14) ->  | GE14: =_xlfn.PERCENTILE.INC(Simulations!GF:GF,$B14) ->  | GF14: =_xlfn.PERCENTILE.INC(Simulations!GG:GG,$B14) ->  | GG14: =_xlfn.PERCENTILE.INC(Simulations!GH:GH,$B14) ->  | GH14: =_xlfn.PERCENTILE.INC(Simulations!GI:GI,$B14) ->  | GI14: =_xlfn.PERCENTILE.INC(Simulations!GJ:GJ,$B14) ->  | GJ14: =_xlfn.PERCENTILE.INC(Simulations!GK:GK,$B14) ->  | GK14: =_xlfn.PERCENTILE.INC(Simulations!GL:GL,$B14) ->  | GL14: =_xlfn.PERCENTILE.INC(Simulations!GM:GM,$B14) ->  | GM14: =_xlfn.PERCENTILE.INC(Simulations!GN:GN,$B14) ->  | GN14: =_xlfn.PERCENTILE.INC(Simulations!GO:GO,$B14) ->  | GO14: =_xlfn.PERCENTILE.INC(Simulations!GP:GP,$B14) ->  | GP14: =_xlfn.PERCENTILE.INC(Simulations!GQ:GQ,$B14) ->  | GQ14: =_xlfn.PERCENTILE.INC(Simulations!GR:GR,$B14) ->  | GR14: =_xlfn.PERCENTILE.INC(Simulations!GS:GS,$B14) ->  | GS14: =_xlfn.PERCENTILE.INC(Simulations!GT:GT,$B14) ->  | GT14: =_xlfn.PERCENTILE.INC(Simulations!GU:GU,$B14) ->  | GU14: =_xlfn.PERCENTILE.INC(Simulations!GV:GV,$B14) ->  | GV14: =_xlfn.PERCENTILE.INC(Simulations!GW:GW,$B14) ->  | GW14: =_xlfn.PERCENTILE.INC(Simulations!GX:GX,$B14) ->  | GX14: =_xlfn.PERCENTILE.INC(Simulations!GY:GY,$B14) ->  | GY14: =_xlfn.PERCENTILE.INC(Simulations!GZ:GZ,$B14) ->  | GZ14: =_xlfn.PERCENTILE.INC(Simulations!HA:HA,$B14) ->  | HA14: =_xlfn.PERCENTILE.INC(Simulations!HB:HB,$B14) ->  | HB14: =_xlfn.PERCENTILE.INC(Simulations!HC:HC,$B14) ->  | HC14: =_xlfn.PERCENTILE.INC(Simulations!HD:HD,$B14) ->  | HD14: =_xlfn.PERCENTILE.INC(Simulations!HE:HE,$B14) ->  | HE14: =_xlfn.PERCENTILE.INC(Simulations!HF:HF,$B14) ->  | HF14: =_xlfn.PERCENTILE.INC(Simulations!HG:HG,$B14) ->  | HG14: =_xlfn.PERCENTILE.INC(Simulations!HH:HH,$B14) ->  | HH14: =_xlfn.PERCENTILE.INC(Simulations!HI:HI,$B14) ->  | HI14: =_xlfn.PERCENTILE.INC(Simulations!HJ:HJ,$B14) ->  | HJ14: =_xlfn.PERCENTILE.INC(Simulations!HK:HK,$B14) ->  | HK14: =_xlfn.PERCENTILE.INC(Simulations!HL:HL,$B14) ->  | HL14: =_xlfn.PERCENTILE.INC(Simulations!HM:HM,$B14) ->  | HM14: =_xlfn.PERCENTILE.INC(Simulations!HN:HN,$B14) ->  | HN14: =_xlfn.PERCENTILE.INC(Simulations!HO:HO,$B14) ->  | HO14: =_xlfn.PERCENTILE.INC(Simulations!HP:HP,$B14) ->  | HP14: =_xlfn.PERCENTILE.INC(Simulations!HQ:HQ,$B14) ->  | HQ14: =_xlfn.PERCENTILE.INC(Simulations!HR:HR,$B14) ->  | HR14: =_xlfn.PERCENTILE.INC(Simulations!HS:HS,$B14) ->  | HS14: =_xlfn.PERCENTILE.INC(Simulations!HT:HT,$B14) ->  | HT14: =_xlfn.PERCENTILE.INC(Simulations!HU:HU,$B14) ->  | HU14: =_xlfn.PERCENTILE.INC(Simulations!HV:HV,$B14) ->  | HV14: =_xlfn.PERCENTILE.INC(Simulations!HW:HW,$B14) ->  | HW14: =_xlfn.PERCENTILE.INC(Simulations!HX:HX,$B14) ->  | HX14: =_xlfn.PERCENTILE.INC(Simulations!HY:HY,$B14) ->  | HY14: =_xlfn.PERCENTILE.INC(Simulations!HZ:HZ,$B14) ->  | HZ14: =_xlfn.PERCENTILE.INC(Simulations!IA:IA,$B14) ->  | IA14: =_xlfn.PERCENTILE.INC(Simulations!IB:IB,$B14) ->  | IB14: =_xlfn.PERCENTILE.INC(Simulations!IC:IC,$B14) ->  | IC14: =_xlfn.PERCENTILE.INC(Simulations!ID:ID,$B14) ->  | ID14: =_xlfn.PERCENTILE.INC(Simulations!IE:IE,$B14) ->  | IE14: =_xlfn.PERCENTILE.INC(Simulations!IF:IF,$B14) ->  | IF14: =_xlfn.PERCENTILE.INC(Simulations!IG:IG,$B14) ->  | IG14: =_xlfn.PERCENTILE.INC(Simulations!IH:IH,$B14) ->  | IH14: =_xlfn.PERCENTILE.INC(Simulations!II:II,$B14) ->  | II14: =_xlfn.PERCENTILE.INC(Simulations!IJ:IJ,$B14) ->  | IJ14: =_xlfn.PERCENTILE.INC(Simulations!IK:IK,$B14) ->  | IK14: =_xlfn.PERCENTILE.INC(Simulations!IL:IL,$B14) ->  | IL14: =_xlfn.PERCENTILE.INC(Simulations!IM:IM,$B14) ->  | IM14: =_xlfn.PERCENTILE.INC(Simulations!IN:IN,$B14) ->  | IN14: =_xlfn.PERCENTILE.INC(Simulations!IO:IO,$B14) ->  | IO14: =_xlfn.PERCENTILE.INC(Simulations!IP:IP,$B14) ->  | IP14: =_xlfn.PERCENTILE.INC(Simulations!IQ:IQ,$B14) ->  | IQ14: =_xlfn.PERCENTILE.INC(Simulations!IR:IR,$B14) ->  | IR14: =_xlfn.PERCENTILE.INC(Simulations!IS:IS,$B14) ->  | IS14: =_xlfn.PERCENTILE.INC(Simulations!IT:IT,$B14) ->  | IT14: =_xlfn.PERCENTILE.INC(Simulations!IU:IU,$B14) ->  | IU14: =_xlfn.PERCENTILE.INC(Simulations!IV:IV,$B14) ->  | IV14: =_xlfn.PERCENTILE.INC(Simulations!IW:IW,$B14) ->  | IW14: =_xlfn.PERCENTILE.INC(Simulations!IX:IX,$B14) ->  | IX14: =_xlfn.PERCENTILE.INC(Simulations!IY:IY,$B14) ->  | IY14: =_xlfn.PERCENTILE.INC(Simulations!IZ:IZ,$B14) ->  | IZ14: =_xlfn.PERCENTILE.INC(Simulations!JA:JA,$B14) ->  | JA14: =_xlfn.PERCENTILE.INC(Simulations!JB:JB,$B14) ->  | JB14: =_xlfn.PERCENTILE.INC(Simulations!JC:JC,$B14) ->  | JC14: =_xlfn.PERCENTILE.INC(Simulations!JD:JD,$B14) ->  | JD14: =_xlfn.PERCENTILE.INC(Simulations!JE:JE,$B14) ->  | JE14: =_xlfn.PERCENTILE.INC(Simulations!JF:JF,$B14) ->  | JF14: =_xlfn.PERCENTILE.INC(Simulations!JG:JG,$B14) ->  | JG14: =_xlfn.PERCENTILE.INC(Simulations!JH:JH,$B14) ->  | JH14: =_xlfn.PERCENTILE.INC(Simulations!JI:JI,$B14) ->  | JI14: =_xlfn.PERCENTILE.INC(Simulations!JJ:JJ,$B14) ->  | JJ14: =_xlfn.PERCENTILE.INC(Simulations!JK:JK,$B14) ->  | JK14: =_xlfn.PERCENTILE.INC(Simulations!JL:JL,$B14) ->  | JL14: =_xlfn.PERCENTILE.INC(Simulations!JM:JM,$B14) ->  | JM14: =_xlfn.PERCENTILE.INC(Simulations!JN:JN,$B14) ->  | JN14: =_xlfn.PERCENTILE.INC(Simulations!JO:JO,$B14) ->  | JO14: =_xlfn.PERCENTILE.INC(Simulations!JP:JP,$B14) ->  | JP14: =_xlfn.PERCENTILE.INC(Simulations!JQ:JQ,$B14) ->  | JQ14: =_xlfn.PERCENTILE.INC(Simulations!JR:JR,$B14) ->  | JR14: =_xlfn.PERCENTILE.INC(Simulations!JS:JS,$B14) ->  | JS14: =_xlfn.PERCENTILE.INC(Simulations!JT:JT,$B14) ->  | JT14: =_xlfn.PERCENTILE.INC(Simulations!JU:JU,$B14) ->  | JU14: =_xlfn.PERCENTILE.INC(Simulations!JV:JV,$B14) ->  | JV14: =_xlfn.PERCENTILE.INC(Simulations!JW:JW,$B14) ->  | JW14: =_xlfn.PERCENTILE.INC(Simulations!JX:JX,$B14) ->  | JX14: =_xlfn.PERCENTILE.INC(Simulations!JY:JY,$B14) ->  | JY14: =_xlfn.PERCENTILE.INC(Simulations!JZ:JZ,$B14) ->  | JZ14: =_xlfn.PERCENTILE.INC(Simulations!KA:KA,$B14) ->  | KA14: =_xlfn.PERCENTILE.INC(Simulations!KB:KB,$B14) ->  | KB14: =_xlfn.PERCENTILE.INC(Simulations!KC:KC,$B14) ->  | KC14: =_xlfn.PERCENTILE.INC(Simulations!KD:KD,$B14) ->  | KD14: =_xlfn.PERCENTILE.INC(Simulations!KE:KE,$B14) ->  | KE14: =_xlfn.PERCENTILE.INC(Simulations!KF:KF,$B14) ->  | KF14: =_xlfn.PERCENTILE.INC(Simulations!KG:KG,$B14) ->  | KG14: =_xlfn.PERCENTILE.INC(Simulations!KH:KH,$B14) ->  | KH14: =_xlfn.PERCENTILE.INC(Simulations!KI:KI,$B14) ->  | KI14: =_xlfn.PERCENTILE.INC(Simulations!KJ:KJ,$B14) ->  | KJ14: =_xlfn.PERCENTILE.INC(Simulations!KK:KK,$B14) ->  | KK14: =_xlfn.PERCENTILE.INC(Simulations!KL:KL,$B14) ->  | KL14: =_xlfn.PERCENTILE.INC(Simulations!KM:KM,$B14) ->  | KM14: =_xlfn.PERCENTILE.INC(Simulations!KN:KN,$B14) ->  | KN14: =_xlfn.PERCENTILE.INC(Simulations!KO:KO,$B14) ->  | KO14: =_xlfn.PERCENTILE.INC(Simulations!KP:KP,$B14) ->  | KP14: =_xlfn.PERCENTILE.INC(Simulations!KQ:KQ,$B14) ->  | KQ14: =_xlfn.PERCENTILE.INC(Simulations!KR:KR,$B14) ->  | KR14: =_xlfn.PERCENTILE.INC(Simulations!KS:KS,$B14) ->  | KS14: =_xlfn.PERCENTILE.INC(Simulations!KT:KT,$B14) ->  | KT14: =_xlfn.PERCENTILE.INC(Simulations!KU:KU,$B14) ->  | KU14: =_xlfn.PERCENTILE.INC(Simulations!KV:KV,$B14) ->  | KV14: =_xlfn.PERCENTILE.INC(Simulations!KW:KW,$B14) ->  | KW14: =_xlfn.PERCENTILE.INC(Simulations!KX:KX,$B14) ->  | KX14: =_xlfn.PERCENTILE.INC(Simulations!KY:KY,$B14) ->  | KY14: =_xlfn.PERCENTILE.INC(Simulations!KZ:KZ,$B14) ->  | KZ14: =_xlfn.PERCENTILE.INC(Simulations!LA:LA,$B14) ->  | LA14: =_xlfn.PERCENTILE.INC(Simulations!LB:LB,$B14) ->  | LB14: =_xlfn.PERCENTILE.INC(Simulations!LC:LC,$B14) ->  | LC14: =_xlfn.PERCENTILE.INC(Simulations!LD:LD,$B14) ->  | LD14: =_xlfn.PERCENTILE.INC(Simulations!LE:LE,$B14) ->  | LE14: =_xlfn.PERCENTILE.INC(Simulations!LF:LF,$B14) ->  | LF14: =_xlfn.PERCENTILE.INC(Simulations!LG:LG,$B14) ->  | LG14: =_xlfn.PERCENTILE.INC(Simulations!LH:LH,$B14) ->  | LH14: =_xlfn.PERCENTILE.INC(Simulations!LI:LI,$B14) ->  | LI14: =_xlfn.PERCENTILE.INC(Simulations!LJ:LJ,$B14) ->  | LJ14: =_xlfn.PERCENTILE.INC(Simulations!LK:LK,$B14) ->  | LK14: =_xlfn.PERCENTILE.INC(Simulations!LL:LL,$B14) ->  | LL14: =_xlfn.PERCENTILE.INC(Simulations!LM:LM,$B14) ->  | LM14: =_xlfn.PERCENTILE.INC(Simulations!LN:LN,$B14) ->  | LN14: =_xlfn.PERCENTILE.INC(Simulations!LO:LO,$B14) ->  | LO14: =_xlfn.PERCENTILE.INC(Simulations!LP:LP,$B14) ->  | LP14: =_xlfn.PERCENTILE.INC(Simulations!LQ:LQ,$B14) ->  | LQ14: =_xlfn.PERCENTILE.INC(Simulations!LR:LR,$B14) ->  | LR14: =_xlfn.PERCENTILE.INC(Simulations!LS:LS,$B14) ->  | LS14: =_xlfn.PERCENTILE.INC(Simulations!LT:LT,$B14) ->  | LT14: =_xlfn.PERCENTILE.INC(Simulations!LU:LU,$B14) ->  | LU14: =_xlfn.PERCENTILE.INC(Simulations!LV:LV,$B14) ->  | LV14: =_xlfn.PERCENTILE.INC(Simulations!LW:LW,$B14) ->  | LW14: =_xlfn.PERCENTILE.INC(Simulations!LX:LX,$B14) ->  | LX14: =_xlfn.PERCENTILE.INC(Simulations!LY:LY,$B14) ->  | LY14: =_xlfn.PERCENTILE.INC(Simulations!LZ:LZ,$B14) ->  | LZ14: =_xlfn.PERCENTILE.INC(Simulations!MA:MA,$B14) ->  | MA14: =_xlfn.PERCENTILE.INC(Simulations!MB:MB,$B14) ->  | MB14: =_xlfn.PERCENTILE.INC(Simulations!MC:MC,$B14) ->  | MC14: =_xlfn.PERCENTILE.INC(Simulations!MD:MD,$B14) ->  | MD14: =_xlfn.PERCENTILE.INC(Simulations!ME:ME,$B14) ->  | ME14: =_xlfn.PERCENTILE.INC(Simulations!MF:MF,$B14) ->  | MF14: =_xlfn.PERCENTILE.INC(Simulations!MG:MG,$B14) ->  | MG14: =_xlfn.PERCENTILE.INC(Simulations!MH:MH,$B14) ->  | MH14: =_xlfn.PERCENTILE.INC(Simulations!MI:MI,$B14) ->  | MI14: =_xlfn.PERCENTILE.INC(Simulations!MJ:MJ,$B14) ->  | MJ14: =_xlfn.PERCENTILE.INC(Simulations!MK:MK,$B14) ->  | MK14: =_xlfn.PERCENTILE.INC(Simulations!ML:ML,$B14) ->  | ML14: =_xlfn.PERCENTILE.INC(Simulations!MM:MM,$B14) ->  | MM14: =_xlfn.PERCENTILE.INC(Simulations!MN:MN,$B14) ->  | MN14: =_xlfn.PERCENTILE.INC(Simulations!MO:MO,$B14) ->  | MO14: =_xlfn.PERCENTILE.INC(Simulations!MP:MP,$B14) ->  | MP14: =_xlfn.PERCENTILE.INC(Simulations!MQ:MQ,$B14) ->  | MQ14: =_xlfn.PERCENTILE.INC(Simulations!MR:MR,$B14) ->  | MR14: =_xlfn.PERCENTILE.INC(Simulations!MS:MS,$B14) ->  | MS14: =_xlfn.PERCENTILE.INC(Simulations!MT:MT,$B14) ->  | MT14: =_xlfn.PERCENTILE.INC(Simulations!MU:MU,$B14) ->  | MU14: =_xlfn.PERCENTILE.INC(Simulations!MV:MV,$B14) ->  | MV14: =_xlfn.PERCENTILE.INC(Simulations!MW:MW,$B14) ->  | MW14: =_xlfn.PERCENTILE.INC(Simulations!MX:MX,$B14) ->  | MX14: =_xlfn.PERCENTILE.INC(Simulations!MY:MY,$B14) ->  | MY14: =_xlfn.PERCENTILE.INC(Simulations!MZ:MZ,$B14) ->  | MZ14: =_xlfn.PERCENTILE.INC(Simulations!NA:NA,$B14) ->  | NA14: =_xlfn.PERCENTILE.INC(Simulations!NB:NB,$B14) ->  | NB14: =_xlfn.PERCENTILE.INC(Simulations!NC:NC,$B14) ->  | NC14: =_xlfn.PERCENTILE.INC(Simulations!ND:ND,$B14) ->  | ND14: =_xlfn.PERCENTILE.INC(Simulations!NE:NE,$B14) ->  | NE14: =_xlfn.PERCENTILE.INC(Simulations!NF:NF,$B14) ->  | NF14: =_xlfn.PERCENTILE.INC(Simulations!NG:NG,$B14) ->  | NG14: =_xlfn.PERCENTILE.INC(Simulations!NH:NH,$B14) ->  | NH14: =_xlfn.PERCENTILE.INC(Simulations!NI:NI,$B14) ->  | NI14: =_xlfn.PERCENTILE.INC(Simulations!NJ:NJ,$B14) ->  | NJ14: =_xlfn.PERCENTILE.INC(Simulations!NK:NK,$B14) ->  | NK14: =_xlfn.PERCENTILE.INC(Simulations!NL:NL,$B14) ->  | NL14: =_xlfn.PERCENTILE.INC(Simulations!NM:NM,$B14) ->  | NM14: =_xlfn.PERCENTILE.INC(Simulations!NN:NN,$B14) ->  | NN14: =_xlfn.PERCENTILE.INC(Simulations!NO:NO,$B14) ->  | NO14: =_xlfn.PERCENTILE.INC(Simulations!NP:NP,$B14) ->  | NP14: =_xlfn.PERCENTILE.INC(Simulations!NQ:NQ,$B14) ->  | NQ14: =_xlfn.PERCENTILE.INC(Simulations!NR:NR,$B14) ->  | NR14: =_xlfn.PERCENTILE.INC(Simulations!NS:NS,$B14) ->  | NS14: =_xlfn.PERCENTILE.INC(Simulations!NT:NT,$B14) ->  | NT14: =_xlfn.PERCENTILE.INC(Simulations!NU:NU,$B14) ->  | NU14: =_xlfn.PERCENTILE.INC(Simulations!NV:NV,$B14) ->  | NV14: =_xlfn.PERCENTILE.INC(Simulations!NW:NW,$B14) ->  | NW14: =_xlfn.PERCENTILE.INC(Simulations!NX:NX,$B14) ->  | NX14: =_xlfn.PERCENTILE.INC(Simulations!NY:NY,$B14) ->  | NY14: =_xlfn.PERCENTILE.INC(Simulations!NZ:NZ,$B14) ->  | NZ14: =_xlfn.PERCENTILE.INC(Simulations!OA:OA,$B14) ->  | OA14: =_xlfn.PERCENTILE.INC(Simulations!OB:OB,$B14) ->  | OB14: =_xlfn.PERCENTILE.INC(Simulations!OC:OC,$B14) ->  | OC14: =_xlfn.PERCENTILE.INC(Simulations!OD:OD,$B14) ->  | OD14: =_xlfn.PERCENTILE.INC(Simulations!OE:OE,$B14) ->  | OE14: =_xlfn.PERCENTILE.INC(Simulations!OF:OF,$B14) ->  | OF14: =_xlfn.PERCENTILE.INC(Simulations!OG:OG,$B14) ->  | OG14: =_xlfn.PERCENTILE.INC(Simulations!OH:OH,$B14) ->  | OH14: =_xlfn.PERCENTILE.INC(Simulations!OI:OI,$B14) ->  | OI14: =_xlfn.PERCENTILE.INC(Simulations!OJ:OJ,$B14) ->  | OJ14: =_xlfn.PERCENTILE.INC(Simulations!OK:OK,$B14) ->  | OK14: =_xlfn.PERCENTILE.INC(Simulations!OL:OL,$B14) ->  | OL14: =_xlfn.PERCENTILE.INC(Simulations!OM:OM,$B14) ->  | OM14: =_xlfn.PERCENTILE.INC(Simulations!ON:ON,$B14) ->  | ON14: =_xlfn.PERCENTILE.INC(Simulations!OO:OO,$B14) ->  | OO14: =_xlfn.PERCENTILE.INC(Simulations!OP:OP,$B14) ->  | OP14: =_xlfn.PERCENTILE.INC(Simulations!OQ:OQ,$B14) ->  | OQ14: =_xlfn.PERCENTILE.INC(Simulations!OR:OR,$B14) ->  | OR14: =_xlfn.PERCENTILE.INC(Simulations!OS:OS,$B14) ->  | OS14: =_xlfn.PERCENTILE.INC(Simulations!OT:OT,$B14) ->  | OT14: =_xlfn.PERCENTILE.INC(Simulations!OU:OU,$B14) ->  | OU14: =_xlfn.PERCENTILE.INC(Simulations!OV:OV,$B14) ->  | OV14: =_xlfn.PERCENTILE.INC(Simulations!OW:OW,$B14) ->  | OW14: =_xlfn.PERCENTILE.INC(Simulations!OX:OX,$B14) ->  | OX14: =_xlfn.PERCENTILE.INC(Simulations!OY:OY,$B14) ->  | OY14: =_xlfn.PERCENTILE.INC(Simulations!OZ:OZ,$B14) ->  | OZ14: =_xlfn.PERCENTILE.INC(Simulations!PA:PA,$B14) ->  | PA14: =_xlfn.PERCENTILE.INC(Simulations!PB:PB,$B14) ->  | PB14: =_xlfn.PERCENTILE.INC(Simulations!PC:PC,$B14) ->  | PC14: =_xlfn.PERCENTILE.INC(Simulations!PD:PD,$B14) ->  | PD14: =_xlfn.PERCENTILE.INC(Simulations!PE:PE,$B14) ->  | PE14: =_xlfn.PERCENTILE.INC(Simulations!PF:PF,$B14) ->  | PF14: =_xlfn.PERCENTILE.INC(Simulations!PG:PG,$B14) ->  | PG14: =_xlfn.PERCENTILE.INC(Simulations!PH:PH,$B14) ->  | PH14: =_xlfn.PERCENTILE.INC(Simulations!PI:PI,$B14) ->  | PI14: =_xlfn.PERCENTILE.INC(Simulations!PJ:PJ,$B14) ->  | PJ14: =_xlfn.PERCENTILE.INC(Simulations!PK:PK,$B14) ->  | PK14: =_xlfn.PERCENTILE.INC(Simulations!PL:PL,$B14) ->  | PL14: =_xlfn.PERCENTILE.INC(Simulations!PM:PM,$B14) ->  | PM14: =_xlfn.PERCENTILE.INC(Simulations!PN:PN,$B14) ->  | PN14: =_xlfn.PERCENTILE.INC(Simulations!PO:PO,$B14) ->  | PO14: =_xlfn.PERCENTILE.INC(Simulations!PP:PP,$B14) ->  | PP14: =_xlfn.PERCENTILE.INC(Simulations!PQ:PQ,$B14) ->  | PQ14: =_xlfn.PERCENTILE.INC(Simulations!PR:PR,$B14) ->  | PR14: =_xlfn.PERCENTILE.INC(Simulations!PS:PS,$B14) ->  | PS14: =_xlfn.PERCENTILE.INC(Simulations!PT:PT,$B14) ->  | PT14: =_xlfn.PERCENTILE.INC(Simulations!PU:PU,$B14) ->  | PU14: =_xlfn.PERCENTILE.INC(Simulations!PV:PV,$B14) ->  | PV14: =_xlfn.PERCENTILE.INC(Simulations!PW:PW,$B14) ->  | PW14: =_xlfn.PERCENTILE.INC(Simulations!PX:PX,$B14) ->  | PX14: =_xlfn.PERCENTILE.INC(Simulations!PY:PY,$B14) ->  | PY14: =_xlfn.PERCENTILE.INC(Simulations!PZ:PZ,$B14) ->  | PZ14: =_xlfn.PERCENTILE.INC(Simulations!QA:QA,$B14) ->  | QA14: =_xlfn.PERCENTILE.INC(Simulations!QB:QB,$B14) ->  | QB14: =_xlfn.PERCENTILE.INC(Simulations!QC:QC,$B14) ->  | QC14: =_xlfn.PERCENTILE.INC(Simulations!QD:QD,$B14) ->  | QD14: =_xlfn.PERCENTILE.INC(Simulations!QE:QE,$B14) ->  | QE14: =_xlfn.PERCENTILE.INC(Simulations!QF:QF,$B14) ->  | QF14: =_xlfn.PERCENTILE.INC(Simulations!QG:QG,$B14) ->  | QG14: =_xlfn.PERCENTILE.INC(Simulations!QH:QH,$B14) ->  | QH14: =_xlfn.PERCENTILE.INC(Simulations!QI:QI,$B14) ->  | QI14: =_xlfn.PERCENTILE.INC(Simulations!QJ:QJ,$B14) ->  | QJ14: =_xlfn.PERCENTILE.INC(Simulations!QK:QK,$B14) ->  | QK14: =_xlfn.PERCENTILE.INC(Simulations!QL:QL,$B14) ->  | QL14: =_xlfn.PERCENTILE.INC(Simulations!QM:QM,$B14) ->  | QM14: =_xlfn.PERCENTILE.INC(Simulations!QN:QN,$B14) ->  | QN14: =_xlfn.PERCENTILE.INC(Simulations!QO:QO,$B14) ->  | QO14: =_xlfn.PERCENTILE.INC(Simulations!QP:QP,$B14) ->  | QP14: =_xlfn.PERCENTILE.INC(Simulations!QQ:QQ,$B14) ->  | QQ14: =_xlfn.PERCENTILE.INC(Simulations!QR:QR,$B14) ->  | QR14: =_xlfn.PERCENTILE.INC(Simulations!QS:QS,$B14) ->  | QS14: =_xlfn.PERCENTILE.INC(Simulations!QT:QT,$B14) ->  | QT14: =_xlfn.PERCENTILE.INC(Simulations!QU:QU,$B14) ->  | QU14: =_xlfn.PERCENTILE.INC(Simulations!QV:QV,$B14) ->  | QV14: =_xlfn.PERCENTILE.INC(Simulations!QW:QW,$B14) ->  | QW14: =_xlfn.PERCENTILE.INC(Simulations!QX:QX,$B14) ->  | QX14: =_xlfn.PERCENTILE.INC(Simulations!QY:QY,$B14) ->  | QY14: =_xlfn.PERCENTILE.INC(Simulations!QZ:QZ,$B14) ->  | QZ14: =_xlfn.PERCENTILE.INC(Simulations!RA:RA,$B14) ->  | RA14: =_xlfn.PERCENTILE.INC(Simulations!RB:RB,$B14) ->  | RB14: =_xlfn.PERCENTILE.INC(Simulations!RC:RC,$B14) ->  | RC14: =_xlfn.PERCENTILE.INC(Simulations!RD:RD,$B14) ->  | RD14: =_xlfn.PERCENTILE.INC(Simulations!RE:RE,$B14) ->  | RE14: =_xlfn.PERCENTILE.INC(Simulations!RF:RF,$B14) ->  | RF14: =_xlfn.PERCENTILE.INC(Simulations!RG:RG,$B14) ->  | RG14: =_xlfn.PERCENTILE.INC(Simulations!RH:RH,$B14) ->  | RH14: =_xlfn.PERCENTILE.INC(Simulations!RI:RI,$B14) ->  | RI14: =_xlfn.PERCENTILE.INC(Simulations!RJ:RJ,$B14) ->  | RJ14: =_xlfn.PERCENTILE.INC(Simulations!RK:RK,$B14) ->  | RK14: =_xlfn.PERCENTILE.INC(Simulations!RL:RL,$B14) ->  | RL14: =_xlfn.PERCENTILE.INC(Simulations!RM:RM,$B14) ->  | RM14: =_xlfn.PERCENTILE.INC(Simulations!RN:RN,$B14) ->  | RN14: =_xlfn.PERCENTILE.INC(Simulations!RO:RO,$B14) ->  | RO14: =_xlfn.PERCENTILE.INC(Simulations!RP:RP,$B14) ->  | RP14: =_xlfn.PERCENTILE.INC(Simulations!RQ:RQ,$B14) ->  | RQ14: =_xlfn.PERCENTILE.INC(Simulations!RR:RR,$B14) ->  | RR14: =_xlfn.PERCENTILE.INC(Simulations!RS:RS,$B14) ->  | RS14: =_xlfn.PERCENTILE.INC(Simulations!RT:RT,$B14) ->  | RT14: =_xlfn.PERCENTILE.INC(Simulations!RU:RU,$B14) ->  | RU14: =_xlfn.PERCENTILE.INC(Simulations!RV:RV,$B14) ->  | RV14: =_xlfn.PERCENTILE.INC(Simulations!RW:RW,$B14) ->  | RW14: =_xlfn.PERCENTILE.INC(Simulations!RX:RX,$B14) ->  | RX14: =_xlfn.PERCENTILE.INC(Simulations!RY:RY,$B14) ->  | RY14: =_xlfn.PERCENTILE.INC(Simulations!RZ:RZ,$B14) ->  | RZ14: =_xlfn.PERCENTILE.INC(Simulations!SA:SA,$B14) ->  | SA14: =_xlfn.PERCENTILE.INC(Simulations!SB:SB,$B14) ->  | SB14: =_xlfn.PERCENTILE.INC(Simulations!SC:SC,$B14) ->  | SC14: =_xlfn.PERCENTILE.INC(Simulations!SD:SD,$B14) ->  | SD14: =_xlfn.PERCENTILE.INC(Simulations!SE:SE,$B14) ->  | SE14: =_xlfn.PERCENTILE.INC(Simulations!SF:SF,$B14) ->  | SF14: =_xlfn.PERCENTILE.INC(Simulations!SG:SG,$B14) ->  | SG14: =_xlfn.PERCENTILE.INC(Simulations!SH:SH,$B14) ->  | SH14: =_xlfn.PERCENTILE.INC(Simulations!SI:SI,$B14) -> 
B15: 0.975 | C15: =_xlfn.PERCENTILE.INC(Simulations!D:D,$B15) -> 379035.4678 | D15: =_xlfn.PERCENTILE.INC(Simulations!E:E,$B15) -> 632890.8444 | E15: =_xlfn.PERCENTILE.INC(Simulations!F:F,$B15) -> 512850.885 | F15: =_xlfn.PERCENTILE.INC(Simulations!G:G,$B15) -> 1513418.736 | G15: =_xlfn.PERCENTILE.INC(Simulations!H:H,$B15) -> 38556.12441 | H15: =_xlfn.PERCENTILE.INC(Simulations!I:I,$B15) -> 96030.9079 | I15: =_xlfn.PERCENTILE.INC(Simulations!J:J,$B15) -> 391983.0096 | J15: =_xlfn.PERCENTILE.INC(Simulations!K:K,$B15) -> 123366.7634 | K15: =_xlfn.PERCENTILE.INC(Simulations!L:L,$B15) -> 597643.3104 | L15: =_xlfn.PERCENTILE.INC(Simulations!M:M,$B15) -> 622527.7065 | M15: =_xlfn.PERCENTILE.INC(Simulations!N:N,$B15) -> 81096.67302 | N15: =_xlfn.PERCENTILE.INC(Simulations!O:O,$B15) -> 185399.3205 | O15: =_xlfn.PERCENTILE.INC(Simulations!P:P,$B15) -> 172986.255 | P15: =_xlfn.PERCENTILE.INC(Simulations!Q:Q,$B15) -> 273593.7497 | Q15: =_xlfn.PERCENTILE.INC(Simulations!R:R,$B15) -> 629114.8985 | R15: =_xlfn.PERCENTILE.INC(Simulations!S:S,$B15) -> 687172.2899 | S15: =_xlfn.PERCENTILE.INC(Simulations!T:T,$B15) -> 29176.79972 | T15: =_xlfn.PERCENTILE.INC(Simulations!U:U,$B15) -> 74320.78104 | U15: =_xlfn.PERCENTILE.INC(Simulations!V:V,$B15) -> 328593.6141 | V15: =_xlfn.PERCENTILE.INC(Simulations!W:W,$B15) -> 0 | W15: =_xlfn.PERCENTILE.INC(Simulations!X:X,$B15) -> 401536.9986 | X15: =_xlfn.PERCENTILE.INC(Simulations!Y:Y,$B15) -> 425022.9107 | Y15: =_xlfn.PERCENTILE.INC(Simulations!Z:Z,$B15) -> 106864.2618 | Z15: =_xlfn.PERCENTILE.INC(Simulations!AA:AA,$B15) -> 249559.569 | AA15: =_xlfn.PERCENTILE.INC(Simulations!AB:AB,$B15) -> 495216.2245 | AB15: =_xlfn.PERCENTILE.INC(Simulations!AC:AC,$B15) -> 273593.7497 | AC15: =_xlfn.PERCENTILE.INC(Simulations!AD:AD,$B15) -> 1000794.08 | AD15: =_xlfn.PERCENTILE.INC(Simulations!AE:AE,$B15) -> 1090300.832 | AE15: =_xlfn.PERCENTILE.INC(Simulations!AF:AF,$B15) -> 23606.07576 | AF15: =_xlfn.PERCENTILE.INC(Simulations!AG:AG,$B15) -> 53586.09201 | AG15: =_xlfn.PERCENTILE.INC(Simulations!AH:AH,$B15) -> 40442.33359 | AH15: =_xlfn.PERCENTILE.INC(Simulations!AI:AI,$B15) -> 72796.20047 | AI15: =_xlfn.PERCENTILE.INC(Simulations!AJ:AJ,$B15) -> 166824.6261 | AJ15: =_xlfn.PERCENTILE.INC(Simulations!AK:AK,$B15) -> 186182.8802 | AK15: =_xlfn.PERCENTILE.INC(Simulations!AL:AL,$B15) -> 7882.877587 | AL15: =_xlfn.PERCENTILE.INC(Simulations!AM:AM,$B15) -> 19352.5383 | AM15: =_xlfn.PERCENTILE.INC(Simulations!AN:AN,$B15) -> 52651.11158 | AN15: =_xlfn.PERCENTILE.INC(Simulations!AO:AO,$B15) -> 45302.4551 | AO15: =_xlfn.PERCENTILE.INC(Simulations!AP:AP,$B15) -> 113702.9678 | AP15: =_xlfn.PERCENTILE.INC(Simulations!AQ:AQ,$B15) -> 121332.9574 | AQ15: =_xlfn.PERCENTILE.INC(Simulations!AR:AR,$B15) -> 30623.25098 | AR15: =_xlfn.PERCENTILE.INC(Simulations!AS:AS,$B15) -> 69524.45248 | AS15: =_xlfn.PERCENTILE.INC(Simulations!AT:AT,$B15) -> 92104.03077 | AT15: =_xlfn.PERCENTILE.INC(Simulations!AU:AU,$B15) -> 114024.9434 | AU15: =_xlfn.PERCENTILE.INC(Simulations!AV:AV,$B15) -> 274317.8329 | AV15: =_xlfn.PERCENTILE.INC(Simulations!AW:AW,$B15) -> 300516.5767 | AW15: =_xlfn.PERCENTILE.INC(Simulations!AX:AX,$B15) -> 133509.3874 | AX15: =_xlfn.PERCENTILE.INC(Simulations!AY:AY,$B15) -> 303913.0595 | AY15: =_xlfn.PERCENTILE.INC(Simulations!AZ:AZ,$B15) -> 563095.2577 | AZ15: =_xlfn.PERCENTILE.INC(Simulations!BA:BA,$B15) -> 363872.9291 | BA15: =_xlfn.PERCENTILE.INC(Simulations!BB:BB,$B15) -> 1215884.029 | BB15: =_xlfn.PERCENTILE.INC(Simulations!BC:BC,$B15) -> 1316228.005 | BC15: =_xlfn.PERCENTILE.INC(Simulations!BD:BD,$B15) -> 59071.2 | BD15: =_xlfn.PERCENTILE.INC(Simulations!BE:BE,$B15) -> 100283.8627 | BE15: =_xlfn.PERCENTILE.INC(Simulations!BF:BF,$B15) -> 105278.4322 | BF15: =_xlfn.PERCENTILE.INC(Simulations!BG:BG,$B15) -> 176512.5573 | BG15: =_xlfn.PERCENTILE.INC(Simulations!BH:BH,$B15) -> 372577.7383 | BH15: =_xlfn.PERCENTILE.INC(Simulations!BI:BI,$B15) -> 429439.1601 | BI15: =_xlfn.PERCENTILE.INC(Simulations!BJ:BJ,$B15) -> 6859.093797 | BJ15: =_xlfn.PERCENTILE.INC(Simulations!BK:BK,$B15) -> 8588.222913 | BK15: =_xlfn.PERCENTILE.INC(Simulations!BL:BL,$B15) -> 10739.82933 | BL15: =_xlfn.PERCENTILE.INC(Simulations!BM:BM,$B15) -> 11456.64482 | BM15: =_xlfn.PERCENTILE.INC(Simulations!BN:BN,$B15) -> 11778.73141 | BN15: =_xlfn.PERCENTILE.INC(Simulations!BO:BO,$B15) -> 2617.076611 | BO15: =_xlfn.PERCENTILE.INC(Simulations!BP:BP,$B15) -> 3443.122908 | BP15: =_xlfn.PERCENTILE.INC(Simulations!BQ:BQ,$B15) -> 5065.958593 | BQ15: =_xlfn.PERCENTILE.INC(Simulations!BR:BR,$B15) -> 5951.027942 | BR15: =_xlfn.PERCENTILE.INC(Simulations!BS:BS,$B15) -> 6043.173314 | BS15: =_xlfn.PERCENTILE.INC(Simulations!BT:BT,$B15) -> 2454.979255 | BT15: =_xlfn.PERCENTILE.INC(Simulations!BU:BU,$B15) -> 3202.14678 | BU15: =_xlfn.PERCENTILE.INC(Simulations!BV:BV,$B15) -> 4173.637988 | BV15: =_xlfn.PERCENTILE.INC(Simulations!BW:BW,$B15) -> 4352.271591 | BW15: =_xlfn.PERCENTILE.INC(Simulations!BX:BX,$B15) -> 3267.231866 | BX15: =_xlfn.PERCENTILE.INC(Simulations!BY:BY,$B15) -> 882.7483489 | BY15: =_xlfn.PERCENTILE.INC(Simulations!BZ:BZ,$B15) -> 1213.97296 | BZ15: =_xlfn.PERCENTILE.INC(Simulations!CA:CA,$B15) -> 3021.982653 | CA15: =_xlfn.PERCENTILE.INC(Simulations!CB:CB,$B15) -> 9502.54004 | CB15: =_xlfn.PERCENTILE.INC(Simulations!CC:CC,$B15) -> 0 | CC15: =_xlfn.PERCENTILE.INC(Simulations!CD:CD,$B15) -> 3237.050236 | CD15: =_xlfn.PERCENTILE.INC(Simulations!CE:CE,$B15) -> 4203.602871 | CE15: =_xlfn.PERCENTILE.INC(Simulations!CF:CF,$B15) -> 6971.962229 | CF15: =_xlfn.PERCENTILE.INC(Simulations!CG:CG,$B15) -> 13711.01516 | CG15: =_xlfn.PERCENTILE.INC(Simulations!CH:CH,$B15) -> 3267.231866 | CH15: =_xlfn.PERCENTILE.INC(Simulations!CI:CI,$B15) -> 2029.792357 | CI15: =_xlfn.PERCENTILE.INC(Simulations!CJ:CJ,$B15) -> 2029.792357 | CJ15: =_xlfn.PERCENTILE.INC(Simulations!CK:CK,$B15) -> 2029.792357 | CK15: =_xlfn.PERCENTILE.INC(Simulations!CL:CL,$B15) -> 2029.792357 | CL15: =_xlfn.PERCENTILE.INC(Simulations!CM:CM,$B15) -> 2029.792357 | CM15: =_xlfn.PERCENTILE.INC(Simulations!CN:CN,$B15) -> 1011.05834 | CN15: =_xlfn.PERCENTILE.INC(Simulations!CO:CO,$B15) -> 1011.05834 | CO15: =_xlfn.PERCENTILE.INC(Simulations!CP:CP,$B15) -> 1011.05834 | CP15: =_xlfn.PERCENTILE.INC(Simulations!CQ:CQ,$B15) -> 1011.05834 | CQ15: =_xlfn.PERCENTILE.INC(Simulations!CR:CR,$B15) -> 1011.05834 | CR15: =_xlfn.PERCENTILE.INC(Simulations!CS:CS,$B15) -> 715.335629 | CS15: =_xlfn.PERCENTILE.INC(Simulations!CT:CT,$B15) -> 1011.05834 | CT15: =_xlfn.PERCENTILE.INC(Simulations!CU:CU,$B15) -> 1011.05834 | CU15: =_xlfn.PERCENTILE.INC(Simulations!CV:CV,$B15) -> 1011.05834 | CV15: =_xlfn.PERCENTILE.INC(Simulations!CW:CW,$B15) -> 1011.05834 | CW15: =_xlfn.PERCENTILE.INC(Simulations!CX:CX,$B15) -> 238.8750784 | CX15: =_xlfn.PERCENTILE.INC(Simulations!CY:CY,$B15) -> 354.5866202 | CY15: =_xlfn.PERCENTILE.INC(Simulations!CZ:CZ,$B15) -> 572.9262691 | CZ15: =_xlfn.PERCENTILE.INC(Simulations!DA:DA,$B15) -> 1504.894583 | DA15: =_xlfn.PERCENTILE.INC(Simulations!DB:DB,$B15) -> 629.2007653 | DB15: =_xlfn.PERCENTILE.INC(Simulations!DC:DC,$B15) -> 927.9773023 | DC15: =_xlfn.PERCENTILE.INC(Simulations!DD:DD,$B15) -> 1301.045032 | DD15: =_xlfn.PERCENTILE.INC(Simulations!DE:DE,$B15) -> 1528.671336 | DE15: =_xlfn.PERCENTILE.INC(Simulations!DF:DF,$B15) -> 2496.083128 | DF15: =_xlfn.PERCENTILE.INC(Simulations!DG:DG,$B15) -> 1583.67977 | DG15: =_xlfn.PERCENTILE.INC(Simulations!DH:DH,$B15) -> 7188.273608 | DH15: =_xlfn.PERCENTILE.INC(Simulations!DI:DI,$B15) -> 7763.335497 | DI15: =_xlfn.PERCENTILE.INC(Simulations!DJ:DJ,$B15) -> 7775.009454 | DJ15: =_xlfn.PERCENTILE.INC(Simulations!DK:DK,$B15) -> 7506.90568 | DK15: =_xlfn.PERCENTILE.INC(Simulations!DL:DL,$B15) -> 8847.424551 | DL15: =_xlfn.PERCENTILE.INC(Simulations!DM:DM,$B15) -> 1622.456579 | DM15: =_xlfn.PERCENTILE.INC(Simulations!DN:DN,$B15) -> 1652.25588 | DN15: =_xlfn.PERCENTILE.INC(Simulations!DO:DO,$B15) -> 1540.964529 | DO15: =_xlfn.PERCENTILE.INC(Simulations!DP:DP,$B15) -> 1419.336891 | DP15: =_xlfn.PERCENTILE.INC(Simulations!DQ:DQ,$B15) -> 1624.51304 | DQ15: =_xlfn.PERCENTILE.INC(Simulations!DR:DR,$B15) -> 4378.006923 | DR15: =_xlfn.PERCENTILE.INC(Simulations!DS:DS,$B15) -> 4378.006923 | DS15: =_xlfn.PERCENTILE.INC(Simulations!DT:DT,$B15) -> 4685.245096 | DT15: =_xlfn.PERCENTILE.INC(Simulations!DU:DU,$B15) -> 4162.873395 | DU15: =_xlfn.PERCENTILE.INC(Simulations!DV:DV,$B15) -> 4162.873395 | DV15: =_xlfn.PERCENTILE.INC(Simulations!DW:DW,$B15) -> 2532903.971 | DW15: =_xlfn.PERCENTILE.INC(Simulations!DX:DX,$B15) -> 1748267.189 | DX15: =_xlfn.PERCENTILE.INC(Simulations!DY:DY,$B15) -> 3962499.071 | DY15: =_xlfn.PERCENTILE.INC(Simulations!DZ:DZ,$B15) -> 1961889.076 | DZ15: =_xlfn.PERCENTILE.INC(Simulations!EA:EA,$B15) -> 1095562.385 | EA15: =_xlfn.PERCENTILE.INC(Simulations!EB:EB,$B15) -> 889532.3363 | EB15: =_xlfn.PERCENTILE.INC(Simulations!EC:EC,$B15) -> 1654052.785 | EC15: =_xlfn.PERCENTILE.INC(Simulations!ED:ED,$B15) -> 2118194.784 | ED15: =_xlfn.PERCENTILE.INC(Simulations!EE:EE,$B15) ->  | EE15: =_xlfn.PERCENTILE.INC(Simulations!EF:EF,$B15) ->  | EF15: =_xlfn.PERCENTILE.INC(Simulations!EG:EG,$B15) ->  | EG15: =_xlfn.PERCENTILE.INC(Simulations!EH:EH,$B15) ->  | EH15: =_xlfn.PERCENTILE.INC(Simulations!EI:EI,$B15) ->  | EI15: =_xlfn.PERCENTILE.INC(Simulations!EJ:EJ,$B15) ->  | EJ15: =_xlfn.PERCENTILE.INC(Simulations!EK:EK,$B15) ->  | EK15: =_xlfn.PERCENTILE.INC(Simulations!EL:EL,$B15) ->  | EL15: =_xlfn.PERCENTILE.INC(Simulations!EM:EM,$B15) ->  | EM15: =_xlfn.PERCENTILE.INC(Simulations!EN:EN,$B15) ->  | EN15: =_xlfn.PERCENTILE.INC(Simulations!EO:EO,$B15) ->  | EO15: =_xlfn.PERCENTILE.INC(Simulations!EP:EP,$B15) ->  | EP15: =_xlfn.PERCENTILE.INC(Simulations!EQ:EQ,$B15) ->  | EQ15: =_xlfn.PERCENTILE.INC(Simulations!ER:ER,$B15) ->  | ER15: =_xlfn.PERCENTILE.INC(Simulations!ES:ES,$B15) ->  | ES15: =_xlfn.PERCENTILE.INC(Simulations!ET:ET,$B15) ->  | ET15: =_xlfn.PERCENTILE.INC(Simulations!EU:EU,$B15) ->  | EU15: =_xlfn.PERCENTILE.INC(Simulations!EV:EV,$B15) ->  | EV15: =_xlfn.PERCENTILE.INC(Simulations!EW:EW,$B15) ->  | EW15: =_xlfn.PERCENTILE.INC(Simulations!EX:EX,$B15) ->  | EX15: =_xlfn.PERCENTILE.INC(Simulations!EY:EY,$B15) ->  | EY15: =_xlfn.PERCENTILE.INC(Simulations!EZ:EZ,$B15) ->  | EZ15: =_xlfn.PERCENTILE.INC(Simulations!FA:FA,$B15) ->  | FA15: =_xlfn.PERCENTILE.INC(Simulations!FB:FB,$B15) ->  | FB15: =_xlfn.PERCENTILE.INC(Simulations!FC:FC,$B15) ->  | FC15: =_xlfn.PERCENTILE.INC(Simulations!FD:FD,$B15) ->  | FD15: =_xlfn.PERCENTILE.INC(Simulations!FE:FE,$B15) ->  | FE15: =_xlfn.PERCENTILE.INC(Simulations!FF:FF,$B15) ->  | FF15: =_xlfn.PERCENTILE.INC(Simulations!FG:FG,$B15) ->  | FG15: =_xlfn.PERCENTILE.INC(Simulations!FH:FH,$B15) ->  | FH15: =_xlfn.PERCENTILE.INC(Simulations!FI:FI,$B15) ->  | FI15: =_xlfn.PERCENTILE.INC(Simulations!FJ:FJ,$B15) ->  | FJ15: =_xlfn.PERCENTILE.INC(Simulations!FK:FK,$B15) ->  | FK15: =_xlfn.PERCENTILE.INC(Simulations!FL:FL,$B15) ->  | FL15: =_xlfn.PERCENTILE.INC(Simulations!FM:FM,$B15) ->  | FM15: =_xlfn.PERCENTILE.INC(Simulations!FN:FN,$B15) ->  | FN15: =_xlfn.PERCENTILE.INC(Simulations!FO:FO,$B15) ->  | FO15: =_xlfn.PERCENTILE.INC(Simulations!FP:FP,$B15) ->  | FP15: =_xlfn.PERCENTILE.INC(Simulations!FQ:FQ,$B15) ->  | FQ15: =_xlfn.PERCENTILE.INC(Simulations!FR:FR,$B15) ->  | FR15: =_xlfn.PERCENTILE.INC(Simulations!FS:FS,$B15) ->  | FS15: =_xlfn.PERCENTILE.INC(Simulations!FT:FT,$B15) ->  | FT15: =_xlfn.PERCENTILE.INC(Simulations!FU:FU,$B15) ->  | FU15: =_xlfn.PERCENTILE.INC(Simulations!FV:FV,$B15) ->  | FV15: =_xlfn.PERCENTILE.INC(Simulations!FW:FW,$B15) ->  | FW15: =_xlfn.PERCENTILE.INC(Simulations!FX:FX,$B15) ->  | FX15: =_xlfn.PERCENTILE.INC(Simulations!FY:FY,$B15) ->  | FY15: =_xlfn.PERCENTILE.INC(Simulations!FZ:FZ,$B15) ->  | FZ15: =_xlfn.PERCENTILE.INC(Simulations!GA:GA,$B15) ->  | GA15: =_xlfn.PERCENTILE.INC(Simulations!GB:GB,$B15) ->  | GB15: =_xlfn.PERCENTILE.INC(Simulations!GC:GC,$B15) ->  | GC15: =_xlfn.PERCENTILE.INC(Simulations!GD:GD,$B15) ->  | GD15: =_xlfn.PERCENTILE.INC(Simulations!GE:GE,$B15) ->  | GE15: =_xlfn.PERCENTILE.INC(Simulations!GF:GF,$B15) ->  | GF15: =_xlfn.PERCENTILE.INC(Simulations!GG:GG,$B15) ->  | GG15: =_xlfn.PERCENTILE.INC(Simulations!GH:GH,$B15) ->  | GH15: =_xlfn.PERCENTILE.INC(Simulations!GI:GI,$B15) ->  | GI15: =_xlfn.PERCENTILE.INC(Simulations!GJ:GJ,$B15) ->  | GJ15: =_xlfn.PERCENTILE.INC(Simulations!GK:GK,$B15) ->  | GK15: =_xlfn.PERCENTILE.INC(Simulations!GL:GL,$B15) ->  | GL15: =_xlfn.PERCENTILE.INC(Simulations!GM:GM,$B15) ->  | GM15: =_xlfn.PERCENTILE.INC(Simulations!GN:GN,$B15) ->  | GN15: =_xlfn.PERCENTILE.INC(Simulations!GO:GO,$B15) ->  | GO15: =_xlfn.PERCENTILE.INC(Simulations!GP:GP,$B15) ->  | GP15: =_xlfn.PERCENTILE.INC(Simulations!GQ:GQ,$B15) ->  | GQ15: =_xlfn.PERCENTILE.INC(Simulations!GR:GR,$B15) ->  | GR15: =_xlfn.PERCENTILE.INC(Simulations!GS:GS,$B15) ->  | GS15: =_xlfn.PERCENTILE.INC(Simulations!GT:GT,$B15) ->  | GT15: =_xlfn.PERCENTILE.INC(Simulations!GU:GU,$B15) ->  | GU15: =_xlfn.PERCENTILE.INC(Simulations!GV:GV,$B15) ->  | GV15: =_xlfn.PERCENTILE.INC(Simulations!GW:GW,$B15) ->  | GW15: =_xlfn.PERCENTILE.INC(Simulations!GX:GX,$B15) ->  | GX15: =_xlfn.PERCENTILE.INC(Simulations!GY:GY,$B15) ->  | GY15: =_xlfn.PERCENTILE.INC(Simulations!GZ:GZ,$B15) ->  | GZ15: =_xlfn.PERCENTILE.INC(Simulations!HA:HA,$B15) ->  | HA15: =_xlfn.PERCENTILE.INC(Simulations!HB:HB,$B15) ->  | HB15: =_xlfn.PERCENTILE.INC(Simulations!HC:HC,$B15) ->  | HC15: =_xlfn.PERCENTILE.INC(Simulations!HD:HD,$B15) ->  | HD15: =_xlfn.PERCENTILE.INC(Simulations!HE:HE,$B15) ->  | HE15: =_xlfn.PERCENTILE.INC(Simulations!HF:HF,$B15) ->  | HF15: =_xlfn.PERCENTILE.INC(Simulations!HG:HG,$B15) ->  | HG15: =_xlfn.PERCENTILE.INC(Simulations!HH:HH,$B15) ->  | HH15: =_xlfn.PERCENTILE.INC(Simulations!HI:HI,$B15) ->  | HI15: =_xlfn.PERCENTILE.INC(Simulations!HJ:HJ,$B15) ->  | HJ15: =_xlfn.PERCENTILE.INC(Simulations!HK:HK,$B15) ->  | HK15: =_xlfn.PERCENTILE.INC(Simulations!HL:HL,$B15) ->  | HL15: =_xlfn.PERCENTILE.INC(Simulations!HM:HM,$B15) ->  | HM15: =_xlfn.PERCENTILE.INC(Simulations!HN:HN,$B15) ->  | HN15: =_xlfn.PERCENTILE.INC(Simulations!HO:HO,$B15) ->  | HO15: =_xlfn.PERCENTILE.INC(Simulations!HP:HP,$B15) ->  | HP15: =_xlfn.PERCENTILE.INC(Simulations!HQ:HQ,$B15) ->  | HQ15: =_xlfn.PERCENTILE.INC(Simulations!HR:HR,$B15) ->  | HR15: =_xlfn.PERCENTILE.INC(Simulations!HS:HS,$B15) ->  | HS15: =_xlfn.PERCENTILE.INC(Simulations!HT:HT,$B15) ->  | HT15: =_xlfn.PERCENTILE.INC(Simulations!HU:HU,$B15) ->  | HU15: =_xlfn.PERCENTILE.INC(Simulations!HV:HV,$B15) ->  | HV15: =_xlfn.PERCENTILE.INC(Simulations!HW:HW,$B15) ->  | HW15: =_xlfn.PERCENTILE.INC(Simulations!HX:HX,$B15) ->  | HX15: =_xlfn.PERCENTILE.INC(Simulations!HY:HY,$B15) ->  | HY15: =_xlfn.PERCENTILE.INC(Simulations!HZ:HZ,$B15) ->  | HZ15: =_xlfn.PERCENTILE.INC(Simulations!IA:IA,$B15) ->  | IA15: =_xlfn.PERCENTILE.INC(Simulations!IB:IB,$B15) ->  | IB15: =_xlfn.PERCENTILE.INC(Simulations!IC:IC,$B15) ->  | IC15: =_xlfn.PERCENTILE.INC(Simulations!ID:ID,$B15) ->  | ID15: =_xlfn.PERCENTILE.INC(Simulations!IE:IE,$B15) ->  | IE15: =_xlfn.PERCENTILE.INC(Simulations!IF:IF,$B15) ->  | IF15: =_xlfn.PERCENTILE.INC(Simulations!IG:IG,$B15) ->  | IG15: =_xlfn.PERCENTILE.INC(Simulations!IH:IH,$B15) ->  | IH15: =_xlfn.PERCENTILE.INC(Simulations!II:II,$B15) ->  | II15: =_xlfn.PERCENTILE.INC(Simulations!IJ:IJ,$B15) ->  | IJ15: =_xlfn.PERCENTILE.INC(Simulations!IK:IK,$B15) ->  | IK15: =_xlfn.PERCENTILE.INC(Simulations!IL:IL,$B15) ->  | IL15: =_xlfn.PERCENTILE.INC(Simulations!IM:IM,$B15) ->  | IM15: =_xlfn.PERCENTILE.INC(Simulations!IN:IN,$B15) ->  | IN15: =_xlfn.PERCENTILE.INC(Simulations!IO:IO,$B15) ->  | IO15: =_xlfn.PERCENTILE.INC(Simulations!IP:IP,$B15) ->  | IP15: =_xlfn.PERCENTILE.INC(Simulations!IQ:IQ,$B15) ->  | IQ15: =_xlfn.PERCENTILE.INC(Simulations!IR:IR,$B15) ->  | IR15: =_xlfn.PERCENTILE.INC(Simulations!IS:IS,$B15) ->  | IS15: =_xlfn.PERCENTILE.INC(Simulations!IT:IT,$B15) ->  | IT15: =_xlfn.PERCENTILE.INC(Simulations!IU:IU,$B15) ->  | IU15: =_xlfn.PERCENTILE.INC(Simulations!IV:IV,$B15) ->  | IV15: =_xlfn.PERCENTILE.INC(Simulations!IW:IW,$B15) ->  | IW15: =_xlfn.PERCENTILE.INC(Simulations!IX:IX,$B15) ->  | IX15: =_xlfn.PERCENTILE.INC(Simulations!IY:IY,$B15) ->  | IY15: =_xlfn.PERCENTILE.INC(Simulations!IZ:IZ,$B15) ->  | IZ15: =_xlfn.PERCENTILE.INC(Simulations!JA:JA,$B15) ->  | JA15: =_xlfn.PERCENTILE.INC(Simulations!JB:JB,$B15) ->  | JB15: =_xlfn.PERCENTILE.INC(Simulations!JC:JC,$B15) ->  | JC15: =_xlfn.PERCENTILE.INC(Simulations!JD:JD,$B15) ->  | JD15: =_xlfn.PERCENTILE.INC(Simulations!JE:JE,$B15) ->  | JE15: =_xlfn.PERCENTILE.INC(Simulations!JF:JF,$B15) ->  | JF15: =_xlfn.PERCENTILE.INC(Simulations!JG:JG,$B15) ->  | JG15: =_xlfn.PERCENTILE.INC(Simulations!JH:JH,$B15) ->  | JH15: =_xlfn.PERCENTILE.INC(Simulations!JI:JI,$B15) ->  | JI15: =_xlfn.PERCENTILE.INC(Simulations!JJ:JJ,$B15) ->  | JJ15: =_xlfn.PERCENTILE.INC(Simulations!JK:JK,$B15) ->  | JK15: =_xlfn.PERCENTILE.INC(Simulations!JL:JL,$B15) ->  | JL15: =_xlfn.PERCENTILE.INC(Simulations!JM:JM,$B15) ->  | JM15: =_xlfn.PERCENTILE.INC(Simulations!JN:JN,$B15) ->  | JN15: =_xlfn.PERCENTILE.INC(Simulations!JO:JO,$B15) ->  | JO15: =_xlfn.PERCENTILE.INC(Simulations!JP:JP,$B15) ->  | JP15: =_xlfn.PERCENTILE.INC(Simulations!JQ:JQ,$B15) ->  | JQ15: =_xlfn.PERCENTILE.INC(Simulations!JR:JR,$B15) ->  | JR15: =_xlfn.PERCENTILE.INC(Simulations!JS:JS,$B15) ->  | JS15: =_xlfn.PERCENTILE.INC(Simulations!JT:JT,$B15) ->  | JT15: =_xlfn.PERCENTILE.INC(Simulations!JU:JU,$B15) ->  | JU15: =_xlfn.PERCENTILE.INC(Simulations!JV:JV,$B15) ->  | JV15: =_xlfn.PERCENTILE.INC(Simulations!JW:JW,$B15) ->  | JW15: =_xlfn.PERCENTILE.INC(Simulations!JX:JX,$B15) ->  | JX15: =_xlfn.PERCENTILE.INC(Simulations!JY:JY,$B15) ->  | JY15: =_xlfn.PERCENTILE.INC(Simulations!JZ:JZ,$B15) ->  | JZ15: =_xlfn.PERCENTILE.INC(Simulations!KA:KA,$B15) ->  | KA15: =_xlfn.PERCENTILE.INC(Simulations!KB:KB,$B15) ->  | KB15: =_xlfn.PERCENTILE.INC(Simulations!KC:KC,$B15) ->  | KC15: =_xlfn.PERCENTILE.INC(Simulations!KD:KD,$B15) ->  | KD15: =_xlfn.PERCENTILE.INC(Simulations!KE:KE,$B15) ->  | KE15: =_xlfn.PERCENTILE.INC(Simulations!KF:KF,$B15) ->  | KF15: =_xlfn.PERCENTILE.INC(Simulations!KG:KG,$B15) ->  | KG15: =_xlfn.PERCENTILE.INC(Simulations!KH:KH,$B15) ->  | KH15: =_xlfn.PERCENTILE.INC(Simulations!KI:KI,$B15) ->  | KI15: =_xlfn.PERCENTILE.INC(Simulations!KJ:KJ,$B15) ->  | KJ15: =_xlfn.PERCENTILE.INC(Simulations!KK:KK,$B15) ->  | KK15: =_xlfn.PERCENTILE.INC(Simulations!KL:KL,$B15) ->  | KL15: =_xlfn.PERCENTILE.INC(Simulations!KM:KM,$B15) ->  | KM15: =_xlfn.PERCENTILE.INC(Simulations!KN:KN,$B15) ->  | KN15: =_xlfn.PERCENTILE.INC(Simulations!KO:KO,$B15) ->  | KO15: =_xlfn.PERCENTILE.INC(Simulations!KP:KP,$B15) ->  | KP15: =_xlfn.PERCENTILE.INC(Simulations!KQ:KQ,$B15) ->  | KQ15: =_xlfn.PERCENTILE.INC(Simulations!KR:KR,$B15) ->  | KR15: =_xlfn.PERCENTILE.INC(Simulations!KS:KS,$B15) ->  | KS15: =_xlfn.PERCENTILE.INC(Simulations!KT:KT,$B15) ->  | KT15: =_xlfn.PERCENTILE.INC(Simulations!KU:KU,$B15) ->  | KU15: =_xlfn.PERCENTILE.INC(Simulations!KV:KV,$B15) ->  | KV15: =_xlfn.PERCENTILE.INC(Simulations!KW:KW,$B15) ->  | KW15: =_xlfn.PERCENTILE.INC(Simulations!KX:KX,$B15) ->  | KX15: =_xlfn.PERCENTILE.INC(Simulations!KY:KY,$B15) ->  | KY15: =_xlfn.PERCENTILE.INC(Simulations!KZ:KZ,$B15) ->  | KZ15: =_xlfn.PERCENTILE.INC(Simulations!LA:LA,$B15) ->  | LA15: =_xlfn.PERCENTILE.INC(Simulations!LB:LB,$B15) ->  | LB15: =_xlfn.PERCENTILE.INC(Simulations!LC:LC,$B15) ->  | LC15: =_xlfn.PERCENTILE.INC(Simulations!LD:LD,$B15) ->  | LD15: =_xlfn.PERCENTILE.INC(Simulations!LE:LE,$B15) ->  | LE15: =_xlfn.PERCENTILE.INC(Simulations!LF:LF,$B15) ->  | LF15: =_xlfn.PERCENTILE.INC(Simulations!LG:LG,$B15) ->  | LG15: =_xlfn.PERCENTILE.INC(Simulations!LH:LH,$B15) ->  | LH15: =_xlfn.PERCENTILE.INC(Simulations!LI:LI,$B15) ->  | LI15: =_xlfn.PERCENTILE.INC(Simulations!LJ:LJ,$B15) ->  | LJ15: =_xlfn.PERCENTILE.INC(Simulations!LK:LK,$B15) ->  | LK15: =_xlfn.PERCENTILE.INC(Simulations!LL:LL,$B15) ->  | LL15: =_xlfn.PERCENTILE.INC(Simulations!LM:LM,$B15) ->  | LM15: =_xlfn.PERCENTILE.INC(Simulations!LN:LN,$B15) ->  | LN15: =_xlfn.PERCENTILE.INC(Simulations!LO:LO,$B15) ->  | LO15: =_xlfn.PERCENTILE.INC(Simulations!LP:LP,$B15) ->  | LP15: =_xlfn.PERCENTILE.INC(Simulations!LQ:LQ,$B15) ->  | LQ15: =_xlfn.PERCENTILE.INC(Simulations!LR:LR,$B15) ->  | LR15: =_xlfn.PERCENTILE.INC(Simulations!LS:LS,$B15) ->  | LS15: =_xlfn.PERCENTILE.INC(Simulations!LT:LT,$B15) ->  | LT15: =_xlfn.PERCENTILE.INC(Simulations!LU:LU,$B15) ->  | LU15: =_xlfn.PERCENTILE.INC(Simulations!LV:LV,$B15) ->  | LV15: =_xlfn.PERCENTILE.INC(Simulations!LW:LW,$B15) ->  | LW15: =_xlfn.PERCENTILE.INC(Simulations!LX:LX,$B15) ->  | LX15: =_xlfn.PERCENTILE.INC(Simulations!LY:LY,$B15) ->  | LY15: =_xlfn.PERCENTILE.INC(Simulations!LZ:LZ,$B15) ->  | LZ15: =_xlfn.PERCENTILE.INC(Simulations!MA:MA,$B15) ->  | MA15: =_xlfn.PERCENTILE.INC(Simulations!MB:MB,$B15) ->  | MB15: =_xlfn.PERCENTILE.INC(Simulations!MC:MC,$B15) ->  | MC15: =_xlfn.PERCENTILE.INC(Simulations!MD:MD,$B15) ->  | MD15: =_xlfn.PERCENTILE.INC(Simulations!ME:ME,$B15) ->  | ME15: =_xlfn.PERCENTILE.INC(Simulations!MF:MF,$B15) ->  | MF15: =_xlfn.PERCENTILE.INC(Simulations!MG:MG,$B15) ->  | MG15: =_xlfn.PERCENTILE.INC(Simulations!MH:MH,$B15) ->  | MH15: =_xlfn.PERCENTILE.INC(Simulations!MI:MI,$B15) ->  | MI15: =_xlfn.PERCENTILE.INC(Simulations!MJ:MJ,$B15) ->  | MJ15: =_xlfn.PERCENTILE.INC(Simulations!MK:MK,$B15) ->  | MK15: =_xlfn.PERCENTILE.INC(Simulations!ML:ML,$B15) ->  | ML15: =_xlfn.PERCENTILE.INC(Simulations!MM:MM,$B15) ->  | MM15: =_xlfn.PERCENTILE.INC(Simulations!MN:MN,$B15) ->  | MN15: =_xlfn.PERCENTILE.INC(Simulations!MO:MO,$B15) ->  | MO15: =_xlfn.PERCENTILE.INC(Simulations!MP:MP,$B15) ->  | MP15: =_xlfn.PERCENTILE.INC(Simulations!MQ:MQ,$B15) ->  | MQ15: =_xlfn.PERCENTILE.INC(Simulations!MR:MR,$B15) ->  | MR15: =_xlfn.PERCENTILE.INC(Simulations!MS:MS,$B15) ->  | MS15: =_xlfn.PERCENTILE.INC(Simulations!MT:MT,$B15) ->  | MT15: =_xlfn.PERCENTILE.INC(Simulations!MU:MU,$B15) ->  | MU15: =_xlfn.PERCENTILE.INC(Simulations!MV:MV,$B15) ->  | MV15: =_xlfn.PERCENTILE.INC(Simulations!MW:MW,$B15) ->  | MW15: =_xlfn.PERCENTILE.INC(Simulations!MX:MX,$B15) ->  | MX15: =_xlfn.PERCENTILE.INC(Simulations!MY:MY,$B15) ->  | MY15: =_xlfn.PERCENTILE.INC(Simulations!MZ:MZ,$B15) ->  | MZ15: =_xlfn.PERCENTILE.INC(Simulations!NA:NA,$B15) ->  | NA15: =_xlfn.PERCENTILE.INC(Simulations!NB:NB,$B15) ->  | NB15: =_xlfn.PERCENTILE.INC(Simulations!NC:NC,$B15) ->  | NC15: =_xlfn.PERCENTILE.INC(Simulations!ND:ND,$B15) ->  | ND15: =_xlfn.PERCENTILE.INC(Simulations!NE:NE,$B15) ->  | NE15: =_xlfn.PERCENTILE.INC(Simulations!NF:NF,$B15) ->  | NF15: =_xlfn.PERCENTILE.INC(Simulations!NG:NG,$B15) ->  | NG15: =_xlfn.PERCENTILE.INC(Simulations!NH:NH,$B15) ->  | NH15: =_xlfn.PERCENTILE.INC(Simulations!NI:NI,$B15) ->  | NI15: =_xlfn.PERCENTILE.INC(Simulations!NJ:NJ,$B15) ->  | NJ15: =_xlfn.PERCENTILE.INC(Simulations!NK:NK,$B15) ->  | NK15: =_xlfn.PERCENTILE.INC(Simulations!NL:NL,$B15) ->  | NL15: =_xlfn.PERCENTILE.INC(Simulations!NM:NM,$B15) ->  | NM15: =_xlfn.PERCENTILE.INC(Simulations!NN:NN,$B15) ->  | NN15: =_xlfn.PERCENTILE.INC(Simulations!NO:NO,$B15) ->  | NO15: =_xlfn.PERCENTILE.INC(Simulations!NP:NP,$B15) ->  | NP15: =_xlfn.PERCENTILE.INC(Simulations!NQ:NQ,$B15) ->  | NQ15: =_xlfn.PERCENTILE.INC(Simulations!NR:NR,$B15) ->  | NR15: =_xlfn.PERCENTILE.INC(Simulations!NS:NS,$B15) ->  | NS15: =_xlfn.PERCENTILE.INC(Simulations!NT:NT,$B15) ->  | NT15: =_xlfn.PERCENTILE.INC(Simulations!NU:NU,$B15) ->  | NU15: =_xlfn.PERCENTILE.INC(Simulations!NV:NV,$B15) ->  | NV15: =_xlfn.PERCENTILE.INC(Simulations!NW:NW,$B15) ->  | NW15: =_xlfn.PERCENTILE.INC(Simulations!NX:NX,$B15) ->  | NX15: =_xlfn.PERCENTILE.INC(Simulations!NY:NY,$B15) ->  | NY15: =_xlfn.PERCENTILE.INC(Simulations!NZ:NZ,$B15) ->  | NZ15: =_xlfn.PERCENTILE.INC(Simulations!OA:OA,$B15) ->  | OA15: =_xlfn.PERCENTILE.INC(Simulations!OB:OB,$B15) ->  | OB15: =_xlfn.PERCENTILE.INC(Simulations!OC:OC,$B15) ->  | OC15: =_xlfn.PERCENTILE.INC(Simulations!OD:OD,$B15) ->  | OD15: =_xlfn.PERCENTILE.INC(Simulations!OE:OE,$B15) ->  | OE15: =_xlfn.PERCENTILE.INC(Simulations!OF:OF,$B15) ->  | OF15: =_xlfn.PERCENTILE.INC(Simulations!OG:OG,$B15) ->  | OG15: =_xlfn.PERCENTILE.INC(Simulations!OH:OH,$B15) ->  | OH15: =_xlfn.PERCENTILE.INC(Simulations!OI:OI,$B15) ->  | OI15: =_xlfn.PERCENTILE.INC(Simulations!OJ:OJ,$B15) ->  | OJ15: =_xlfn.PERCENTILE.INC(Simulations!OK:OK,$B15) ->  | OK15: =_xlfn.PERCENTILE.INC(Simulations!OL:OL,$B15) ->  | OL15: =_xlfn.PERCENTILE.INC(Simulations!OM:OM,$B15) ->  | OM15: =_xlfn.PERCENTILE.INC(Simulations!ON:ON,$B15) ->  | ON15: =_xlfn.PERCENTILE.INC(Simulations!OO:OO,$B15) ->  | OO15: =_xlfn.PERCENTILE.INC(Simulations!OP:OP,$B15) ->  | OP15: =_xlfn.PERCENTILE.INC(Simulations!OQ:OQ,$B15) ->  | OQ15: =_xlfn.PERCENTILE.INC(Simulations!OR:OR,$B15) ->  | OR15: =_xlfn.PERCENTILE.INC(Simulations!OS:OS,$B15) ->  | OS15: =_xlfn.PERCENTILE.INC(Simulations!OT:OT,$B15) ->  | OT15: =_xlfn.PERCENTILE.INC(Simulations!OU:OU,$B15) ->  | OU15: =_xlfn.PERCENTILE.INC(Simulations!OV:OV,$B15) ->  | OV15: =_xlfn.PERCENTILE.INC(Simulations!OW:OW,$B15) ->  | OW15: =_xlfn.PERCENTILE.INC(Simulations!OX:OX,$B15) ->  | OX15: =_xlfn.PERCENTILE.INC(Simulations!OY:OY,$B15) ->  | OY15: =_xlfn.PERCENTILE.INC(Simulations!OZ:OZ,$B15) ->  | OZ15: =_xlfn.PERCENTILE.INC(Simulations!PA:PA,$B15) ->  | PA15: =_xlfn.PERCENTILE.INC(Simulations!PB:PB,$B15) ->  | PB15: =_xlfn.PERCENTILE.INC(Simulations!PC:PC,$B15) ->  | PC15: =_xlfn.PERCENTILE.INC(Simulations!PD:PD,$B15) ->  | PD15: =_xlfn.PERCENTILE.INC(Simulations!PE:PE,$B15) ->  | PE15: =_xlfn.PERCENTILE.INC(Simulations!PF:PF,$B15) ->  | PF15: =_xlfn.PERCENTILE.INC(Simulations!PG:PG,$B15) ->  | PG15: =_xlfn.PERCENTILE.INC(Simulations!PH:PH,$B15) ->  | PH15: =_xlfn.PERCENTILE.INC(Simulations!PI:PI,$B15) ->  | PI15: =_xlfn.PERCENTILE.INC(Simulations!PJ:PJ,$B15) ->  | PJ15: =_xlfn.PERCENTILE.INC(Simulations!PK:PK,$B15) ->  | PK15: =_xlfn.PERCENTILE.INC(Simulations!PL:PL,$B15) ->  | PL15: =_xlfn.PERCENTILE.INC(Simulations!PM:PM,$B15) ->  | PM15: =_xlfn.PERCENTILE.INC(Simulations!PN:PN,$B15) ->  | PN15: =_xlfn.PERCENTILE.INC(Simulations!PO:PO,$B15) ->  | PO15: =_xlfn.PERCENTILE.INC(Simulations!PP:PP,$B15) ->  | PP15: =_xlfn.PERCENTILE.INC(Simulations!PQ:PQ,$B15) ->  | PQ15: =_xlfn.PERCENTILE.INC(Simulations!PR:PR,$B15) ->  | PR15: =_xlfn.PERCENTILE.INC(Simulations!PS:PS,$B15) ->  | PS15: =_xlfn.PERCENTILE.INC(Simulations!PT:PT,$B15) ->  | PT15: =_xlfn.PERCENTILE.INC(Simulations!PU:PU,$B15) ->  | PU15: =_xlfn.PERCENTILE.INC(Simulations!PV:PV,$B15) ->  | PV15: =_xlfn.PERCENTILE.INC(Simulations!PW:PW,$B15) ->  | PW15: =_xlfn.PERCENTILE.INC(Simulations!PX:PX,$B15) ->  | PX15: =_xlfn.PERCENTILE.INC(Simulations!PY:PY,$B15) ->  | PY15: =_xlfn.PERCENTILE.INC(Simulations!PZ:PZ,$B15) ->  | PZ15: =_xlfn.PERCENTILE.INC(Simulations!QA:QA,$B15) ->  | QA15: =_xlfn.PERCENTILE.INC(Simulations!QB:QB,$B15) ->  | QB15: =_xlfn.PERCENTILE.INC(Simulations!QC:QC,$B15) ->  | QC15: =_xlfn.PERCENTILE.INC(Simulations!QD:QD,$B15) ->  | QD15: =_xlfn.PERCENTILE.INC(Simulations!QE:QE,$B15) ->  | QE15: =_xlfn.PERCENTILE.INC(Simulations!QF:QF,$B15) ->  | QF15: =_xlfn.PERCENTILE.INC(Simulations!QG:QG,$B15) ->  | QG15: =_xlfn.PERCENTILE.INC(Simulations!QH:QH,$B15) ->  | QH15: =_xlfn.PERCENTILE.INC(Simulations!QI:QI,$B15) ->  | QI15: =_xlfn.PERCENTILE.INC(Simulations!QJ:QJ,$B15) ->  | QJ15: =_xlfn.PERCENTILE.INC(Simulations!QK:QK,$B15) ->  | QK15: =_xlfn.PERCENTILE.INC(Simulations!QL:QL,$B15) ->  | QL15: =_xlfn.PERCENTILE.INC(Simulations!QM:QM,$B15) ->  | QM15: =_xlfn.PERCENTILE.INC(Simulations!QN:QN,$B15) ->  | QN15: =_xlfn.PERCENTILE.INC(Simulations!QO:QO,$B15) ->  | QO15: =_xlfn.PERCENTILE.INC(Simulations!QP:QP,$B15) ->  | QP15: =_xlfn.PERCENTILE.INC(Simulations!QQ:QQ,$B15) ->  | QQ15: =_xlfn.PERCENTILE.INC(Simulations!QR:QR,$B15) ->  | QR15: =_xlfn.PERCENTILE.INC(Simulations!QS:QS,$B15) ->  | QS15: =_xlfn.PERCENTILE.INC(Simulations!QT:QT,$B15) ->  | QT15: =_xlfn.PERCENTILE.INC(Simulations!QU:QU,$B15) ->  | QU15: =_xlfn.PERCENTILE.INC(Simulations!QV:QV,$B15) ->  | QV15: =_xlfn.PERCENTILE.INC(Simulations!QW:QW,$B15) ->  | QW15: =_xlfn.PERCENTILE.INC(Simulations!QX:QX,$B15) ->  | QX15: =_xlfn.PERCENTILE.INC(Simulations!QY:QY,$B15) ->  | QY15: =_xlfn.PERCENTILE.INC(Simulations!QZ:QZ,$B15) ->  | QZ15: =_xlfn.PERCENTILE.INC(Simulations!RA:RA,$B15) ->  | RA15: =_xlfn.PERCENTILE.INC(Simulations!RB:RB,$B15) ->  | RB15: =_xlfn.PERCENTILE.INC(Simulations!RC:RC,$B15) ->  | RC15: =_xlfn.PERCENTILE.INC(Simulations!RD:RD,$B15) ->  | RD15: =_xlfn.PERCENTILE.INC(Simulations!RE:RE,$B15) ->  | RE15: =_xlfn.PERCENTILE.INC(Simulations!RF:RF,$B15) ->  | RF15: =_xlfn.PERCENTILE.INC(Simulations!RG:RG,$B15) ->  | RG15: =_xlfn.PERCENTILE.INC(Simulations!RH:RH,$B15) ->  | RH15: =_xlfn.PERCENTILE.INC(Simulations!RI:RI,$B15) ->  | RI15: =_xlfn.PERCENTILE.INC(Simulations!RJ:RJ,$B15) ->  | RJ15: =_xlfn.PERCENTILE.INC(Simulations!RK:RK,$B15) ->  | RK15: =_xlfn.PERCENTILE.INC(Simulations!RL:RL,$B15) ->  | RL15: =_xlfn.PERCENTILE.INC(Simulations!RM:RM,$B15) ->  | RM15: =_xlfn.PERCENTILE.INC(Simulations!RN:RN,$B15) ->  | RN15: =_xlfn.PERCENTILE.INC(Simulations!RO:RO,$B15) ->  | RO15: =_xlfn.PERCENTILE.INC(Simulations!RP:RP,$B15) ->  | RP15: =_xlfn.PERCENTILE.INC(Simulations!RQ:RQ,$B15) ->  | RQ15: =_xlfn.PERCENTILE.INC(Simulations!RR:RR,$B15) ->  | RR15: =_xlfn.PERCENTILE.INC(Simulations!RS:RS,$B15) ->  | RS15: =_xlfn.PERCENTILE.INC(Simulations!RT:RT,$B15) ->  | RT15: =_xlfn.PERCENTILE.INC(Simulations!RU:RU,$B15) ->  | RU15: =_xlfn.PERCENTILE.INC(Simulations!RV:RV,$B15) ->  | RV15: =_xlfn.PERCENTILE.INC(Simulations!RW:RW,$B15) ->  | RW15: =_xlfn.PERCENTILE.INC(Simulations!RX:RX,$B15) ->  | RX15: =_xlfn.PERCENTILE.INC(Simulations!RY:RY,$B15) ->  | RY15: =_xlfn.PERCENTILE.INC(Simulations!RZ:RZ,$B15) ->  | RZ15: =_xlfn.PERCENTILE.INC(Simulations!SA:SA,$B15) ->  | SA15: =_xlfn.PERCENTILE.INC(Simulations!SB:SB,$B15) ->  | SB15: =_xlfn.PERCENTILE.INC(Simulations!SC:SC,$B15) ->  | SC15: =_xlfn.PERCENTILE.INC(Simulations!SD:SD,$B15) ->  | SD15: =_xlfn.PERCENTILE.INC(Simulations!SE:SE,$B15) ->  | SE15: =_xlfn.PERCENTILE.INC(Simulations!SF:SF,$B15) ->  | SF15: =_xlfn.PERCENTILE.INC(Simulations!SG:SG,$B15) ->  | SG15: =_xlfn.PERCENTILE.INC(Simulations!SH:SH,$B15) ->  | SH15: =_xlfn.PERCENTILE.INC(Simulations!SI:SI,$B15) -> 
B16: 0.99 | C16: =_xlfn.PERCENTILE.INC(Simulations!D:D,$B16) -> 390231.9434 | D16: =_xlfn.PERCENTILE.INC(Simulations!E:E,$B16) -> 654953.1047 | E16: =_xlfn.PERCENTILE.INC(Simulations!F:F,$B16) -> 553304.4495 | F16: =_xlfn.PERCENTILE.INC(Simulations!G:G,$B16) -> 1602935.275 | G16: =_xlfn.PERCENTILE.INC(Simulations!H:H,$B16) -> 43094.05239 | H16: =_xlfn.PERCENTILE.INC(Simulations!I:I,$B16) -> 101887.4804 | I16: =_xlfn.PERCENTILE.INC(Simulations!J:J,$B16) -> 412750.1775 | J16: =_xlfn.PERCENTILE.INC(Simulations!K:K,$B16) -> 142207.816 | K16: =_xlfn.PERCENTILE.INC(Simulations!L:L,$B16) -> 643276.4952 | L16: =_xlfn.PERCENTILE.INC(Simulations!M:M,$B16) -> 691048.8961 | M16: =_xlfn.PERCENTILE.INC(Simulations!N:N,$B16) -> 85204.37194 | N16: =_xlfn.PERCENTILE.INC(Simulations!O:O,$B16) -> 192512.1509 | O16: =_xlfn.PERCENTILE.INC(Simulations!P:P,$B16) -> 180464.6046 | P16: =_xlfn.PERCENTILE.INC(Simulations!Q:Q,$B16) -> 286924.4879 | Q16: =_xlfn.PERCENTILE.INC(Simulations!R:R,$B16) -> 656290.1596 | R16: =_xlfn.PERCENTILE.INC(Simulations!S:S,$B16) -> 709438.3002 | S16: =_xlfn.PERCENTILE.INC(Simulations!T:T,$B16) -> 32947.79364 | T16: =_xlfn.PERCENTILE.INC(Simulations!U:U,$B16) -> 78460.8158 | U16: =_xlfn.PERCENTILE.INC(Simulations!V:V,$B16) -> 338432.7864 | V16: =_xlfn.PERCENTILE.INC(Simulations!W:W,$B16) -> 0 | W16: =_xlfn.PERCENTILE.INC(Simulations!X:X,$B16) -> 415205.2699 | X16: =_xlfn.PERCENTILE.INC(Simulations!Y:Y,$B16) -> 441105.4901 | Y16: =_xlfn.PERCENTILE.INC(Simulations!Z:Z,$B16) -> 113368.5879 | Z16: =_xlfn.PERCENTILE.INC(Simulations!AA:AA,$B16) -> 257279.3054 | AA16: =_xlfn.PERCENTILE.INC(Simulations!AB:AB,$B16) -> 509872.7481 | AB16: =_xlfn.PERCENTILE.INC(Simulations!AC:AC,$B16) -> 286924.4879 | AC16: =_xlfn.PERCENTILE.INC(Simulations!AD:AD,$B16) -> 1039130.05 | AD16: =_xlfn.PERCENTILE.INC(Simulations!AE:AE,$B16) -> 1116063.495 | AE16: =_xlfn.PERCENTILE.INC(Simulations!AF:AF,$B16) -> 26029.28332 | AF16: =_xlfn.PERCENTILE.INC(Simulations!AG:AG,$B16) -> 55341.17497 | AG16: =_xlfn.PERCENTILE.INC(Simulations!AH:AH,$B16) -> 41766.92451 | AH16: =_xlfn.PERCENTILE.INC(Simulations!AI:AI,$B16) -> 75180.46412 | AI16: =_xlfn.PERCENTILE.INC(Simulations!AJ:AJ,$B16) -> 172288.5636 | AJ16: =_xlfn.PERCENTILE.INC(Simulations!AK:AK,$B16) -> 194240.9477 | AK16: =_xlfn.PERCENTILE.INC(Simulations!AL:AL,$B16) -> 9352.886196 | AL16: =_xlfn.PERCENTILE.INC(Simulations!AM:AM,$B16) -> 20968.65948 | AM16: =_xlfn.PERCENTILE.INC(Simulations!AN:AN,$B16) -> 57281.71961 | AN16: =_xlfn.PERCENTILE.INC(Simulations!AO:AO,$B16) -> 50400.45959 | AO16: =_xlfn.PERCENTILE.INC(Simulations!AP:AP,$B16) -> 128907.685 | AP16: =_xlfn.PERCENTILE.INC(Simulations!AQ:AQ,$B16) -> 132539.3405 | AQ16: =_xlfn.PERCENTILE.INC(Simulations!AR:AR,$B16) -> 34311.49916 | AR16: =_xlfn.PERCENTILE.INC(Simulations!AS:AS,$B16) -> 73737.69777 | AS16: =_xlfn.PERCENTILE.INC(Simulations!AT:AT,$B16) -> 97675.50976 | AT16: =_xlfn.PERCENTILE.INC(Simulations!AU:AU,$B16) -> 121987.6671 | AU16: =_xlfn.PERCENTILE.INC(Simulations!AV:AV,$B16) -> 294766.3873 | AV16: =_xlfn.PERCENTILE.INC(Simulations!AW:AW,$B16) -> 318280.4089 | AW16: =_xlfn.PERCENTILE.INC(Simulations!AX:AX,$B16) -> 140693.0769 | AX16: =_xlfn.PERCENTILE.INC(Simulations!AY:AY,$B16) -> 310973.8009 | AY16: =_xlfn.PERCENTILE.INC(Simulations!AZ:AZ,$B16) -> 581057.9421 | AZ16: =_xlfn.PERCENTILE.INC(Simulations!BA:BA,$B16) -> 375416.3764 | BA16: =_xlfn.PERCENTILE.INC(Simulations!BB:BB,$B16) -> 1244514.641 | BB16: =_xlfn.PERCENTILE.INC(Simulations!BC:BC,$B16) -> 1365351.289 | BC16: =_xlfn.PERCENTILE.INC(Simulations!BD:BD,$B16) -> 62336.78072 | BD16: =_xlfn.PERCENTILE.INC(Simulations!BE:BE,$B16) -> 108276.7492 | BE16: =_xlfn.PERCENTILE.INC(Simulations!BF:BF,$B16) -> 121358.5296 | BF16: =_xlfn.PERCENTILE.INC(Simulations!BG:BG,$B16) -> 221026.0142 | BG16: =_xlfn.PERCENTILE.INC(Simulations!BH:BH,$B16) -> 447051.8898 | BH16: =_xlfn.PERCENTILE.INC(Simulations!BI:BI,$B16) -> 505709.2627 | BI16: =_xlfn.PERCENTILE.INC(Simulations!BJ:BJ,$B16) -> 6977.130609 | BJ16: =_xlfn.PERCENTILE.INC(Simulations!BK:BK,$B16) -> 8722.801218 | BK16: =_xlfn.PERCENTILE.INC(Simulations!BL:BL,$B16) -> 10851.21514 | BL16: =_xlfn.PERCENTILE.INC(Simulations!BM:BM,$B16) -> 11554.93339 | BM16: =_xlfn.PERCENTILE.INC(Simulations!BN:BN,$B16) -> 11926.45688 | BN16: =_xlfn.PERCENTILE.INC(Simulations!BO:BO,$B16) -> 2795.159844 | BO16: =_xlfn.PERCENTILE.INC(Simulations!BP:BP,$B16) -> 3588.569769 | BP16: =_xlfn.PERCENTILE.INC(Simulations!BQ:BQ,$B16) -> 5203.819955 | BQ16: =_xlfn.PERCENTILE.INC(Simulations!BR:BR,$B16) -> 6097.515741 | BR16: =_xlfn.PERCENTILE.INC(Simulations!BS:BS,$B16) -> 6205.476082 | BS16: =_xlfn.PERCENTILE.INC(Simulations!BT:BT,$B16) -> 2581.190548 | BT16: =_xlfn.PERCENTILE.INC(Simulations!BU:BU,$B16) -> 3301.188983 | BU16: =_xlfn.PERCENTILE.INC(Simulations!BV:BV,$B16) -> 4354.61894 | BV16: =_xlfn.PERCENTILE.INC(Simulations!BW:BW,$B16) -> 4533.408263 | BW16: =_xlfn.PERCENTILE.INC(Simulations!BX:BX,$B16) -> 3470.949773 | BX16: =_xlfn.PERCENTILE.INC(Simulations!BY:BY,$B16) -> 996.9930899 | BY16: =_xlfn.PERCENTILE.INC(Simulations!BZ:BZ,$B16) -> 1306.081269 | BZ16: =_xlfn.PERCENTILE.INC(Simulations!CA:CA,$B16) -> 3122.39752 | CA16: =_xlfn.PERCENTILE.INC(Simulations!CB:CB,$B16) -> 10021.08198 | CB16: =_xlfn.PERCENTILE.INC(Simulations!CC:CC,$B16) -> 0 | CC16: =_xlfn.PERCENTILE.INC(Simulations!CD:CD,$B16) -> 3433.77734 | CD16: =_xlfn.PERCENTILE.INC(Simulations!CE:CE,$B16) -> 4375.230843 | CE16: =_xlfn.PERCENTILE.INC(Simulations!CF:CF,$B16) -> 7202.14841 | CF16: =_xlfn.PERCENTILE.INC(Simulations!CG:CG,$B16) -> 14366.28071 | CG16: =_xlfn.PERCENTILE.INC(Simulations!CH:CH,$B16) -> 3470.949773 | CH16: =_xlfn.PERCENTILE.INC(Simulations!CI:CI,$B16) -> 2142.135839 | CI16: =_xlfn.PERCENTILE.INC(Simulations!CJ:CJ,$B16) -> 2142.135839 | CJ16: =_xlfn.PERCENTILE.INC(Simulations!CK:CK,$B16) -> 2142.135839 | CK16: =_xlfn.PERCENTILE.INC(Simulations!CL:CL,$B16) -> 2142.135839 | CL16: =_xlfn.PERCENTILE.INC(Simulations!CM:CM,$B16) -> 2142.135839 | CM16: =_xlfn.PERCENTILE.INC(Simulations!CN:CN,$B16) -> 1044.173113 | CN16: =_xlfn.PERCENTILE.INC(Simulations!CO:CO,$B16) -> 1044.173113 | CO16: =_xlfn.PERCENTILE.INC(Simulations!CP:CP,$B16) -> 1044.173113 | CP16: =_xlfn.PERCENTILE.INC(Simulations!CQ:CQ,$B16) -> 1044.173113 | CQ16: =_xlfn.PERCENTILE.INC(Simulations!CR:CR,$B16) -> 1044.173113 | CR16: =_xlfn.PERCENTILE.INC(Simulations!CS:CS,$B16) -> 788.7661612 | CS16: =_xlfn.PERCENTILE.INC(Simulations!CT:CT,$B16) -> 1044.173113 | CT16: =_xlfn.PERCENTILE.INC(Simulations!CU:CU,$B16) -> 1044.173113 | CU16: =_xlfn.PERCENTILE.INC(Simulations!CV:CV,$B16) -> 1044.173113 | CV16: =_xlfn.PERCENTILE.INC(Simulations!CW:CW,$B16) -> 1044.173113 | CW16: =_xlfn.PERCENTILE.INC(Simulations!CX:CX,$B16) -> 283.4207938 | CX16: =_xlfn.PERCENTILE.INC(Simulations!CY:CY,$B16) -> 384.5185206 | CY16: =_xlfn.PERCENTILE.INC(Simulations!CZ:CZ,$B16) -> 620.1315146 | CZ16: =_xlfn.PERCENTILE.INC(Simulations!DA:DA,$B16) -> 1634.948619 | DA16: =_xlfn.PERCENTILE.INC(Simulations!DB:DB,$B16) -> 700.0063832 | DB16: =_xlfn.PERCENTILE.INC(Simulations!DC:DC,$B16) -> 1039.742399 | DC16: =_xlfn.PERCENTILE.INC(Simulations!DD:DD,$B16) -> 1379.892252 | DD16: =_xlfn.PERCENTILE.INC(Simulations!DE:DE,$B16) -> 1621.255616 | DE16: =_xlfn.PERCENTILE.INC(Simulations!DF:DF,$B16) -> 2647.04353 | DF16: =_xlfn.PERCENTILE.INC(Simulations!DG:DG,$B16) -> 1694.273154 | DG16: =_xlfn.PERCENTILE.INC(Simulations!DH:DH,$B16) -> 7240.045071 | DH16: =_xlfn.PERCENTILE.INC(Simulations!DI:DI,$B16) -> 7819.248677 | DI16: =_xlfn.PERCENTILE.INC(Simulations!DJ:DJ,$B16) -> 7883.414014 | DJ16: =_xlfn.PERCENTILE.INC(Simulations!DK:DK,$B16) -> 7611.572151 | DK16: =_xlfn.PERCENTILE.INC(Simulations!DL:DL,$B16) -> 8970.781464 | DL16: =_xlfn.PERCENTILE.INC(Simulations!DM:DM,$B16) -> 1671.457838 | DM16: =_xlfn.PERCENTILE.INC(Simulations!DN:DN,$B16) -> 1699.659034 | DN16: =_xlfn.PERCENTILE.INC(Simulations!DO:DO,$B16) -> 1631.990686 | DO16: =_xlfn.PERCENTILE.INC(Simulations!DP:DP,$B16) -> 1559.439951 | DP16: =_xlfn.PERCENTILE.INC(Simulations!DQ:DQ,$B16) -> 1782.52354 | DQ16: =_xlfn.PERCENTILE.INC(Simulations!DR:DR,$B16) -> 4438.335419 | DR16: =_xlfn.PERCENTILE.INC(Simulations!DS:DS,$B16) -> 4438.335419 | DS16: =_xlfn.PERCENTILE.INC(Simulations!DT:DT,$B16) -> 4737.259958 | DT16: =_xlfn.PERCENTILE.INC(Simulations!DU:DU,$B16) -> 4203.614697 | DU16: =_xlfn.PERCENTILE.INC(Simulations!DV:DV,$B16) -> 4203.614697 | DV16: =_xlfn.PERCENTILE.INC(Simulations!DW:DW,$B16) -> 2563767.078 | DW16: =_xlfn.PERCENTILE.INC(Simulations!DX:DX,$B16) -> 1807129.989 | DX16: =_xlfn.PERCENTILE.INC(Simulations!DY:DY,$B16) -> 4029252.043 | DY16: =_xlfn.PERCENTILE.INC(Simulations!DZ:DZ,$B16) -> 1986395.812 | DZ16: =_xlfn.PERCENTILE.INC(Simulations!EA:EA,$B16) -> 1117830.776 | EA16: =_xlfn.PERCENTILE.INC(Simulations!EB:EB,$B16) -> 900608.2435 | EB16: =_xlfn.PERCENTILE.INC(Simulations!EC:EC,$B16) -> 1692964.502 | EC16: =_xlfn.PERCENTILE.INC(Simulations!ED:ED,$B16) -> 2190690.114 | ED16: =_xlfn.PERCENTILE.INC(Simulations!EE:EE,$B16) ->  | EE16: =_xlfn.PERCENTILE.INC(Simulations!EF:EF,$B16) ->  | EF16: =_xlfn.PERCENTILE.INC(Simulations!EG:EG,$B16) ->  | EG16: =_xlfn.PERCENTILE.INC(Simulations!EH:EH,$B16) ->  | EH16: =_xlfn.PERCENTILE.INC(Simulations!EI:EI,$B16) ->  | EI16: =_xlfn.PERCENTILE.INC(Simulations!EJ:EJ,$B16) ->  | EJ16: =_xlfn.PERCENTILE.INC(Simulations!EK:EK,$B16) ->  | EK16: =_xlfn.PERCENTILE.INC(Simulations!EL:EL,$B16) ->  | EL16: =_xlfn.PERCENTILE.INC(Simulations!EM:EM,$B16) ->  | EM16: =_xlfn.PERCENTILE.INC(Simulations!EN:EN,$B16) ->  | EN16: =_xlfn.PERCENTILE.INC(Simulations!EO:EO,$B16) ->  | EO16: =_xlfn.PERCENTILE.INC(Simulations!EP:EP,$B16) ->  | EP16: =_xlfn.PERCENTILE.INC(Simulations!EQ:EQ,$B16) ->  | EQ16: =_xlfn.PERCENTILE.INC(Simulations!ER:ER,$B16) ->  | ER16: =_xlfn.PERCENTILE.INC(Simulations!ES:ES,$B16) ->  | ES16: =_xlfn.PERCENTILE.INC(Simulations!ET:ET,$B16) ->  | ET16: =_xlfn.PERCENTILE.INC(Simulations!EU:EU,$B16) ->  | EU16: =_xlfn.PERCENTILE.INC(Simulations!EV:EV,$B16) ->  | EV16: =_xlfn.PERCENTILE.INC(Simulations!EW:EW,$B16) ->  | EW16: =_xlfn.PERCENTILE.INC(Simulations!EX:EX,$B16) ->  | EX16: =_xlfn.PERCENTILE.INC(Simulations!EY:EY,$B16) ->  | EY16: =_xlfn.PERCENTILE.INC(Simulations!EZ:EZ,$B16) ->  | EZ16: =_xlfn.PERCENTILE.INC(Simulations!FA:FA,$B16) ->  | FA16: =_xlfn.PERCENTILE.INC(Simulations!FB:FB,$B16) ->  | FB16: =_xlfn.PERCENTILE.INC(Simulations!FC:FC,$B16) ->  | FC16: =_xlfn.PERCENTILE.INC(Simulations!FD:FD,$B16) ->  | FD16: =_xlfn.PERCENTILE.INC(Simulations!FE:FE,$B16) ->  | FE16: =_xlfn.PERCENTILE.INC(Simulations!FF:FF,$B16) ->  | FF16: =_xlfn.PERCENTILE.INC(Simulations!FG:FG,$B16) ->  | FG16: =_xlfn.PERCENTILE.INC(Simulations!FH:FH,$B16) ->  | FH16: =_xlfn.PERCENTILE.INC(Simulations!FI:FI,$B16) ->  | FI16: =_xlfn.PERCENTILE.INC(Simulations!FJ:FJ,$B16) ->  | FJ16: =_xlfn.PERCENTILE.INC(Simulations!FK:FK,$B16) ->  | FK16: =_xlfn.PERCENTILE.INC(Simulations!FL:FL,$B16) ->  | FL16: =_xlfn.PERCENTILE.INC(Simulations!FM:FM,$B16) ->  | FM16: =_xlfn.PERCENTILE.INC(Simulations!FN:FN,$B16) ->  | FN16: =_xlfn.PERCENTILE.INC(Simulations!FO:FO,$B16) ->  | FO16: =_xlfn.PERCENTILE.INC(Simulations!FP:FP,$B16) ->  | FP16: =_xlfn.PERCENTILE.INC(Simulations!FQ:FQ,$B16) ->  | FQ16: =_xlfn.PERCENTILE.INC(Simulations!FR:FR,$B16) ->  | FR16: =_xlfn.PERCENTILE.INC(Simulations!FS:FS,$B16) ->  | FS16: =_xlfn.PERCENTILE.INC(Simulations!FT:FT,$B16) ->  | FT16: =_xlfn.PERCENTILE.INC(Simulations!FU:FU,$B16) ->  | FU16: =_xlfn.PERCENTILE.INC(Simulations!FV:FV,$B16) ->  | FV16: =_xlfn.PERCENTILE.INC(Simulations!FW:FW,$B16) ->  | FW16: =_xlfn.PERCENTILE.INC(Simulations!FX:FX,$B16) ->  | FX16: =_xlfn.PERCENTILE.INC(Simulations!FY:FY,$B16) ->  | FY16: =_xlfn.PERCENTILE.INC(Simulations!FZ:FZ,$B16) ->  | FZ16: =_xlfn.PERCENTILE.INC(Simulations!GA:GA,$B16) ->  | GA16: =_xlfn.PERCENTILE.INC(Simulations!GB:GB,$B16) ->  | GB16: =_xlfn.PERCENTILE.INC(Simulations!GC:GC,$B16) ->  | GC16: =_xlfn.PERCENTILE.INC(Simulations!GD:GD,$B16) ->  | GD16: =_xlfn.PERCENTILE.INC(Simulations!GE:GE,$B16) ->  | GE16: =_xlfn.PERCENTILE.INC(Simulations!GF:GF,$B16) ->  | GF16: =_xlfn.PERCENTILE.INC(Simulations!GG:GG,$B16) ->  | GG16: =_xlfn.PERCENTILE.INC(Simulations!GH:GH,$B16) ->  | GH16: =_xlfn.PERCENTILE.INC(Simulations!GI:GI,$B16) ->  | GI16: =_xlfn.PERCENTILE.INC(Simulations!GJ:GJ,$B16) ->  | GJ16: =_xlfn.PERCENTILE.INC(Simulations!GK:GK,$B16) ->  | GK16: =_xlfn.PERCENTILE.INC(Simulations!GL:GL,$B16) ->  | GL16: =_xlfn.PERCENTILE.INC(Simulations!GM:GM,$B16) ->  | GM16: =_xlfn.PERCENTILE.INC(Simulations!GN:GN,$B16) ->  | GN16: =_xlfn.PERCENTILE.INC(Simulations!GO:GO,$B16) ->  | GO16: =_xlfn.PERCENTILE.INC(Simulations!GP:GP,$B16) ->  | GP16: =_xlfn.PERCENTILE.INC(Simulations!GQ:GQ,$B16) ->  | GQ16: =_xlfn.PERCENTILE.INC(Simulations!GR:GR,$B16) ->  | GR16: =_xlfn.PERCENTILE.INC(Simulations!GS:GS,$B16) ->  | GS16: =_xlfn.PERCENTILE.INC(Simulations!GT:GT,$B16) ->  | GT16: =_xlfn.PERCENTILE.INC(Simulations!GU:GU,$B16) ->  | GU16: =_xlfn.PERCENTILE.INC(Simulations!GV:GV,$B16) ->  | GV16: =_xlfn.PERCENTILE.INC(Simulations!GW:GW,$B16) ->  | GW16: =_xlfn.PERCENTILE.INC(Simulations!GX:GX,$B16) ->  | GX16: =_xlfn.PERCENTILE.INC(Simulations!GY:GY,$B16) ->  | GY16: =_xlfn.PERCENTILE.INC(Simulations!GZ:GZ,$B16) ->  | GZ16: =_xlfn.PERCENTILE.INC(Simulations!HA:HA,$B16) ->  | HA16: =_xlfn.PERCENTILE.INC(Simulations!HB:HB,$B16) ->  | HB16: =_xlfn.PERCENTILE.INC(Simulations!HC:HC,$B16) ->  | HC16: =_xlfn.PERCENTILE.INC(Simulations!HD:HD,$B16) ->  | HD16: =_xlfn.PERCENTILE.INC(Simulations!HE:HE,$B16) ->  | HE16: =_xlfn.PERCENTILE.INC(Simulations!HF:HF,$B16) ->  | HF16: =_xlfn.PERCENTILE.INC(Simulations!HG:HG,$B16) ->  | HG16: =_xlfn.PERCENTILE.INC(Simulations!HH:HH,$B16) ->  | HH16: =_xlfn.PERCENTILE.INC(Simulations!HI:HI,$B16) ->  | HI16: =_xlfn.PERCENTILE.INC(Simulations!HJ:HJ,$B16) ->  | HJ16: =_xlfn.PERCENTILE.INC(Simulations!HK:HK,$B16) ->  | HK16: =_xlfn.PERCENTILE.INC(Simulations!HL:HL,$B16) ->  | HL16: =_xlfn.PERCENTILE.INC(Simulations!HM:HM,$B16) ->  | HM16: =_xlfn.PERCENTILE.INC(Simulations!HN:HN,$B16) ->  | HN16: =_xlfn.PERCENTILE.INC(Simulations!HO:HO,$B16) ->  | HO16: =_xlfn.PERCENTILE.INC(Simulations!HP:HP,$B16) ->  | HP16: =_xlfn.PERCENTILE.INC(Simulations!HQ:HQ,$B16) ->  | HQ16: =_xlfn.PERCENTILE.INC(Simulations!HR:HR,$B16) ->  | HR16: =_xlfn.PERCENTILE.INC(Simulations!HS:HS,$B16) ->  | HS16: =_xlfn.PERCENTILE.INC(Simulations!HT:HT,$B16) ->  | HT16: =_xlfn.PERCENTILE.INC(Simulations!HU:HU,$B16) ->  | HU16: =_xlfn.PERCENTILE.INC(Simulations!HV:HV,$B16) ->  | HV16: =_xlfn.PERCENTILE.INC(Simulations!HW:HW,$B16) ->  | HW16: =_xlfn.PERCENTILE.INC(Simulations!HX:HX,$B16) ->  | HX16: =_xlfn.PERCENTILE.INC(Simulations!HY:HY,$B16) ->  | HY16: =_xlfn.PERCENTILE.INC(Simulations!HZ:HZ,$B16) ->  | HZ16: =_xlfn.PERCENTILE.INC(Simulations!IA:IA,$B16) ->  | IA16: =_xlfn.PERCENTILE.INC(Simulations!IB:IB,$B16) ->  | IB16: =_xlfn.PERCENTILE.INC(Simulations!IC:IC,$B16) ->  | IC16: =_xlfn.PERCENTILE.INC(Simulations!ID:ID,$B16) ->  | ID16: =_xlfn.PERCENTILE.INC(Simulations!IE:IE,$B16) ->  | IE16: =_xlfn.PERCENTILE.INC(Simulations!IF:IF,$B16) ->  | IF16: =_xlfn.PERCENTILE.INC(Simulations!IG:IG,$B16) ->  | IG16: =_xlfn.PERCENTILE.INC(Simulations!IH:IH,$B16) ->  | IH16: =_xlfn.PERCENTILE.INC(Simulations!II:II,$B16) ->  | II16: =_xlfn.PERCENTILE.INC(Simulations!IJ:IJ,$B16) ->  | IJ16: =_xlfn.PERCENTILE.INC(Simulations!IK:IK,$B16) ->  | IK16: =_xlfn.PERCENTILE.INC(Simulations!IL:IL,$B16) ->  | IL16: =_xlfn.PERCENTILE.INC(Simulations!IM:IM,$B16) ->  | IM16: =_xlfn.PERCENTILE.INC(Simulations!IN:IN,$B16) ->  | IN16: =_xlfn.PERCENTILE.INC(Simulations!IO:IO,$B16) ->  | IO16: =_xlfn.PERCENTILE.INC(Simulations!IP:IP,$B16) ->  | IP16: =_xlfn.PERCENTILE.INC(Simulations!IQ:IQ,$B16) ->  | IQ16: =_xlfn.PERCENTILE.INC(Simulations!IR:IR,$B16) ->  | IR16: =_xlfn.PERCENTILE.INC(Simulations!IS:IS,$B16) ->  | IS16: =_xlfn.PERCENTILE.INC(Simulations!IT:IT,$B16) ->  | IT16: =_xlfn.PERCENTILE.INC(Simulations!IU:IU,$B16) ->  | IU16: =_xlfn.PERCENTILE.INC(Simulations!IV:IV,$B16) ->  | IV16: =_xlfn.PERCENTILE.INC(Simulations!IW:IW,$B16) ->  | IW16: =_xlfn.PERCENTILE.INC(Simulations!IX:IX,$B16) ->  | IX16: =_xlfn.PERCENTILE.INC(Simulations!IY:IY,$B16) ->  | IY16: =_xlfn.PERCENTILE.INC(Simulations!IZ:IZ,$B16) ->  | IZ16: =_xlfn.PERCENTILE.INC(Simulations!JA:JA,$B16) ->  | JA16: =_xlfn.PERCENTILE.INC(Simulations!JB:JB,$B16) ->  | JB16: =_xlfn.PERCENTILE.INC(Simulations!JC:JC,$B16) ->  | JC16: =_xlfn.PERCENTILE.INC(Simulations!JD:JD,$B16) ->  | JD16: =_xlfn.PERCENTILE.INC(Simulations!JE:JE,$B16) ->  | JE16: =_xlfn.PERCENTILE.INC(Simulations!JF:JF,$B16) ->  | JF16: =_xlfn.PERCENTILE.INC(Simulations!JG:JG,$B16) ->  | JG16: =_xlfn.PERCENTILE.INC(Simulations!JH:JH,$B16) ->  | JH16: =_xlfn.PERCENTILE.INC(Simulations!JI:JI,$B16) ->  | JI16: =_xlfn.PERCENTILE.INC(Simulations!JJ:JJ,$B16) ->  | JJ16: =_xlfn.PERCENTILE.INC(Simulations!JK:JK,$B16) ->  | JK16: =_xlfn.PERCENTILE.INC(Simulations!JL:JL,$B16) ->  | JL16: =_xlfn.PERCENTILE.INC(Simulations!JM:JM,$B16) ->  | JM16: =_xlfn.PERCENTILE.INC(Simulations!JN:JN,$B16) ->  | JN16: =_xlfn.PERCENTILE.INC(Simulations!JO:JO,$B16) ->  | JO16: =_xlfn.PERCENTILE.INC(Simulations!JP:JP,$B16) ->  | JP16: =_xlfn.PERCENTILE.INC(Simulations!JQ:JQ,$B16) ->  | JQ16: =_xlfn.PERCENTILE.INC(Simulations!JR:JR,$B16) ->  | JR16: =_xlfn.PERCENTILE.INC(Simulations!JS:JS,$B16) ->  | JS16: =_xlfn.PERCENTILE.INC(Simulations!JT:JT,$B16) ->  | JT16: =_xlfn.PERCENTILE.INC(Simulations!JU:JU,$B16) ->  | JU16: =_xlfn.PERCENTILE.INC(Simulations!JV:JV,$B16) ->  | JV16: =_xlfn.PERCENTILE.INC(Simulations!JW:JW,$B16) ->  | JW16: =_xlfn.PERCENTILE.INC(Simulations!JX:JX,$B16) ->  | JX16: =_xlfn.PERCENTILE.INC(Simulations!JY:JY,$B16) ->  | JY16: =_xlfn.PERCENTILE.INC(Simulations!JZ:JZ,$B16) ->  | JZ16: =_xlfn.PERCENTILE.INC(Simulations!KA:KA,$B16) ->  | KA16: =_xlfn.PERCENTILE.INC(Simulations!KB:KB,$B16) ->  | KB16: =_xlfn.PERCENTILE.INC(Simulations!KC:KC,$B16) ->  | KC16: =_xlfn.PERCENTILE.INC(Simulations!KD:KD,$B16) ->  | KD16: =_xlfn.PERCENTILE.INC(Simulations!KE:KE,$B16) ->  | KE16: =_xlfn.PERCENTILE.INC(Simulations!KF:KF,$B16) ->  | KF16: =_xlfn.PERCENTILE.INC(Simulations!KG:KG,$B16) ->  | KG16: =_xlfn.PERCENTILE.INC(Simulations!KH:KH,$B16) ->  | KH16: =_xlfn.PERCENTILE.INC(Simulations!KI:KI,$B16) ->  | KI16: =_xlfn.PERCENTILE.INC(Simulations!KJ:KJ,$B16) ->  | KJ16: =_xlfn.PERCENTILE.INC(Simulations!KK:KK,$B16) ->  | KK16: =_xlfn.PERCENTILE.INC(Simulations!KL:KL,$B16) ->  | KL16: =_xlfn.PERCENTILE.INC(Simulations!KM:KM,$B16) ->  | KM16: =_xlfn.PERCENTILE.INC(Simulations!KN:KN,$B16) ->  | KN16: =_xlfn.PERCENTILE.INC(Simulations!KO:KO,$B16) ->  | KO16: =_xlfn.PERCENTILE.INC(Simulations!KP:KP,$B16) ->  | KP16: =_xlfn.PERCENTILE.INC(Simulations!KQ:KQ,$B16) ->  | KQ16: =_xlfn.PERCENTILE.INC(Simulations!KR:KR,$B16) ->  | KR16: =_xlfn.PERCENTILE.INC(Simulations!KS:KS,$B16) ->  | KS16: =_xlfn.PERCENTILE.INC(Simulations!KT:KT,$B16) ->  | KT16: =_xlfn.PERCENTILE.INC(Simulations!KU:KU,$B16) ->  | KU16: =_xlfn.PERCENTILE.INC(Simulations!KV:KV,$B16) ->  | KV16: =_xlfn.PERCENTILE.INC(Simulations!KW:KW,$B16) ->  | KW16: =_xlfn.PERCENTILE.INC(Simulations!KX:KX,$B16) ->  | KX16: =_xlfn.PERCENTILE.INC(Simulations!KY:KY,$B16) ->  | KY16: =_xlfn.PERCENTILE.INC(Simulations!KZ:KZ,$B16) ->  | KZ16: =_xlfn.PERCENTILE.INC(Simulations!LA:LA,$B16) ->  | LA16: =_xlfn.PERCENTILE.INC(Simulations!LB:LB,$B16) ->  | LB16: =_xlfn.PERCENTILE.INC(Simulations!LC:LC,$B16) ->  | LC16: =_xlfn.PERCENTILE.INC(Simulations!LD:LD,$B16) ->  | LD16: =_xlfn.PERCENTILE.INC(Simulations!LE:LE,$B16) ->  | LE16: =_xlfn.PERCENTILE.INC(Simulations!LF:LF,$B16) ->  | LF16: =_xlfn.PERCENTILE.INC(Simulations!LG:LG,$B16) ->  | LG16: =_xlfn.PERCENTILE.INC(Simulations!LH:LH,$B16) ->  | LH16: =_xlfn.PERCENTILE.INC(Simulations!LI:LI,$B16) ->  | LI16: =_xlfn.PERCENTILE.INC(Simulations!LJ:LJ,$B16) ->  | LJ16: =_xlfn.PERCENTILE.INC(Simulations!LK:LK,$B16) ->  | LK16: =_xlfn.PERCENTILE.INC(Simulations!LL:LL,$B16) ->  | LL16: =_xlfn.PERCENTILE.INC(Simulations!LM:LM,$B16) ->  | LM16: =_xlfn.PERCENTILE.INC(Simulations!LN:LN,$B16) ->  | LN16: =_xlfn.PERCENTILE.INC(Simulations!LO:LO,$B16) ->  | LO16: =_xlfn.PERCENTILE.INC(Simulations!LP:LP,$B16) ->  | LP16: =_xlfn.PERCENTILE.INC(Simulations!LQ:LQ,$B16) ->  | LQ16: =_xlfn.PERCENTILE.INC(Simulations!LR:LR,$B16) ->  | LR16: =_xlfn.PERCENTILE.INC(Simulations!LS:LS,$B16) ->  | LS16: =_xlfn.PERCENTILE.INC(Simulations!LT:LT,$B16) ->  | LT16: =_xlfn.PERCENTILE.INC(Simulations!LU:LU,$B16) ->  | LU16: =_xlfn.PERCENTILE.INC(Simulations!LV:LV,$B16) ->  | LV16: =_xlfn.PERCENTILE.INC(Simulations!LW:LW,$B16) ->  | LW16: =_xlfn.PERCENTILE.INC(Simulations!LX:LX,$B16) ->  | LX16: =_xlfn.PERCENTILE.INC(Simulations!LY:LY,$B16) ->  | LY16: =_xlfn.PERCENTILE.INC(Simulations!LZ:LZ,$B16) ->  | LZ16: =_xlfn.PERCENTILE.INC(Simulations!MA:MA,$B16) ->  | MA16: =_xlfn.PERCENTILE.INC(Simulations!MB:MB,$B16) ->  | MB16: =_xlfn.PERCENTILE.INC(Simulations!MC:MC,$B16) ->  | MC16: =_xlfn.PERCENTILE.INC(Simulations!MD:MD,$B16) ->  | MD16: =_xlfn.PERCENTILE.INC(Simulations!ME:ME,$B16) ->  | ME16: =_xlfn.PERCENTILE.INC(Simulations!MF:MF,$B16) ->  | MF16: =_xlfn.PERCENTILE.INC(Simulations!MG:MG,$B16) ->  | MG16: =_xlfn.PERCENTILE.INC(Simulations!MH:MH,$B16) ->  | MH16: =_xlfn.PERCENTILE.INC(Simulations!MI:MI,$B16) ->  | MI16: =_xlfn.PERCENTILE.INC(Simulations!MJ:MJ,$B16) ->  | MJ16: =_xlfn.PERCENTILE.INC(Simulations!MK:MK,$B16) ->  | MK16: =_xlfn.PERCENTILE.INC(Simulations!ML:ML,$B16) ->  | ML16: =_xlfn.PERCENTILE.INC(Simulations!MM:MM,$B16) ->  | MM16: =_xlfn.PERCENTILE.INC(Simulations!MN:MN,$B16) ->  | MN16: =_xlfn.PERCENTILE.INC(Simulations!MO:MO,$B16) ->  | MO16: =_xlfn.PERCENTILE.INC(Simulations!MP:MP,$B16) ->  | MP16: =_xlfn.PERCENTILE.INC(Simulations!MQ:MQ,$B16) ->  | MQ16: =_xlfn.PERCENTILE.INC(Simulations!MR:MR,$B16) ->  | MR16: =_xlfn.PERCENTILE.INC(Simulations!MS:MS,$B16) ->  | MS16: =_xlfn.PERCENTILE.INC(Simulations!MT:MT,$B16) ->  | MT16: =_xlfn.PERCENTILE.INC(Simulations!MU:MU,$B16) ->  | MU16: =_xlfn.PERCENTILE.INC(Simulations!MV:MV,$B16) ->  | MV16: =_xlfn.PERCENTILE.INC(Simulations!MW:MW,$B16) ->  | MW16: =_xlfn.PERCENTILE.INC(Simulations!MX:MX,$B16) ->  | MX16: =_xlfn.PERCENTILE.INC(Simulations!MY:MY,$B16) ->  | MY16: =_xlfn.PERCENTILE.INC(Simulations!MZ:MZ,$B16) ->  | MZ16: =_xlfn.PERCENTILE.INC(Simulations!NA:NA,$B16) ->  | NA16: =_xlfn.PERCENTILE.INC(Simulations!NB:NB,$B16) ->  | NB16: =_xlfn.PERCENTILE.INC(Simulations!NC:NC,$B16) ->  | NC16: =_xlfn.PERCENTILE.INC(Simulations!ND:ND,$B16) ->  | ND16: =_xlfn.PERCENTILE.INC(Simulations!NE:NE,$B16) ->  | NE16: =_xlfn.PERCENTILE.INC(Simulations!NF:NF,$B16) ->  | NF16: =_xlfn.PERCENTILE.INC(Simulations!NG:NG,$B16) ->  | NG16: =_xlfn.PERCENTILE.INC(Simulations!NH:NH,$B16) ->  | NH16: =_xlfn.PERCENTILE.INC(Simulations!NI:NI,$B16) ->  | NI16: =_xlfn.PERCENTILE.INC(Simulations!NJ:NJ,$B16) ->  | NJ16: =_xlfn.PERCENTILE.INC(Simulations!NK:NK,$B16) ->  | NK16: =_xlfn.PERCENTILE.INC(Simulations!NL:NL,$B16) ->  | NL16: =_xlfn.PERCENTILE.INC(Simulations!NM:NM,$B16) ->  | NM16: =_xlfn.PERCENTILE.INC(Simulations!NN:NN,$B16) ->  | NN16: =_xlfn.PERCENTILE.INC(Simulations!NO:NO,$B16) ->  | NO16: =_xlfn.PERCENTILE.INC(Simulations!NP:NP,$B16) ->  | NP16: =_xlfn.PERCENTILE.INC(Simulations!NQ:NQ,$B16) ->  | NQ16: =_xlfn.PERCENTILE.INC(Simulations!NR:NR,$B16) ->  | NR16: =_xlfn.PERCENTILE.INC(Simulations!NS:NS,$B16) ->  | NS16: =_xlfn.PERCENTILE.INC(Simulations!NT:NT,$B16) ->  | NT16: =_xlfn.PERCENTILE.INC(Simulations!NU:NU,$B16) ->  | NU16: =_xlfn.PERCENTILE.INC(Simulations!NV:NV,$B16) ->  | NV16: =_xlfn.PERCENTILE.INC(Simulations!NW:NW,$B16) ->  | NW16: =_xlfn.PERCENTILE.INC(Simulations!NX:NX,$B16) ->  | NX16: =_xlfn.PERCENTILE.INC(Simulations!NY:NY,$B16) ->  | NY16: =_xlfn.PERCENTILE.INC(Simulations!NZ:NZ,$B16) ->  | NZ16: =_xlfn.PERCENTILE.INC(Simulations!OA:OA,$B16) ->  | OA16: =_xlfn.PERCENTILE.INC(Simulations!OB:OB,$B16) ->  | OB16: =_xlfn.PERCENTILE.INC(Simulations!OC:OC,$B16) ->  | OC16: =_xlfn.PERCENTILE.INC(Simulations!OD:OD,$B16) ->  | OD16: =_xlfn.PERCENTILE.INC(Simulations!OE:OE,$B16) ->  | OE16: =_xlfn.PERCENTILE.INC(Simulations!OF:OF,$B16) ->  | OF16: =_xlfn.PERCENTILE.INC(Simulations!OG:OG,$B16) ->  | OG16: =_xlfn.PERCENTILE.INC(Simulations!OH:OH,$B16) ->  | OH16: =_xlfn.PERCENTILE.INC(Simulations!OI:OI,$B16) ->  | OI16: =_xlfn.PERCENTILE.INC(Simulations!OJ:OJ,$B16) ->  | OJ16: =_xlfn.PERCENTILE.INC(Simulations!OK:OK,$B16) ->  | OK16: =_xlfn.PERCENTILE.INC(Simulations!OL:OL,$B16) ->  | OL16: =_xlfn.PERCENTILE.INC(Simulations!OM:OM,$B16) ->  | OM16: =_xlfn.PERCENTILE.INC(Simulations!ON:ON,$B16) ->  | ON16: =_xlfn.PERCENTILE.INC(Simulations!OO:OO,$B16) ->  | OO16: =_xlfn.PERCENTILE.INC(Simulations!OP:OP,$B16) ->  | OP16: =_xlfn.PERCENTILE.INC(Simulations!OQ:OQ,$B16) ->  | OQ16: =_xlfn.PERCENTILE.INC(Simulations!OR:OR,$B16) ->  | OR16: =_xlfn.PERCENTILE.INC(Simulations!OS:OS,$B16) ->  | OS16: =_xlfn.PERCENTILE.INC(Simulations!OT:OT,$B16) ->  | OT16: =_xlfn.PERCENTILE.INC(Simulations!OU:OU,$B16) ->  | OU16: =_xlfn.PERCENTILE.INC(Simulations!OV:OV,$B16) ->  | OV16: =_xlfn.PERCENTILE.INC(Simulations!OW:OW,$B16) ->  | OW16: =_xlfn.PERCENTILE.INC(Simulations!OX:OX,$B16) ->  | OX16: =_xlfn.PERCENTILE.INC(Simulations!OY:OY,$B16) ->  | OY16: =_xlfn.PERCENTILE.INC(Simulations!OZ:OZ,$B16) ->  | OZ16: =_xlfn.PERCENTILE.INC(Simulations!PA:PA,$B16) ->  | PA16: =_xlfn.PERCENTILE.INC(Simulations!PB:PB,$B16) ->  | PB16: =_xlfn.PERCENTILE.INC(Simulations!PC:PC,$B16) ->  | PC16: =_xlfn.PERCENTILE.INC(Simulations!PD:PD,$B16) ->  | PD16: =_xlfn.PERCENTILE.INC(Simulations!PE:PE,$B16) ->  | PE16: =_xlfn.PERCENTILE.INC(Simulations!PF:PF,$B16) ->  | PF16: =_xlfn.PERCENTILE.INC(Simulations!PG:PG,$B16) ->  | PG16: =_xlfn.PERCENTILE.INC(Simulations!PH:PH,$B16) ->  | PH16: =_xlfn.PERCENTILE.INC(Simulations!PI:PI,$B16) ->  | PI16: =_xlfn.PERCENTILE.INC(Simulations!PJ:PJ,$B16) ->  | PJ16: =_xlfn.PERCENTILE.INC(Simulations!PK:PK,$B16) ->  | PK16: =_xlfn.PERCENTILE.INC(Simulations!PL:PL,$B16) ->  | PL16: =_xlfn.PERCENTILE.INC(Simulations!PM:PM,$B16) ->  | PM16: =_xlfn.PERCENTILE.INC(Simulations!PN:PN,$B16) ->  | PN16: =_xlfn.PERCENTILE.INC(Simulations!PO:PO,$B16) ->  | PO16: =_xlfn.PERCENTILE.INC(Simulations!PP:PP,$B16) ->  | PP16: =_xlfn.PERCENTILE.INC(Simulations!PQ:PQ,$B16) ->  | PQ16: =_xlfn.PERCENTILE.INC(Simulations!PR:PR,$B16) ->  | PR16: =_xlfn.PERCENTILE.INC(Simulations!PS:PS,$B16) ->  | PS16: =_xlfn.PERCENTILE.INC(Simulations!PT:PT,$B16) ->  | PT16: =_xlfn.PERCENTILE.INC(Simulations!PU:PU,$B16) ->  | PU16: =_xlfn.PERCENTILE.INC(Simulations!PV:PV,$B16) ->  | PV16: =_xlfn.PERCENTILE.INC(Simulations!PW:PW,$B16) ->  | PW16: =_xlfn.PERCENTILE.INC(Simulations!PX:PX,$B16) ->  | PX16: =_xlfn.PERCENTILE.INC(Simulations!PY:PY,$B16) ->  | PY16: =_xlfn.PERCENTILE.INC(Simulations!PZ:PZ,$B16) ->  | PZ16: =_xlfn.PERCENTILE.INC(Simulations!QA:QA,$B16) ->  | QA16: =_xlfn.PERCENTILE.INC(Simulations!QB:QB,$B16) ->  | QB16: =_xlfn.PERCENTILE.INC(Simulations!QC:QC,$B16) ->  | QC16: =_xlfn.PERCENTILE.INC(Simulations!QD:QD,$B16) ->  | QD16: =_xlfn.PERCENTILE.INC(Simulations!QE:QE,$B16) ->  | QE16: =_xlfn.PERCENTILE.INC(Simulations!QF:QF,$B16) ->  | QF16: =_xlfn.PERCENTILE.INC(Simulations!QG:QG,$B16) ->  | QG16: =_xlfn.PERCENTILE.INC(Simulations!QH:QH,$B16) ->  | QH16: =_xlfn.PERCENTILE.INC(Simulations!QI:QI,$B16) ->  | QI16: =_xlfn.PERCENTILE.INC(Simulations!QJ:QJ,$B16) ->  | QJ16: =_xlfn.PERCENTILE.INC(Simulations!QK:QK,$B16) ->  | QK16: =_xlfn.PERCENTILE.INC(Simulations!QL:QL,$B16) ->  | QL16: =_xlfn.PERCENTILE.INC(Simulations!QM:QM,$B16) ->  | QM16: =_xlfn.PERCENTILE.INC(Simulations!QN:QN,$B16) ->  | QN16: =_xlfn.PERCENTILE.INC(Simulations!QO:QO,$B16) ->  | QO16: =_xlfn.PERCENTILE.INC(Simulations!QP:QP,$B16) ->  | QP16: =_xlfn.PERCENTILE.INC(Simulations!QQ:QQ,$B16) ->  | QQ16: =_xlfn.PERCENTILE.INC(Simulations!QR:QR,$B16) ->  | QR16: =_xlfn.PERCENTILE.INC(Simulations!QS:QS,$B16) ->  | QS16: =_xlfn.PERCENTILE.INC(Simulations!QT:QT,$B16) ->  | QT16: =_xlfn.PERCENTILE.INC(Simulations!QU:QU,$B16) ->  | QU16: =_xlfn.PERCENTILE.INC(Simulations!QV:QV,$B16) ->  | QV16: =_xlfn.PERCENTILE.INC(Simulations!QW:QW,$B16) ->  | QW16: =_xlfn.PERCENTILE.INC(Simulations!QX:QX,$B16) ->  | QX16: =_xlfn.PERCENTILE.INC(Simulations!QY:QY,$B16) ->  | QY16: =_xlfn.PERCENTILE.INC(Simulations!QZ:QZ,$B16) ->  | QZ16: =_xlfn.PERCENTILE.INC(Simulations!RA:RA,$B16) ->  | RA16: =_xlfn.PERCENTILE.INC(Simulations!RB:RB,$B16) ->  | RB16: =_xlfn.PERCENTILE.INC(Simulations!RC:RC,$B16) ->  | RC16: =_xlfn.PERCENTILE.INC(Simulations!RD:RD,$B16) ->  | RD16: =_xlfn.PERCENTILE.INC(Simulations!RE:RE,$B16) ->  | RE16: =_xlfn.PERCENTILE.INC(Simulations!RF:RF,$B16) ->  | RF16: =_xlfn.PERCENTILE.INC(Simulations!RG:RG,$B16) ->  | RG16: =_xlfn.PERCENTILE.INC(Simulations!RH:RH,$B16) ->  | RH16: =_xlfn.PERCENTILE.INC(Simulations!RI:RI,$B16) ->  | RI16: =_xlfn.PERCENTILE.INC(Simulations!RJ:RJ,$B16) ->  | RJ16: =_xlfn.PERCENTILE.INC(Simulations!RK:RK,$B16) ->  | RK16: =_xlfn.PERCENTILE.INC(Simulations!RL:RL,$B16) ->  | RL16: =_xlfn.PERCENTILE.INC(Simulations!RM:RM,$B16) ->  | RM16: =_xlfn.PERCENTILE.INC(Simulations!RN:RN,$B16) ->  | RN16: =_xlfn.PERCENTILE.INC(Simulations!RO:RO,$B16) ->  | RO16: =_xlfn.PERCENTILE.INC(Simulations!RP:RP,$B16) ->  | RP16: =_xlfn.PERCENTILE.INC(Simulations!RQ:RQ,$B16) ->  | RQ16: =_xlfn.PERCENTILE.INC(Simulations!RR:RR,$B16) ->  | RR16: =_xlfn.PERCENTILE.INC(Simulations!RS:RS,$B16) ->  | RS16: =_xlfn.PERCENTILE.INC(Simulations!RT:RT,$B16) ->  | RT16: =_xlfn.PERCENTILE.INC(Simulations!RU:RU,$B16) ->  | RU16: =_xlfn.PERCENTILE.INC(Simulations!RV:RV,$B16) ->  | RV16: =_xlfn.PERCENTILE.INC(Simulations!RW:RW,$B16) ->  | RW16: =_xlfn.PERCENTILE.INC(Simulations!RX:RX,$B16) ->  | RX16: =_xlfn.PERCENTILE.INC(Simulations!RY:RY,$B16) ->  | RY16: =_xlfn.PERCENTILE.INC(Simulations!RZ:RZ,$B16) ->  | RZ16: =_xlfn.PERCENTILE.INC(Simulations!SA:SA,$B16) ->  | SA16: =_xlfn.PERCENTILE.INC(Simulations!SB:SB,$B16) ->  | SB16: =_xlfn.PERCENTILE.INC(Simulations!SC:SC,$B16) ->  | SC16: =_xlfn.PERCENTILE.INC(Simulations!SD:SD,$B16) ->  | SD16: =_xlfn.PERCENTILE.INC(Simulations!SE:SE,$B16) ->  | SE16: =_xlfn.PERCENTILE.INC(Simulations!SF:SF,$B16) ->  | SF16: =_xlfn.PERCENTILE.INC(Simulations!SG:SG,$B16) ->  | SG16: =_xlfn.PERCENTILE.INC(Simulations!SH:SH,$B16) ->  | SH16: =_xlfn.PERCENTILE.INC(Simulations!SI:SI,$B16) -> 
